Workbook

Sheet Report
D1: 季ROI | E1: 季ROI排名 | F1: 半年ROI | G1: 半年ROI排名 | H1: 一年ROI | I1: 一年ROI排名 | J1: 二年ROI | K1: 二年ROI排名 | L1: 三年ROI | M1: 三年ROI排名 | N1: 五年ROI | O1: 五年ROI排名 | P1: 自今年以來ROI | Q1: 自今年以來ROI排名 | R1: 年化標準差--24個月 | S1: beta--24個月 | T1: Sharpe Index-24個月 | U1: Jensen Index-24個月 | V1: Treynor Index-24個月 | W1: IR--24個月（大分類） | X1: IR--24個月（細分類） | Y1: 自成立以來ROI
B2: 2017-08-31
B4: Category | C4: Fund Name | D4: 3-Month | F4: 6-Month | H4: 1-Year | J4: 2-Year | L4: 3-Year | N4: 5-Year | P4: This Year To Date | R4: Annualized Standard Deviation | S4: Beta | T4: Sharpe | U4: Jensen | V4: Treynor | W4: Information Ratio | Y4: Est
D5: Return | E5: Rank | F5: Return | G5: Rank | H5: Return | I5: Rank | J5: Return | K5: Rank | L5: Return | M5: Rank | N5: Return | O5: Rank | P5: Return | Q5: Rank | R5: (24Mo) | S5: (24Mo) | T5: (24Mo) | U5: (24Mo) | V5: (24Mo) | W5: (24Mo)(broad) | X5: (24Mo)(narrow) | Y5: ROI
A6: 98764389 | B6: 國內指數-一般ETF | C6: =IFERROR(VLOOKUP(A6,Raw!A:C,3,0),"") -> 元大台灣卓越50證券投資信託基金 | D6: =IFERROR(IF(INDEX(ALL,MATCH($C6,FUND,0),MATCH(D$1,Name,0))="","",INDEX(ALL,MATCH($C6,FUND,0),MATCH(D$1,Name,0))),"") -> 9.84 | E6: 7 | F6: 14.44 | G6: 6 | H6: 23.08 | I6: 5 | J6: 40.65 | K6: 5 | L6: 32.89 | M6: 4 | N6: 84.06 | O6: 3 | P6: 19.48 | Q6: 8 | R6: =IFERROR(IF(INDEX(ALL,MATCH($C6,FUND,0),MATCH(R$1,Name,0))="","",INDEX(ALL,MATCH($C6,FUND,0),MATCH(R$1,Name,0))),"") -> 9.3304 | S6: =IFERROR(IF(INDEX(ALL,MATCH($C6,FUND,0),MATCH(S$1,Name,0))="","",INDEX(ALL,MATCH($C6,FUND,0),MATCH(S$1,Name,0))),"") -> 1.1086 | T6: =IFERROR(IF(INDEX(ALL,MATCH($C6,FUND,0),MATCH(T$1,Name,0))="","",INDEX(ALL,MATCH($C6,FUND,0),MATCH(T$1,Name,0))),"") -> 0.5191 | U6: =IFERROR(IF(INDEX(ALL,MATCH($C6,FUND,0),MATCH(U$1,Name,0))="","",INDEX(ALL,MATCH($C6,FUND,0),MATCH(U$1,Name,0))),"") -> -0.1379 | V6: 1.2613 | W6: 0.4059 | X6: 0.1689 | Y6: 252.67
A7: 48772770 | C7: =IFERROR(VLOOKUP(A7,Raw!A:C,3,0),"") -> 元大台灣中型 100證券投資信託基金 | D7: 12.1 | E7: 2 | F7: 14.43 | G7: 7 | H7: 22.31 | I7: 6 | J7: 40.03 | K7: 6 | L7: 9.05 | M7: 14 | N7: 41.71 | O7: 12 | P7: 24.19 | Q7: 3 | R7: 9.5169 | S7: 1.0131 | T7: 0.5026 | U7: -0.023 | V7: 1.363 | W7: 0.1957 | X7: 0.0688 | Y7: 62.27
A8: 48790067 | C8: =IFERROR(VLOOKUP(A8,Raw!A:C,3,0),"") -> 富邦台灣科技指數證券投資信託基金 | D8: 9.87 | E8: 6 | F8: 16.24 | G8: 3 | H8: 22.18 | I8: 7 | J8: 59.71 | K8: 1 | L8: 39.9 | M8: 1 | N8: 102.38 | O8: 1 | P8: 21.93 | Q8: 6 | R8: 11.2531 | S8: 1.221 | T8: 0.6012 | U8: 0.261 | V8: 1.5994 | W8: 0.5329 | X8: 0.4201 | Y8: 118.37
A9: 48903196 | C9: =IFERROR(VLOOKUP(A9,Raw!A:C,3,0),"") -> 元大台灣 ETF傘型證券投資信託基金之電子科技證券投資信託基金 | D9: 10.87 | E9: 4 | F9: 17.56 | G9: 1 | H9: 26.24 | I9: 1 | J9: 55.85 | K9: 2 | L9: 35.38 | M9: 2 | N9: 91.58 | O9: 2 | P9: 25.35 | Q9: 1 | R9: 9.407 | S9: 1.0856 | T9: 0.6752 | U9: 0.3295 | V9: 1.6891 | W9: 0.748 | X9: 0.5776 | Y9: 57.85
A10: 48903180 | C10: =IFERROR(VLOOKUP(A10,Raw!A:C,3,0),"") -> 元大台灣 ETF傘型證券投資信託基金之台商收成證券投資信託基金 | D10: 10.62 | E10: 5 | F10: 16.33 | G10: 2 | H10: 24.28 | I10: 3 | J10: 33.24 | K10: 12 | L10: 16.73 | M10: 9 | N10: 55.42 | O10: 11 | P10: 24.74 | Q10: 2 | R10: 10.3215 | S10: 1.1683 | T10: 0.3954 | U10: -0.4408 | V10: 1.0083 | W10: 0.0736 | X10: -0.0829 | Y10: 36.78
A11: 48903175 | C11: =IFERROR(VLOOKUP(A11,Raw!A:C,3,0),"") -> 元大台灣 ETF傘型證券投資信託基金之金融證券投資信託基金 | D11: 8.5 | E11: 13 | F11: 9.16 | G11: 12 | H11: 19.93 | I11: 11 | J11: 17.67 | K11: 13 | L11: 13.92 | M11: 10 | N11: 68.22 | O11: 7 | P11: 11.87 | Q11: 13 | R11: 11.1771 | S11: 0.968 | T11: 0.2054 | U11: -0.6786 | V11: 0.6846 | W11: -0.1847 | X11: -0.2728 | Y11: 32.01
A12: 48966213 | C12: =IFERROR(VLOOKUP(A12,Raw!A:C,3,0),"") -> 元大台灣高股息證券投資信託基金 | D12: 5.89 | E12: 16 | F12: 6.89 | G12: 14 | H12: 11.49 | I12: 14 | J12: 38.66 | K12: 7 | L12: 13.69 | M12: 11 | N12: 33.86 | O12: 14 | P12: 13.45 | Q12: 12 | R12: 9.7096 | S12: 0.9754 | T12: 0.4783 | U12: -0.0111 | V12: 1.3743 | W12: 0.1608 | X12: 0.0378 | Y12: 58.86
A13: 48975156 | C13: =IFERROR(VLOOKUP(A13,Raw!A:C,3,0),"") -> 富邦台灣 ETF傘型證券投資信託基金之富邦台灣摩根指數股票型基金 | D13: 9.44 | E13: 10 | F13: 13.64 | G13: 9 | H13: 21.26 | I13: 9 | J13: 37.2 | K13: 10 | L13: 26.2 | M13: 6 | N13: 72.81 | O13: 6 | P13: 18.84 | Q13: 10 | R13: 9.2852 | S13: 1.1163 | T13: 0.4824 | U13: -0.2537 | V13: 1.1583 | W13: 0.3123 | X13: 0.026 | Y13: 73.73
A14: 48977083 | C14: =IFERROR(VLOOKUP(A14,Raw!A:C,3,0),"") -> 富邦台灣 ETF傘型證券投資信託基金之富邦台灣發達指數股票型基金 | D14: 11.41 | E14: 3 | F14: 15.09 | G14: 4 | H14: 25.13 | I14: 2 | J14: 34.35 | K14: 11 | L14: 23.56 | M14: 8 | N14: 57.19 | O14: 10 | P14: 22.21 | Q14: 5 | R14: 8.6609 | S14: 1.0075 | T14: 0.48 | U14: -0.1958 | V14: 1.1913 | W14: 0.1233 | X14: -0.0853 | Y14: 87.35
A15: 48975162 | C15: =IFERROR(VLOOKUP(A15,Raw!A:C,3,0),"") -> 富邦台灣 ETF傘型證券投資信託基金之富邦台灣金融指數股票型基金 | D15: 8.19 | E15: 14 | F15: 8.13 | G15: 13 | H15: 19.04 | I15: 12 | J15: 15.6 | K15: 14 | L15: 13.44 | M15: 12 | N15: 66.11 | O15: 8 | P15: 10.54 | Q15: 14 | R15: 11.0831 | S15: 0.9222 | T15: 0.1837 | U15: -0.6901 | V15: 0.6373 | W15: -0.2115 | X15: -0.2961 | Y15: 37.17
A16: 26282102 | C16: =IFERROR(VLOOKUP(A16,Raw!A:C,3,0),"") -> 元大櫃買 ETF傘型證券投資信託基金之富櫃50證券投資信託基金 | D16: 13.76 | E16: 1 | F16: 12.53 | G16: 11 | H16: 18.4 | I16: 13 | J16: 43.11 | K16: 3 | L16: 12.1 | M16: 13 | N16: 41.71 | O16: 13 | P16: 22.83 | Q16: 4 | R16: 12.1531 | S16: 0.9166 | T16: 0.4262 | U16: 0.225 | V16: 1.6311 | W16: 0.1458 | X16: 0.0775 | Y16: 4.39
A17: 26306553 | C17: =IFERROR(VLOOKUP(A17,Raw!A:C,3,0),"") -> 元大摩臺證券投資信託基金 | D17: 9.55 | E17: 9 | F17: 13.89 | G17: 8 | H17: 21.82 | I17: 8 | J17: 38.34 | K17: 8 | L17: 27.74 | M17: 5 | N17: 75.32 | O17: 5 | P17: 19.18 | Q17: 9 | R17: 9.2928 | S17: 1.1188 | T17: 0.4951 | U17: =IFERROR(IF(INDEX(ALL,MATCH($C17,FUND,0),MATCH(U$1,Name,0))="","",INDEX(ALL,MATCH($C17,FUND,0),MATCH(U$1,Name,0))),"") -> -0.222 | V17: =IFERROR(IF(INDEX(ALL,MATCH($C17,FUND,0),MATCH(V$1,Name,0))="","",INDEX(ALL,MATCH($C17,FUND,0),MATCH(V$1,Name,0))),"") -> 1.1872 | W17: 0.3698 | X17: 0.0873 | Y17: 54.79
A18: 26332314 | C18: =IFERROR(VLOOKUP(A18,Raw!A:C,3,0),"") -> 永豐臺灣加權 ETF證券投資信託基金 | D18: =IFERROR(IF(INDEX(ALL,MATCH($C18,FUND,0),MATCH(D$1,Name,0))="","",INDEX(ALL,MATCH($C18,FUND,0),MATCH(D$1,Name,0))),"") -> 9.37 | E18: 11 | F18: 12.59 | G18: 10 | H18: 21.12 | I18: 10 | J18: 38.23 | K18: 9 | L18: 23.95 | M18: 7 | N18: 64.74 | O18: 9 | P18: 18.44 | Q18: 11 | R18: 8.051 | S18: 0.9977 | T18: =IFERROR(IF(INDEX(ALL,MATCH($C18,FUND,0),MATCH(T$1,Name,0))="","",INDEX(ALL,MATCH($C18,FUND,0),MATCH(T$1,Name,0))),"") -> 0.5663 | U18: -0.0663 | V18: 1.3192 | W18: 0.8864 | X18: 0.1294 | Y18: 70.6
A19: 31840182 | C19: =IFERROR(VLOOKUP(A19,Raw!A:C,3,0),"") -> 富邦台灣釆吉50 證券投資信託基金 | D19: 9.81 | E19: 8 | F19: 14.6 | G19: 5 | H19: 23.33 | I19: 4 | J19: 40.7 | K19: 4 | L19: 33 | M19: 3 | N19: 83.49 | O19: 4 | P19: 19.66 | Q19: 7 | R19: 9.3031 | S19: 1.1047 | T19: =IFERROR(IF(INDEX(ALL,MATCH($C19,FUND,0),MATCH(T$1,Name,0))="","",INDEX(ALL,MATCH($C19,FUND,0),MATCH(T$1,Name,0))),"") -> 0.5211 | U19: -0.1311 | V19: 1.2669 | W19: 0.4092 | X19: 0.1711 | Y19: 89.67
A20: 42482107 | C20: =IFERROR(VLOOKUP(A20,Raw!A:C,3,0),"") -> 兆豐國際臺灣藍籌30ETF傘型證券投資信託基金之兆豐國際臺灣藍籌 30ETF證券投資信託基金 | D20: 8.08 | E20: 15 | T20: =IFERROR(IF(INDEX(ALL,MATCH($C20,FUND,0),MATCH(T$1,Name,0))="","",INDEX(ALL,MATCH($C20,FUND,0),MATCH(T$1,Name,0))),"") ->  | Y20: 8.4
A21: 42482423 | C21: =IFERROR(VLOOKUP(A21,Raw!A:C,3,0),"") -> 富邦臺灣公司治理100證券投資信託基金 | D21: 8.76 | E21: 12 | T21: =IFERROR(IF(INDEX(ALL,MATCH($C21,FUND,0),MATCH(T$1,Name,0))="","",INDEX(ALL,MATCH($C21,FUND,0),MATCH(T$1,Name,0))),"") ->  | Y21: 8.71
A22: 42530591 | C22: =IFERROR(VLOOKUP(A22,Raw!A:C,3,0),"") -> 國泰低波動 ETF傘型證券投資信託基金之臺灣低波動精選30證券投資信託基金 | T22: =IFERROR(IF(INDEX(ALL,MATCH($C22,FUND,0),MATCH(T$1,Name,0))="","",INDEX(ALL,MATCH($C22,FUND,0),MATCH(T$1,Name,0))),"") ->  | Y22: 2.4
C23: AVERAGE | D23: =IFERROR(IF(INDEX(AVG_ALL,MATCH($B6,Category,0),MATCH(D$1,AVG,0))="","",INDEX(AVG_ALL,MATCH($B6,Category,0),MATCH(D$1,AVG,0))),"") -> 9.75375 | F23: 13.25142857 | H23: 21.40071429 | J23: 38.09571429 | L23: 22.96785714 | N23: 67.04285714 | P23: 19.47928571 | R23: =IFERROR(IF(INDEX(AVG_ALL,MATCH($B6,Category,0),MATCH(R$1,AVG,0))="","",INDEX(AVG_ALL,MATCH($B6,Category,0),MATCH(R$1,AVG,0))),"") -> 9.896057143 | S23: =IFERROR(IF(INDEX(AVG_ALL,MATCH($B6,Category,0),MATCH(S$1,AVG,0))="","",INDEX(AVG_ALL,MATCH($B6,Category,0),MATCH(S$1,AVG,0))),"") -> 1.0517 | T23: =IFERROR(IF(INDEX(AVG_ALL,MATCH($B6,Category,0),MATCH(T$1,AVG,0))="","",INDEX(AVG_ALL,MATCH($B6,Category,0),MATCH(T$1,AVG,0))),"") -> 0.4665714286 | U23: =IFERROR(IF(INDEX(AVG_ALL,MATCH($B6,Category,0),MATCH(U$1,AVG,0))="","",INDEX(AVG_ALL,MATCH($B6,Category,0),MATCH(U$1,AVG,0))),"") -> -0.14535 | V23: 1.240807143 | W23: 0.2833928571 | X23: 0.07338571429 | Y23: =IFERROR(IF(INDEX(AVG_ALL,MATCH($B6,Category,0),MATCH(Y$1,AVG,0))="","",INDEX(AVG_ALL,MATCH($B6,Category,0),MATCH(Y$1,AVG,0))),"") -> 62.11882353
C24: Funds in Category | E24: =IF(ISBLANK(VLOOKUP($B6,Rank!$B:$I,2,0)),"",VLOOKUP($B6,Rank!$B:$I,2,0)) -> 16 | G24: =IF(ISBLANK(VLOOKUP($B6,Rank!$B:$I,3,0)),"",VLOOKUP($B6,Rank!$B:$I,3,0)) -> 14 | I24: =IF(ISBLANK(VLOOKUP($B6,Rank!$B:$I,4,0)),"",VLOOKUP($B6,Rank!$B:$I,4,0)) -> 14 | K24: =IF(ISBLANK(VLOOKUP($B6,Rank!$B:$I,5,0)),"",VLOOKUP($B6,Rank!$B:$I,5,0)) -> 14 | M24: =IF(ISBLANK(VLOOKUP($B6,Rank!$B:$I,6,0)),"",VLOOKUP($B6,Rank!$B:$I,6,0)) -> 14 | O24: =IF(ISBLANK(VLOOKUP($B6,Rank!$B:$I,7,0)),"",VLOOKUP($B6,Rank!$B:$I,7,0)) -> 14 | Q24: =IF(ISBLANK(VLOOKUP($B6,Rank!$B:$I,8,0)),"",VLOOKUP($B6,Rank!$B:$I,8,0)) -> 14
A25: 25610486 | B25: 跨國-中國一般ETF | C25: =IFERROR(VLOOKUP(A25,Raw!A:C,3,0),"") -> 元大標智滬深300 證券投資信託基金 | D25: =IFERROR(IF(INDEX(ALL,MATCH($C25,FUND,0),MATCH(D$1,Name,0))="","",INDEX(ALL,MATCH($C25,FUND,0),MATCH(D$1,Name,0))),"") -> 9.27 | E25: 7 | F25: 6.06 | G25: 7 | H25: 3.98 | I25: 6 | J25: 1.56 | K25: 6 | L25: 36.6 | M25: 4 | N25: 35.08 | O25: 4 | P25: 6.93 | Q25: 7 | R25: =IFERROR(IF(INDEX(ALL,MATCH($C25,FUND,0),MATCH(R$1,Name,0))="","",INDEX(ALL,MATCH($C25,FUND,0),MATCH(R$1,Name,0))),"") -> 19.9516 | S25: =IFERROR(IF(INDEX(ALL,MATCH($C25,FUND,0),MATCH(S$1,Name,0))="","",INDEX(ALL,MATCH($C25,FUND,0),MATCH(S$1,Name,0))),"") -> 1.133 | T25: =IFERROR(IF(INDEX(ALL,MATCH($C25,FUND,0),MATCH(T$1,Name,0))="","",INDEX(ALL,MATCH($C25,FUND,0),MATCH(T$1,Name,0))),"") -> 0.0286 | U25: =IFERROR(IF(INDEX(ALL,MATCH($C25,FUND,0),MATCH(U$1,Name,0))="","",INDEX(ALL,MATCH($C25,FUND,0),MATCH(U$1,Name,0))),"") -> -0.9419 | V25: =IFERROR(IF(INDEX(ALL,MATCH($C25,FUND,0),MATCH(V$1,Name,0))="","",INDEX(ALL,MATCH($C25,FUND,0),MATCH(V$1,Name,0))),"") -> 0.1452 | W25: =IFERROR(IF(INDEX(ALL,MATCH($C25,FUND,0),MATCH(W$1,Name,0))="","",INDEX(ALL,MATCH($C25,FUND,0),MATCH(W$1,Name,0))),"") -> -0.1871 | X25: -0.0984 | Y25: -15.1
A26: 26334740 | C26: =IFERROR(VLOOKUP(A26,Raw!A:C,3,0),"") -> 富邦上証 180證券投資信託基金 | D26: 14.45 | E26: 6 | F26: 13.79 | G26: 5 | H26: 13.74 | I26: 3 | J26: 5.31 | K26: 5 | L26: 59 | M26: 3 | N26: 78.44 | O26: 3 | P26: 15.45 | Q26: 3 | R26: 19.4858 | S26: 1.2046 | T26: =IFERROR(IF(INDEX(ALL,MATCH($C26,FUND,0),MATCH(T$1,Name,0))="","",INDEX(ALL,MATCH($C26,FUND,0),MATCH(T$1,Name,0))),"") -> 0.0555 | U26: -0.8639 | V26: 0.2594 | W26: -0.125 | X26: 0.0098 | Y26: 57.65
A27: 31830488 | C27: =IFERROR(VLOOKUP(A27,Raw!A:C,3,0),"") -> 元大中國傘型證券投資信託基金之上證50證券投資信託基金 | D27: 15.35 | E27: 3 | F27: 17.84 | G27: 2 | H27: 17.93 | I27: 2 | J27: 13.8 | K27: 2 | L27: 68.45 | M27: 1 | N27: 79.5 | O27: 2 | P27: 17.93 | Q27: 2 | R27: 18.3336 | S27: 1.0479 | T27: 0.1161 | U27: -0.4088 | V27: 0.5864 | W27: 0.0515 | X27: 0.2056 | Y27: 55.9
A28: 31835478 | C28: =IFERROR(VLOOKUP(A28,Raw!A:C,3,0),"") -> 復華滬深300 A股證券投資信託基金 | D28: 14.64 | E28: 5 | F28: 14.36 | G28: 4 | H28: 12.45 | I28: 4 | J28: 6.15 | K28: 4 | L28: 61.67 | M28: 2 | N28: 79.59 | O28: 1 | P28: 15.2 | Q28: 4 | R28: 19.9542 | S28: 1.196 | T28: 0.0612 | U28: -0.8154 | V28: 0.2947 | W28: -0.1241 | X28: 0.0944 | Y28: 56.6
A29: 42260528 | C29: =IFERROR(VLOOKUP(A29,Raw!A:C,3,0),"") -> 國泰富時中國 A50證券投資信託基金 | D29: 15.03 | E29: 4 | F29: 18.44 | G29: 1 | H29: 19.23 | I29: 1 | J29: 17.17 | K29: 1 | P29: 20.48 | Q29: 1 | R29: 18.0493 | S29: 1.0559 | T29: 0.1403 | U29: -0.3002 | V29: 0.6922 | W29: 0.1158 | X29: 0.2793 | Y29: -2.05
A30: 42302273 | C30: =IFERROR(VLOOKUP(A30,Raw!A:C,3,0),"") -> 富邦深証100 證券投資信託基金 | D30: 16.15 | E30: 2 | F30: 14.45 | G30: 3 | H30: 6.43 | I30: 5 | J30: 6.63 | K30: 3 | P30: 15.17 | Q30: 5 | R30: 22.5373 | S30: 1.1323 | T30: 0.0639 | U30: -0.6901 | V30: 0.367 | W30: -0.0434 | X30: 0.0648 | Y30: -27.13
A31: 42323777 | C31: =IFERROR(VLOOKUP(A31,Raw!A:C,3,0),"") -> 群益深証中小板證券投資信託基金 | D31: 17.97 | E31: 1 | F31: 12.74 | G31: 6 | H31: 0.45 | I31: 7 | P31: 11.28 | Q31: 6 | Y31: -22.59
A32: 42528997 | C32: =IFERROR(VLOOKUP(A32,Raw!A:C,3,0),"") -> 台新MSCI新興市場國家傘型 ETF證券投資信託基金之台新MSCI中國證券投資信託基金 | Y32: 1.55
C33: AVERAGE | D33: =IFERROR(IF(INDEX(AVG_ALL,MATCH($B25,Category,0),MATCH(D$1,AVG,0))="","",INDEX(AVG_ALL,MATCH($B25,Category,0),MATCH(D$1,AVG,0))),"") -> 14.69428571 | F33: 13.95428571 | H33: 10.60142857 | J33: 8.436666667 | L33: 56.43 | N33: 68.1525 | P33: 14.63428571 | R33: 19.71863333 | S33: 1.128283333 | T33: 0.0776 | U33: -0.67005 | V33: 0.3908166667 | W33: -0.05205 | X33: 0.09258333333 | Y33: 13.10375
C34: Funds in Category | E34: =IF(ISBLANK(VLOOKUP($B25,Rank!$B:$I,2,0)),"",VLOOKUP($B25,Rank!$B:$I,2,0)) -> 7 | G34: =IF(ISBLANK(VLOOKUP($B25,Rank!$B:$I,3,0)),"",VLOOKUP($B25,Rank!$B:$I,3,0)) -> 7 | I34: =IF(ISBLANK(VLOOKUP($B25,Rank!$B:$I,4,0)),"",VLOOKUP($B25,Rank!$B:$I,4,0)) -> 7 | K34: =IF(ISBLANK(VLOOKUP($B25,Rank!$B:$I,5,0)),"",VLOOKUP($B25,Rank!$B:$I,5,0)) -> 6 | M34: =IF(ISBLANK(VLOOKUP($B25,Rank!$B:$I,6,0)),"",VLOOKUP($B25,Rank!$B:$I,6,0)) -> 4 | O34: =IF(ISBLANK(VLOOKUP($B25,Rank!$B:$I,7,0)),"",VLOOKUP($B25,Rank!$B:$I,7,0)) -> 4 | Q34: =IF(ISBLANK(VLOOKUP($B25,Rank!$B:$I,8,0)),"",VLOOKUP($B25,Rank!$B:$I,8,0)) -> 7
A35: 38619910 | B35: 國內指數-反向ETF | C35: =IFERROR(VLOOKUP(A35,Raw!A:C,3,0),"") -> 元大 ETF傘型證券投資信託基金之台灣50單日反向 1倍證券投資信託基金 | D35: =IFERROR(IF(INDEX(ALL,MATCH($C35,FUND,0),MATCH(D$1,Name,0))="","",INDEX(ALL,MATCH($C35,FUND,0),MATCH(D$1,Name,0))),"") -> -8.51 | E35: 4 | F35: -11.64 | G35: 2 | H35: -20.57 | I35: 2 | J35: -36.15 | K35: 1 | P35: -16.47 | Q35: 2 | R35: =IFERROR(IF(INDEX(ALL,MATCH($C35,FUND,0),MATCH(R$1,Name,0))="","",INDEX(ALL,MATCH($C35,FUND,0),MATCH(R$1,Name,0))),"") -> 7.999 | S35: -0.9539 | T35: -0.8202 | U35: -0.5722 | V35: =IFERROR(IF(INDEX(ALL,MATCH($C35,FUND,0),MATCH(V$1,Name,0))="","",INDEX(ALL,MATCH($C35,FUND,0),MATCH(V$1,Name,0))),"") -> 1.9855 | W35: -0.6559 | X35: -0.2556 | Y35: -32.8
A36: 42404258 | C36: =IFERROR(VLOOKUP(A36,Raw!A:C,3,0),"") -> 國泰臺指 ETF傘型證券投資信託基金之臺灣加權指數單日反向 1倍證券投資信託基金 | D36: -8.54 | E36: 5 | F36: -11.67 | G36: 3 | H36: -20.53 | I36: 1 | P36: -16.47 | Q36: 3 | Y36: -23.95
A37: 42450843 | C37: =IFERROR(VLOOKUP(A37,Raw!A:C,3,0),"") -> 富邦臺灣加權 ETF傘型證券投資信託基金之富邦臺灣加權單日反向一倍證券投資信託基金 | D37: -8.43 | E37: 3 | F37: -11.47 | G37: 1 | P37: -16.31 | Q37: 1 | Y37: -17.4
A38: 42481260 | C38: =IFERROR(VLOOKUP(A38,Raw!A:C,3,0),"") -> 群益臺灣加權指數 ETF傘型證券投資信託基金－群益臺灣加權指數單日反向1倍證券投資信託基金 | D38: -8.37 | E38: 2 | T38: =IFERROR(IF(INDEX(ALL,MATCH($C38,FUND,0),MATCH(T$1,Name,0))="","",INDEX(ALL,MATCH($C38,FUND,0),MATCH(T$1,Name,0))),"") ->  | Y38: -10.2
A39: 42482113 | C39: =IFERROR(VLOOKUP(A39,Raw!A:C,3,0),"") -> 兆豐國際臺灣藍籌30ETF傘型證券投資信託基金之兆豐國際臺灣藍籌 30單日反向一倍ETF證券投資信託基金 | D39: -7.7 | E39: 1 | Y39: -9.55
A40: 42528960 | C40: =IFERROR(VLOOKUP(A40,Raw!A:C,3,0),"") -> 台新MSCI新興市場國家傘型 ETF證券投資信託基金之台新MSCI台灣單日反向 1倍基金 | Y40: -1.45
C41: AVERAGE | D41: =IFERROR(IF(INDEX(AVG_ALL,MATCH($B35,Category,0),MATCH(D$1,AVG,0))="","",INDEX(AVG_ALL,MATCH($B35,Category,0),MATCH(D$1,AVG,0))),"") -> -8.31 | F41: -11.59333333 | H41: -20.55 | J41: -36.15 | P41: -16.41666667 | R41: =IFERROR(IF(INDEX(AVG_ALL,MATCH($B35,Category,0),MATCH(R$1,AVG,0))="","",INDEX(AVG_ALL,MATCH($B35,Category,0),MATCH(R$1,AVG,0))),"") -> 7.999 | S41: =IFERROR(IF(INDEX(AVG_ALL,MATCH($B35,Category,0),MATCH(S$1,AVG,0))="","",INDEX(AVG_ALL,MATCH($B35,Category,0),MATCH(S$1,AVG,0))),"") -> -0.9539 | T41: =IFERROR(IF(INDEX(AVG_ALL,MATCH($B35,Category,0),MATCH(T$1,AVG,0))="","",INDEX(AVG_ALL,MATCH($B35,Category,0),MATCH(T$1,AVG,0))),"") -> -0.8202 | U41: =IFERROR(IF(INDEX(AVG_ALL,MATCH($B35,Category,0),MATCH(U$1,AVG,0))="","",INDEX(AVG_ALL,MATCH($B35,Category,0),MATCH(U$1,AVG,0))),"") -> -0.5722 | V41: 1.9855 | W41: -0.6559 | X41: -0.2556 | Y41: =IFERROR(IF(INDEX(AVG_ALL,MATCH($B35,Category,0),MATCH(Y$1,AVG,0))="","",INDEX(AVG_ALL,MATCH($B35,Category,0),MATCH(Y$1,AVG,0))),"") -> -15.89166667
C42: Funds in Category | E42: =IF(ISBLANK(VLOOKUP($B35,Rank!$B:$I,2,0)),"",VLOOKUP($B35,Rank!$B:$I,2,0)) -> 5 | G42: =IF(ISBLANK(VLOOKUP($B35,Rank!$B:$I,3,0)),"",VLOOKUP($B35,Rank!$B:$I,3,0)) -> 3 | I42: =IF(ISBLANK(VLOOKUP($B35,Rank!$B:$I,4,0)),"",VLOOKUP($B35,Rank!$B:$I,4,0)) -> 2 | K42: =IF(ISBLANK(VLOOKUP($B35,Rank!$B:$I,5,0)),"",VLOOKUP($B35,Rank!$B:$I,5,0)) -> 1 | M42: =IF(ISBLANK(VLOOKUP($B35,Rank!$B:$I,6,0)),"",VLOOKUP($B35,Rank!$B:$I,6,0)) ->  | O42: =IF(ISBLANK(VLOOKUP($B35,Rank!$B:$I,7,0)),"",VLOOKUP($B35,Rank!$B:$I,7,0)) ->  | Q42: =IF(ISBLANK(VLOOKUP($B35,Rank!$B:$I,8,0)),"",VLOOKUP($B35,Rank!$B:$I,8,0)) -> 3
A43: 42329884 | B43: 其他市場ETF | C43: =IFERROR(VLOOKUP(A43,Raw!A:C,3,0),"") -> 復華香港 ETF傘型證券投資信託基金之復華恒生證券投資信託基金 | D43: =IFERROR(IF(INDEX(ALL,MATCH($C43,FUND,0),MATCH(D$1,Name,0))="","",INDEX(ALL,MATCH($C43,FUND,0),MATCH(D$1,Name,0))),"") -> 10.51 | E43: 1 | F43: 15.88 | G43: 1 | H43: 17.42 | I43: 1 | P43: 20.13 | Q43: 1 | R43: =IFERROR(IF(INDEX(ALL,MATCH($C43,FUND,0),MATCH(R$1,Name,0))="","",INDEX(ALL,MATCH($C43,FUND,0),MATCH(R$1,Name,0))),"") ->  | S43: =IFERROR(IF(INDEX(ALL,MATCH($C43,FUND,0),MATCH(S$1,Name,0))="","",INDEX(ALL,MATCH($C43,FUND,0),MATCH(S$1,Name,0))),"") ->  | T43: =IFERROR(IF(INDEX(ALL,MATCH($C43,FUND,0),MATCH(T$1,Name,0))="","",INDEX(ALL,MATCH($C43,FUND,0),MATCH(T$1,Name,0))),"") ->  | U43: =IFERROR(IF(INDEX(ALL,MATCH($C43,FUND,0),MATCH(U$1,Name,0))="","",INDEX(ALL,MATCH($C43,FUND,0),MATCH(U$1,Name,0))),"") ->  | V43: =IFERROR(IF(INDEX(ALL,MATCH($C43,FUND,0),MATCH(V$1,Name,0))="","",INDEX(ALL,MATCH($C43,FUND,0),MATCH(V$1,Name,0))),"") ->  | Y43: 35.27
A44: 42376963 | C44: =IFERROR(VLOOKUP(A44,Raw!A:C,3,0),"") -> 富邦印度 ETF傘型證券投資信託基金之富邦印度 NIFTY證券投資信託基金 | D44: 1.44 | E44: 2 | F44: 6.94 | G44: 3 | H44: 3.07 | I44: 2 | P44: 14.96 | Q44: 3 | T44: =IFERROR(IF(INDEX(ALL,MATCH($C44,FUND,0),MATCH(T$1,Name,0))="","",INDEX(ALL,MATCH($C44,FUND,0),MATCH(T$1,Name,0))),"") ->  | Y44: 12.55
A45: 42441583 | C45: =IFERROR(VLOOKUP(A45,Raw!A:C,3,0),"") -> 元大韓國KOSPI 200證券投資信託基金 | D45: 0.49 | E45: 3 | F45: 11.71 | G45: 2 | P45: 18.69 | Q45: 2 | Y45: 12.27
A46: 42464918 | C46: =IFERROR(VLOOKUP(A46,Raw!A:C,3,0),"") -> 富邦香港 H股證券投資信託基金 | Y46: 2.55
A47: 42529243 | C47: =IFERROR(VLOOKUP(A47,Raw!A:C,3,0),"") -> 富邦富時歐洲 ETF證券投資信託基金 | Y47: 0.6
C48: AVERAGE | D48: =IFERROR(IF(INDEX(AVG_ALL,MATCH($B43,Category,0),MATCH(D$1,AVG,0))="","",INDEX(AVG_ALL,MATCH($B43,Category,0),MATCH(D$1,AVG,0))),"") -> 4.146666667 | F48: 11.51 | H48: 10.245 | P48: 17.92666667 | Y48: 12.648
C49: Funds in Category | E49: =IF(ISBLANK(VLOOKUP($B43,Rank!$B:$I,2,0)),"",VLOOKUP($B43,Rank!$B:$I,2,0)) -> 3 | G49: =IF(ISBLANK(VLOOKUP($B43,Rank!$B:$I,3,0)),"",VLOOKUP($B43,Rank!$B:$I,3,0)) -> 3 | I49: =IF(ISBLANK(VLOOKUP($B43,Rank!$B:$I,4,0)),"",VLOOKUP($B43,Rank!$B:$I,4,0)) -> 2 | K49: =IF(ISBLANK(VLOOKUP($B43,Rank!$B:$I,5,0)),"",VLOOKUP($B43,Rank!$B:$I,5,0)) ->  | M49: =IF(ISBLANK(VLOOKUP($B43,Rank!$B:$I,6,0)),"",VLOOKUP($B43,Rank!$B:$I,6,0)) ->  | O49: =IF(ISBLANK(VLOOKUP($B43,Rank!$B:$I,7,0)),"",VLOOKUP($B43,Rank!$B:$I,7,0)) ->  | Q49: =IF(ISBLANK(VLOOKUP($B43,Rank!$B:$I,8,0)),"",VLOOKUP($B43,Rank!$B:$I,8,0)) -> 3
A50: 42333613 | B50: 美國ETF | C50: =IFERROR(VLOOKUP(A50,Raw!A:C,3,0),"") -> 元大標普 500傘型證券投資信託基金之標普 500證券投資信託基金 | D50: =IFERROR(IF(INDEX(ALL,MATCH($C50,FUND,0),MATCH(D$1,Name,0))="","",INDEX(ALL,MATCH($C50,FUND,0),MATCH(D$1,Name,0))),"") -> 3 | E50: 4 | F50: 3.1 | G50: 4 | H50: 8.62 | I50: 2 | P50: 3 | Q50: 3 | R50: =IFERROR(IF(INDEX(ALL,MATCH($C50,FUND,0),MATCH(R$1,Name,0))="","",INDEX(ALL,MATCH($C50,FUND,0),MATCH(R$1,Name,0))),"") ->  | S50: =IFERROR(IF(INDEX(ALL,MATCH($C50,FUND,0),MATCH(S$1,Name,0))="","",INDEX(ALL,MATCH($C50,FUND,0),MATCH(S$1,Name,0))),"") ->  | T50: =IFERROR(IF(INDEX(ALL,MATCH($C50,FUND,0),MATCH(T$1,Name,0))="","",INDEX(ALL,MATCH($C50,FUND,0),MATCH(T$1,Name,0))),"") ->  | U50: =IFERROR(IF(INDEX(ALL,MATCH($C50,FUND,0),MATCH(U$1,Name,0))="","",INDEX(ALL,MATCH($C50,FUND,0),MATCH(U$1,Name,0))),"") ->  | V50: =IFERROR(IF(INDEX(ALL,MATCH($C50,FUND,0),MATCH(V$1,Name,0))="","",INDEX(ALL,MATCH($C50,FUND,0),MATCH(V$1,Name,0))),"") ->  | W50: =IFERROR(IF(INDEX(ALL,MATCH($C50,FUND,0),MATCH(W$1,Name,0))="","",INDEX(ALL,MATCH($C50,FUND,0),MATCH(W$1,Name,0))),"") ->  | Y50: 11.55
A51: 42399305 | C51: =IFERROR(VLOOKUP(A51,Raw!A:C,3,0),"") -> 富邦NASDAQ-100證券投資信託基金 | D51: 3.43 | E51: 3 | F51: 9.79 | G51: 2 | H51: 18.36 | I51: 1 | P51: 14.57 | Q51: 1 | T51: =IFERROR(IF(INDEX(ALL,MATCH($C51,FUND,0),MATCH(T$1,Name,0))="","",INDEX(ALL,MATCH($C51,FUND,0),MATCH(T$1,Name,0))),"") ->  | Y51: 25.05
A52: 42443225 | C52: =IFERROR(VLOOKUP(A52,Raw!A:C,3,0),"") -> 國泰美國 ETF傘型證券投資信託基金之道瓊工業平均指數證券投資信託基金 | D52: 5.02 | E52: 2 | F52: 3.94 | G52: 3 | P52: 4.59 | Q52: 2 | Y52: 16.15
A53: 42465424 | C53: =IFERROR(VLOOKUP(A53,Raw!A:C,3,0),"") -> 群益那斯達克生技證券投資信託基金 | D53: 16.87 | E53: 1 | F53: 12.55 | G53: 1 | Y53: 12.55
A54: 42530608 | C54: =IFERROR(VLOOKUP(A54,Raw!A:C,3,0),"") -> 國泰低波動 ETF傘型證券投資信託基金之美國標普 500低波動高股息證券投資信託基金 | Y54: -0.45
C55: AVERAGE | D55: =IFERROR(IF(INDEX(AVG_ALL,MATCH($B50,Category,0),MATCH(D$1,AVG,0))="","",INDEX(AVG_ALL,MATCH($B50,Category,0),MATCH(D$1,AVG,0))),"") -> 7.08 | F55: 7.345 | H55: 13.49 | P55: 7.386666667 | Y55: 12.97
C56: Funds in Category | E56: =IF(ISBLANK(VLOOKUP($B50,Rank!$B:$I,2,0)),"",VLOOKUP($B50,Rank!$B:$I,2,0)) -> 4 | G56: =IF(ISBLANK(VLOOKUP($B50,Rank!$B:$I,3,0)),"",VLOOKUP($B50,Rank!$B:$I,3,0)) -> 4 | I56: =IF(ISBLANK(VLOOKUP($B50,Rank!$B:$I,4,0)),"",VLOOKUP($B50,Rank!$B:$I,4,0)) -> 2 | K56: =IF(ISBLANK(VLOOKUP($B50,Rank!$B:$I,5,0)),"",VLOOKUP($B50,Rank!$B:$I,5,0)) ->  | M56: =IF(ISBLANK(VLOOKUP($B50,Rank!$B:$I,6,0)),"",VLOOKUP($B50,Rank!$B:$I,6,0)) ->  | O56: =IF(ISBLANK(VLOOKUP($B50,Rank!$B:$I,7,0)),"",VLOOKUP($B50,Rank!$B:$I,7,0)) ->  | Q56: =IF(ISBLANK(VLOOKUP($B50,Rank!$B:$I,8,0)),"",VLOOKUP($B50,Rank!$B:$I,8,0)) -> 3
A57: 38619904 | B57: 國內指數-二倍ETF | C57: =IFERROR(VLOOKUP(A57,Raw!A:C,3,0),"") -> 元大 ETF傘型證券投資信託基金之台灣50單日正向 2倍證券投資信託基金 | D57: =IFERROR(IF(INDEX(ALL,MATCH($C57,FUND,0),MATCH(D$1,Name,0))="","",INDEX(ALL,MATCH($C57,FUND,0),MATCH(D$1,Name,0))),"") -> 18.45 | E57: 1 | F57: 27.95 | G57: 1 | H57: 50.38 | I57: 1 | J57: 103.4 | K57: 1 | N57: =IFERROR(IF(INDEX(ALL,MATCH($C57,FUND,0),MATCH(N$1,Name,0))="","",INDEX(ALL,MATCH($C57,FUND,0),MATCH(N$1,Name,0))),"") ->  | P57: 40.38 | Q57: 1 | R57: =IFERROR(IF(INDEX(ALL,MATCH($C57,FUND,0),MATCH(R$1,Name,0))="","",INDEX(ALL,MATCH($C57,FUND,0),MATCH(R$1,Name,0))),"") -> 17.3884 | S57: =IFERROR(IF(INDEX(ALL,MATCH($C57,FUND,0),MATCH(S$1,Name,0))="","",INDEX(ALL,MATCH($C57,FUND,0),MATCH(S$1,Name,0))),"") -> 2.1217 | T57: =IFERROR(IF(INDEX(ALL,MATCH($C57,FUND,0),MATCH(T$1,Name,0))="","",INDEX(ALL,MATCH($C57,FUND,0),MATCH(T$1,Name,0))),"") -> 0.6085 | U57: =IFERROR(IF(INDEX(ALL,MATCH($C57,FUND,0),MATCH(U$1,Name,0))="","",INDEX(ALL,MATCH($C57,FUND,0),MATCH(U$1,Name,0))),"") -> 0.1147 | V57: 1.4397 | W57: 0.7007 | X57: 0.144 | Y57: 76.25
A58: 42404264 | C58: =IFERROR(VLOOKUP(A58,Raw!A:C,3,0),"") -> 國泰臺指 ETF傘型證券投資信託基金之臺灣加權指數單日正向 2倍證券投資信託基金 | D58: 17.86 | E58: 2 | F58: 24.82 | G58: 2 | H58: 48.8 | I58: 2 | P58: 38.65 | Q58: 2 | Y58: 60.7
A59: 42450837 | C59: =IFERROR(VLOOKUP(A59,Raw!A:C,3,0),"") -> 富邦臺灣加權 ETF傘型證券投資信託基金之富邦臺灣加權單日正向兩倍證券投資信託基金 | D59: 17.64 | E59: 3 | F59: 24.58 | G59: 3 | P59: 38.43 | Q59: 3 | Y59: 39.4
A60: 42481276 | C60: =IFERROR(VLOOKUP(A60,Raw!A:C,3,0),"") -> 群益臺灣加權指數 ETF傘型證券投資信託基金之群益臺灣加權指數單日正向2倍證券投資信託基金 | D60: 17.53 | E60: 4 | Y60: 22
A61: 42528976 | C61: =IFERROR(VLOOKUP(A61,Raw!A:C,3,0),"") -> 台新MSCI新興市場國家傘型 ETF證券投資信託基金之台新MSCI台灣單日正向 2倍基金 | Y61: 2.15
C62: AVERAGE | D62: =IFERROR(IF(INDEX(AVG_ALL,MATCH($B57,Category,0),MATCH(D$1,AVG,0))="","",INDEX(AVG_ALL,MATCH($B57,Category,0),MATCH(D$1,AVG,0))),"") -> 17.87 | F62: 25.78333333 | H62: 49.59 | J62: 103.4 | P62: 39.15333333 | R62: 17.3884 | S62: 2.1217 | T62: 0.6085 | U62: 0.1147 | V62: 1.4397 | W62: 0.7007 | X62: 0.144 | Y62: 40.1
C63: Funds in Category | E63: =IF(ISBLANK(VLOOKUP($B57,Rank!$B:$I,2,0)),"",VLOOKUP($B57,Rank!$B:$I,2,0)) -> 4 | G63: =IF(ISBLANK(VLOOKUP($B57,Rank!$B:$I,3,0)),"",VLOOKUP($B57,Rank!$B:$I,3,0)) -> 3 | I63: =IF(ISBLANK(VLOOKUP($B57,Rank!$B:$I,4,0)),"",VLOOKUP($B57,Rank!$B:$I,4,0)) -> 2 | K63: =IF(ISBLANK(VLOOKUP($B57,Rank!$B:$I,5,0)),"",VLOOKUP($B57,Rank!$B:$I,5,0)) -> 1 | M63: =IF(ISBLANK(VLOOKUP($B57,Rank!$B:$I,6,0)),"",VLOOKUP($B57,Rank!$B:$I,6,0)) ->  | O63: =IF(ISBLANK(VLOOKUP($B57,Rank!$B:$I,7,0)),"",VLOOKUP($B57,Rank!$B:$I,7,0)) ->  | Q63: =IF(ISBLANK(VLOOKUP($B57,Rank!$B:$I,8,0)),"",VLOOKUP($B57,Rank!$B:$I,8,0)) -> 3
A64: 42461573 | B64: 債券-一般ETF | C64: =IFERROR(VLOOKUP(A64,Raw!A:C,3,0),"") -> 元大美國政府20年期(以上)債券 ETF傘型基金之元大美國政府20年期(以上)債券證券投資信託基金 | D64: =IFERROR(IF(INDEX(ALL,MATCH($C64,FUND,0),MATCH(D$1,Name,0))="","",INDEX(ALL,MATCH($C64,FUND,0),MATCH(D$1,Name,0))),"") -> 3.43 | E64: 2 | F64: 4.32 | G64: 1 | R64: =IFERROR(IF(INDEX(ALL,MATCH($C64,FUND,0),MATCH(R$1,Name,0))="","",INDEX(ALL,MATCH($C64,FUND,0),MATCH(R$1,Name,0))),"") ->  | S64: =IFERROR(IF(INDEX(ALL,MATCH($C64,FUND,0),MATCH(S$1,Name,0))="","",INDEX(ALL,MATCH($C64,FUND,0),MATCH(S$1,Name,0))),"") ->  | T64: =IFERROR(IF(INDEX(ALL,MATCH($C64,FUND,0),MATCH(T$1,Name,0))="","",INDEX(ALL,MATCH($C64,FUND,0),MATCH(T$1,Name,0))),"") ->  | U64: =IFERROR(IF(INDEX(ALL,MATCH($C64,FUND,0),MATCH(U$1,Name,0))="","",INDEX(ALL,MATCH($C64,FUND,0),MATCH(U$1,Name,0))),"") ->  | V64: =IFERROR(IF(INDEX(ALL,MATCH($C64,FUND,0),MATCH(V$1,Name,0))="","",INDEX(ALL,MATCH($C64,FUND,0),MATCH(V$1,Name,0))),"") ->  | W64: =IFERROR(IF(INDEX(ALL,MATCH($C64,FUND,0),MATCH(W$1,Name,0))="","",INDEX(ALL,MATCH($C64,FUND,0),MATCH(W$1,Name,0))),"") ->  | Y64: 0.56
A65: 42482726 | C65: =IFERROR(VLOOKUP(A65,Raw!A:C,3,0),"") -> 國泰美國債券 ETF傘型證券投資信託基金之彭博巴克萊20年期(以上)美國公債指數證券投資信託基金 | D65: 3.76 | E65: 1 | T65: =IFERROR(IF(INDEX(ALL,MATCH($C65,FUND,0),MATCH(T$1,Name,0))="","",INDEX(ALL,MATCH($C65,FUND,0),MATCH(T$1,Name,0))),"") ->  | Y65: 4.11
A66: 42519239 | C66: =IFERROR(VLOOKUP(A66,Raw!A:C,3,0),"") -> 富邦美國政府債券 ETF傘型證券投資信託基金之富邦美國政府債券 1-3年期證券投資信託基金 | D66: 0.34 | E66: 5 | Y66: 0.34
A67: 42519245 | C67: =IFERROR(VLOOKUP(A67,Raw!A:C,3,0),"") -> 富邦美國政府債券 ETF傘型證券投資信託基金之富邦美國政府債券7-10年期證券投資信託基金 | D67: 0.93 | E67: 4 | Y67: 0.93
A68: 42519250 | C68: =IFERROR(VLOOKUP(A68,Raw!A:C,3,0),"") -> 富邦美國政府債券 ETF傘型證券投資信託基金之富邦美國政府債券20年期以上證券投資信託基金 | D68: 2.65 | E68: 3 | Y68: 2.65
C69: AVERAGE | D69: =IFERROR(IF(INDEX(AVG_ALL,MATCH($B64,Category,0),MATCH(D$1,AVG,0))="","",INDEX(AVG_ALL,MATCH($B64,Category,0),MATCH(D$1,AVG,0))),"") -> 2.222 | F69: 4.32 | R69: =IFERROR(IF(INDEX(AVG_ALL,MATCH($B64,Category,0),MATCH(R$1,AVG,0))="","",INDEX(AVG_ALL,MATCH($B64,Category,0),MATCH(R$1,AVG,0))),"") ->  | S69: =IFERROR(IF(INDEX(AVG_ALL,MATCH($B64,Category,0),MATCH(S$1,AVG,0))="","",INDEX(AVG_ALL,MATCH($B64,Category,0),MATCH(S$1,AVG,0))),"") ->  | T69: =IFERROR(IF(INDEX(AVG_ALL,MATCH($B64,Category,0),MATCH(T$1,AVG,0))="","",INDEX(AVG_ALL,MATCH($B64,Category,0),MATCH(T$1,AVG,0))),"") ->  | U69: =IFERROR(IF(INDEX(AVG_ALL,MATCH($B64,Category,0),MATCH(U$1,AVG,0))="","",INDEX(AVG_ALL,MATCH($B64,Category,0),MATCH(U$1,AVG,0))),"") ->  | Y69: =IFERROR(IF(INDEX(AVG_ALL,MATCH($B64,Category,0),MATCH(Y$1,AVG,0))="","",INDEX(AVG_ALL,MATCH($B64,Category,0),MATCH(Y$1,AVG,0))),"") -> 1.393333333
C70: Funds in Category | E70: =IF(ISBLANK(VLOOKUP($B64,Rank!$B:$I,2,0)),"",VLOOKUP($B64,Rank!$B:$I,2,0)) -> 5 | G70: =IF(ISBLANK(VLOOKUP($B64,Rank!$B:$I,3,0)),"",VLOOKUP($B64,Rank!$B:$I,3,0)) -> 1 | I70: =IF(ISBLANK(VLOOKUP($B64,Rank!$B:$I,4,0)),"",VLOOKUP($B64,Rank!$B:$I,4,0)) ->  | K70: =IF(ISBLANK(VLOOKUP($B64,Rank!$B:$I,5,0)),"",VLOOKUP($B64,Rank!$B:$I,5,0)) ->  | M70: =IF(ISBLANK(VLOOKUP($B64,Rank!$B:$I,6,0)),"",VLOOKUP($B64,Rank!$B:$I,6,0)) ->  | O70: =IF(ISBLANK(VLOOKUP($B64,Rank!$B:$I,7,0)),"",VLOOKUP($B64,Rank!$B:$I,7,0)) ->  | Q70: =IF(ISBLANK(VLOOKUP($B64,Rank!$B:$I,8,0)),"",VLOOKUP($B64,Rank!$B:$I,8,0)) -> 
A71: 42328908 | B71: 日本ETF | C71: =IFERROR(VLOOKUP(A71,Raw!A:C,3,0),"") -> 富邦日本東証證券投資信託基金 | D71: =IFERROR(IF(INDEX(ALL,MATCH($C71,FUND,0),MATCH(D$1,Name,0))="","",INDEX(ALL,MATCH($C71,FUND,0),MATCH(D$1,Name,0))),"") -> 2.44 | E71: 1 | F71: 3.27 | G71: 1 | H71: 20.11 | I71: 1 | N71: =IFERROR(IF(INDEX(ALL,MATCH($C71,FUND,0),MATCH(N$1,Name,0))="","",INDEX(ALL,MATCH($C71,FUND,0),MATCH(N$1,Name,0))),"") ->  | P71: 5.33 | Q71: 1 | R71: =IFERROR(IF(INDEX(ALL,MATCH($C71,FUND,0),MATCH(R$1,Name,0))="","",INDEX(ALL,MATCH($C71,FUND,0),MATCH(R$1,Name,0))),"") ->  | S71: =IFERROR(IF(INDEX(ALL,MATCH($C71,FUND,0),MATCH(S$1,Name,0))="","",INDEX(ALL,MATCH($C71,FUND,0),MATCH(S$1,Name,0))),"") ->  | T71: =IFERROR(IF(INDEX(ALL,MATCH($C71,FUND,0),MATCH(T$1,Name,0))="","",INDEX(ALL,MATCH($C71,FUND,0),MATCH(T$1,Name,0))),"") ->  | U71: =IFERROR(IF(INDEX(ALL,MATCH($C71,FUND,0),MATCH(U$1,Name,0))="","",INDEX(ALL,MATCH($C71,FUND,0),MATCH(U$1,Name,0))),"") ->  | Y71: 2.75
A72: 42389475 | C72: =IFERROR(VLOOKUP(A72,Raw!A:C,3,0),"") -> 國泰日本 ETF傘型證券投資信託基金之日經 225證券投資信託基金 | D72: 0.13 | E72: 3 | F72: 2.23 | G72: 2 | H72: 15.01 | I72: 3 | P72: 2.8 | Q72: 3 | Y72: 19.15
A73: 42398663 | C73: =IFERROR(VLOOKUP(A73,Raw!A:C,3,0),"") -> 元大已開發國家傘型證券投資信託基金之元大日經 225證券投資信託基金 | D73: 0.41 | E73: 2 | F73: 1.89 | G73: 3 | H73: 15.76 | I73: 2 | P73: 2.95 | Q73: 2 | Y73: 23.86
C74: AVERAGE | D74: =IFERROR(IF(INDEX(AVG_ALL,MATCH($B71,Category,0),MATCH(D$1,AVG,0))="","",INDEX(AVG_ALL,MATCH($B71,Category,0),MATCH(D$1,AVG,0))),"") -> 0.9933333333 | F74: 2.463333333 | H74: 16.96 | P74: 3.693333333 | Y74: 15.25333333
C75: Funds in Category | E75: =IF(ISBLANK(VLOOKUP($B71,Rank!$B:$I,2,0)),"",VLOOKUP($B71,Rank!$B:$I,2,0)) -> 3 | G75: =IF(ISBLANK(VLOOKUP($B71,Rank!$B:$I,3,0)),"",VLOOKUP($B71,Rank!$B:$I,3,0)) -> 3 | I75: =IF(ISBLANK(VLOOKUP($B71,Rank!$B:$I,4,0)),"",VLOOKUP($B71,Rank!$B:$I,4,0)) -> 3 | K75: =IF(ISBLANK(VLOOKUP($B71,Rank!$B:$I,5,0)),"",VLOOKUP($B71,Rank!$B:$I,5,0)) ->  | M75: =IF(ISBLANK(VLOOKUP($B71,Rank!$B:$I,6,0)),"",VLOOKUP($B71,Rank!$B:$I,6,0)) ->  | O75: =IF(ISBLANK(VLOOKUP($B71,Rank!$B:$I,7,0)),"",VLOOKUP($B71,Rank!$B:$I,7,0)) ->  | Q75: =IF(ISBLANK(VLOOKUP($B71,Rank!$B:$I,8,0)),"",VLOOKUP($B71,Rank!$B:$I,8,0)) -> 3
A76: 42329863 | B76: 其他市場二倍ETF | C76: =IFERROR(VLOOKUP(A76,Raw!A:C,3,0),"") -> 復華香港 ETF傘型證券投資信託基金之復華恒生單日正向二倍證券投資信託基金 | D76: =IFERROR(IF(INDEX(ALL,MATCH($C76,FUND,0),MATCH(D$1,Name,0))="","",INDEX(ALL,MATCH($C76,FUND,0),MATCH(D$1,Name,0))),"") -> 22.13 | E76: 1 | F76: 38.92 | G76: 1 | H76: 48.41 | I76: 1 | N76: =IFERROR(IF(INDEX(ALL,MATCH($C76,FUND,0),MATCH(N$1,Name,0))="","",INDEX(ALL,MATCH($C76,FUND,0),MATCH(N$1,Name,0))),"") ->  | P76: 63.73 | Q76: 1 | R76: =IFERROR(IF(INDEX(ALL,MATCH($C76,FUND,0),MATCH(R$1,Name,0))="","",INDEX(ALL,MATCH($C76,FUND,0),MATCH(R$1,Name,0))),"") ->  | Y76: 111.53
A77: 42376990 | C77: =IFERROR(VLOOKUP(A77,Raw!A:C,3,0),"") -> 富邦印度 ETF傘型證券投資信託基金－富邦印度 NIFTY單日正向兩倍證券投資信託基金 | D77: 3.11 | E77: 3 | F77: 16.67 | G77: 3 | H77: 10.18 | I77: 3 | P77: 36.07 | Q77: 3 | Y77: 35.8
A78: 42404573 | C78: =IFERROR(VLOOKUP(A78,Raw!A:C,3,0),"") -> 富邦香港 H股 ETF傘型證券投資信託基金之富邦香港 H股單日正向兩倍證券投資信託基金 | D78: 18.5 | E78: 2 | F78: 19.6 | G78: 2 | H78: 36.79 | I78: 2 | P78: 44.16 | Q78: 2 | Y78: 53.75
C79: AVERAGE | D79: =IFERROR(IF(INDEX(AVG_ALL,MATCH($B76,Category,0),MATCH(D$1,AVG,0))="","",INDEX(AVG_ALL,MATCH($B76,Category,0),MATCH(D$1,AVG,0))),"") -> 14.58 | F79: 25.06333333 | H79: 31.79333333 | P79: 47.98666667 | Y79: 67.02666667
C80: Funds in Category | E80: =IF(ISBLANK(VLOOKUP($B76,Rank!$B:$I,2,0)),"",VLOOKUP($B76,Rank!$B:$I,2,0)) -> 3 | G80: =IF(ISBLANK(VLOOKUP($B76,Rank!$B:$I,3,0)),"",VLOOKUP($B76,Rank!$B:$I,3,0)) -> 3 | I80: =IF(ISBLANK(VLOOKUP($B76,Rank!$B:$I,4,0)),"",VLOOKUP($B76,Rank!$B:$I,4,0)) -> 3 | K80: =IF(ISBLANK(VLOOKUP($B76,Rank!$B:$I,5,0)),"",VLOOKUP($B76,Rank!$B:$I,5,0)) ->  | M80: =IF(ISBLANK(VLOOKUP($B76,Rank!$B:$I,6,0)),"",VLOOKUP($B76,Rank!$B:$I,6,0)) ->  | O80: =IF(ISBLANK(VLOOKUP($B76,Rank!$B:$I,7,0)),"",VLOOKUP($B76,Rank!$B:$I,7,0)) ->  | Q80: =IF(ISBLANK(VLOOKUP($B76,Rank!$B:$I,8,0)),"",VLOOKUP($B76,Rank!$B:$I,8,0)) -> 3
A81: 42329879 | B81: 其他市場反向ETF | C81: =IFERROR(VLOOKUP(A81,Raw!A:C,3,0),"") -> 復華香港 ETF傘型證券投資信託基金之復華恒生單日反向一倍證券投資信託基金 | D81: =IFERROR(IF(INDEX(ALL,MATCH($C81,FUND,0),MATCH(D$1,Name,0))="","",INDEX(ALL,MATCH($C81,FUND,0),MATCH(D$1,Name,0))),"") -> -10.36 | E81: 3 | F81: -17.03 | G81: 3 | H81: -22.25 | I81: 2 | N81: =IFERROR(IF(INDEX(ALL,MATCH($C81,FUND,0),MATCH(N$1,Name,0))="","",INDEX(ALL,MATCH($C81,FUND,0),MATCH(N$1,Name,0))),"") ->  | P81: -24.78 | Q81: 3 | R81: =IFERROR(IF(INDEX(ALL,MATCH($C81,FUND,0),MATCH(R$1,Name,0))="","",INDEX(ALL,MATCH($C81,FUND,0),MATCH(R$1,Name,0))),"") ->  | Y81: -38.27
A82: 42376984 | C82: =IFERROR(VLOOKUP(A82,Raw!A:C,3,0),"") -> 富邦印度 ETF傘型證券投資信託基金－富邦印度 NIFTY單日反向一倍證券投資信託基金 | D82: -2.81 | E82: 1 | F82: -9.82 | G82: 1 | H82: -9.82 | I82: 1 | P82: -16.81 | Q82: 1 | Y82: -20.55
A83: 42404567 | C83: =IFERROR(VLOOKUP(A83,Raw!A:C,3,0),"") -> 富邦香港 H股 ETF傘型證券投資信託基金之富邦香港 H股單日反向一倍證券投資信託基金 | D83: -9.55 | E83: 2 | F83: -12.55 | G83: 2 | H83: 3 | I83: 3 | P83: -23.5 | Q83: 2 | Y83: -27.55
C84: AVERAGE | D84: =IFERROR(IF(INDEX(AVG_ALL,MATCH($B81,Category,0),MATCH(D$1,AVG,0))="","",INDEX(AVG_ALL,MATCH($B81,Category,0),MATCH(D$1,AVG,0))),"") -> -7.573333333 | F84: -13.13333333 | H84: -18.25 | P84: -21.69666667 | Y84: -28.79
C85: Funds in Category | E85: =IF(ISBLANK(VLOOKUP($B81,Rank!$B:$I,2,0)),"",VLOOKUP($B81,Rank!$B:$I,2,0)) -> 3 | G85: =IF(ISBLANK(VLOOKUP($B81,Rank!$B:$I,3,0)),"",VLOOKUP($B81,Rank!$B:$I,3,0)) -> 3 | I85: =IF(ISBLANK(VLOOKUP($B81,Rank!$B:$I,4,0)),"",VLOOKUP($B81,Rank!$B:$I,4,0)) -> 3 | K85: =IF(ISBLANK(VLOOKUP($B81,Rank!$B:$I,5,0)),"",VLOOKUP($B81,Rank!$B:$I,5,0)) ->  | M85: =IF(ISBLANK(VLOOKUP($B81,Rank!$B:$I,6,0)),"",VLOOKUP($B81,Rank!$B:$I,6,0)) ->  | O85: =IF(ISBLANK(VLOOKUP($B81,Rank!$B:$I,7,0)),"",VLOOKUP($B81,Rank!$B:$I,7,0)) ->  | Q85: =IF(ISBLANK(VLOOKUP($B81,Rank!$B:$I,8,0)),"",VLOOKUP($B81,Rank!$B:$I,8,0)) -> 3
A86: 42333563 | B86: 美國反向ETF | C86: =IFERROR(VLOOKUP(A86,Raw!A:C,3,0),"") -> 元大標普 500傘型證券投資信託基金之標普 500單日反向 1倍證券投資信託基金 | D86: =IFERROR(IF(INDEX(ALL,MATCH($C86,FUND,0),MATCH(D$1,Name,0))="","",INDEX(ALL,MATCH($C86,FUND,0),MATCH(D$1,Name,0))),"") -> -2.85 | E86: 1 | F86: -5.84 | G86: 1 | H86: -15.77 | I86: 1 | P86: -12.7 | Q86: 2 | R86: =IFERROR(IF(INDEX(ALL,MATCH($C86,FUND,0),MATCH(R$1,Name,0))="","",INDEX(ALL,MATCH($C86,FUND,0),MATCH(R$1,Name,0))),"") ->  | V86: =IFERROR(IF(INDEX(ALL,MATCH($C86,FUND,0),MATCH(V$1,Name,0))="","",INDEX(ALL,MATCH($C86,FUND,0),MATCH(V$1,Name,0))),"") ->  | Y86: -23.35
A87: 42443203 | C87: =IFERROR(VLOOKUP(A87,Raw!A:C,3,0),"") -> 國泰美國 ETF傘型證券投資信託基金之道瓊工業平均指數單日反向 1倍證券投資信託基金 | D87: -4.88 | E87: 3 | F87: -6.54 | G87: 2 | P87: -11.94 | Q87: 1 | Y87: -20
A88: 42441704 | C88: =IFERROR(VLOOKUP(A88,Raw!A:C,3,0),"") -> 富邦NASDAQ-100 ETF傘型證券投資信託基金之富邦NASDAQ-100單日反向一倍證券投資信託基金 | D88: -4.35 | E88: 2 | F88: -12.4 | G88: 3 | Y88: -13.1
C89: AVERAGE | D89: =IFERROR(IF(INDEX(AVG_ALL,MATCH($B86,Category,0),MATCH(D$1,AVG,0))="","",INDEX(AVG_ALL,MATCH($B86,Category,0),MATCH(D$1,AVG,0))),"") -> -4.026666667 | F89: -8.26 | H89: -15.77 | P89: -12.32 | Y89: -18.81666667
C90: Funds in Category | E90: =IF(ISBLANK(VLOOKUP($B86,Rank!$B:$I,2,0)),"",VLOOKUP($B86,Rank!$B:$I,2,0)) -> 3 | G90: =IF(ISBLANK(VLOOKUP($B86,Rank!$B:$I,3,0)),"",VLOOKUP($B86,Rank!$B:$I,3,0)) -> 3 | I90: =IF(ISBLANK(VLOOKUP($B86,Rank!$B:$I,4,0)),"",VLOOKUP($B86,Rank!$B:$I,4,0)) -> 1 | K90: =IF(ISBLANK(VLOOKUP($B86,Rank!$B:$I,5,0)),"",VLOOKUP($B86,Rank!$B:$I,5,0)) ->  | M90: =IF(ISBLANK(VLOOKUP($B86,Rank!$B:$I,6,0)),"",VLOOKUP($B86,Rank!$B:$I,6,0)) ->  | O90: =IF(ISBLANK(VLOOKUP($B86,Rank!$B:$I,7,0)),"",VLOOKUP($B86,Rank!$B:$I,7,0)) ->  | Q90: =IF(ISBLANK(VLOOKUP($B86,Rank!$B:$I,8,0)),"",VLOOKUP($B86,Rank!$B:$I,8,0)) -> 2
A91: 42469744 | B91: 海外債-一般ETF | C91: =IFERROR(VLOOKUP(A91,Raw!A:C,3,0),"") -> 元大美國政府 7至10年期債券 ETF傘型證券投資信託基金之元大美國政府 7至10年期債券證券投資信託基金 | D91: =IFERROR(IF(INDEX(ALL,MATCH($C91,FUND,0),MATCH(D$1,Name,0))="","",INDEX(ALL,MATCH($C91,FUND,0),MATCH(D$1,Name,0))),"") ->  | R91: =IFERROR(IF(INDEX(ALL,MATCH($C91,FUND,0),MATCH(R$1,Name,0))="","",INDEX(ALL,MATCH($C91,FUND,0),MATCH(R$1,Name,0))),"") ->  | S91: =IFERROR(IF(INDEX(ALL,MATCH($C91,FUND,0),MATCH(S$1,Name,0))="","",INDEX(ALL,MATCH($C91,FUND,0),MATCH(S$1,Name,0))),"") ->  | T91: =IFERROR(IF(INDEX(ALL,MATCH($C91,FUND,0),MATCH(T$1,Name,0))="","",INDEX(ALL,MATCH($C91,FUND,0),MATCH(T$1,Name,0))),"") ->  | U91: =IFERROR(IF(INDEX(ALL,MATCH($C91,FUND,0),MATCH(U$1,Name,0))="","",INDEX(ALL,MATCH($C91,FUND,0),MATCH(U$1,Name,0))),"") ->  | V91: =IFERROR(IF(INDEX(ALL,MATCH($C91,FUND,0),MATCH(V$1,Name,0))="","",INDEX(ALL,MATCH($C91,FUND,0),MATCH(V$1,Name,0))),"") ->  | Y91: -0.23
A92: 42529932 | C92: =IFERROR(VLOOKUP(A92,Raw!A:C,3,0),"") -> 復華全球收益 ETF傘型證券投資信託基金之復華 1至 5年期高收益債券證券投資信託基金 | T92: =IFERROR(IF(INDEX(ALL,MATCH($C92,FUND,0),MATCH(T$1,Name,0))="","",INDEX(ALL,MATCH($C92,FUND,0),MATCH(T$1,Name,0))),"") ->  | U92: =IFERROR(IF(INDEX(ALL,MATCH($C92,FUND,0),MATCH(U$1,Name,0))="","",INDEX(ALL,MATCH($C92,FUND,0),MATCH(U$1,Name,0))),"") ->  | Y92: 0.2
A93: 42529953 | C93: =IFERROR(VLOOKUP(A93,Raw!A:C,3,0),"") -> 復華全球收益 ETF傘型證券投資信託基金之復華新興市場10年期以上債券證券投資信託基金 | T93: =IFERROR(IF(INDEX(ALL,MATCH($C93,FUND,0),MATCH(T$1,Name,0))="","",INDEX(ALL,MATCH($C93,FUND,0),MATCH(T$1,Name,0))),"") ->  | U93: =IFERROR(IF(INDEX(ALL,MATCH($C93,FUND,0),MATCH(U$1,Name,0))="","",INDEX(ALL,MATCH($C93,FUND,0),MATCH(U$1,Name,0))),"") ->  | Y93: 1.5
C94: AVERAGE | D94: =IFERROR(IF(INDEX(AVG_ALL,MATCH($B91,Category,0),MATCH(D$1,AVG,0))="","",INDEX(AVG_ALL,MATCH($B91,Category,0),MATCH(D$1,AVG,0))),"") -> 
C95: Funds in Category | E95: =IF(ISBLANK(VLOOKUP($B91,Rank!$B:$I,2,0)),"",VLOOKUP($B91,Rank!$B:$I,2,0)) ->  | G95: =IF(ISBLANK(VLOOKUP($B91,Rank!$B:$I,3,0)),"",VLOOKUP($B91,Rank!$B:$I,3,0)) ->  | I95: =IF(ISBLANK(VLOOKUP($B91,Rank!$B:$I,4,0)),"",VLOOKUP($B91,Rank!$B:$I,4,0)) ->  | K95: =IF(ISBLANK(VLOOKUP($B91,Rank!$B:$I,5,0)),"",VLOOKUP($B91,Rank!$B:$I,5,0)) ->  | M95: =IF(ISBLANK(VLOOKUP($B91,Rank!$B:$I,6,0)),"",VLOOKUP($B91,Rank!$B:$I,6,0)) ->  | O95: =IF(ISBLANK(VLOOKUP($B91,Rank!$B:$I,7,0)),"",VLOOKUP($B91,Rank!$B:$I,7,0)) ->  | Q95: =IF(ISBLANK(VLOOKUP($B91,Rank!$B:$I,8,0)),"",VLOOKUP($B91,Rank!$B:$I,8,0)) -> 
A96: 38633027 | B96: 跨國-中國反向ETF | C96: =IFERROR(VLOOKUP(A96,Raw!A:C,3,0),"") -> 富邦中國 ETF傘型證券投資信託基金之富邦上証 180單日反向一倍證券投資信託基金 | D96: =IFERROR(IF(INDEX(ALL,MATCH($C96,FUND,0),MATCH(D$1,Name,0))="","",INDEX(ALL,MATCH($C96,FUND,0),MATCH(D$1,Name,0))),"") -> -11.24 | E96: 3 | F96: -15.35 | G96: 3 | H96: -21.55 | I96: 3 | J96: -39.02 | K96: 2 | P96: -21.71 | Q96: 3 | R96: =IFERROR(IF(INDEX(ALL,MATCH($C96,FUND,0),MATCH(R$1,Name,0))="","",INDEX(ALL,MATCH($C96,FUND,0),MATCH(R$1,Name,0))),"") -> 18.4027 | S96: =IFERROR(IF(INDEX(ALL,MATCH($C96,FUND,0),MATCH(S$1,Name,0))="","",INDEX(ALL,MATCH($C96,FUND,0),MATCH(S$1,Name,0))),"") -> -1.1115 | T96: =IFERROR(IF(INDEX(ALL,MATCH($C96,FUND,0),MATCH(T$1,Name,0))="","",INDEX(ALL,MATCH($C96,FUND,0),MATCH(T$1,Name,0))),"") -> -0.3719 | U96: =IFERROR(IF(INDEX(ALL,MATCH($C96,FUND,0),MATCH(U$1,Name,0))="","",INDEX(ALL,MATCH($C96,FUND,0),MATCH(U$1,Name,0))),"") -> -0.8905 | V96: =IFERROR(IF(INDEX(ALL,MATCH($C96,FUND,0),MATCH(V$1,Name,0))="","",INDEX(ALL,MATCH($C96,FUND,0),MATCH(V$1,Name,0))),"") -> 1.7777 | W96: =IFERROR(IF(INDEX(ALL,MATCH($C96,FUND,0),MATCH(W$1,Name,0))="","",INDEX(ALL,MATCH($C96,FUND,0),MATCH(W$1,Name,0))),"") -> -0.2473 | X96: -0.5209 | Y96: -62.5
A97: 42300232 | C97: =IFERROR(VLOOKUP(A97,Raw!A:C,3,0),"") -> 元大滬深 300傘型證券投資信託基金之滬深 300單日反向 1倍證券投資信託基金 | D97: -8.05 | E97: 1 | F97: -9.2 | G97: 1 | H97: -12 | I97: 1 | J97: -29.47 | K97: 1 | P97: -13.8 | Q97: 1 | R97: 18.7663 | S97: -1.1124 | T97: =IFERROR(IF(INDEX(ALL,MATCH($C97,FUND,0),MATCH(T$1,Name,0))="","",INDEX(ALL,MATCH($C97,FUND,0),MATCH(T$1,Name,0))),"") -> -0.2537 | U97: =IFERROR(IF(INDEX(ALL,MATCH($C97,FUND,0),MATCH(U$1,Name,0))="","",INDEX(ALL,MATCH($C97,FUND,0),MATCH(U$1,Name,0))),"") -> -0.288 | V97: 1.2353 | W97: -0.1853 | X97: 0.5329 | Y97: -20.01
A98: 42385127 | C98: =IFERROR(VLOOKUP(A98,Raw!A:C,3,0),"") -> 國泰 A50傘型證券投資信託基金之富時中國 A50單日反向 1倍證券投資信託基金 | D98: -9.96 | E98: 2 | F98: -14.53 | G98: 2 | H98: -20.12 | I98: 2 | P98: -19.31 | Q98: 2 | T98: =IFERROR(IF(INDEX(ALL,MATCH($C98,FUND,0),MATCH(T$1,Name,0))="","",INDEX(ALL,MATCH($C98,FUND,0),MATCH(T$1,Name,0))),"") ->  | U98: =IFERROR(IF(INDEX(ALL,MATCH($C98,FUND,0),MATCH(U$1,Name,0))="","",INDEX(ALL,MATCH($C98,FUND,0),MATCH(U$1,Name,0))),"") ->  | Y98: -28.55
C99: AVERAGE | D99: =IFERROR(IF(INDEX(AVG_ALL,MATCH($B96,Category,0),MATCH(D$1,AVG,0))="","",INDEX(AVG_ALL,MATCH($B96,Category,0),MATCH(D$1,AVG,0))),"") -> -9.75 | F99: -13.02666667 | H99: -17.89 | J99: -34.245 | P99: -18.27333333 | R99: =IFERROR(IF(INDEX(AVG_ALL,MATCH($B96,Category,0),MATCH(R$1,AVG,0))="","",INDEX(AVG_ALL,MATCH($B96,Category,0),MATCH(R$1,AVG,0))),"") -> 18.5845 | S99: =IFERROR(IF(INDEX(AVG_ALL,MATCH($B96,Category,0),MATCH(S$1,AVG,0))="","",INDEX(AVG_ALL,MATCH($B96,Category,0),MATCH(S$1,AVG,0))),"") -> -1.11195 | T99: =IFERROR(IF(INDEX(AVG_ALL,MATCH($B96,Category,0),MATCH(T$1,AVG,0))="","",INDEX(AVG_ALL,MATCH($B96,Category,0),MATCH(T$1,AVG,0))),"") -> -0.3128 | U99: =IFERROR(IF(INDEX(AVG_ALL,MATCH($B96,Category,0),MATCH(U$1,AVG,0))="","",INDEX(AVG_ALL,MATCH($B96,Category,0),MATCH(U$1,AVG,0))),"") -> -0.58925 | V99: 1.5065 | W99: -0.2163 | X99: 0.006 | Y99: =IFERROR(IF(INDEX(AVG_ALL,MATCH($B96,Category,0),MATCH(Y$1,AVG,0))="","",INDEX(AVG_ALL,MATCH($B96,Category,0),MATCH(Y$1,AVG,0))),"") -> -37.02
C100: Funds in Category | E100: =IF(ISBLANK(VLOOKUP($B96,Rank!$B:$I,2,0)),"",VLOOKUP($B96,Rank!$B:$I,2,0)) -> 3 | G100: =IF(ISBLANK(VLOOKUP($B96,Rank!$B:$I,3,0)),"",VLOOKUP($B96,Rank!$B:$I,3,0)) -> 3 | I100: =IF(ISBLANK(VLOOKUP($B96,Rank!$B:$I,4,0)),"",VLOOKUP($B96,Rank!$B:$I,4,0)) -> 3 | K100: =IF(ISBLANK(VLOOKUP($B96,Rank!$B:$I,5,0)),"",VLOOKUP($B96,Rank!$B:$I,5,0)) -> 2 | M100: =IF(ISBLANK(VLOOKUP($B96,Rank!$B:$I,6,0)),"",VLOOKUP($B96,Rank!$B:$I,6,0)) ->  | O100: =IF(ISBLANK(VLOOKUP($B96,Rank!$B:$I,7,0)),"",VLOOKUP($B96,Rank!$B:$I,7,0)) ->  | Q100: =IF(ISBLANK(VLOOKUP($B96,Rank!$B:$I,8,0)),"",VLOOKUP($B96,Rank!$B:$I,8,0)) -> 3
A101: 38633011 | B101: 跨國-中國二倍ETF | C101: =IFERROR(VLOOKUP(A101,Raw!A:C,3,0),"") -> 富邦中國 ETF傘型證券投資信託基金之富邦上証 180單日正向兩倍證券投資信託基金 | D101: =IFERROR(IF(INDEX(ALL,MATCH($C101,FUND,0),MATCH(D$1,Name,0))="","",INDEX(ALL,MATCH($C101,FUND,0),MATCH(D$1,Name,0))),"") -> 20.25 | E101: 1 | F101: 27.78 | G101: 3 | H101: 35.02 | I101: 3 | J101: 61.97 | K101: 2 | P101: 34.81 | Q101: 3 | R101: =IFERROR(IF(INDEX(ALL,MATCH($C101,FUND,0),MATCH(R$1,Name,0))="","",INDEX(ALL,MATCH($C101,FUND,0),MATCH(R$1,Name,0))),"") -> 34.0746 | S101: 1.9008 | T101: 0.2498 | U101: 0.6015 | V101: =IFERROR(IF(INDEX(ALL,MATCH($C101,FUND,0),MATCH(V$1,Name,0))="","",INDEX(ALL,MATCH($C101,FUND,0),MATCH(V$1,Name,0))),"") -> 1.2929 | W101: =IFERROR(IF(INDEX(ALL,MATCH($C101,FUND,0),MATCH(W$1,Name,0))="","",INDEX(ALL,MATCH($C101,FUND,0),MATCH(W$1,Name,0))),"") -> 0.3377 | X101: -0.3929 | Y101: 121.5
A102: 42300253 | C102: =IFERROR(VLOOKUP(A102,Raw!A:C,3,0),"") -> 元大滬深 300傘型證券投資信託基金之滬深 300單日正向 2倍證券投資信託基金 | D102: 19.86 | E102: 2 | F102: 28.06 | G102: 2 | H102: 36.33 | I102: 2 | J102: 66.27 | K102: 1 | P102: 36.33 | Q102: 2 | R102: 33.6275 | S102: 1.8426 | T102: 0.2632 | U102: 0.7557 | V102: 1.3866 | W102: 0.3603 | X102: -0.1283 | Y102: -16.7
A103: 42385148 | C103: =IFERROR(VLOOKUP(A103,Raw!A:C,3,0),"") -> 國泰 A50傘型證券投資信託基金之富時中國 A50單日正向 2倍證券投資信託基金 | D103: 19.53 | E103: 3 | F103: 28.97 | G103: 1 | H103: 39.83 | I103: 1 | P103: 41.37 | Q103: 1 | Y103: 60.95
C104: AVERAGE | D104: =IFERROR(IF(INDEX(AVG_ALL,MATCH($B101,Category,0),MATCH(D$1,AVG,0))="","",INDEX(AVG_ALL,MATCH($B101,Category,0),MATCH(D$1,AVG,0))),"") -> 19.88 | F104: 28.27 | H104: 37.06 | J104: 64.12 | P104: 37.50333333 | R104: 33.85105 | S104: 1.8717 | T104: 0.2565 | U104: 0.6786 | V104: 1.33975 | W104: 0.349 | X104: -0.2606 | Y104: 55.25
C105: Funds in Category | E105: =IF(ISBLANK(VLOOKUP($B101,Rank!$B:$I,2,0)),"",VLOOKUP($B101,Rank!$B:$I,2,0)) -> 3 | G105: =IF(ISBLANK(VLOOKUP($B101,Rank!$B:$I,3,0)),"",VLOOKUP($B101,Rank!$B:$I,3,0)) -> 3 | I105: =IF(ISBLANK(VLOOKUP($B101,Rank!$B:$I,4,0)),"",VLOOKUP($B101,Rank!$B:$I,4,0)) -> 3 | K105: =IF(ISBLANK(VLOOKUP($B101,Rank!$B:$I,5,0)),"",VLOOKUP($B101,Rank!$B:$I,5,0)) -> 2 | M105: =IF(ISBLANK(VLOOKUP($B101,Rank!$B:$I,6,0)),"",VLOOKUP($B101,Rank!$B:$I,6,0)) ->  | O105: =IF(ISBLANK(VLOOKUP($B101,Rank!$B:$I,7,0)),"",VLOOKUP($B101,Rank!$B:$I,7,0)) ->  | Q105: =IF(ISBLANK(VLOOKUP($B101,Rank!$B:$I,8,0)),"",VLOOKUP($B101,Rank!$B:$I,8,0)) -> 3
A106: 42319561 | B106: 日本二倍ETF | C106: =IFERROR(VLOOKUP(A106,Raw!A:C,3,0),"") -> 富邦日本 ETF傘型證券投資信託基金之富邦日本東証單日正向兩倍證券投資信託基金 | D106: =IFERROR(IF(INDEX(ALL,MATCH($C106,FUND,0),MATCH(D$1,Name,0))="","",INDEX(ALL,MATCH($C106,FUND,0),MATCH(D$1,Name,0))),"") -> 6.04 | E106: 1 | F106: 9 | G106: 1 | H106: 47.04 | I106: 1 | J106: 1.7 | K106: 1 | P106: 13.31 | Q106: 1 | R106: =IFERROR(IF(INDEX(ALL,MATCH($C106,FUND,0),MATCH(R$1,Name,0))="","",INDEX(ALL,MATCH($C106,FUND,0),MATCH(R$1,Name,0))),"") -> 34.4378 | S106: 2.0983 | T106: 0.0498 | U106: -1.5538 | V106: =IFERROR(IF(INDEX(ALL,MATCH($C106,FUND,0),MATCH(V$1,Name,0))="","",INDEX(ALL,MATCH($C106,FUND,0),MATCH(V$1,Name,0))),"") -> 0.236 | W106: =IFERROR(IF(INDEX(ALL,MATCH($C106,FUND,0),MATCH(W$1,Name,0))="","",INDEX(ALL,MATCH($C106,FUND,0),MATCH(W$1,Name,0))),"") -> 0.0364 | X106: -0.0057 | Y106: 1.75
A107: 42389496 | C107: =IFERROR(VLOOKUP(A107,Raw!A:C,3,0),"") -> 國泰日本 ETF傘型證券投資信託基金之富時日本單日正向 2倍證券投資信託基金 | D107: 0.18 | E107: 2 | F107: 4.86 | G107: 2 | H107: 32.6 | I107: 2 | P107: 6.56 | Q107: 2 | Y107: 41.35
C108: AVERAGE | D108: =IFERROR(IF(INDEX(AVG_ALL,MATCH($B106,Category,0),MATCH(D$1,AVG,0))="","",INDEX(AVG_ALL,MATCH($B106,Category,0),MATCH(D$1,AVG,0))),"") -> 3.11 | F108: 6.93 | H108: 39.82 | J108: 1.7 | P108: 9.935 | R108: =IFERROR(IF(INDEX(AVG_ALL,MATCH($B106,Category,0),MATCH(R$1,AVG,0))="","",INDEX(AVG_ALL,MATCH($B106,Category,0),MATCH(R$1,AVG,0))),"") -> 34.4378 | S108: =IFERROR(IF(INDEX(AVG_ALL,MATCH($B106,Category,0),MATCH(S$1,AVG,0))="","",INDEX(AVG_ALL,MATCH($B106,Category,0),MATCH(S$1,AVG,0))),"") -> 2.0983 | T108: =IFERROR(IF(INDEX(AVG_ALL,MATCH($B106,Category,0),MATCH(T$1,AVG,0))="","",INDEX(AVG_ALL,MATCH($B106,Category,0),MATCH(T$1,AVG,0))),"") -> 0.0498 | U108: =IFERROR(IF(INDEX(AVG_ALL,MATCH($B106,Category,0),MATCH(U$1,AVG,0))="","",INDEX(AVG_ALL,MATCH($B106,Category,0),MATCH(U$1,AVG,0))),"") -> -1.5538 | V108: 0.236 | W108: 0.0364 | X108: -0.0057 | Y108: =IFERROR(IF(INDEX(AVG_ALL,MATCH($B106,Category,0),MATCH(Y$1,AVG,0))="","",INDEX(AVG_ALL,MATCH($B106,Category,0),MATCH(Y$1,AVG,0))),"") -> 21.55
C109: Funds in Category | E109: =IF(ISBLANK(VLOOKUP($B106,Rank!$B:$I,2,0)),"",VLOOKUP($B106,Rank!$B:$I,2,0)) -> 2 | G109: =IF(ISBLANK(VLOOKUP($B106,Rank!$B:$I,3,0)),"",VLOOKUP($B106,Rank!$B:$I,3,0)) -> 2 | I109: =IF(ISBLANK(VLOOKUP($B106,Rank!$B:$I,4,0)),"",VLOOKUP($B106,Rank!$B:$I,4,0)) -> 2 | K109: =IF(ISBLANK(VLOOKUP($B106,Rank!$B:$I,5,0)),"",VLOOKUP($B106,Rank!$B:$I,5,0)) -> 1 | M109: =IF(ISBLANK(VLOOKUP($B106,Rank!$B:$I,6,0)),"",VLOOKUP($B106,Rank!$B:$I,6,0)) ->  | O109: =IF(ISBLANK(VLOOKUP($B106,Rank!$B:$I,7,0)),"",VLOOKUP($B106,Rank!$B:$I,7,0)) ->  | Q109: =IF(ISBLANK(VLOOKUP($B106,Rank!$B:$I,8,0)),"",VLOOKUP($B106,Rank!$B:$I,8,0)) -> 2
A110: 42319582 | B110: 日本反向ETF | C110: =IFERROR(VLOOKUP(A110,Raw!A:C,3,0),"") -> 富邦日本 ETF傘型證券投資信託基金之富邦日本東証單日反向一倍證券投資信託基金 | D110: =IFERROR(IF(INDEX(ALL,MATCH($C110,FUND,0),MATCH(D$1,Name,0))="","",INDEX(ALL,MATCH($C110,FUND,0),MATCH(D$1,Name,0))),"") -> -3.82 | E110: 2 | F110: -6.4 | G110: 2 | H110: -21.07 | I110: 2 | J110: -18.15 | K110: 1 | P110: -8.6 | Q110: 2 | R110: =IFERROR(IF(INDEX(ALL,MATCH($C110,FUND,0),MATCH(R$1,Name,0))="","",INDEX(ALL,MATCH($C110,FUND,0),MATCH(R$1,Name,0))),"") -> 15.5554 | S110: =IFERROR(IF(INDEX(ALL,MATCH($C110,FUND,0),MATCH(S$1,Name,0))="","",INDEX(ALL,MATCH($C110,FUND,0),MATCH(S$1,Name,0))),"") -> -0.9743 | T110: -0.1787 | U110: 0.1488 | V110: 0.8237 | W110: -0.1417 | X110: 0.0435 | Y110: -18.15
A111: 42389480 | C111: =IFERROR(VLOOKUP(A111,Raw!A:C,3,0),"") -> 國泰日本 ETF傘型證券投資信託基金之富時日本單日反向 1倍證券投資信託基金 | D111: -0.78 | E111: 1 | F111: -4.1 | G111: 1 | H111: -18.26 | I111: 1 | P111: -5.58 | Q111: 1 | R111: =IFERROR(IF(INDEX(ALL,MATCH($C111,FUND,0),MATCH(R$1,Name,0))="","",INDEX(ALL,MATCH($C111,FUND,0),MATCH(R$1,Name,0))),"") ->  | Y111: -23.9
C112: AVERAGE | D112: =IFERROR(IF(INDEX(AVG_ALL,MATCH($B110,Category,0),MATCH(D$1,AVG,0))="","",INDEX(AVG_ALL,MATCH($B110,Category,0),MATCH(D$1,AVG,0))),"") -> -2.3 | F112: -5.25 | H112: -19.665 | J112: -18.15 | P112: -7.09 | R112: =IFERROR(IF(INDEX(AVG_ALL,MATCH($B110,Category,0),MATCH(R$1,AVG,0))="","",INDEX(AVG_ALL,MATCH($B110,Category,0),MATCH(R$1,AVG,0))),"") -> 15.5554 | S112: =IFERROR(IF(INDEX(AVG_ALL,MATCH($B110,Category,0),MATCH(S$1,AVG,0))="","",INDEX(AVG_ALL,MATCH($B110,Category,0),MATCH(S$1,AVG,0))),"") -> -0.9743 | T112: =IFERROR(IF(INDEX(AVG_ALL,MATCH($B110,Category,0),MATCH(T$1,AVG,0))="","",INDEX(AVG_ALL,MATCH($B110,Category,0),MATCH(T$1,AVG,0))),"") -> -0.1787 | U112: =IFERROR(IF(INDEX(AVG_ALL,MATCH($B110,Category,0),MATCH(U$1,AVG,0))="","",INDEX(AVG_ALL,MATCH($B110,Category,0),MATCH(U$1,AVG,0))),"") -> 0.1488 | V112: 0.8237 | W112: -0.1417 | X112: 0.0435 | Y112: -21.025
C113: Funds in Category | E113: =IF(ISBLANK(VLOOKUP($B110,Rank!$B:$I,2,0)),"",VLOOKUP($B110,Rank!$B:$I,2,0)) -> 2 | G113: =IF(ISBLANK(VLOOKUP($B110,Rank!$B:$I,3,0)),"",VLOOKUP($B110,Rank!$B:$I,3,0)) -> 2 | I113: =IF(ISBLANK(VLOOKUP($B110,Rank!$B:$I,4,0)),"",VLOOKUP($B110,Rank!$B:$I,4,0)) -> 2 | K113: =IF(ISBLANK(VLOOKUP($B110,Rank!$B:$I,5,0)),"",VLOOKUP($B110,Rank!$B:$I,5,0)) -> 1 | M113: =IF(ISBLANK(VLOOKUP($B110,Rank!$B:$I,6,0)),"",VLOOKUP($B110,Rank!$B:$I,6,0)) ->  | O113: =IF(ISBLANK(VLOOKUP($B110,Rank!$B:$I,7,0)),"",VLOOKUP($B110,Rank!$B:$I,7,0)) ->  | Q113: =IF(ISBLANK(VLOOKUP($B110,Rank!$B:$I,8,0)),"",VLOOKUP($B110,Rank!$B:$I,8,0)) -> 2
A114: 42333579 | B114: 美國二倍ETF | C114: =IFERROR(VLOOKUP(A114,Raw!A:C,3,0),"") -> 元大標普 500傘型證券投資信託基金之標普 500單日正向 2倍證券投資信託基金 | D114: =IFERROR(IF(INDEX(ALL,MATCH($C114,FUND,0),MATCH(D$1,Name,0))="","",INDEX(ALL,MATCH($C114,FUND,0),MATCH(D$1,Name,0))),"") -> 4.72 | E114: 2 | F114: 6.87 | G114: 2 | H114: 23.8 | I114: 1 | P114: 14.38 | Q114: 1 | R114: =IFERROR(IF(INDEX(ALL,MATCH($C114,FUND,0),MATCH(R$1,Name,0))="","",INDEX(ALL,MATCH($C114,FUND,0),MATCH(R$1,Name,0))),"") ->  | S114: =IFERROR(IF(INDEX(ALL,MATCH($C114,FUND,0),MATCH(S$1,Name,0))="","",INDEX(ALL,MATCH($C114,FUND,0),MATCH(S$1,Name,0))),"") ->  | V114: =IFERROR(IF(INDEX(ALL,MATCH($C114,FUND,0),MATCH(V$1,Name,0))="","",INDEX(ALL,MATCH($C114,FUND,0),MATCH(V$1,Name,0))),"") ->  | Y114: 35.32
A115: 42441710 | C115: =IFERROR(VLOOKUP(A115,Raw!A:C,3,0),"") -> 富邦NASDAQ-100 ETF傘型證券投資信託基金之富邦NASDAQ-100單日正向兩倍證券投資信託基金 | D115: 5.28 | E115: 1 | F115: 22.27 | G115: 1 | R115: =IFERROR(IF(INDEX(ALL,MATCH($C115,FUND,0),MATCH(R$1,Name,0))="","",INDEX(ALL,MATCH($C115,FUND,0),MATCH(R$1,Name,0))),"") ->  | Y115: 24.65
C116: AVERAGE | D116: =IFERROR(IF(INDEX(AVG_ALL,MATCH($B114,Category,0),MATCH(D$1,AVG,0))="","",INDEX(AVG_ALL,MATCH($B114,Category,0),MATCH(D$1,AVG,0))),"") -> 5 | F116: 14.57 | H116: 23.8 | P116: 14.38 | R116: =IFERROR(IF(INDEX(AVG_ALL,MATCH($B114,Category,0),MATCH(R$1,AVG,0))="","",INDEX(AVG_ALL,MATCH($B114,Category,0),MATCH(R$1,AVG,0))),"") ->  | S116: =IFERROR(IF(INDEX(AVG_ALL,MATCH($B114,Category,0),MATCH(S$1,AVG,0))="","",INDEX(AVG_ALL,MATCH($B114,Category,0),MATCH(S$1,AVG,0))),"") ->  | T116: =IFERROR(IF(INDEX(AVG_ALL,MATCH($B114,Category,0),MATCH(T$1,AVG,0))="","",INDEX(AVG_ALL,MATCH($B114,Category,0),MATCH(T$1,AVG,0))),"") ->  | U116: =IFERROR(IF(INDEX(AVG_ALL,MATCH($B114,Category,0),MATCH(U$1,AVG,0))="","",INDEX(AVG_ALL,MATCH($B114,Category,0),MATCH(U$1,AVG,0))),"") ->  | V116: =IFERROR(IF(INDEX(AVG_ALL,MATCH($B114,Category,0),MATCH(V$1,AVG,0))="","",INDEX(AVG_ALL,MATCH($B114,Category,0),MATCH(V$1,AVG,0))),"") ->  | Y116: 29.985
C117: Funds in Category | E117: =IF(ISBLANK(VLOOKUP($B114,Rank!$B:$I,2,0)),"",VLOOKUP($B114,Rank!$B:$I,2,0)) -> 2 | G117: =IF(ISBLANK(VLOOKUP($B114,Rank!$B:$I,3,0)),"",VLOOKUP($B114,Rank!$B:$I,3,0)) -> 2 | I117: =IF(ISBLANK(VLOOKUP($B114,Rank!$B:$I,4,0)),"",VLOOKUP($B114,Rank!$B:$I,4,0)) -> 1 | K117: =IF(ISBLANK(VLOOKUP($B114,Rank!$B:$I,5,0)),"",VLOOKUP($B114,Rank!$B:$I,5,0)) ->  | M117: =IF(ISBLANK(VLOOKUP($B114,Rank!$B:$I,6,0)),"",VLOOKUP($B114,Rank!$B:$I,6,0)) ->  | O117: =IF(ISBLANK(VLOOKUP($B114,Rank!$B:$I,7,0)),"",VLOOKUP($B114,Rank!$B:$I,7,0)) ->  | Q117: =IF(ISBLANK(VLOOKUP($B114,Rank!$B:$I,8,0)),"",VLOOKUP($B114,Rank!$B:$I,8,0)) -> 1
A118: 42461567 | B118: 債券-二倍ETF | C118: =IFERROR(VLOOKUP(A118,Raw!A:C,3,0),"") -> 元大美國政府20年期(以上)債券 ETF傘型基金之元大美國政府20年期(以上)債券單日正向 2倍證券投資信託基金 | D118: =IFERROR(IF(INDEX(ALL,MATCH($C118,FUND,0),MATCH(D$1,Name,0))="","",INDEX(ALL,MATCH($C118,FUND,0),MATCH(D$1,Name,0))),"") -> 5.51 | E118: 2 | F118: 9.41 | G118: 1 | R118: =IFERROR(IF(INDEX(ALL,MATCH($C118,FUND,0),MATCH(R$1,Name,0))="","",INDEX(ALL,MATCH($C118,FUND,0),MATCH(R$1,Name,0))),"") ->  | S118: =IFERROR(IF(INDEX(ALL,MATCH($C118,FUND,0),MATCH(S$1,Name,0))="","",INDEX(ALL,MATCH($C118,FUND,0),MATCH(S$1,Name,0))),"") ->  | V118: =IFERROR(IF(INDEX(ALL,MATCH($C118,FUND,0),MATCH(V$1,Name,0))="","",INDEX(ALL,MATCH($C118,FUND,0),MATCH(V$1,Name,0))),"") ->  | Y118: 8.82
A119: 42482747 | C119: =IFERROR(VLOOKUP(A119,Raw!A:C,3,0),"") -> 國泰美國債券 ETF傘型證券投資信託基金之彭博巴克萊20年期(以上)美國公債指數單日正向2倍證券投資信託基金 | D119: 5.72 | E119: 1 | R119: =IFERROR(IF(INDEX(ALL,MATCH($C119,FUND,0),MATCH(R$1,Name,0))="","",INDEX(ALL,MATCH($C119,FUND,0),MATCH(R$1,Name,0))),"") ->  | Y119: 10.31
C120: AVERAGE | D120: =IFERROR(IF(INDEX(AVG_ALL,MATCH($B118,Category,0),MATCH(D$1,AVG,0))="","",INDEX(AVG_ALL,MATCH($B118,Category,0),MATCH(D$1,AVG,0))),"") -> 5.615 | F120: 9.41 | R120: =IFERROR(IF(INDEX(AVG_ALL,MATCH($B118,Category,0),MATCH(R$1,AVG,0))="","",INDEX(AVG_ALL,MATCH($B118,Category,0),MATCH(R$1,AVG,0))),"") ->  | S120: =IFERROR(IF(INDEX(AVG_ALL,MATCH($B118,Category,0),MATCH(S$1,AVG,0))="","",INDEX(AVG_ALL,MATCH($B118,Category,0),MATCH(S$1,AVG,0))),"") ->  | T120: =IFERROR(IF(INDEX(AVG_ALL,MATCH($B118,Category,0),MATCH(T$1,AVG,0))="","",INDEX(AVG_ALL,MATCH($B118,Category,0),MATCH(T$1,AVG,0))),"") ->  | U120: =IFERROR(IF(INDEX(AVG_ALL,MATCH($B118,Category,0),MATCH(U$1,AVG,0))="","",INDEX(AVG_ALL,MATCH($B118,Category,0),MATCH(U$1,AVG,0))),"") ->  | V120: =IFERROR(IF(INDEX(AVG_ALL,MATCH($B118,Category,0),MATCH(V$1,AVG,0))="","",INDEX(AVG_ALL,MATCH($B118,Category,0),MATCH(V$1,AVG,0))),"") ->  | Y120: 6.54
C121: Funds in Category | E121: =IF(ISBLANK(VLOOKUP($B118,Rank!$B:$I,2,0)),"",VLOOKUP($B118,Rank!$B:$I,2,0)) -> 2 | G121: =IF(ISBLANK(VLOOKUP($B118,Rank!$B:$I,3,0)),"",VLOOKUP($B118,Rank!$B:$I,3,0)) -> 1 | I121: =IF(ISBLANK(VLOOKUP($B118,Rank!$B:$I,4,0)),"",VLOOKUP($B118,Rank!$B:$I,4,0)) ->  | K121: =IF(ISBLANK(VLOOKUP($B118,Rank!$B:$I,5,0)),"",VLOOKUP($B118,Rank!$B:$I,5,0)) ->  | M121: =IF(ISBLANK(VLOOKUP($B118,Rank!$B:$I,6,0)),"",VLOOKUP($B118,Rank!$B:$I,6,0)) ->  | O121: =IF(ISBLANK(VLOOKUP($B118,Rank!$B:$I,7,0)),"",VLOOKUP($B118,Rank!$B:$I,7,0)) ->  | Q121: =IF(ISBLANK(VLOOKUP($B118,Rank!$B:$I,8,0)),"",VLOOKUP($B118,Rank!$B:$I,8,0)) -> 
A122: 42461588 | B122: 債券-反向ETF | C122: =IFERROR(VLOOKUP(A122,Raw!A:C,3,0),"") -> 元大美國政府20年期(以上)債券 ETF傘型基金之元大美國政府20年期(以上)債券單日反向 1倍證券投資信託基金 | D122: =IFERROR(IF(INDEX(ALL,MATCH($C122,FUND,0),MATCH(D$1,Name,0))="","",INDEX(ALL,MATCH($C122,FUND,0),MATCH(D$1,Name,0))),"") -> -3.49 | E122: =IFERROR(IF(INDEX(ALL,MATCH($C122,FUND,0),MATCH(E$1,Name,0))="","",INDEX(ALL,MATCH($C122,FUND,0),MATCH(E$1,Name,0))),"") -> 2 | F122: =IFERROR(IF(INDEX(ALL,MATCH($C122,FUND,0),MATCH(F$1,Name,0))="","",INDEX(ALL,MATCH($C122,FUND,0),MATCH(F$1,Name,0))),"") -> -6.52 | G122: =IFERROR(IF(INDEX(ALL,MATCH($C122,FUND,0),MATCH(G$1,Name,0))="","",INDEX(ALL,MATCH($C122,FUND,0),MATCH(G$1,Name,0))),"") -> 1 | H122: =IFERROR(IF(INDEX(ALL,MATCH($C122,FUND,0),MATCH(H$1,Name,0))="","",INDEX(ALL,MATCH($C122,FUND,0),MATCH(H$1,Name,0))),"") ->  | I122: =IFERROR(IF(INDEX(ALL,MATCH($C122,FUND,0),MATCH(I$1,Name,0))="","",INDEX(ALL,MATCH($C122,FUND,0),MATCH(I$1,Name,0))),"") ->  | J122: =IFERROR(IF(INDEX(ALL,MATCH($C122,FUND,0),MATCH(J$1,Name,0))="","",INDEX(ALL,MATCH($C122,FUND,0),MATCH(J$1,Name,0))),"") ->  | K122: =IFERROR(IF(INDEX(ALL,MATCH($C122,FUND,0),MATCH(K$1,Name,0))="","",INDEX(ALL,MATCH($C122,FUND,0),MATCH(K$1,Name,0))),"") ->  | L122: =IFERROR(IF(INDEX(ALL,MATCH($C122,FUND,0),MATCH(L$1,Name,0))="","",INDEX(ALL,MATCH($C122,FUND,0),MATCH(L$1,Name,0))),"") ->  | M122: =IFERROR(IF(INDEX(ALL,MATCH($C122,FUND,0),MATCH(M$1,Name,0))="","",INDEX(ALL,MATCH($C122,FUND,0),MATCH(M$1,Name,0))),"") ->  | N122: =IFERROR(IF(INDEX(ALL,MATCH($C122,FUND,0),MATCH(N$1,Name,0))="","",INDEX(ALL,MATCH($C122,FUND,0),MATCH(N$1,Name,0))),"") ->  | O122: =IFERROR(IF(INDEX(ALL,MATCH($C122,FUND,0),MATCH(O$1,Name,0))="","",INDEX(ALL,MATCH($C122,FUND,0),MATCH(O$1,Name,0))),"") ->  | P122: =IFERROR(IF(INDEX(ALL,MATCH($C122,FUND,0),MATCH(P$1,Name,0))="","",INDEX(ALL,MATCH($C122,FUND,0),MATCH(P$1,Name,0))),"") ->  | Q122: =IFERROR(IF(INDEX(ALL,MATCH($C122,FUND,0),MATCH(Q$1,Name,0))="","",INDEX(ALL,MATCH($C122,FUND,0),MATCH(Q$1,Name,0))),"") ->  | R122: =IFERROR(IF(INDEX(ALL,MATCH($C122,FUND,0),MATCH(R$1,Name,0))="","",INDEX(ALL,MATCH($C122,FUND,0),MATCH(R$1,Name,0))),"") ->  | S122: =IFERROR(IF(INDEX(ALL,MATCH($C122,FUND,0),MATCH(S$1,Name,0))="","",INDEX(ALL,MATCH($C122,FUND,0),MATCH(S$1,Name,0))),"") ->  | T122: =IFERROR(IF(INDEX(ALL,MATCH($C122,FUND,0),MATCH(T$1,Name,0))="","",INDEX(ALL,MATCH($C122,FUND,0),MATCH(T$1,Name,0))),"") ->  | U122: =IFERROR(IF(INDEX(ALL,MATCH($C122,FUND,0),MATCH(U$1,Name,0))="","",INDEX(ALL,MATCH($C122,FUND,0),MATCH(U$1,Name,0))),"") ->  | V122: =IFERROR(IF(INDEX(ALL,MATCH($C122,FUND,0),MATCH(V$1,Name,0))="","",INDEX(ALL,MATCH($C122,FUND,0),MATCH(V$1,Name,0))),"") ->  | W122: =IFERROR(IF(INDEX(ALL,MATCH($C122,FUND,0),MATCH(W$1,Name,0))="","",INDEX(ALL,MATCH($C122,FUND,0),MATCH(W$1,Name,0))),"") ->  | X122: =IFERROR(IF(INDEX(ALL,MATCH($C122,FUND,0),MATCH(X$1,Name,0))="","",INDEX(ALL,MATCH($C122,FUND,0),MATCH(X$1,Name,0))),"") ->  | Y122: =IFERROR(IF(INDEX(ALL,MATCH($C122,FUND,0),MATCH(Y$1,Name,0))="","",INDEX(ALL,MATCH($C122,FUND,0),MATCH(Y$1,Name,0))),"") -> -7.52
A123: 42482731 | C123: =IFERROR(VLOOKUP(A123,Raw!A:C,3,0),"") -> 國泰美國債券 ETF傘型證券投資信託基金之彭博巴克萊20年期(以上)美國公債指數單日反向1倍證券投資信託基金 | D123: =IFERROR(IF(INDEX(ALL,MATCH($C123,FUND,0),MATCH(D$1,Name,0))="","",INDEX(ALL,MATCH($C123,FUND,0),MATCH(D$1,Name,0))),"") -> -3.4 | E123: 1 | R123: =IFERROR(IF(INDEX(ALL,MATCH($C123,FUND,0),MATCH(R$1,Name,0))="","",INDEX(ALL,MATCH($C123,FUND,0),MATCH(R$1,Name,0))),"") ->  | S123: =IFERROR(IF(INDEX(ALL,MATCH($C123,FUND,0),MATCH(S$1,Name,0))="","",INDEX(ALL,MATCH($C123,FUND,0),MATCH(S$1,Name,0))),"") ->  | V123: =IFERROR(IF(INDEX(ALL,MATCH($C123,FUND,0),MATCH(V$1,Name,0))="","",INDEX(ALL,MATCH($C123,FUND,0),MATCH(V$1,Name,0))),"") ->  | Y123: -6.17
C124: AVERAGE | D124: =IFERROR(IF(INDEX(AVG_ALL,MATCH($B122,Category,0),MATCH(D$1,AVG,0))="","",INDEX(AVG_ALL,MATCH($B122,Category,0),MATCH(D$1,AVG,0))),"") -> -3.445 | F124: -6.52 | R124: =IFERROR(IF(INDEX(AVG_ALL,MATCH($B122,Category,0),MATCH(R$1,AVG,0))="","",INDEX(AVG_ALL,MATCH($B122,Category,0),MATCH(R$1,AVG,0))),"") ->  | S124: =IFERROR(IF(INDEX(AVG_ALL,MATCH($B122,Category,0),MATCH(S$1,AVG,0))="","",INDEX(AVG_ALL,MATCH($B122,Category,0),MATCH(S$1,AVG,0))),"") ->  | T124: =IFERROR(IF(INDEX(AVG_ALL,MATCH($B122,Category,0),MATCH(T$1,AVG,0))="","",INDEX(AVG_ALL,MATCH($B122,Category,0),MATCH(T$1,AVG,0))),"") ->  | U124: =IFERROR(IF(INDEX(AVG_ALL,MATCH($B122,Category,0),MATCH(U$1,AVG,0))="","",INDEX(AVG_ALL,MATCH($B122,Category,0),MATCH(U$1,AVG,0))),"") ->  | V124: =IFERROR(IF(INDEX(AVG_ALL,MATCH($B122,Category,0),MATCH(V$1,AVG,0))="","",INDEX(AVG_ALL,MATCH($B122,Category,0),MATCH(V$1,AVG,0))),"") ->  | Y124: -4.836666667
C125: Funds in Category | E125: =IF(ISBLANK(VLOOKUP($B122,Rank!$B:$I,2,0)),"",VLOOKUP($B122,Rank!$B:$I,2,0)) -> 2 | G125: =IF(ISBLANK(VLOOKUP($B122,Rank!$B:$I,3,0)),"",VLOOKUP($B122,Rank!$B:$I,3,0)) -> 1 | I125: =IF(ISBLANK(VLOOKUP($B122,Rank!$B:$I,4,0)),"",VLOOKUP($B122,Rank!$B:$I,4,0)) ->  | K125: =IF(ISBLANK(VLOOKUP($B122,Rank!$B:$I,5,0)),"",VLOOKUP($B122,Rank!$B:$I,5,0)) ->  | M125: =IF(ISBLANK(VLOOKUP($B122,Rank!$B:$I,6,0)),"",VLOOKUP($B122,Rank!$B:$I,6,0)) ->  | O125: =IF(ISBLANK(VLOOKUP($B122,Rank!$B:$I,7,0)),"",VLOOKUP($B122,Rank!$B:$I,7,0)) ->  | Q125: =IF(ISBLANK(VLOOKUP($B122,Rank!$B:$I,8,0)),"",VLOOKUP($B122,Rank!$B:$I,8,0)) -> 
A126: 42529948 | B126: 不動產證券化 | C126: =IFERROR(VLOOKUP(A126,Raw!A:C,3,0),"") -> 復華全球收益 ETF傘型證券投資信託基金之復華富時不動產證券化證券投資信託基金 | D126: =IFERROR(IF(INDEX(ALL,MATCH($C126,FUND,0),MATCH(D$1,Name,0))="","",INDEX(ALL,MATCH($C126,FUND,0),MATCH(D$1,Name,0))),"") ->  | R126: =IFERROR(IF(INDEX(ALL,MATCH($C126,FUND,0),MATCH(R$1,Name,0))="","",INDEX(ALL,MATCH($C126,FUND,0),MATCH(R$1,Name,0))),"") ->  | S126: =IFERROR(IF(INDEX(ALL,MATCH($C126,FUND,0),MATCH(S$1,Name,0))="","",INDEX(ALL,MATCH($C126,FUND,0),MATCH(S$1,Name,0))),"") ->  | T126: =IFERROR(IF(INDEX(ALL,MATCH($C126,FUND,0),MATCH(T$1,Name,0))="","",INDEX(ALL,MATCH($C126,FUND,0),MATCH(T$1,Name,0))),"") ->  | U126: =IFERROR(IF(INDEX(ALL,MATCH($C126,FUND,0),MATCH(U$1,Name,0))="","",INDEX(ALL,MATCH($C126,FUND,0),MATCH(U$1,Name,0))),"") ->  | V126: =IFERROR(IF(INDEX(ALL,MATCH($C126,FUND,0),MATCH(V$1,Name,0))="","",INDEX(ALL,MATCH($C126,FUND,0),MATCH(V$1,Name,0))),"") ->  | Y126: -0.25
C127: AVERAGE | D127: =IFERROR(IF(INDEX(AVG_ALL,MATCH($B126,Category,0),MATCH(D$1,AVG,0))="","",INDEX(AVG_ALL,MATCH($B126,Category,0),MATCH(D$1,AVG,0))),"") -> 2.629285714 | F127: 3.136666667 | H127: -0.3266666667 | J127: 8.862916667 | L127: 7.406 | N127: 29.38894737 | P127: 3.786666667 | R127: 8.933008333 | T127: 0.1172583333 | W127: -0.0022625 | X127: -0.021 | Y127: 6.199574468
C128: Funds in Category | E128: =IF(ISBLANK(VLOOKUP($B126,Rank!$B:$I,2,0)),"",VLOOKUP($B126,Rank!$B:$I,2,0)) -> 42 | G128: =IF(ISBLANK(VLOOKUP($B126,Rank!$B:$I,3,0)),"",VLOOKUP($B126,Rank!$B:$I,3,0)) -> 42 | I128: =IF(ISBLANK(VLOOKUP($B126,Rank!$B:$I,4,0)),"",VLOOKUP($B126,Rank!$B:$I,4,0)) -> 42 | K128: =IF(ISBLANK(VLOOKUP($B126,Rank!$B:$I,5,0)),"",VLOOKUP($B126,Rank!$B:$I,5,0)) -> 24 | M128: =IF(ISBLANK(VLOOKUP($B126,Rank!$B:$I,6,0)),"",VLOOKUP($B126,Rank!$B:$I,6,0)) -> 20 | O128: =IF(ISBLANK(VLOOKUP($B126,Rank!$B:$I,7,0)),"",VLOOKUP($B126,Rank!$B:$I,7,0)) -> 19 | Q128: =IF(ISBLANK(VLOOKUP($B126,Rank!$B:$I,8,0)),"",VLOOKUP($B126,Rank!$B:$I,8,0)) -> 42
A129: 42469759 | B129: 海外債-二倍ETF | C129: =IFERROR(VLOOKUP(A129,Raw!A:C,3,0),"") -> 元大美國政府 7至10年期債券 ETF傘型證券投資信託基金之元大美國政府 7至10年期債券單日正向 2倍基金 | D129: =IFERROR(IF(INDEX(ALL,MATCH($C129,FUND,0),MATCH(D$1,Name,0))="","",INDEX(ALL,MATCH($C129,FUND,0),MATCH(D$1,Name,0))),"") ->  | R129: =IFERROR(IF(INDEX(ALL,MATCH($C129,FUND,0),MATCH(R$1,Name,0))="","",INDEX(ALL,MATCH($C129,FUND,0),MATCH(R$1,Name,0))),"") ->  | S129: =IFERROR(IF(INDEX(ALL,MATCH($C129,FUND,0),MATCH(S$1,Name,0))="","",INDEX(ALL,MATCH($C129,FUND,0),MATCH(S$1,Name,0))),"") ->  | T129: =IFERROR(IF(INDEX(ALL,MATCH($C129,FUND,0),MATCH(T$1,Name,0))="","",INDEX(ALL,MATCH($C129,FUND,0),MATCH(T$1,Name,0))),"") ->  | U129: =IFERROR(IF(INDEX(ALL,MATCH($C129,FUND,0),MATCH(U$1,Name,0))="","",INDEX(ALL,MATCH($C129,FUND,0),MATCH(U$1,Name,0))),"") ->  | V129: =IFERROR(IF(INDEX(ALL,MATCH($C129,FUND,0),MATCH(V$1,Name,0))="","",INDEX(ALL,MATCH($C129,FUND,0),MATCH(V$1,Name,0))),"") ->  | Y129: 0.49
C130: AVERAGE | D130: =IFERROR(IF(INDEX(AVG_ALL,MATCH($B129,Category,0),MATCH(D$1,AVG,0))="","",INDEX(AVG_ALL,MATCH($B129,Category,0),MATCH(D$1,AVG,0))),"") -> 
C131: Funds in Category | E131: =IF(ISBLANK(VLOOKUP($B129,Rank!$B:$I,2,0)),"",VLOOKUP($B129,Rank!$B:$I,2,0)) ->  | G131: =IF(ISBLANK(VLOOKUP($B129,Rank!$B:$I,3,0)),"",VLOOKUP($B129,Rank!$B:$I,3,0)) ->  | I131: =IF(ISBLANK(VLOOKUP($B129,Rank!$B:$I,4,0)),"",VLOOKUP($B129,Rank!$B:$I,4,0)) ->  | K131: =IF(ISBLANK(VLOOKUP($B129,Rank!$B:$I,5,0)),"",VLOOKUP($B129,Rank!$B:$I,5,0)) ->  | M131: =IF(ISBLANK(VLOOKUP($B129,Rank!$B:$I,6,0)),"",VLOOKUP($B129,Rank!$B:$I,6,0)) ->  | O131: =IF(ISBLANK(VLOOKUP($B129,Rank!$B:$I,7,0)),"",VLOOKUP($B129,Rank!$B:$I,7,0)) ->  | Q131: =IF(ISBLANK(VLOOKUP($B129,Rank!$B:$I,8,0)),"",VLOOKUP($B129,Rank!$B:$I,8,0)) -> 
A132: 42469765 | B132: 海外債-反向ETF | C132: =IFERROR(VLOOKUP(A132,Raw!A:C,3,0),"") -> 元大美國政府 7至10年期債券 ETF傘型證券投資信託基金之元大美國政府 7至10年期債券單日反向 1倍基金 | D132: =IFERROR(IF(INDEX(ALL,MATCH($C132,FUND,0),MATCH(D$1,Name,0))="","",INDEX(ALL,MATCH($C132,FUND,0),MATCH(D$1,Name,0))),"") ->  | R132: =IFERROR(IF(INDEX(ALL,MATCH($C132,FUND,0),MATCH(R$1,Name,0))="","",INDEX(ALL,MATCH($C132,FUND,0),MATCH(R$1,Name,0))),"") ->  | S132: =IFERROR(IF(INDEX(ALL,MATCH($C132,FUND,0),MATCH(S$1,Name,0))="","",INDEX(ALL,MATCH($C132,FUND,0),MATCH(S$1,Name,0))),"") ->  | T132: =IFERROR(IF(INDEX(ALL,MATCH($C132,FUND,0),MATCH(T$1,Name,0))="","",INDEX(ALL,MATCH($C132,FUND,0),MATCH(T$1,Name,0))),"") ->  | U132: =IFERROR(IF(INDEX(ALL,MATCH($C132,FUND,0),MATCH(U$1,Name,0))="","",INDEX(ALL,MATCH($C132,FUND,0),MATCH(U$1,Name,0))),"") ->  | V132: =IFERROR(IF(INDEX(ALL,MATCH($C132,FUND,0),MATCH(V$1,Name,0))="","",INDEX(ALL,MATCH($C132,FUND,0),MATCH(V$1,Name,0))),"") ->  | Y132: -0.82
C133: AVERAGE | D133: =IFERROR(IF(INDEX(AVG_ALL,MATCH($B132,Category,0),MATCH(D$1,AVG,0))="","",INDEX(AVG_ALL,MATCH($B132,Category,0),MATCH(D$1,AVG,0))),"") -> 
C134: Funds in Category | E134: =IF(ISBLANK(VLOOKUP($B132,Rank!$B:$I,2,0)),"",VLOOKUP($B132,Rank!$B:$I,2,0)) ->  | G134: =IF(ISBLANK(VLOOKUP($B132,Rank!$B:$I,3,0)),"",VLOOKUP($B132,Rank!$B:$I,3,0)) ->  | I134: =IF(ISBLANK(VLOOKUP($B132,Rank!$B:$I,4,0)),"",VLOOKUP($B132,Rank!$B:$I,4,0)) ->  | K134: =IF(ISBLANK(VLOOKUP($B132,Rank!$B:$I,5,0)),"",VLOOKUP($B132,Rank!$B:$I,5,0)) ->  | M134: =IF(ISBLANK(VLOOKUP($B132,Rank!$B:$I,6,0)),"",VLOOKUP($B132,Rank!$B:$I,6,0)) ->  | O134: =IF(ISBLANK(VLOOKUP($B132,Rank!$B:$I,7,0)),"",VLOOKUP($B132,Rank!$B:$I,7,0)) ->  | Q134: =IF(ISBLANK(VLOOKUP($B132,Rank!$B:$I,8,0)),"",VLOOKUP($B132,Rank!$B:$I,8,0)) -> 
A135: 42398684 | B135: 跨國投資--歐洲 | C135: =IFERROR(VLOOKUP(A135,Raw!A:C,3,0),"") -> 元大已開發國家傘型證券投資信託基金之元大歐洲50證券投資信託基金 | D135: =IFERROR(IF(INDEX(ALL,MATCH($C135,FUND,0),MATCH(D$1,Name,0))="","",INDEX(ALL,MATCH($C135,FUND,0),MATCH(D$1,Name,0))),"") -> -2.54 | E135: 12 | F135: 6.56 | G135: 12 | H135: 15.62 | I135: 4 | P135: 6.93 | Q135: 12 | R135: =IFERROR(IF(INDEX(ALL,MATCH($C135,FUND,0),MATCH(R$1,Name,0))="","",INDEX(ALL,MATCH($C135,FUND,0),MATCH(R$1,Name,0))),"") ->  | S135: =IFERROR(IF(INDEX(ALL,MATCH($C135,FUND,0),MATCH(S$1,Name,0))="","",INDEX(ALL,MATCH($C135,FUND,0),MATCH(S$1,Name,0))),"") ->  | T135: =IFERROR(IF(INDEX(ALL,MATCH($C135,FUND,0),MATCH(T$1,Name,0))="","",INDEX(ALL,MATCH($C135,FUND,0),MATCH(T$1,Name,0))),"") ->  | U135: =IFERROR(IF(INDEX(ALL,MATCH($C135,FUND,0),MATCH(U$1,Name,0))="","",INDEX(ALL,MATCH($C135,FUND,0),MATCH(U$1,Name,0))),"") ->  | V135: =IFERROR(IF(INDEX(ALL,MATCH($C135,FUND,0),MATCH(V$1,Name,0))="","",INDEX(ALL,MATCH($C135,FUND,0),MATCH(V$1,Name,0))),"") ->  | Y135: 21.17
C136: AVERAGE | D136: =IFERROR(IF(INDEX(AVG_ALL,MATCH($B135,Category,0),MATCH(D$1,AVG,0))="","",INDEX(AVG_ALL,MATCH($B135,Category,0),MATCH(D$1,AVG,0))),"") -> 0.9453846154 | F136: 11.91461538 | H136: 14.02846154 | J136: 5.729 | L136: 1.152 | N136: 37.598 | P136: 10.74153846 | R136: =IFERROR(IF(INDEX(AVG_ALL,MATCH($B135,Category,0),MATCH(R$1,AVG,0))="","",INDEX(AVG_ALL,MATCH($B135,Category,0),MATCH(R$1,AVG,0))),"") -> 11.27477 | S136: =IFERROR(IF(INDEX(AVG_ALL,MATCH($B135,Category,0),MATCH(S$1,AVG,0))="","",INDEX(AVG_ALL,MATCH($B135,Category,0),MATCH(S$1,AVG,0))),"") -> 0.69593 | T136: =IFERROR(IF(INDEX(AVG_ALL,MATCH($B135,Category,0),MATCH(T$1,AVG,0))="","",INDEX(AVG_ALL,MATCH($B135,Category,0),MATCH(T$1,AVG,0))),"") -> 0.06993 | U136: =IFERROR(IF(INDEX(AVG_ALL,MATCH($B135,Category,0),MATCH(U$1,AVG,0))="","",INDEX(AVG_ALL,MATCH($B135,Category,0),MATCH(U$1,AVG,0))),"") -> -0.47031 | V136: =IFERROR(IF(INDEX(AVG_ALL,MATCH($B135,Category,0),MATCH(V$1,AVG,0))="","",INDEX(AVG_ALL,MATCH($B135,Category,0),MATCH(V$1,AVG,0))),"") -> 0.32363 | W136: -0.16319 | X136: 0.00228 | Y136: 15.46615385
C137: Funds in Category | E137: =IF(ISBLANK(VLOOKUP($B135,Rank!$B:$I,2,0)),"",VLOOKUP($B135,Rank!$B:$I,2,0)) -> 13 | G137: =IF(ISBLANK(VLOOKUP($B135,Rank!$B:$I,3,0)),"",VLOOKUP($B135,Rank!$B:$I,3,0)) -> 13 | I137: =IF(ISBLANK(VLOOKUP($B135,Rank!$B:$I,4,0)),"",VLOOKUP($B135,Rank!$B:$I,4,0)) -> 13 | K137: =IF(ISBLANK(VLOOKUP($B135,Rank!$B:$I,5,0)),"",VLOOKUP($B135,Rank!$B:$I,5,0)) -> 10 | M137: =IF(ISBLANK(VLOOKUP($B135,Rank!$B:$I,6,0)),"",VLOOKUP($B135,Rank!$B:$I,6,0)) -> 5 | O137: =IF(ISBLANK(VLOOKUP($B135,Rank!$B:$I,7,0)),"",VLOOKUP($B135,Rank!$B:$I,7,0)) -> 5 | Q137: =IF(ISBLANK(VLOOKUP($B135,Rank!$B:$I,8,0)),"",VLOOKUP($B135,Rank!$B:$I,8,0)) -> 13

Sheet Avg_all
A1: 基金類型 | B1: Category | C1: 季ROI | D1: 半年ROI | E1: 一年ROI | F1: 二年ROI | G1: 三年ROI | H1: 五年ROI | I1: 十年ROI | J1: 自今年以來ROI | K1: 最佳三個月ROI | L1: 最差三個月ROI | M1: 自成立以來ROI | N1: 年化標準差--24個月 | O1: beta--24個月 | P1: Sharpe Index-24個月 | Q1: Jensen Index-24個月 | R1: Treynor Index-24個月 | S1: IR--24個月（大分類） | T1: IR--24個月（細分類） | U1: 年化標準差--12個月 | V1: beta--12個月 | W1: Sharpe Index-12個月 | X1: Jensen Index-12個月 | Y1: Treynor Index-12個月 | Z1: IR--12個月（大分類） | AA1: IR--12個月（細分類）
A2: 不動產證券化 | B2: 不動產證券化 | C2: =IFERROR(AVERAGEIF(Raw!$D:$D,Avg_all!$A2,Raw!E:E),"") -> 2.629285714 | D2: =IFERROR(AVERAGEIF(Raw!$D:$D,Avg_all!$A2,Raw!G:G),"") -> 3.136666667 | E2: =IFERROR(AVERAGEIF(Raw!$D:$D,Avg_all!$A2,Raw!I:I),"") -> -0.3266666667 | F2: =IFERROR(AVERAGEIF(Raw!$D:$D,Avg_all!$A2,Raw!K:K),"") -> 8.862916667 | G2: =IFERROR(AVERAGEIF(Raw!$D:$D,Avg_all!$A2,Raw!M:M),"") -> 7.406 | H2: =IFERROR(AVERAGEIF(Raw!$D:$D,Avg_all!$A2,Raw!O:O),"") -> 29.38894737 | I2: =IFERROR(AVERAGEIF(Raw!$D:$D,Avg_all!$A2,Raw!Q:Q),"") -> 3.305263158 | J2: =IFERROR(AVERAGEIF(Raw!$D:$D,Avg_all!$A2,Raw!S:S),"") -> 3.786666667 | K2: =IFERROR(AVERAGEIF(Raw!$D:$D,Avg_all!$A2,Raw!U:U),"") -> 8.638571429 | L2: =IFERROR(AVERAGEIF(Raw!$D:$D,Avg_all!$A2,Raw!V:V),"") -> -8.627619048 | M2: =IFERROR(AVERAGEIF(Raw!$D:$D,Avg_all!$A2,Raw!W:W),"") -> 6.199574468 | N2: =IFERROR(AVERAGEIF(Raw!$D:$D,Avg_all!$A2,Raw!X:X),"") -> 8.933008333 | O2: =IFERROR(AVERAGEIF(Raw!$D:$D,Avg_all!$A2,Raw!Y:Y),"") ->  | P2: =IFERROR(AVERAGEIF(Raw!$D:$D,Avg_all!$A2,Raw!Z:Z),"") -> 0.1172583333 | Q2: =IFERROR(AVERAGEIF(Raw!$D:$D,Avg_all!$A2,Raw!AA:AA),"") ->  | R2: =IFERROR(AVERAGEIF(Raw!$D:$D,Avg_all!$A2,Raw!AB:AB),"") ->  | S2: =IFERROR(AVERAGEIF(Raw!$D:$D,Avg_all!$A2,Raw!AC:AC),"") -> -0.0022625 | T2: =IFERROR(AVERAGEIF(Raw!$D:$D,Avg_all!$A2,Raw!AD:AD),"") -> -0.021 | U2: =IFERROR(AVERAGEIF(Raw!$D:$D,Avg_all!$A2,Raw!AE:AE),"") -> 8.13407619 | V2: =IFERROR(AVERAGEIF(Raw!$D:$D,Avg_all!$A2,Raw!AF:AF),"") ->  | W2: =IFERROR(AVERAGEIF(Raw!$D:$D,Avg_all!$A2,Raw!AG:AG),"") -> -0.04843095238 | X2: =IFERROR(AVERAGEIF(Raw!$D:$D,Avg_all!$A2,Raw!AH:AH),"") ->  | Y2: =IFERROR(AVERAGEIF(Raw!$D:$D,Avg_all!$A2,Raw!AI:AI),"") ->  | Z2: =IFERROR(AVERAGEIF(Raw!$D:$D,Avg_all!$A2,Raw!AJ:AJ),"") -> -0.0876452381 | AA2: =IFERROR(AVERAGEIF(Raw!$D:$D,Avg_all!$A2,Raw!AK:AK),"") -> -0.09606666667
A3: 平衡--一般股票型 | B3: 平衡--一般股票型 | C3: =IFERROR(AVERAGEIF(Raw!$D:$D,Avg_all!$A3,Raw!E:E),"") -> 9.508823529 | D3: =IFERROR(AVERAGEIF(Raw!$D:$D,Avg_all!$A3,Raw!G:G),"") -> 11.97882353 | E3: =IFERROR(AVERAGEIF(Raw!$D:$D,Avg_all!$A3,Raw!I:I),"") -> 13.86764706 | F3: =IFERROR(AVERAGEIF(Raw!$D:$D,Avg_all!$A3,Raw!K:K),"") -> 29.59235294 | G3: =IFERROR(AVERAGEIF(Raw!$D:$D,Avg_all!$A3,Raw!M:M),"") -> 22.40764706 | H3: =IFERROR(AVERAGEIF(Raw!$D:$D,Avg_all!$A3,Raw!O:O),"") -> 66.09235294 | I3: =IFERROR(AVERAGEIF(Raw!$D:$D,Avg_all!$A3,Raw!Q:Q),"") -> 58.34882353 | J3: =IFERROR(AVERAGEIF(Raw!$D:$D,Avg_all!$A3,Raw!S:S),"") -> 17.87411765 | K3: =IFERROR(AVERAGEIF(Raw!$D:$D,Avg_all!$A3,Raw!U:U),"") -> 9.434705882 | L3: =IFERROR(AVERAGEIF(Raw!$D:$D,Avg_all!$A3,Raw!V:V),"") -> -10.34352941 | M3: =IFERROR(AVERAGEIF(Raw!$D:$D,Avg_all!$A3,Raw!W:W),"") -> 167.8441176 | N3: =IFERROR(AVERAGEIF(Raw!$D:$D,Avg_all!$A3,Raw!X:X),"") -> 7.187805882 | O3: =IFERROR(AVERAGEIF(Raw!$D:$D,Avg_all!$A3,Raw!Y:Y),"") -> 0.5105705882 | P3: =IFERROR(AVERAGEIF(Raw!$D:$D,Avg_all!$A3,Raw!Z:Z),"") -> 0.4847470588 | Q3: =IFERROR(AVERAGEIF(Raw!$D:$D,Avg_all!$A3,Raw!AA:AA),"") -> 0.3167529412 | R3: =IFERROR(AVERAGEIF(Raw!$D:$D,Avg_all!$A3,Raw!AB:AB),"") -> 2.097752941 | S3: =IFERROR(AVERAGEIF(Raw!$D:$D,Avg_all!$A3,Raw!AC:AC),"") -> 0.2604411765 | T3: =IFERROR(AVERAGEIF(Raw!$D:$D,Avg_all!$A3,Raw!AD:AD),"") -> -0.02145882353 | U3: =IFERROR(AVERAGEIF(Raw!$D:$D,Avg_all!$A3,Raw!AE:AE),"") -> 7.737841176 | V3: =IFERROR(AVERAGEIF(Raw!$D:$D,Avg_all!$A3,Raw!AF:AF),"") -> 0.9708117647 | W3: =IFERROR(AVERAGEIF(Raw!$D:$D,Avg_all!$A3,Raw!AG:AG),"") -> 0.4766647059 | X3: =IFERROR(AVERAGEIF(Raw!$D:$D,Avg_all!$A3,Raw!AH:AH),"") -> -0.5054823529 | Y3: =IFERROR(AVERAGEIF(Raw!$D:$D,Avg_all!$A3,Raw!AI:AI),"") -> 1.048776471 | Z3: =IFERROR(AVERAGEIF(Raw!$D:$D,Avg_all!$A3,Raw!AJ:AJ),"") -> 0.3379470588 | AA3: =IFERROR(AVERAGEIF(Raw!$D:$D,Avg_all!$A3,Raw!AK:AK),"") -> 0.03995882353
A4: 平衡--價值股票型 | B4: 平衡--價值股票型 | C4: =IFERROR(AVERAGEIF(Raw!$D:$D,Avg_all!$A4,Raw!E:E),"") -> 7.75 | D4: =IFERROR(AVERAGEIF(Raw!$D:$D,Avg_all!$A4,Raw!G:G),"") -> 9.826 | E4: =IFERROR(AVERAGEIF(Raw!$D:$D,Avg_all!$A4,Raw!I:I),"") -> 13.212 | F4: =IFERROR(AVERAGEIF(Raw!$D:$D,Avg_all!$A4,Raw!K:K),"") -> 28.786 | G4: =IFERROR(AVERAGEIF(Raw!$D:$D,Avg_all!$A4,Raw!M:M),"") -> 19.572 | H4: =IFERROR(AVERAGEIF(Raw!$D:$D,Avg_all!$A4,Raw!O:O),"") -> 47.042 | I4: =IFERROR(AVERAGEIF(Raw!$D:$D,Avg_all!$A4,Raw!Q:Q),"") -> 36.308 | J4: =IFERROR(AVERAGEIF(Raw!$D:$D,Avg_all!$A4,Raw!S:S),"") -> 14.42 | K4: =IFERROR(AVERAGEIF(Raw!$D:$D,Avg_all!$A4,Raw!U:U),"") -> 9.436 | L4: =IFERROR(AVERAGEIF(Raw!$D:$D,Avg_all!$A4,Raw!V:V),"") -> -10.52 | M4: =IFERROR(AVERAGEIF(Raw!$D:$D,Avg_all!$A4,Raw!W:W),"") -> 134.114 | N4: =IFERROR(AVERAGEIF(Raw!$D:$D,Avg_all!$A4,Raw!X:X),"") -> 6.01272 | O4: =IFERROR(AVERAGEIF(Raw!$D:$D,Avg_all!$A4,Raw!Y:Y),"") -> 0.4991 | P4: =IFERROR(AVERAGEIF(Raw!$D:$D,Avg_all!$A4,Raw!Z:Z),"") -> 0.53398 | Q4: =IFERROR(AVERAGEIF(Raw!$D:$D,Avg_all!$A4,Raw!AA:AA),"") -> 0.29126 | R4: =IFERROR(AVERAGEIF(Raw!$D:$D,Avg_all!$A4,Raw!AB:AB),"") -> 1.93604 | S4: =IFERROR(AVERAGEIF(Raw!$D:$D,Avg_all!$A4,Raw!AC:AC),"") -> 0.24884 | T4: =IFERROR(AVERAGEIF(Raw!$D:$D,Avg_all!$A4,Raw!AD:AD),"") -> -0.06426 | U4: =IFERROR(AVERAGEIF(Raw!$D:$D,Avg_all!$A4,Raw!AE:AE),"") -> 5.76652 | V4: =IFERROR(AVERAGEIF(Raw!$D:$D,Avg_all!$A4,Raw!AF:AF),"") -> 0.85636 | W4: =IFERROR(AVERAGEIF(Raw!$D:$D,Avg_all!$A4,Raw!AG:AG),"") -> 0.57364 | X4: =IFERROR(AVERAGEIF(Raw!$D:$D,Avg_all!$A4,Raw!AH:AH),"") -> -0.38428 | Y4: =IFERROR(AVERAGEIF(Raw!$D:$D,Avg_all!$A4,Raw!AI:AI),"") -> 1.07886 | Z4: =IFERROR(AVERAGEIF(Raw!$D:$D,Avg_all!$A4,Raw!AJ:AJ),"") -> 0.32068 | AA4: =IFERROR(AVERAGEIF(Raw!$D:$D,Avg_all!$A4,Raw!AK:AK),"") -> -0.03408
A5: 平衡--模組操作型 | B5: 平衡--模組操作型 | C5: =IFERROR(AVERAGEIF(Raw!$D:$D,Avg_all!$A5,Raw!E:E),"") -> 4.64 | D5: =IFERROR(AVERAGEIF(Raw!$D:$D,Avg_all!$A5,Raw!G:G),"") -> 6.25 | E5: =IFERROR(AVERAGEIF(Raw!$D:$D,Avg_all!$A5,Raw!I:I),"") -> 3.16 | F5: =IFERROR(AVERAGEIF(Raw!$D:$D,Avg_all!$A5,Raw!K:K),"") -> 6.52 | G5: =IFERROR(AVERAGEIF(Raw!$D:$D,Avg_all!$A5,Raw!M:M),"") -> 1.89 | H5: =IFERROR(AVERAGEIF(Raw!$D:$D,Avg_all!$A5,Raw!O:O),"") -> 12.51 | I5: =IFERROR(AVERAGEIF(Raw!$D:$D,Avg_all!$A5,Raw!Q:Q),"") -> 7.54 | J5: =IFERROR(AVERAGEIF(Raw!$D:$D,Avg_all!$A5,Raw!S:S),"") -> 5.35 | K5: =IFERROR(AVERAGEIF(Raw!$D:$D,Avg_all!$A5,Raw!U:U),"") -> 5.12 | L5: =IFERROR(AVERAGEIF(Raw!$D:$D,Avg_all!$A5,Raw!V:V),"") -> -2.79 | M5: =IFERROR(AVERAGEIF(Raw!$D:$D,Avg_all!$A5,Raw!W:W),"") -> 24.1 | N5: =IFERROR(AVERAGEIF(Raw!$D:$D,Avg_all!$A5,Raw!X:X),"") -> 4.1363 | O5: =IFERROR(AVERAGEIF(Raw!$D:$D,Avg_all!$A5,Raw!Y:Y),"") -> 0.2799 | P5: =IFERROR(AVERAGEIF(Raw!$D:$D,Avg_all!$A5,Raw!Z:Z),"") -> 0.1698 | Q5: =IFERROR(AVERAGEIF(Raw!$D:$D,Avg_all!$A5,Raw!AA:AA),"") -> -0.1851 | R5: =IFERROR(AVERAGEIF(Raw!$D:$D,Avg_all!$A5,Raw!AB:AB),"") -> 0.7244 | S5: =IFERROR(AVERAGEIF(Raw!$D:$D,Avg_all!$A5,Raw!AC:AC),"") -> -0.3878 | T5: =IFERROR(AVERAGEIF(Raw!$D:$D,Avg_all!$A5,Raw!AD:AD),"") ->  | U5: =IFERROR(AVERAGEIF(Raw!$D:$D,Avg_all!$A5,Raw!AE:AE),"") -> 3.8729 | V5: =IFERROR(AVERAGEIF(Raw!$D:$D,Avg_all!$A5,Raw!AF:AF),"") -> 0.4128 | W5: =IFERROR(AVERAGEIF(Raw!$D:$D,Avg_all!$A5,Raw!AG:AG),"") -> 0.1768 | X5: =IFERROR(AVERAGEIF(Raw!$D:$D,Avg_all!$A5,Raw!AH:AH),"") -> -0.4564 | Y5: =IFERROR(AVERAGEIF(Raw!$D:$D,Avg_all!$A5,Raw!AI:AI),"") -> 0.479 | Z5: =IFERROR(AVERAGEIF(Raw!$D:$D,Avg_all!$A5,Raw!AJ:AJ),"") -> -0.4005 | AA5: =IFERROR(AVERAGEIF(Raw!$D:$D,Avg_all!$A5,Raw!AK:AK),"") -> 
A6: 投資債--中國大陸 | B6: 投資債--中國大陸 | C6: =IFERROR(AVERAGEIF(Raw!$D:$D,Avg_all!$A6,Raw!E:E),"") -> 1.684117647 | D6: =IFERROR(AVERAGEIF(Raw!$D:$D,Avg_all!$A6,Raw!G:G),"") -> 1.995882353 | E6: =IFERROR(AVERAGEIF(Raw!$D:$D,Avg_all!$A6,Raw!I:I),"") -> 0.1929411765 | F6: =IFERROR(AVERAGEIF(Raw!$D:$D,Avg_all!$A6,Raw!K:K),"") -> 5.294117647 | G6: =IFERROR(AVERAGEIF(Raw!$D:$D,Avg_all!$A6,Raw!M:M),"") -> 5.85 | H6: =IFERROR(AVERAGEIF(Raw!$D:$D,Avg_all!$A6,Raw!O:O),"") -> 5.645 | I6: =IFERROR(AVERAGEIF(Raw!$D:$D,Avg_all!$A6,Raw!Q:Q),"") ->  | J6: =IFERROR(AVERAGEIF(Raw!$D:$D,Avg_all!$A6,Raw!S:S),"") -> 1.815882353 | K6: =IFERROR(AVERAGEIF(Raw!$D:$D,Avg_all!$A6,Raw!U:U),"") -> 3.85 | L6: =IFERROR(AVERAGEIF(Raw!$D:$D,Avg_all!$A6,Raw!V:V),"") -> -3.524705882 | M6: =IFERROR(AVERAGEIF(Raw!$D:$D,Avg_all!$A6,Raw!W:W),"") -> 8.511176471 | N6: =IFERROR(AVERAGEIF(Raw!$D:$D,Avg_all!$A6,Raw!X:X),"") -> 3.308929412 | O6: =IFERROR(AVERAGEIF(Raw!$D:$D,Avg_all!$A6,Raw!Y:Y),"") ->  | P6: =IFERROR(AVERAGEIF(Raw!$D:$D,Avg_all!$A6,Raw!Z:Z),"") -> 0.1928 | Q6: =IFERROR(AVERAGEIF(Raw!$D:$D,Avg_all!$A6,Raw!AA:AA),"") ->  | R6: =IFERROR(AVERAGEIF(Raw!$D:$D,Avg_all!$A6,Raw!AB:AB),"") ->  | S6: =IFERROR(AVERAGEIF(Raw!$D:$D,Avg_all!$A6,Raw!AC:AC),"") -> -0.07797647059 | T6: =IFERROR(AVERAGEIF(Raw!$D:$D,Avg_all!$A6,Raw!AD:AD),"") -> 0.07511176471 | U6: =IFERROR(AVERAGEIF(Raw!$D:$D,Avg_all!$A6,Raw!AE:AE),"") -> 2.987735294 | V6: =IFERROR(AVERAGEIF(Raw!$D:$D,Avg_all!$A6,Raw!AF:AF),"") ->  | W6: =IFERROR(AVERAGEIF(Raw!$D:$D,Avg_all!$A6,Raw!AG:AG),"") -> -0.01948235294 | X6: =IFERROR(AVERAGEIF(Raw!$D:$D,Avg_all!$A6,Raw!AH:AH),"") ->  | Y6: =IFERROR(AVERAGEIF(Raw!$D:$D,Avg_all!$A6,Raw!AI:AI),"") ->  | Z6: =IFERROR(AVERAGEIF(Raw!$D:$D,Avg_all!$A6,Raw!AJ:AJ),"") -> -0.08706470588 | AA6: =IFERROR(AVERAGEIF(Raw!$D:$D,Avg_all!$A6,Raw!AK:AK),"") -> 0.05855882353
A7: 投資債--全球 | B7: 投資債--全球 | C7: =IFERROR(AVERAGEIF(Raw!$D:$D,Avg_all!$A7,Raw!E:E),"") -> 1.29 | D7: =IFERROR(AVERAGEIF(Raw!$D:$D,Avg_all!$A7,Raw!G:G),"") -> 2.298846154 | E7: =IFERROR(AVERAGEIF(Raw!$D:$D,Avg_all!$A7,Raw!I:I),"") -> -1.556 | F7: =IFERROR(AVERAGEIF(Raw!$D:$D,Avg_all!$A7,Raw!K:K),"") -> 1.617857143 | G7: =IFERROR(AVERAGEIF(Raw!$D:$D,Avg_all!$A7,Raw!M:M),"") -> -1.4725 | H7: =IFERROR(AVERAGEIF(Raw!$D:$D,Avg_all!$A7,Raw!O:O),"") -> -0.4911111111 | I7: =IFERROR(AVERAGEIF(Raw!$D:$D,Avg_all!$A7,Raw!Q:Q),"") -> 16.04333333 | J7: =IFERROR(AVERAGEIF(Raw!$D:$D,Avg_all!$A7,Raw!S:S),"") -> 2.085384615 | K7: =IFERROR(AVERAGEIF(Raw!$D:$D,Avg_all!$A7,Raw!U:U),"") -> 3.359230769 | L7: =IFERROR(AVERAGEIF(Raw!$D:$D,Avg_all!$A7,Raw!V:V),"") -> -3.440384615 | M7: =IFERROR(AVERAGEIF(Raw!$D:$D,Avg_all!$A7,Raw!W:W),"") -> 5.186538462 | N7: =IFERROR(AVERAGEIF(Raw!$D:$D,Avg_all!$A7,Raw!X:X),"") -> 3.280578571 | O7: =IFERROR(AVERAGEIF(Raw!$D:$D,Avg_all!$A7,Raw!Y:Y),"") ->  | P7: =IFERROR(AVERAGEIF(Raw!$D:$D,Avg_all!$A7,Raw!Z:Z),"") -> -0.03162142857 | Q7: =IFERROR(AVERAGEIF(Raw!$D:$D,Avg_all!$A7,Raw!AA:AA),"") ->  | R7: =IFERROR(AVERAGEIF(Raw!$D:$D,Avg_all!$A7,Raw!AB:AB),"") ->  | S7: =IFERROR(AVERAGEIF(Raw!$D:$D,Avg_all!$A7,Raw!AC:AC),"") -> -0.4153571429 | T7: =IFERROR(AVERAGEIF(Raw!$D:$D,Avg_all!$A7,Raw!AD:AD),"") -> -0.1098928571 | U7: =IFERROR(AVERAGEIF(Raw!$D:$D,Avg_all!$A7,Raw!AE:AE),"") -> 3.618075 | V7: =IFERROR(AVERAGEIF(Raw!$D:$D,Avg_all!$A7,Raw!AF:AF),"") ->  | W7: =IFERROR(AVERAGEIF(Raw!$D:$D,Avg_all!$A7,Raw!AG:AG),"") -> -0.2271157895 | X7: =IFERROR(AVERAGEIF(Raw!$D:$D,Avg_all!$A7,Raw!AH:AH),"") ->  | Y7: =IFERROR(AVERAGEIF(Raw!$D:$D,Avg_all!$A7,Raw!AI:AI),"") ->  | Z7: =IFERROR(AVERAGEIF(Raw!$D:$D,Avg_all!$A7,Raw!AJ:AJ),"") -> -0.45163 | AA7: =IFERROR(AVERAGEIF(Raw!$D:$D,Avg_all!$A7,Raw!AK:AK),"") -> -0.139855
A8: 投資債--全球新興 | B8: 投資債--全球新興 | C8: =IFERROR(AVERAGEIF(Raw!$D:$D,Avg_all!$A8,Raw!E:E),"") -> 1.8646 | D8: =IFERROR(AVERAGEIF(Raw!$D:$D,Avg_all!$A8,Raw!G:G),"") -> 2.9084 | E8: =IFERROR(AVERAGEIF(Raw!$D:$D,Avg_all!$A8,Raw!I:I),"") -> 2.8525 | F8: =IFERROR(AVERAGEIF(Raw!$D:$D,Avg_all!$A8,Raw!K:K),"") -> 9.132631579 | G8: =IFERROR(AVERAGEIF(Raw!$D:$D,Avg_all!$A8,Raw!M:M),"") -> 6.089 | H8: =IFERROR(AVERAGEIF(Raw!$D:$D,Avg_all!$A8,Raw!O:O),"") -> 8.365 | I8: =IFERROR(AVERAGEIF(Raw!$D:$D,Avg_all!$A8,Raw!Q:Q),"") ->  | J8: =IFERROR(AVERAGEIF(Raw!$D:$D,Avg_all!$A8,Raw!S:S),"") -> 4.5308 | K8: =IFERROR(AVERAGEIF(Raw!$D:$D,Avg_all!$A8,Raw!U:U),"") -> 4.6024 | L8: =IFERROR(AVERAGEIF(Raw!$D:$D,Avg_all!$A8,Raw!V:V),"") -> -3.7348 | M8: =IFERROR(AVERAGEIF(Raw!$D:$D,Avg_all!$A8,Raw!W:W),"") -> 6.665584416 | N8: =IFERROR(AVERAGEIF(Raw!$D:$D,Avg_all!$A8,Raw!X:X),"") -> 4.425442105 | O8: =IFERROR(AVERAGEIF(Raw!$D:$D,Avg_all!$A8,Raw!Y:Y),"") ->  | P8: =IFERROR(AVERAGEIF(Raw!$D:$D,Avg_all!$A8,Raw!Z:Z),"") -> 0.2605236842 | Q8: =IFERROR(AVERAGEIF(Raw!$D:$D,Avg_all!$A8,Raw!AA:AA),"") ->  | R8: =IFERROR(AVERAGEIF(Raw!$D:$D,Avg_all!$A8,Raw!AB:AB),"") ->  | S8: =IFERROR(AVERAGEIF(Raw!$D:$D,Avg_all!$A8,Raw!AC:AC),"") -> 0.009339473684 | T8: =IFERROR(AVERAGEIF(Raw!$D:$D,Avg_all!$A8,Raw!AD:AD),"") -> -0.08503947368 | U8: =IFERROR(AVERAGEIF(Raw!$D:$D,Avg_all!$A8,Raw!AE:AE),"") -> 3.710833333 | V8: =IFERROR(AVERAGEIF(Raw!$D:$D,Avg_all!$A8,Raw!AF:AF),"") ->  | W8: =IFERROR(AVERAGEIF(Raw!$D:$D,Avg_all!$A8,Raw!AG:AG),"") -> 0.1595041667 | X8: =IFERROR(AVERAGEIF(Raw!$D:$D,Avg_all!$A8,Raw!AH:AH),"") ->  | Y8: =IFERROR(AVERAGEIF(Raw!$D:$D,Avg_all!$A8,Raw!AI:AI),"") ->  | Z8: =IFERROR(AVERAGEIF(Raw!$D:$D,Avg_all!$A8,Raw!AJ:AJ),"") -> 0.12028125 | AA8: =IFERROR(AVERAGEIF(Raw!$D:$D,Avg_all!$A8,Raw!AK:AK),"") -> -0.07152083333
A9: 投資債--其他 | B9: 投資債--其他 | C9: =IFERROR(AVERAGEIF(Raw!$D:$D,Avg_all!$A9,Raw!E:E),"") -> 1.651666667 | D9: =IFERROR(AVERAGEIF(Raw!$D:$D,Avg_all!$A9,Raw!G:G),"") -> 2.47125 | E9: =IFERROR(AVERAGEIF(Raw!$D:$D,Avg_all!$A9,Raw!I:I),"") -> 1.1975 | F9: =IFERROR(AVERAGEIF(Raw!$D:$D,Avg_all!$A9,Raw!K:K),"") -> 7.125384615 | G9: =IFERROR(AVERAGEIF(Raw!$D:$D,Avg_all!$A9,Raw!M:M),"") -> 3.709 | H9: =IFERROR(AVERAGEIF(Raw!$D:$D,Avg_all!$A9,Raw!O:O),"") -> 8.095 | I9: =IFERROR(AVERAGEIF(Raw!$D:$D,Avg_all!$A9,Raw!Q:Q),"") ->  | J9: =IFERROR(AVERAGEIF(Raw!$D:$D,Avg_all!$A9,Raw!S:S),"") -> 2.693125 | K9: =IFERROR(AVERAGEIF(Raw!$D:$D,Avg_all!$A9,Raw!U:U),"") -> 3.630555556 | L9: =IFERROR(AVERAGEIF(Raw!$D:$D,Avg_all!$A9,Raw!V:V),"") -> -3.281666667 | M9: =IFERROR(AVERAGEIF(Raw!$D:$D,Avg_all!$A9,Raw!W:W),"") -> 5.947727273 | N9: =IFERROR(AVERAGEIF(Raw!$D:$D,Avg_all!$A9,Raw!X:X),"") -> 3.535284615 | O9: =IFERROR(AVERAGEIF(Raw!$D:$D,Avg_all!$A9,Raw!Y:Y),"") ->  | P9: =IFERROR(AVERAGEIF(Raw!$D:$D,Avg_all!$A9,Raw!Z:Z),"") -> 0.2715769231 | Q9: =IFERROR(AVERAGEIF(Raw!$D:$D,Avg_all!$A9,Raw!AA:AA),"") ->  | R9: =IFERROR(AVERAGEIF(Raw!$D:$D,Avg_all!$A9,Raw!AB:AB),"") ->  | S9: =IFERROR(AVERAGEIF(Raw!$D:$D,Avg_all!$A9,Raw!AC:AC),"") -> -0.04318461538 | T9: =IFERROR(AVERAGEIF(Raw!$D:$D,Avg_all!$A9,Raw!AD:AD),"") -> -0.07956153846 | U9: =IFERROR(AVERAGEIF(Raw!$D:$D,Avg_all!$A9,Raw!AE:AE),"") -> 3.24855625 | V9: =IFERROR(AVERAGEIF(Raw!$D:$D,Avg_all!$A9,Raw!AF:AF),"") ->  | W9: =IFERROR(AVERAGEIF(Raw!$D:$D,Avg_all!$A9,Raw!AG:AG),"") -> 0.121925 | X9: =IFERROR(AVERAGEIF(Raw!$D:$D,Avg_all!$A9,Raw!AH:AH),"") ->  | Y9: =IFERROR(AVERAGEIF(Raw!$D:$D,Avg_all!$A9,Raw!AI:AI),"") ->  | Z9: =IFERROR(AVERAGEIF(Raw!$D:$D,Avg_all!$A9,Raw!AJ:AJ),"") -> 0.0245875 | AA9: =IFERROR(AVERAGEIF(Raw!$D:$D,Avg_all!$A9,Raw!AK:AK),"") -> -0.00369375
A10: 投資債--美國 | B10: 投資債--美國 | C10: =IFERROR(AVERAGEIF(Raw!$D:$D,Avg_all!$A10,Raw!E:E),"") -> 0.51 | D10: =IFERROR(AVERAGEIF(Raw!$D:$D,Avg_all!$A10,Raw!G:G),"") -> 0.795 | E10: =IFERROR(AVERAGEIF(Raw!$D:$D,Avg_all!$A10,Raw!I:I),"") -> -2.335 | F10: =IFERROR(AVERAGEIF(Raw!$D:$D,Avg_all!$A10,Raw!K:K),"") -> 2.64 | G10: =IFERROR(AVERAGEIF(Raw!$D:$D,Avg_all!$A10,Raw!M:M),"") -> 2.65 | H10: =IFERROR(AVERAGEIF(Raw!$D:$D,Avg_all!$A10,Raw!O:O),"") -> 4.115 | I10: =IFERROR(AVERAGEIF(Raw!$D:$D,Avg_all!$A10,Raw!Q:Q),"") -> 16.48 | J10: =IFERROR(AVERAGEIF(Raw!$D:$D,Avg_all!$A10,Raw!S:S),"") -> 0.34 | K10: =IFERROR(AVERAGEIF(Raw!$D:$D,Avg_all!$A10,Raw!U:U),"") -> 3.18 | L10: =IFERROR(AVERAGEIF(Raw!$D:$D,Avg_all!$A10,Raw!V:V),"") -> -3.2 | M10: =IFERROR(AVERAGEIF(Raw!$D:$D,Avg_all!$A10,Raw!W:W),"") -> 18.22 | N10: =IFERROR(AVERAGEIF(Raw!$D:$D,Avg_all!$A10,Raw!X:X),"") -> 2.92085 | O10: =IFERROR(AVERAGEIF(Raw!$D:$D,Avg_all!$A10,Raw!Y:Y),"") ->  | P10: =IFERROR(AVERAGEIF(Raw!$D:$D,Avg_all!$A10,Raw!Z:Z),"") -> 0.0527 | Q10: =IFERROR(AVERAGEIF(Raw!$D:$D,Avg_all!$A10,Raw!AA:AA),"") ->  | R10: =IFERROR(AVERAGEIF(Raw!$D:$D,Avg_all!$A10,Raw!AB:AB),"") ->  | S10: =IFERROR(AVERAGEIF(Raw!$D:$D,Avg_all!$A10,Raw!AC:AC),"") -> -0.4798 | T10: =IFERROR(AVERAGEIF(Raw!$D:$D,Avg_all!$A10,Raw!AD:AD),"") -> 0 | U10: =IFERROR(AVERAGEIF(Raw!$D:$D,Avg_all!$A10,Raw!AE:AE),"") -> 3.0733 | V10: =IFERROR(AVERAGEIF(Raw!$D:$D,Avg_all!$A10,Raw!AF:AF),"") ->  | W10: =IFERROR(AVERAGEIF(Raw!$D:$D,Avg_all!$A10,Raw!AG:AG),"") -> -0.29365 | X10: =IFERROR(AVERAGEIF(Raw!$D:$D,Avg_all!$A10,Raw!AH:AH),"") ->  | Y10: =IFERROR(AVERAGEIF(Raw!$D:$D,Avg_all!$A10,Raw!AI:AI),"") ->  | Z10: =IFERROR(AVERAGEIF(Raw!$D:$D,Avg_all!$A10,Raw!AJ:AJ),"") -> -0.9478 | AA10: =IFERROR(AVERAGEIF(Raw!$D:$D,Avg_all!$A10,Raw!AK:AK),"") -> 0
A11: 投資債--短期 | B11: 投資債--短期 | C11: =IFERROR(AVERAGEIF(Raw!$D:$D,Avg_all!$A11,Raw!E:E),"") -> 1.874 | D11: =IFERROR(AVERAGEIF(Raw!$D:$D,Avg_all!$A11,Raw!G:G),"") -> 3.083 | E11: =IFERROR(AVERAGEIF(Raw!$D:$D,Avg_all!$A11,Raw!I:I),"") -> 3.101 | F11: =IFERROR(AVERAGEIF(Raw!$D:$D,Avg_all!$A11,Raw!K:K),"") -> 7.75 | G11: =IFERROR(AVERAGEIF(Raw!$D:$D,Avg_all!$A11,Raw!M:M),"") -> 9.3375 | H11: =IFERROR(AVERAGEIF(Raw!$D:$D,Avg_all!$A11,Raw!O:O),"") -> 9.263333333 | I11: =IFERROR(AVERAGEIF(Raw!$D:$D,Avg_all!$A11,Raw!Q:Q),"") -> 10.27 | J11: =IFERROR(AVERAGEIF(Raw!$D:$D,Avg_all!$A11,Raw!S:S),"") -> 3.65 | K11: =IFERROR(AVERAGEIF(Raw!$D:$D,Avg_all!$A11,Raw!U:U),"") -> 2.8 | L11: =IFERROR(AVERAGEIF(Raw!$D:$D,Avg_all!$A11,Raw!V:V),"") -> -1.617 | M11: =IFERROR(AVERAGEIF(Raw!$D:$D,Avg_all!$A11,Raw!W:W),"") -> 13.13 | N11: =IFERROR(AVERAGEIF(Raw!$D:$D,Avg_all!$A11,Raw!X:X),"") -> 2.3828125 | O11: =IFERROR(AVERAGEIF(Raw!$D:$D,Avg_all!$A11,Raw!Y:Y),"") ->  | P11: =IFERROR(AVERAGEIF(Raw!$D:$D,Avg_all!$A11,Raw!Z:Z),"") -> 0.3875375 | Q11: =IFERROR(AVERAGEIF(Raw!$D:$D,Avg_all!$A11,Raw!AA:AA),"") ->  | R11: =IFERROR(AVERAGEIF(Raw!$D:$D,Avg_all!$A11,Raw!AB:AB),"") ->  | S11: =IFERROR(AVERAGEIF(Raw!$D:$D,Avg_all!$A11,Raw!AC:AC),"") -> -0.010825 | T11: =IFERROR(AVERAGEIF(Raw!$D:$D,Avg_all!$A11,Raw!AD:AD),"") -> -0.059525 | U11: =IFERROR(AVERAGEIF(Raw!$D:$D,Avg_all!$A11,Raw!AE:AE),"") -> 1.97042 | V11: =IFERROR(AVERAGEIF(Raw!$D:$D,Avg_all!$A11,Raw!AF:AF),"") ->  | W11: =IFERROR(AVERAGEIF(Raw!$D:$D,Avg_all!$A11,Raw!AG:AG),"") -> 0.48719 | X11: =IFERROR(AVERAGEIF(Raw!$D:$D,Avg_all!$A11,Raw!AH:AH),"") ->  | Y11: =IFERROR(AVERAGEIF(Raw!$D:$D,Avg_all!$A11,Raw!AI:AI),"") ->  | Z11: =IFERROR(AVERAGEIF(Raw!$D:$D,Avg_all!$A11,Raw!AJ:AJ),"") -> 0.23172 | AA11: =IFERROR(AVERAGEIF(Raw!$D:$D,Avg_all!$A11,Raw!AK:AK),"") -> -0.00554
A12: 投資債--新興亞洲 | B12: 投資債--新興亞洲 | C12: =IFERROR(AVERAGEIF(Raw!$D:$D,Avg_all!$A12,Raw!E:E),"") -> 1.528837209 | D12: =IFERROR(AVERAGEIF(Raw!$D:$D,Avg_all!$A12,Raw!G:G),"") -> 2.61097561 | E12: =IFERROR(AVERAGEIF(Raw!$D:$D,Avg_all!$A12,Raw!I:I),"") -> 1.650714286 | F12: =IFERROR(AVERAGEIF(Raw!$D:$D,Avg_all!$A12,Raw!K:K),"") -> 6.832857143 | G12: =IFERROR(AVERAGEIF(Raw!$D:$D,Avg_all!$A12,Raw!M:M),"") -> 6.073333333 | H12: =IFERROR(AVERAGEIF(Raw!$D:$D,Avg_all!$A12,Raw!O:O),"") -> 8.01375 | I12: =IFERROR(AVERAGEIF(Raw!$D:$D,Avg_all!$A12,Raw!Q:Q),"") ->  | J12: =IFERROR(AVERAGEIF(Raw!$D:$D,Avg_all!$A12,Raw!S:S),"") -> 3.978 | K12: =IFERROR(AVERAGEIF(Raw!$D:$D,Avg_all!$A12,Raw!U:U),"") -> 3.591627907 | L12: =IFERROR(AVERAGEIF(Raw!$D:$D,Avg_all!$A12,Raw!V:V),"") -> -1.677209302 | M12: =IFERROR(AVERAGEIF(Raw!$D:$D,Avg_all!$A12,Raw!W:W),"") -> 7.386727273 | N12: =IFERROR(AVERAGEIF(Raw!$D:$D,Avg_all!$A12,Raw!X:X),"") -> 2.8004 | O12: =IFERROR(AVERAGEIF(Raw!$D:$D,Avg_all!$A12,Raw!Y:Y),"") ->  | P12: =IFERROR(AVERAGEIF(Raw!$D:$D,Avg_all!$A12,Raw!Z:Z),"") -> 0.2466428571 | Q12: =IFERROR(AVERAGEIF(Raw!$D:$D,Avg_all!$A12,Raw!AA:AA),"") ->  | R12: =IFERROR(AVERAGEIF(Raw!$D:$D,Avg_all!$A12,Raw!AB:AB),"") ->  | S12: =IFERROR(AVERAGEIF(Raw!$D:$D,Avg_all!$A12,Raw!AC:AC),"") -> -0.08527857143 | T12: =IFERROR(AVERAGEIF(Raw!$D:$D,Avg_all!$A12,Raw!AD:AD),"") -> -0.4056714286 | U12: =IFERROR(AVERAGEIF(Raw!$D:$D,Avg_all!$A12,Raw!AE:AE),"") -> 3.526467857 | V12: =IFERROR(AVERAGEIF(Raw!$D:$D,Avg_all!$A12,Raw!AF:AF),"") ->  | W12: =IFERROR(AVERAGEIF(Raw!$D:$D,Avg_all!$A12,Raw!AG:AG),"") -> 0.06742142857 | X12: =IFERROR(AVERAGEIF(Raw!$D:$D,Avg_all!$A12,Raw!AH:AH),"") ->  | Y12: =IFERROR(AVERAGEIF(Raw!$D:$D,Avg_all!$A12,Raw!AI:AI),"") ->  | Z12: =IFERROR(AVERAGEIF(Raw!$D:$D,Avg_all!$A12,Raw!AJ:AJ),"") -> -0.1792071429 | AA12: =IFERROR(AVERAGEIF(Raw!$D:$D,Avg_all!$A12,Raw!AK:AK),"") -> -0.007171428571
A13: 固定收益 | B13: 固定收益 | C13: =IFERROR(AVERAGEIF(Raw!$D:$D,Avg_all!$A13,Raw!E:E),"") -> 0.11 | D13: =IFERROR(AVERAGEIF(Raw!$D:$D,Avg_all!$A13,Raw!G:G),"") -> 0.21 | E13: =IFERROR(AVERAGEIF(Raw!$D:$D,Avg_all!$A13,Raw!I:I),"") -> -0.1 | F13: =IFERROR(AVERAGEIF(Raw!$D:$D,Avg_all!$A13,Raw!K:K),"") -> 0.93 | G13: =IFERROR(AVERAGEIF(Raw!$D:$D,Avg_all!$A13,Raw!M:M),"") -> 1.93 | H13: =IFERROR(AVERAGEIF(Raw!$D:$D,Avg_all!$A13,Raw!O:O),"") -> 2.97 | I13: =IFERROR(AVERAGEIF(Raw!$D:$D,Avg_all!$A13,Raw!Q:Q),"") -> 8.81 | J13: =IFERROR(AVERAGEIF(Raw!$D:$D,Avg_all!$A13,Raw!S:S),"") -> 0.36 | K13: =IFERROR(AVERAGEIF(Raw!$D:$D,Avg_all!$A13,Raw!U:U),"") -> 0.44 | L13: =IFERROR(AVERAGEIF(Raw!$D:$D,Avg_all!$A13,Raw!V:V),"") -> -0.44 | M13: =IFERROR(AVERAGEIF(Raw!$D:$D,Avg_all!$A13,Raw!W:W),"") -> 54.8 | N13: =IFERROR(AVERAGEIF(Raw!$D:$D,Avg_all!$A13,Raw!X:X),"") -> 0.2992 | O13: =IFERROR(AVERAGEIF(Raw!$D:$D,Avg_all!$A13,Raw!Y:Y),"") ->  | P13: =IFERROR(AVERAGEIF(Raw!$D:$D,Avg_all!$A13,Raw!Z:Z),"") -> -0.337 | Q13: =IFERROR(AVERAGEIF(Raw!$D:$D,Avg_all!$A13,Raw!AA:AA),"") ->  | R13: =IFERROR(AVERAGEIF(Raw!$D:$D,Avg_all!$A13,Raw!AB:AB),"") ->  | S13: =IFERROR(AVERAGEIF(Raw!$D:$D,Avg_all!$A13,Raw!AC:AC),"") ->  | T13: =IFERROR(AVERAGEIF(Raw!$D:$D,Avg_all!$A13,Raw!AD:AD),"") ->  | U13: =IFERROR(AVERAGEIF(Raw!$D:$D,Avg_all!$A13,Raw!AE:AE),"") -> 0.3232 | V13: =IFERROR(AVERAGEIF(Raw!$D:$D,Avg_all!$A13,Raw!AF:AF),"") ->  | W13: =IFERROR(AVERAGEIF(Raw!$D:$D,Avg_all!$A13,Raw!AG:AG),"") -> -0.8084 | X13: =IFERROR(AVERAGEIF(Raw!$D:$D,Avg_all!$A13,Raw!AH:AH),"") ->  | Y13: =IFERROR(AVERAGEIF(Raw!$D:$D,Avg_all!$A13,Raw!AI:AI),"") ->  | Z13: =IFERROR(AVERAGEIF(Raw!$D:$D,Avg_all!$A13,Raw!AJ:AJ),"") ->  | AA13: =IFERROR(AVERAGEIF(Raw!$D:$D,Avg_all!$A13,Raw!AK:AK),"") -> 
A14: 保本型 | B14: 保本型 | C14: =IFERROR(AVERAGEIF(Raw!$D:$D,Avg_all!$A14,Raw!E:E),"") -> 1.007272727 | D14: =IFERROR(AVERAGEIF(Raw!$D:$D,Avg_all!$A14,Raw!G:G),"") -> 3.26 | E14: =IFERROR(AVERAGEIF(Raw!$D:$D,Avg_all!$A14,Raw!I:I),"") -> 3.633636364 | F14: =IFERROR(AVERAGEIF(Raw!$D:$D,Avg_all!$A14,Raw!K:K),"") -> 12.103 | G14: =IFERROR(AVERAGEIF(Raw!$D:$D,Avg_all!$A14,Raw!M:M),"") -> 20.66875 | H14: =IFERROR(AVERAGEIF(Raw!$D:$D,Avg_all!$A14,Raw!O:O),"") ->  | I14: =IFERROR(AVERAGEIF(Raw!$D:$D,Avg_all!$A14,Raw!Q:Q),"") ->  | J14: =IFERROR(AVERAGEIF(Raw!$D:$D,Avg_all!$A14,Raw!S:S),"") -> 4.71 | K14: =IFERROR(AVERAGEIF(Raw!$D:$D,Avg_all!$A14,Raw!U:U),"") -> 4.706363636 | L14: =IFERROR(AVERAGEIF(Raw!$D:$D,Avg_all!$A14,Raw!V:V),"") -> -2.412727273 | M14: =IFERROR(AVERAGEIF(Raw!$D:$D,Avg_all!$A14,Raw!W:W),"") -> 19.49636364 | N14: =IFERROR(AVERAGEIF(Raw!$D:$D,Avg_all!$A14,Raw!X:X),"") -> 2.99785 | O14: =IFERROR(AVERAGEIF(Raw!$D:$D,Avg_all!$A14,Raw!Y:Y),"") -> 0.03942 | P14: =IFERROR(AVERAGEIF(Raw!$D:$D,Avg_all!$A14,Raw!Z:Z),"") -> 0.46928 | Q14: =IFERROR(AVERAGEIF(Raw!$D:$D,Avg_all!$A14,Raw!AA:AA),"") -> 0.32386 | R14: =IFERROR(AVERAGEIF(Raw!$D:$D,Avg_all!$A14,Raw!AB:AB),"") -> -3.37412 | S14: =IFERROR(AVERAGEIF(Raw!$D:$D,Avg_all!$A14,Raw!AC:AC),"") -> -0.01545 | T14: =IFERROR(AVERAGEIF(Raw!$D:$D,Avg_all!$A14,Raw!AD:AD),"") -> -0.01545 | U14: =IFERROR(AVERAGEIF(Raw!$D:$D,Avg_all!$A14,Raw!AE:AE),"") -> 2.292209091 | V14: =IFERROR(AVERAGEIF(Raw!$D:$D,Avg_all!$A14,Raw!AF:AF),"") -> 0.2598363636 | W14: =IFERROR(AVERAGEIF(Raw!$D:$D,Avg_all!$A14,Raw!AG:AG),"") -> 0.5628090909 | X14: =IFERROR(AVERAGEIF(Raw!$D:$D,Avg_all!$A14,Raw!AH:AH),"") -> -0.1567 | Y14: =IFERROR(AVERAGEIF(Raw!$D:$D,Avg_all!$A14,Raw!AI:AI),"") -> 3.760718182 | Z14: =IFERROR(AVERAGEIF(Raw!$D:$D,Avg_all!$A14,Raw!AJ:AJ),"") -> -0.1299454545 | AA14: =IFERROR(AVERAGEIF(Raw!$D:$D,Avg_all!$A14,Raw!AK:AK),"") -> -0.1299454545
A15: 海外貨幣市場 | B15: 海外貨幣市場 | C15: =IFERROR(AVERAGEIF(Raw!$D:$D,Avg_all!$A15,Raw!E:E),"") -> 1.886785714 | D15: =IFERROR(AVERAGEIF(Raw!$D:$D,Avg_all!$A15,Raw!G:G),"") -> 2.166428571 | E15: =IFERROR(AVERAGEIF(Raw!$D:$D,Avg_all!$A15,Raw!I:I),"") -> 1.701304348 | F15: =IFERROR(AVERAGEIF(Raw!$D:$D,Avg_all!$A15,Raw!K:K),"") -> 2.168421053 | G15: =IFERROR(AVERAGEIF(Raw!$D:$D,Avg_all!$A15,Raw!M:M),"") -> 6.97875 | H15: =IFERROR(AVERAGEIF(Raw!$D:$D,Avg_all!$A15,Raw!O:O),"") ->  | I15: =IFERROR(AVERAGEIF(Raw!$D:$D,Avg_all!$A15,Raw!Q:Q),"") ->  | J15: =IFERROR(AVERAGEIF(Raw!$D:$D,Avg_all!$A15,Raw!S:S),"") -> 1.664615385 | K15: =IFERROR(AVERAGEIF(Raw!$D:$D,Avg_all!$A15,Raw!U:U),"") -> 2.430714286 | L15: =IFERROR(AVERAGEIF(Raw!$D:$D,Avg_all!$A15,Raw!V:V),"") -> -1.792142857 | M15: =IFERROR(AVERAGEIF(Raw!$D:$D,Avg_all!$A15,Raw!W:W),"") -> 3.169285714 | N15: =IFERROR(AVERAGEIF(Raw!$D:$D,Avg_all!$A15,Raw!X:X),"") -> 2.282873684 | O15: =IFERROR(AVERAGEIF(Raw!$D:$D,Avg_all!$A15,Raw!Y:Y),"") ->  | P15: =IFERROR(AVERAGEIF(Raw!$D:$D,Avg_all!$A15,Raw!Z:Z),"") -> 1.518421053 | Q15: =IFERROR(AVERAGEIF(Raw!$D:$D,Avg_all!$A15,Raw!AA:AA),"") ->  | R15: =IFERROR(AVERAGEIF(Raw!$D:$D,Avg_all!$A15,Raw!AB:AB),"") ->  | S15: =IFERROR(AVERAGEIF(Raw!$D:$D,Avg_all!$A15,Raw!AC:AC),"") -> 0.5219578947 | T15: =IFERROR(AVERAGEIF(Raw!$D:$D,Avg_all!$A15,Raw!AD:AD),"") -> 0.09477894737 | U15: =IFERROR(AVERAGEIF(Raw!$D:$D,Avg_all!$A15,Raw!AE:AE),"") -> 2.224843478 | V15: =IFERROR(AVERAGEIF(Raw!$D:$D,Avg_all!$A15,Raw!AF:AF),"") ->  | W15: =IFERROR(AVERAGEIF(Raw!$D:$D,Avg_all!$A15,Raw!AG:AG),"") -> 1.600113043 | X15: =IFERROR(AVERAGEIF(Raw!$D:$D,Avg_all!$A15,Raw!AH:AH),"") ->  | Y15: =IFERROR(AVERAGEIF(Raw!$D:$D,Avg_all!$A15,Raw!AI:AI),"") ->  | Z15: =IFERROR(AVERAGEIF(Raw!$D:$D,Avg_all!$A15,Raw!AJ:AJ),"") -> 0.4177956522 | AA15: =IFERROR(AVERAGEIF(Raw!$D:$D,Avg_all!$A15,Raw!AK:AK),"") -> 0.03985217391
A16: 高收債--中國大陸 | B16: 高收債--中國大陸 | C16: =IFERROR(AVERAGEIF(Raw!$D:$D,Avg_all!$A16,Raw!E:E),"") -> 1.503272727 | D16: =IFERROR(AVERAGEIF(Raw!$D:$D,Avg_all!$A16,Raw!G:G),"") -> 2.304909091 | E16: =IFERROR(AVERAGEIF(Raw!$D:$D,Avg_all!$A16,Raw!I:I),"") -> 2.166363636 | F16: =IFERROR(AVERAGEIF(Raw!$D:$D,Avg_all!$A16,Raw!K:K),"") -> 9.98925 | G16: =IFERROR(AVERAGEIF(Raw!$D:$D,Avg_all!$A16,Raw!M:M),"") -> 7.443333333 | H16: =IFERROR(AVERAGEIF(Raw!$D:$D,Avg_all!$A16,Raw!O:O),"") -> 15.98285714 | I16: =IFERROR(AVERAGEIF(Raw!$D:$D,Avg_all!$A16,Raw!Q:Q),"") ->  | J16: =IFERROR(AVERAGEIF(Raw!$D:$D,Avg_all!$A16,Raw!S:S),"") -> 3.096181818 | K16: =IFERROR(AVERAGEIF(Raw!$D:$D,Avg_all!$A16,Raw!U:U),"") -> 4.365090909 | L16: =IFERROR(AVERAGEIF(Raw!$D:$D,Avg_all!$A16,Raw!V:V),"") -> -3.323272727 | M16: =IFERROR(AVERAGEIF(Raw!$D:$D,Avg_all!$A16,Raw!W:W),"") -> 10.97618182 | N16: =IFERROR(AVERAGEIF(Raw!$D:$D,Avg_all!$A16,Raw!X:X),"") -> 3.8452775 | O16: =IFERROR(AVERAGEIF(Raw!$D:$D,Avg_all!$A16,Raw!Y:Y),"") ->  | P16: =IFERROR(AVERAGEIF(Raw!$D:$D,Avg_all!$A16,Raw!Z:Z),"") -> 0.3008275 | Q16: =IFERROR(AVERAGEIF(Raw!$D:$D,Avg_all!$A16,Raw!AA:AA),"") ->  | R16: =IFERROR(AVERAGEIF(Raw!$D:$D,Avg_all!$A16,Raw!AB:AB),"") ->  | S16: =IFERROR(AVERAGEIF(Raw!$D:$D,Avg_all!$A16,Raw!AC:AC),"") -> -0.053965 | T16: =IFERROR(AVERAGEIF(Raw!$D:$D,Avg_all!$A16,Raw!AD:AD),"") -> 0.0397975 | U16: =IFERROR(AVERAGEIF(Raw!$D:$D,Avg_all!$A16,Raw!AE:AE),"") -> 3.148189091 | V16: =IFERROR(AVERAGEIF(Raw!$D:$D,Avg_all!$A16,Raw!AF:AF),"") ->  | W16: =IFERROR(AVERAGEIF(Raw!$D:$D,Avg_all!$A16,Raw!AG:AG),"") -> 0.1479836364 | X16: =IFERROR(AVERAGEIF(Raw!$D:$D,Avg_all!$A16,Raw!AH:AH),"") ->  | Y16: =IFERROR(AVERAGEIF(Raw!$D:$D,Avg_all!$A16,Raw!AI:AI),"") ->  | Z16: =IFERROR(AVERAGEIF(Raw!$D:$D,Avg_all!$A16,Raw!AJ:AJ),"") -> -0.21074 | AA16: =IFERROR(AVERAGEIF(Raw!$D:$D,Avg_all!$A16,Raw!AK:AK),"") -> 0.01830363636
A17: 高收債--全球 | B17: 高收債--全球 | C17: =IFERROR(AVERAGEIF(Raw!$D:$D,Avg_all!$A17,Raw!E:E),"") -> 1.0764 | D17: =IFERROR(AVERAGEIF(Raw!$D:$D,Avg_all!$A17,Raw!G:G),"") -> 2.622747253 | E17: =IFERROR(AVERAGEIF(Raw!$D:$D,Avg_all!$A17,Raw!I:I),"") -> 6.626296296 | F17: =IFERROR(AVERAGEIF(Raw!$D:$D,Avg_all!$A17,Raw!K:K),"") -> 11.2969697 | G17: =IFERROR(AVERAGEIF(Raw!$D:$D,Avg_all!$A17,Raw!M:M),"") -> 1.563142857 | H17: =IFERROR(AVERAGEIF(Raw!$D:$D,Avg_all!$A17,Raw!O:O),"") -> 12.63785714 | I17: =IFERROR(AVERAGEIF(Raw!$D:$D,Avg_all!$A17,Raw!Q:Q),"") ->  | J17: =IFERROR(AVERAGEIF(Raw!$D:$D,Avg_all!$A17,Raw!S:S),"") -> 5.012 | K17: =IFERROR(AVERAGEIF(Raw!$D:$D,Avg_all!$A17,Raw!U:U),"") -> 6.3211 | L17: =IFERROR(AVERAGEIF(Raw!$D:$D,Avg_all!$A17,Raw!V:V),"") -> -4.4531 | M17: =IFERROR(AVERAGEIF(Raw!$D:$D,Avg_all!$A17,Raw!W:W),"") -> 11.62841584 | N17: =IFERROR(AVERAGEIF(Raw!$D:$D,Avg_all!$A17,Raw!X:X),"") -> 6.253666667 | O17: =IFERROR(AVERAGEIF(Raw!$D:$D,Avg_all!$A17,Raw!Y:Y),"") ->  | P17: =IFERROR(AVERAGEIF(Raw!$D:$D,Avg_all!$A17,Raw!Z:Z),"") -> 0.2119954545 | Q17: =IFERROR(AVERAGEIF(Raw!$D:$D,Avg_all!$A17,Raw!AA:AA),"") ->  | R17: =IFERROR(AVERAGEIF(Raw!$D:$D,Avg_all!$A17,Raw!AB:AB),"") ->  | S17: =IFERROR(AVERAGEIF(Raw!$D:$D,Avg_all!$A17,Raw!AC:AC),"") -> -0.06749242424 | T17: =IFERROR(AVERAGEIF(Raw!$D:$D,Avg_all!$A17,Raw!AD:AD),"") -> -0.0346030303 | U17: =IFERROR(AVERAGEIF(Raw!$D:$D,Avg_all!$A17,Raw!AE:AE),"") -> 2.959659259 | V17: =IFERROR(AVERAGEIF(Raw!$D:$D,Avg_all!$A17,Raw!AF:AF),"") ->  | W17: =IFERROR(AVERAGEIF(Raw!$D:$D,Avg_all!$A17,Raw!AG:AG),"") -> 0.5279814815 | X17: =IFERROR(AVERAGEIF(Raw!$D:$D,Avg_all!$A17,Raw!AH:AH),"") ->  | Y17: =IFERROR(AVERAGEIF(Raw!$D:$D,Avg_all!$A17,Raw!AI:AI),"") ->  | Z17: =IFERROR(AVERAGEIF(Raw!$D:$D,Avg_all!$A17,Raw!AJ:AJ),"") -> 0.3860839506 | AA17: =IFERROR(AVERAGEIF(Raw!$D:$D,Avg_all!$A17,Raw!AK:AK),"") -> 0.06952222222
A18: 高收債--亞洲 | B18: 高收債--亞洲 | C18: =IFERROR(AVERAGEIF(Raw!$D:$D,Avg_all!$A18,Raw!E:E),"") -> 1.247586207 | D18: =IFERROR(AVERAGEIF(Raw!$D:$D,Avg_all!$A18,Raw!G:G),"") -> 1.313035714 | E18: =IFERROR(AVERAGEIF(Raw!$D:$D,Avg_all!$A18,Raw!I:I),"") -> 3.198035714 | F18: =IFERROR(AVERAGEIF(Raw!$D:$D,Avg_all!$A18,Raw!K:K),"") -> 14.60033333 | G18: =IFERROR(AVERAGEIF(Raw!$D:$D,Avg_all!$A18,Raw!M:M),"") -> 10.13411765 | H18: =IFERROR(AVERAGEIF(Raw!$D:$D,Avg_all!$A18,Raw!O:O),"") -> 22.436 | I18: =IFERROR(AVERAGEIF(Raw!$D:$D,Avg_all!$A18,Raw!Q:Q),"") ->  | J18: =IFERROR(AVERAGEIF(Raw!$D:$D,Avg_all!$A18,Raw!S:S),"") -> 2.729642857 | K18: =IFERROR(AVERAGEIF(Raw!$D:$D,Avg_all!$A18,Raw!U:U),"") -> 5.120517241 | L18: =IFERROR(AVERAGEIF(Raw!$D:$D,Avg_all!$A18,Raw!V:V),"") -> -2.00862069 | M18: =IFERROR(AVERAGEIF(Raw!$D:$D,Avg_all!$A18,Raw!W:W),"") -> 17.98517241 | N18: =IFERROR(AVERAGEIF(Raw!$D:$D,Avg_all!$A18,Raw!X:X),"") -> 4.34963 | O18: =IFERROR(AVERAGEIF(Raw!$D:$D,Avg_all!$A18,Raw!Y:Y),"") ->  | P18: =IFERROR(AVERAGEIF(Raw!$D:$D,Avg_all!$A18,Raw!Z:Z),"") -> 0.39908 | Q18: =IFERROR(AVERAGEIF(Raw!$D:$D,Avg_all!$A18,Raw!AA:AA),"") ->  | R18: =IFERROR(AVERAGEIF(Raw!$D:$D,Avg_all!$A18,Raw!AB:AB),"") ->  | S18: =IFERROR(AVERAGEIF(Raw!$D:$D,Avg_all!$A18,Raw!AC:AC),"") -> 0.06293 | T18: =IFERROR(AVERAGEIF(Raw!$D:$D,Avg_all!$A18,Raw!AD:AD),"") -> -0.13286 | U18: =IFERROR(AVERAGEIF(Raw!$D:$D,Avg_all!$A18,Raw!AE:AE),"") -> 2.686475 | V18: =IFERROR(AVERAGEIF(Raw!$D:$D,Avg_all!$A18,Raw!AF:AF),"") ->  | W18: =IFERROR(AVERAGEIF(Raw!$D:$D,Avg_all!$A18,Raw!AG:AG),"") -> 0.2724071429 | X18: =IFERROR(AVERAGEIF(Raw!$D:$D,Avg_all!$A18,Raw!AH:AH),"") ->  | Y18: =IFERROR(AVERAGEIF(Raw!$D:$D,Avg_all!$A18,Raw!AI:AI),"") ->  | Z18: =IFERROR(AVERAGEIF(Raw!$D:$D,Avg_all!$A18,Raw!AJ:AJ),"") -> -0.1883071429 | AA18: =IFERROR(AVERAGEIF(Raw!$D:$D,Avg_all!$A18,Raw!AK:AK),"") -> 0.004703571429
A19: 高收債--新興市場 | B19: 高收債--新興市場 | C19: =IFERROR(AVERAGEIF(Raw!$D:$D,Avg_all!$A19,Raw!E:E),"") -> 1.863863636 | D19: =IFERROR(AVERAGEIF(Raw!$D:$D,Avg_all!$A19,Raw!G:G),"") -> 4.251428571 | E19: =IFERROR(AVERAGEIF(Raw!$D:$D,Avg_all!$A19,Raw!I:I),"") -> 5.865714286 | F19: =IFERROR(AVERAGEIF(Raw!$D:$D,Avg_all!$A19,Raw!K:K),"") -> 16.35333333 | G19: =IFERROR(AVERAGEIF(Raw!$D:$D,Avg_all!$A19,Raw!M:M),"") -> 3.160833333 | H19: =IFERROR(AVERAGEIF(Raw!$D:$D,Avg_all!$A19,Raw!O:O),"") -> 7.71125 | I19: =IFERROR(AVERAGEIF(Raw!$D:$D,Avg_all!$A19,Raw!Q:Q),"") ->  | J19: =IFERROR(AVERAGEIF(Raw!$D:$D,Avg_all!$A19,Raw!S:S),"") -> 6.703142857 | K19: =IFERROR(AVERAGEIF(Raw!$D:$D,Avg_all!$A19,Raw!U:U),"") -> 8.547727273 | L19: =IFERROR(AVERAGEIF(Raw!$D:$D,Avg_all!$A19,Raw!V:V),"") -> -5.4125 | M19: =IFERROR(AVERAGEIF(Raw!$D:$D,Avg_all!$A19,Raw!W:W),"") -> 13.74454545 | N19: =IFERROR(AVERAGEIF(Raw!$D:$D,Avg_all!$A19,Raw!X:X),"") -> 7.3686 | O19: =IFERROR(AVERAGEIF(Raw!$D:$D,Avg_all!$A19,Raw!Y:Y),"") ->  | P19: =IFERROR(AVERAGEIF(Raw!$D:$D,Avg_all!$A19,Raw!Z:Z),"") -> 0.2694222222 | Q19: =IFERROR(AVERAGEIF(Raw!$D:$D,Avg_all!$A19,Raw!AA:AA),"") ->  | R19: =IFERROR(AVERAGEIF(Raw!$D:$D,Avg_all!$A19,Raw!AB:AB),"") ->  | S19: =IFERROR(AVERAGEIF(Raw!$D:$D,Avg_all!$A19,Raw!AC:AC),"") -> 0.0936 | T19: =IFERROR(AVERAGEIF(Raw!$D:$D,Avg_all!$A19,Raw!AD:AD),"") -> 0.03496666667 | U19: =IFERROR(AVERAGEIF(Raw!$D:$D,Avg_all!$A19,Raw!AE:AE),"") -> 5.137922857 | V19: =IFERROR(AVERAGEIF(Raw!$D:$D,Avg_all!$A19,Raw!AF:AF),"") ->  | W19: =IFERROR(AVERAGEIF(Raw!$D:$D,Avg_all!$A19,Raw!AG:AG),"") -> 0.2885685714 | X19: =IFERROR(AVERAGEIF(Raw!$D:$D,Avg_all!$A19,Raw!AH:AH),"") ->  | Y19: =IFERROR(AVERAGEIF(Raw!$D:$D,Avg_all!$A19,Raw!AI:AI),"") ->  | Z19: =IFERROR(AVERAGEIF(Raw!$D:$D,Avg_all!$A19,Raw!AJ:AJ),"") -> 0.09907714286 | AA19: =IFERROR(AVERAGEIF(Raw!$D:$D,Avg_all!$A19,Raw!AK:AK),"") -> 0.07594571429
A20: 國內指數-一般ETF | B20: 國內指數-一般ETF | C20: =IFERROR(AVERAGEIF(Raw!$D:$D,Avg_all!$A20,Raw!E:E),"") -> 9.75375 | D20: =IFERROR(AVERAGEIF(Raw!$D:$D,Avg_all!$A20,Raw!G:G),"") -> 13.25142857 | E20: =IFERROR(AVERAGEIF(Raw!$D:$D,Avg_all!$A20,Raw!I:I),"") -> 21.40071429 | F20: =IFERROR(AVERAGEIF(Raw!$D:$D,Avg_all!$A20,Raw!K:K),"") -> 38.09571429 | G20: =IFERROR(AVERAGEIF(Raw!$D:$D,Avg_all!$A20,Raw!M:M),"") -> 22.96785714 | H20: =IFERROR(AVERAGEIF(Raw!$D:$D,Avg_all!$A20,Raw!O:O),"") -> 67.04285714 | I20: =IFERROR(AVERAGEIF(Raw!$D:$D,Avg_all!$A20,Raw!Q:Q),"") -> 48.37833333 | J20: =IFERROR(AVERAGEIF(Raw!$D:$D,Avg_all!$A20,Raw!S:S),"") -> 19.47928571 | K20: =IFERROR(AVERAGEIF(Raw!$D:$D,Avg_all!$A20,Raw!U:U),"") -> 12.431875 | L20: =IFERROR(AVERAGEIF(Raw!$D:$D,Avg_all!$A20,Raw!V:V),"") -> -11.515 | M20: =IFERROR(AVERAGEIF(Raw!$D:$D,Avg_all!$A20,Raw!W:W),"") -> 62.11882353 | N20: =IFERROR(AVERAGEIF(Raw!$D:$D,Avg_all!$A20,Raw!X:X),"") -> 9.896057143 | O20: =IFERROR(AVERAGEIF(Raw!$D:$D,Avg_all!$A20,Raw!Y:Y),"") -> 1.0517 | P20: =IFERROR(AVERAGEIF(Raw!$D:$D,Avg_all!$A20,Raw!Z:Z),"") -> 0.4665714286 | Q20: =IFERROR(AVERAGEIF(Raw!$D:$D,Avg_all!$A20,Raw!AA:AA),"") -> -0.14535 | R20: =IFERROR(AVERAGEIF(Raw!$D:$D,Avg_all!$A20,Raw!AB:AB),"") -> 1.240807143 | S20: =IFERROR(AVERAGEIF(Raw!$D:$D,Avg_all!$A20,Raw!AC:AC),"") -> 0.2833928571 | T20: =IFERROR(AVERAGEIF(Raw!$D:$D,Avg_all!$A20,Raw!AD:AD),"") -> 0.07338571429 | U20: =IFERROR(AVERAGEIF(Raw!$D:$D,Avg_all!$A20,Raw!AE:AE),"") -> 6.977778571 | V20: =IFERROR(AVERAGEIF(Raw!$D:$D,Avg_all!$A20,Raw!AF:AF),"") -> 1.110885714 | W20: =IFERROR(AVERAGEIF(Raw!$D:$D,Avg_all!$A20,Raw!AG:AG),"") -> 0.8314642857 | X20: =IFERROR(AVERAGEIF(Raw!$D:$D,Avg_all!$A20,Raw!AH:AH),"") -> -0.1821214286 | Y20: =IFERROR(AVERAGEIF(Raw!$D:$D,Avg_all!$A20,Raw!AI:AI),"") -> 2.486007143 | Z20: =IFERROR(AVERAGEIF(Raw!$D:$D,Avg_all!$A20,Raw!AJ:AJ),"") -> 0.4078571429 | AA20: =IFERROR(AVERAGEIF(Raw!$D:$D,Avg_all!$A20,Raw!AK:AK),"") -> 0.02338571429
A21: 國內指數-二倍ETF | B21: 國內指數-二倍ETF | C21: =IFERROR(AVERAGEIF(Raw!$D:$D,Avg_all!$A21,Raw!E:E),"") -> 17.87 | D21: =IFERROR(AVERAGEIF(Raw!$D:$D,Avg_all!$A21,Raw!G:G),"") -> 25.78333333 | E21: =IFERROR(AVERAGEIF(Raw!$D:$D,Avg_all!$A21,Raw!I:I),"") -> 49.59 | F21: =IFERROR(AVERAGEIF(Raw!$D:$D,Avg_all!$A21,Raw!K:K),"") -> 103.4 | G21: =IFERROR(AVERAGEIF(Raw!$D:$D,Avg_all!$A21,Raw!M:M),"") ->  | H21: =IFERROR(AVERAGEIF(Raw!$D:$D,Avg_all!$A21,Raw!O:O),"") ->  | I21: =IFERROR(AVERAGEIF(Raw!$D:$D,Avg_all!$A21,Raw!Q:Q),"") ->  | J21: =IFERROR(AVERAGEIF(Raw!$D:$D,Avg_all!$A21,Raw!S:S),"") -> 39.15333333 | K21: =IFERROR(AVERAGEIF(Raw!$D:$D,Avg_all!$A21,Raw!U:U),"") -> 19.1575 | L21: =IFERROR(AVERAGEIF(Raw!$D:$D,Avg_all!$A21,Raw!V:V),"") -> -2.2375 | M21: =IFERROR(AVERAGEIF(Raw!$D:$D,Avg_all!$A21,Raw!W:W),"") -> 40.1 | N21: =IFERROR(AVERAGEIF(Raw!$D:$D,Avg_all!$A21,Raw!X:X),"") -> 17.3884 | O21: =IFERROR(AVERAGEIF(Raw!$D:$D,Avg_all!$A21,Raw!Y:Y),"") -> 2.1217 | P21: =IFERROR(AVERAGEIF(Raw!$D:$D,Avg_all!$A21,Raw!Z:Z),"") -> 0.6085 | Q21: =IFERROR(AVERAGEIF(Raw!$D:$D,Avg_all!$A21,Raw!AA:AA),"") -> 0.1147 | R21: =IFERROR(AVERAGEIF(Raw!$D:$D,Avg_all!$A21,Raw!AB:AB),"") -> 1.4397 | S21: =IFERROR(AVERAGEIF(Raw!$D:$D,Avg_all!$A21,Raw!AC:AC),"") -> 0.7007 | T21: =IFERROR(AVERAGEIF(Raw!$D:$D,Avg_all!$A21,Raw!AD:AD),"") -> 0.144 | U21: =IFERROR(AVERAGEIF(Raw!$D:$D,Avg_all!$A21,Raw!AE:AE),"") -> 9.52035 | V21: =IFERROR(AVERAGEIF(Raw!$D:$D,Avg_all!$A21,Raw!AF:AF),"") -> 1.91605 | W21: =IFERROR(AVERAGEIF(Raw!$D:$D,Avg_all!$A21,Raw!AG:AG),"") -> 1.23055 | X21: =IFERROR(AVERAGEIF(Raw!$D:$D,Avg_all!$A21,Raw!AH:AH),"") -> 0.34265 | Y21: =IFERROR(AVERAGEIF(Raw!$D:$D,Avg_all!$A21,Raw!AI:AI),"") -> 1.7639 | Z21: =IFERROR(AVERAGEIF(Raw!$D:$D,Avg_all!$A21,Raw!AJ:AJ),"") -> 1.3373 | AA21: =IFERROR(AVERAGEIF(Raw!$D:$D,Avg_all!$A21,Raw!AK:AK),"") -> 0.20485
A22: 國內指數-反向ETF | B22: 國內指數-反向ETF | C22: =IFERROR(AVERAGEIF(Raw!$D:$D,Avg_all!$A22,Raw!E:E),"") -> -8.31 | D22: =IFERROR(AVERAGEIF(Raw!$D:$D,Avg_all!$A22,Raw!G:G),"") -> -11.59333333 | E22: =IFERROR(AVERAGEIF(Raw!$D:$D,Avg_all!$A22,Raw!I:I),"") -> -20.55 | F22: =IFERROR(AVERAGEIF(Raw!$D:$D,Avg_all!$A22,Raw!K:K),"") -> -36.15 | G22: =IFERROR(AVERAGEIF(Raw!$D:$D,Avg_all!$A22,Raw!M:M),"") ->  | H22: =IFERROR(AVERAGEIF(Raw!$D:$D,Avg_all!$A22,Raw!O:O),"") ->  | I22: =IFERROR(AVERAGEIF(Raw!$D:$D,Avg_all!$A22,Raw!Q:Q),"") ->  | J22: =IFERROR(AVERAGEIF(Raw!$D:$D,Avg_all!$A22,Raw!S:S),"") -> -16.41666667 | K22: =IFERROR(AVERAGEIF(Raw!$D:$D,Avg_all!$A22,Raw!U:U),"") -> -0.004 | L22: =IFERROR(AVERAGEIF(Raw!$D:$D,Avg_all!$A22,Raw!V:V),"") -> -8.838 | M22: =IFERROR(AVERAGEIF(Raw!$D:$D,Avg_all!$A22,Raw!W:W),"") -> -15.89166667 | N22: =IFERROR(AVERAGEIF(Raw!$D:$D,Avg_all!$A22,Raw!X:X),"") -> 7.999 | O22: =IFERROR(AVERAGEIF(Raw!$D:$D,Avg_all!$A22,Raw!Y:Y),"") -> -0.9539 | P22: =IFERROR(AVERAGEIF(Raw!$D:$D,Avg_all!$A22,Raw!Z:Z),"") -> -0.8202 | Q22: =IFERROR(AVERAGEIF(Raw!$D:$D,Avg_all!$A22,Raw!AA:AA),"") -> -0.5722 | R22: =IFERROR(AVERAGEIF(Raw!$D:$D,Avg_all!$A22,Raw!AB:AB),"") -> 1.9855 | S22: =IFERROR(AVERAGEIF(Raw!$D:$D,Avg_all!$A22,Raw!AC:AC),"") -> -0.6559 | T22: =IFERROR(AVERAGEIF(Raw!$D:$D,Avg_all!$A22,Raw!AD:AD),"") -> -0.2556 | U22: =IFERROR(AVERAGEIF(Raw!$D:$D,Avg_all!$A22,Raw!AE:AE),"") -> 4.1775 | V22: =IFERROR(AVERAGEIF(Raw!$D:$D,Avg_all!$A22,Raw!AF:AF),"") -> -0.84545 | W22: =IFERROR(AVERAGEIF(Raw!$D:$D,Avg_all!$A22,Raw!AG:AG),"") -> -1.6249 | X22: =IFERROR(AVERAGEIF(Raw!$D:$D,Avg_all!$A22,Raw!AH:AH),"") -> -0.61965 | Y22: =IFERROR(AVERAGEIF(Raw!$D:$D,Avg_all!$A22,Raw!AI:AI),"") -> 2.31765 | Z22: =IFERROR(AVERAGEIF(Raw!$D:$D,Avg_all!$A22,Raw!AJ:AJ),"") -> -1.33185 | AA22: =IFERROR(AVERAGEIF(Raw!$D:$D,Avg_all!$A22,Raw!AK:AK),"") -> -0.5023
A23: 國內指數-非ETF | B23: 國內指數-非ETF | C23: =IFERROR(AVERAGEIF(Raw!$D:$D,Avg_all!$A23,Raw!E:E),"") -> 9.41 | D23: =IFERROR(AVERAGEIF(Raw!$D:$D,Avg_all!$A23,Raw!G:G),"") -> 12.74 | E23: =IFERROR(AVERAGEIF(Raw!$D:$D,Avg_all!$A23,Raw!I:I),"") -> 21.1 | F23: =IFERROR(AVERAGEIF(Raw!$D:$D,Avg_all!$A23,Raw!K:K),"") -> 40.08 | G23: =IFERROR(AVERAGEIF(Raw!$D:$D,Avg_all!$A23,Raw!M:M),"") -> 26.81 | H23: =IFERROR(AVERAGEIF(Raw!$D:$D,Avg_all!$A23,Raw!O:O),"") -> 71.97 | I23: =IFERROR(AVERAGEIF(Raw!$D:$D,Avg_all!$A23,Raw!Q:Q),"") -> 58.22 | J23: =IFERROR(AVERAGEIF(Raw!$D:$D,Avg_all!$A23,Raw!S:S),"") -> 18.46 | K23: =IFERROR(AVERAGEIF(Raw!$D:$D,Avg_all!$A23,Raw!U:U),"") -> 10.68 | L23: =IFERROR(AVERAGEIF(Raw!$D:$D,Avg_all!$A23,Raw!V:V),"") -> -12.97 | M23: =IFERROR(AVERAGEIF(Raw!$D:$D,Avg_all!$A23,Raw!W:W),"") -> 142.53 | N23: =IFERROR(AVERAGEIF(Raw!$D:$D,Avg_all!$A23,Raw!X:X),"") -> 8.0851 | O23: =IFERROR(AVERAGEIF(Raw!$D:$D,Avg_all!$A23,Raw!Y:Y),"") -> 0.9994 | P23: =IFERROR(AVERAGEIF(Raw!$D:$D,Avg_all!$A23,Raw!Z:Z),"") -> 0.5881 | Q23: =IFERROR(AVERAGEIF(Raw!$D:$D,Avg_all!$A23,Raw!AA:AA),"") -> -0.0123 | R23: =IFERROR(AVERAGEIF(Raw!$D:$D,Avg_all!$A23,Raw!AB:AB),"") -> 1.3733 | S23: =IFERROR(AVERAGEIF(Raw!$D:$D,Avg_all!$A23,Raw!AC:AC),"") -> 0.902 | T23: =IFERROR(AVERAGEIF(Raw!$D:$D,Avg_all!$A23,Raw!AD:AD),"") -> 0.3938 | U23: =IFERROR(AVERAGEIF(Raw!$D:$D,Avg_all!$A23,Raw!AE:AE),"") -> 4.7228 | V23: =IFERROR(AVERAGEIF(Raw!$D:$D,Avg_all!$A23,Raw!AF:AF),"") -> 0.985 | W23: =IFERROR(AVERAGEIF(Raw!$D:$D,Avg_all!$A23,Raw!AG:AG),"") -> 1.136 | X23: =IFERROR(AVERAGEIF(Raw!$D:$D,Avg_all!$A23,Raw!AH:AH),"") -> -0.0122 | Y23: =IFERROR(AVERAGEIF(Raw!$D:$D,Avg_all!$A23,Raw!AI:AI),"") -> 1.5723 | Z23: =IFERROR(AVERAGEIF(Raw!$D:$D,Avg_all!$A23,Raw!AJ:AJ),"") -> 1.1037 | AA23: =IFERROR(AVERAGEIF(Raw!$D:$D,Avg_all!$A23,Raw!AK:AK),"") -> 
A24: 國內貨幣市場 | B24: 國內貨幣市場 | C24: =IFERROR(AVERAGEIF(Raw!$D:$D,Avg_all!$A24,Raw!E:E),"") -> 0.08272727273 | D24: =IFERROR(AVERAGEIF(Raw!$D:$D,Avg_all!$A24,Raw!G:G),"") -> 0.1625 | E24: =IFERROR(AVERAGEIF(Raw!$D:$D,Avg_all!$A24,Raw!I:I),"") -> 0.2843181818 | F24: =IFERROR(AVERAGEIF(Raw!$D:$D,Avg_all!$A24,Raw!K:K),"") -> 0.6254545455 | G24: =IFERROR(AVERAGEIF(Raw!$D:$D,Avg_all!$A24,Raw!M:M),"") -> 1.150465116 | H24: =IFERROR(AVERAGEIF(Raw!$D:$D,Avg_all!$A24,Raw!O:O),"") -> 2.30452381 | I24: =IFERROR(AVERAGEIF(Raw!$D:$D,Avg_all!$A24,Raw!Q:Q),"") -> 6.169047619 | J24: =IFERROR(AVERAGEIF(Raw!$D:$D,Avg_all!$A24,Raw!S:S),"") -> 0.2047727273 | K24: =IFERROR(AVERAGEIF(Raw!$D:$D,Avg_all!$A24,Raw!U:U),"") -> 0.1340909091 | L24: =IFERROR(AVERAGEIF(Raw!$D:$D,Avg_all!$A24,Raw!V:V),"") -> 0.05704545455 | M24: =IFERROR(AVERAGEIF(Raw!$D:$D,Avg_all!$A24,Raw!W:W),"") -> 38.65931818 | N24: =IFERROR(AVERAGEIF(Raw!$D:$D,Avg_all!$A24,Raw!X:X),"") -> 0.02090909091 | O24: =IFERROR(AVERAGEIF(Raw!$D:$D,Avg_all!$A24,Raw!Y:Y),"") ->  | P24: =IFERROR(AVERAGEIF(Raw!$D:$D,Avg_all!$A24,Raw!Z:Z),"") -> -7.074854545 | Q24: =IFERROR(AVERAGEIF(Raw!$D:$D,Avg_all!$A24,Raw!AA:AA),"") ->  | R24: =IFERROR(AVERAGEIF(Raw!$D:$D,Avg_all!$A24,Raw!AB:AB),"") ->  | S24: =IFERROR(AVERAGEIF(Raw!$D:$D,Avg_all!$A24,Raw!AC:AC),"") -> -0.08983863636 | T24: =IFERROR(AVERAGEIF(Raw!$D:$D,Avg_all!$A24,Raw!AD:AD),"") -> 0.6871681818 | U24: =IFERROR(AVERAGEIF(Raw!$D:$D,Avg_all!$A24,Raw!AE:AE),"") -> 0.013725 | V24: =IFERROR(AVERAGEIF(Raw!$D:$D,Avg_all!$A24,Raw!AF:AF),"") ->  | W24: =IFERROR(AVERAGEIF(Raw!$D:$D,Avg_all!$A24,Raw!AG:AG),"") -> -13.16477727 | X24: =IFERROR(AVERAGEIF(Raw!$D:$D,Avg_all!$A24,Raw!AH:AH),"") ->  | Y24: =IFERROR(AVERAGEIF(Raw!$D:$D,Avg_all!$A24,Raw!AI:AI),"") ->  | Z24: =IFERROR(AVERAGEIF(Raw!$D:$D,Avg_all!$A24,Raw!AJ:AJ),"") -> -0.2568022727 | AA24: =IFERROR(AVERAGEIF(Raw!$D:$D,Avg_all!$A24,Raw!AK:AK),"") -> 0.6088727273
A25: 開放式一般型 | B25: 開放式一般型 | C25: =IFERROR(AVERAGEIF(Raw!$D:$D,Avg_all!$A25,Raw!E:E),"") -> 12.84950617 | D25: =IFERROR(AVERAGEIF(Raw!$D:$D,Avg_all!$A25,Raw!G:G),"") -> 15.8937037 | E25: =IFERROR(AVERAGEIF(Raw!$D:$D,Avg_all!$A25,Raw!I:I),"") -> 17.39825 | F25: =IFERROR(AVERAGEIF(Raw!$D:$D,Avg_all!$A25,Raw!K:K),"") -> 33.5985 | G25: =IFERROR(AVERAGEIF(Raw!$D:$D,Avg_all!$A25,Raw!M:M),"") -> 22.67189873 | H25: =IFERROR(AVERAGEIF(Raw!$D:$D,Avg_all!$A25,Raw!O:O),"") -> 70.75594937 | I25: =IFERROR(AVERAGEIF(Raw!$D:$D,Avg_all!$A25,Raw!Q:Q),"") -> 32.55338235 | J25: =IFERROR(AVERAGEIF(Raw!$D:$D,Avg_all!$A25,Raw!S:S),"") -> 22.770375 | K25: =IFERROR(AVERAGEIF(Raw!$D:$D,Avg_all!$A25,Raw!U:U),"") -> 12.21259259 | L25: =IFERROR(AVERAGEIF(Raw!$D:$D,Avg_all!$A25,Raw!V:V),"") -> -13.2717284 | M25: =IFERROR(AVERAGEIF(Raw!$D:$D,Avg_all!$A25,Raw!W:W),"") -> 262.1960494 | N25: =IFERROR(AVERAGEIF(Raw!$D:$D,Avg_all!$A25,Raw!X:X),"") -> 9.383605 | O25: =IFERROR(AVERAGEIF(Raw!$D:$D,Avg_all!$A25,Raw!Y:Y),"") -> 0.76148375 | P25: =IFERROR(AVERAGEIF(Raw!$D:$D,Avg_all!$A25,Raw!Z:Z),"") -> 0.4330075 | Q25: =IFERROR(AVERAGEIF(Raw!$D:$D,Avg_all!$A25,Raw!AA:AA),"") -> 0.1156075 | R25: =IFERROR(AVERAGEIF(Raw!$D:$D,Avg_all!$A25,Raw!AB:AB),"") -> 1.61482625 | S25: =IFERROR(AVERAGEIF(Raw!$D:$D,Avg_all!$A25,Raw!AC:AC),"") -> -0.06018 | T25: =IFERROR(AVERAGEIF(Raw!$D:$D,Avg_all!$A25,Raw!AD:AD),"") -> -0.00632375 | U25: =IFERROR(AVERAGEIF(Raw!$D:$D,Avg_all!$A25,Raw!AE:AE),"") -> 9.730805 | V25: =IFERROR(AVERAGEIF(Raw!$D:$D,Avg_all!$A25,Raw!AF:AF),"") -> 1.3242525 | W25: =IFERROR(AVERAGEIF(Raw!$D:$D,Avg_all!$A25,Raw!AG:AG),"") -> 0.4739775 | X25: =IFERROR(AVERAGEIF(Raw!$D:$D,Avg_all!$A25,Raw!AH:AH),"") -> -0.79471625 | Y25: =IFERROR(AVERAGEIF(Raw!$D:$D,Avg_all!$A25,Raw!AI:AI),"") -> 1.052105 | Z25: =IFERROR(AVERAGEIF(Raw!$D:$D,Avg_all!$A25,Raw!AJ:AJ),"") -> 0.014075 | AA25: =IFERROR(AVERAGEIF(Raw!$D:$D,Avg_all!$A25,Raw!AK:AK),"") -> 0.0159975
A26: 開放式中小型 | B26: 開放式中小型 | C26: =IFERROR(AVERAGEIF(Raw!$D:$D,Avg_all!$A26,Raw!E:E),"") -> 13.74095238 | D26: =IFERROR(AVERAGEIF(Raw!$D:$D,Avg_all!$A26,Raw!G:G),"") -> 16.49142857 | E26: =IFERROR(AVERAGEIF(Raw!$D:$D,Avg_all!$A26,Raw!I:I),"") -> 16.17619048 | F26: =IFERROR(AVERAGEIF(Raw!$D:$D,Avg_all!$A26,Raw!K:K),"") -> 38.50857143 | G26: =IFERROR(AVERAGEIF(Raw!$D:$D,Avg_all!$A26,Raw!M:M),"") -> 25.2755 | H26: =IFERROR(AVERAGEIF(Raw!$D:$D,Avg_all!$A26,Raw!O:O),"") -> 75.132 | I26: =IFERROR(AVERAGEIF(Raw!$D:$D,Avg_all!$A26,Raw!Q:Q),"") -> 12.40111111 | J26: =IFERROR(AVERAGEIF(Raw!$D:$D,Avg_all!$A26,Raw!S:S),"") -> 24.33285714 | K26: =IFERROR(AVERAGEIF(Raw!$D:$D,Avg_all!$A26,Raw!U:U),"") -> 14.00714286 | L26: =IFERROR(AVERAGEIF(Raw!$D:$D,Avg_all!$A26,Raw!V:V),"") -> -14.55142857 | M26: =IFERROR(AVERAGEIF(Raw!$D:$D,Avg_all!$A26,Raw!W:W),"") -> 205.7642857 | N26: =IFERROR(AVERAGEIF(Raw!$D:$D,Avg_all!$A26,Raw!X:X),"") -> 10.57478095 | O26: =IFERROR(AVERAGEIF(Raw!$D:$D,Avg_all!$A26,Raw!Y:Y),"") -> 0.6778666667 | P26: =IFERROR(AVERAGEIF(Raw!$D:$D,Avg_all!$A26,Raw!Z:Z),"") -> 0.4379 | Q26: =IFERROR(AVERAGEIF(Raw!$D:$D,Avg_all!$A26,Raw!AA:AA),"") -> 0.3878761905 | R26: =IFERROR(AVERAGEIF(Raw!$D:$D,Avg_all!$A26,Raw!AB:AB),"") -> 2.106890476 | S26: =IFERROR(AVERAGEIF(Raw!$D:$D,Avg_all!$A26,Raw!AC:AC),"") -> 0.02727142857 | T26: =IFERROR(AVERAGEIF(Raw!$D:$D,Avg_all!$A26,Raw!AD:AD),"") -> -0.02429047619 | U26: =IFERROR(AVERAGEIF(Raw!$D:$D,Avg_all!$A26,Raw!AE:AE),"") -> 11.32781905 | V26: =IFERROR(AVERAGEIF(Raw!$D:$D,Avg_all!$A26,Raw!AF:AF),"") -> 1.454204762 | W26: =IFERROR(AVERAGEIF(Raw!$D:$D,Avg_all!$A26,Raw!AG:AG),"") -> 0.3814 | X26: =IFERROR(AVERAGEIF(Raw!$D:$D,Avg_all!$A26,Raw!AH:AH),"") -> -1.077928571 | Y26: =IFERROR(AVERAGEIF(Raw!$D:$D,Avg_all!$A26,Raw!AI:AI),"") -> 0.8944952381 | Z26: =IFERROR(AVERAGEIF(Raw!$D:$D,Avg_all!$A26,Raw!AJ:AJ),"") -> -0.05122857143 | AA26: =IFERROR(AVERAGEIF(Raw!$D:$D,Avg_all!$A26,Raw!AK:AK),"") -> -0.001014285714
A27: 開放式中概股 | B27: 開放式中概股 | C27: =IFERROR(AVERAGEIF(Raw!$D:$D,Avg_all!$A27,Raw!E:E),"") -> 13.34333333 | D27: =IFERROR(AVERAGEIF(Raw!$D:$D,Avg_all!$A27,Raw!G:G),"") -> 14.795 | E27: =IFERROR(AVERAGEIF(Raw!$D:$D,Avg_all!$A27,Raw!I:I),"") -> 17.87166667 | F27: =IFERROR(AVERAGEIF(Raw!$D:$D,Avg_all!$A27,Raw!K:K),"") -> 41.68 | G27: =IFERROR(AVERAGEIF(Raw!$D:$D,Avg_all!$A27,Raw!M:M),"") -> 28.07333333 | H27: =IFERROR(AVERAGEIF(Raw!$D:$D,Avg_all!$A27,Raw!O:O),"") -> 76.45 | I27: =IFERROR(AVERAGEIF(Raw!$D:$D,Avg_all!$A27,Raw!Q:Q),"") -> 30.105 | J27: =IFERROR(AVERAGEIF(Raw!$D:$D,Avg_all!$A27,Raw!S:S),"") -> 21.72 | K27: =IFERROR(AVERAGEIF(Raw!$D:$D,Avg_all!$A27,Raw!U:U),"") -> 12.46166667 | L27: =IFERROR(AVERAGEIF(Raw!$D:$D,Avg_all!$A27,Raw!V:V),"") -> -12.97 | M27: =IFERROR(AVERAGEIF(Raw!$D:$D,Avg_all!$A27,Raw!W:W),"") -> 171.6833333 | N27: =IFERROR(AVERAGEIF(Raw!$D:$D,Avg_all!$A27,Raw!X:X),"") -> 10.05315 | O27: =IFERROR(AVERAGEIF(Raw!$D:$D,Avg_all!$A27,Raw!Y:Y),"") -> 0.6328166667 | P27: =IFERROR(AVERAGEIF(Raw!$D:$D,Avg_all!$A27,Raw!Z:Z),"") -> 0.4847 | Q27: =IFERROR(AVERAGEIF(Raw!$D:$D,Avg_all!$A27,Raw!AA:AA),"") -> 0.5389 | R27: =IFERROR(AVERAGEIF(Raw!$D:$D,Avg_all!$A27,Raw!AB:AB),"") -> 2.518633333 | S27: =IFERROR(AVERAGEIF(Raw!$D:$D,Avg_all!$A27,Raw!AC:AC),"") -> 0.07925 | T27: =IFERROR(AVERAGEIF(Raw!$D:$D,Avg_all!$A27,Raw!AD:AD),"") -> -0.003033333333 | U27: =IFERROR(AVERAGEIF(Raw!$D:$D,Avg_all!$A27,Raw!AE:AE),"") -> 10.64793333 | V27: =IFERROR(AVERAGEIF(Raw!$D:$D,Avg_all!$A27,Raw!AF:AF),"") -> 1.194183333 | W27: =IFERROR(AVERAGEIF(Raw!$D:$D,Avg_all!$A27,Raw!AG:AG),"") -> 0.4500333333 | X27: =IFERROR(AVERAGEIF(Raw!$D:$D,Avg_all!$A27,Raw!AH:AH),"") -> -0.5446333333 | Y27: =IFERROR(AVERAGEIF(Raw!$D:$D,Avg_all!$A27,Raw!AI:AI),"") -> 1.147083333 | Z27: =IFERROR(AVERAGEIF(Raw!$D:$D,Avg_all!$A27,Raw!AJ:AJ),"") -> 0.0377 | AA27: =IFERROR(AVERAGEIF(Raw!$D:$D,Avg_all!$A27,Raw!AK:AK),"") -> 0.005083333333
A28: 開放式科技類 | B28: 開放式科技類 | C28: =IFERROR(AVERAGEIF(Raw!$D:$D,Avg_all!$A28,Raw!E:E),"") -> 13.91962963 | D28: =IFERROR(AVERAGEIF(Raw!$D:$D,Avg_all!$A28,Raw!G:G),"") -> 17.20518519 | E28: =IFERROR(AVERAGEIF(Raw!$D:$D,Avg_all!$A28,Raw!I:I),"") -> 20.73777778 | F28: =IFERROR(AVERAGEIF(Raw!$D:$D,Avg_all!$A28,Raw!K:K),"") -> 44.65074074 | G28: =IFERROR(AVERAGEIF(Raw!$D:$D,Avg_all!$A28,Raw!M:M),"") -> 26.98740741 | H28: =IFERROR(AVERAGEIF(Raw!$D:$D,Avg_all!$A28,Raw!O:O),"") -> 81.29074074 | I28: =IFERROR(AVERAGEIF(Raw!$D:$D,Avg_all!$A28,Raw!Q:Q),"") -> 26.865 | J28: =IFERROR(AVERAGEIF(Raw!$D:$D,Avg_all!$A28,Raw!S:S),"") -> 26.41444444 | K28: =IFERROR(AVERAGEIF(Raw!$D:$D,Avg_all!$A28,Raw!U:U),"") -> 13.9637037 | L28: =IFERROR(AVERAGEIF(Raw!$D:$D,Avg_all!$A28,Raw!V:V),"") -> -15.57259259 | M28: =IFERROR(AVERAGEIF(Raw!$D:$D,Avg_all!$A28,Raw!W:W),"") -> 181.6859259 | N28: =IFERROR(AVERAGEIF(Raw!$D:$D,Avg_all!$A28,Raw!X:X),"") -> 10.34854074 | O28: =IFERROR(AVERAGEIF(Raw!$D:$D,Avg_all!$A28,Raw!Y:Y),"") -> 0.7560518519 | P28: =IFERROR(AVERAGEIF(Raw!$D:$D,Avg_all!$A28,Raw!Z:Z),"") -> 0.5072333333 | Q28: =IFERROR(AVERAGEIF(Raw!$D:$D,Avg_all!$A28,Raw!AA:AA),"") -> 0.4607444444 | R28: =IFERROR(AVERAGEIF(Raw!$D:$D,Avg_all!$A28,Raw!AB:AB),"") -> 2.055955556 | S28: =IFERROR(AVERAGEIF(Raw!$D:$D,Avg_all!$A28,Raw!AC:AC),"") -> 0.1633 | T28: =IFERROR(AVERAGEIF(Raw!$D:$D,Avg_all!$A28,Raw!AD:AD),"") -> -0.008033333333 | U28: =IFERROR(AVERAGEIF(Raw!$D:$D,Avg_all!$A28,Raw!AE:AE),"") -> 11.1931963 | V28: =IFERROR(AVERAGEIF(Raw!$D:$D,Avg_all!$A28,Raw!AF:AF),"") -> 1.42002963 | W28: =IFERROR(AVERAGEIF(Raw!$D:$D,Avg_all!$A28,Raw!AG:AG),"") -> 0.4838888889 | X28: =IFERROR(AVERAGEIF(Raw!$D:$D,Avg_all!$A28,Raw!AH:AH),"") -> -0.6988 | Y28: =IFERROR(AVERAGEIF(Raw!$D:$D,Avg_all!$A28,Raw!AI:AI),"") -> 1.184866667 | Z28: =IFERROR(AVERAGEIF(Raw!$D:$D,Avg_all!$A28,Raw!AJ:AJ),"") -> 0.1692148148 | AA28: =IFERROR(AVERAGEIF(Raw!$D:$D,Avg_all!$A28,Raw!AK:AK),"") -> 0.009466666667
A29: 開放式價值型 | B29: 開放式價值型 | C29: =IFERROR(AVERAGEIF(Raw!$D:$D,Avg_all!$A29,Raw!E:E),"") -> 10.532 | D29: =IFERROR(AVERAGEIF(Raw!$D:$D,Avg_all!$A29,Raw!G:G),"") -> 12.07 | E29: =IFERROR(AVERAGEIF(Raw!$D:$D,Avg_all!$A29,Raw!I:I),"") -> 14.77 | F29: =IFERROR(AVERAGEIF(Raw!$D:$D,Avg_all!$A29,Raw!K:K),"") -> 33.238 | G29: =IFERROR(AVERAGEIF(Raw!$D:$D,Avg_all!$A29,Raw!M:M),"") -> 17.516 | H29: =IFERROR(AVERAGEIF(Raw!$D:$D,Avg_all!$A29,Raw!O:O),"") -> 66.996 | I29: =IFERROR(AVERAGEIF(Raw!$D:$D,Avg_all!$A29,Raw!Q:Q),"") -> 44.8475 | J29: =IFERROR(AVERAGEIF(Raw!$D:$D,Avg_all!$A29,Raw!S:S),"") -> 18.248 | K29: =IFERROR(AVERAGEIF(Raw!$D:$D,Avg_all!$A29,Raw!U:U),"") -> 12.466 | L29: =IFERROR(AVERAGEIF(Raw!$D:$D,Avg_all!$A29,Raw!V:V),"") -> -14.536 | M29: =IFERROR(AVERAGEIF(Raw!$D:$D,Avg_all!$A29,Raw!W:W),"") -> 141.466 | N29: =IFERROR(AVERAGEIF(Raw!$D:$D,Avg_all!$A29,Raw!X:X),"") -> 9.4781 | O29: =IFERROR(AVERAGEIF(Raw!$D:$D,Avg_all!$A29,Raw!Y:Y),"") -> 0.88322 | P29: =IFERROR(AVERAGEIF(Raw!$D:$D,Avg_all!$A29,Raw!Z:Z),"") -> 0.44268 | Q29: =IFERROR(AVERAGEIF(Raw!$D:$D,Avg_all!$A29,Raw!AA:AA),"") -> -0.05672 | R29: =IFERROR(AVERAGEIF(Raw!$D:$D,Avg_all!$A29,Raw!AB:AB),"") -> 1.37438 | S29: =IFERROR(AVERAGEIF(Raw!$D:$D,Avg_all!$A29,Raw!AC:AC),"") -> -0.02054 | T29: =IFERROR(AVERAGEIF(Raw!$D:$D,Avg_all!$A29,Raw!AD:AD),"") -> 0.01332 | U29: =IFERROR(AVERAGEIF(Raw!$D:$D,Avg_all!$A29,Raw!AE:AE),"") -> 9.06236 | V29: =IFERROR(AVERAGEIF(Raw!$D:$D,Avg_all!$A29,Raw!AF:AF),"") -> 1.30728 | W29: =IFERROR(AVERAGEIF(Raw!$D:$D,Avg_all!$A29,Raw!AG:AG),"") -> 0.48862 | X29: =IFERROR(AVERAGEIF(Raw!$D:$D,Avg_all!$A29,Raw!AH:AH),"") -> -0.95544 | Y29: =IFERROR(AVERAGEIF(Raw!$D:$D,Avg_all!$A29,Raw!AI:AI),"") -> 0.90824 | Z29: =IFERROR(AVERAGEIF(Raw!$D:$D,Avg_all!$A29,Raw!AJ:AJ),"") -> -0.07272 | AA29: =IFERROR(AVERAGEIF(Raw!$D:$D,Avg_all!$A29,Raw!AK:AK),"") -> 0.0353
A30: 債券組合--投資級 | B30: 債券組合--投資級 | C30: =IFERROR(AVERAGEIF(Raw!$D:$D,Avg_all!$A30,Raw!E:E),"") -> 1.464 | D30: =IFERROR(AVERAGEIF(Raw!$D:$D,Avg_all!$A30,Raw!G:G),"") -> 2.982 | E30: =IFERROR(AVERAGEIF(Raw!$D:$D,Avg_all!$A30,Raw!I:I),"") -> 5.029 | F30: =IFERROR(AVERAGEIF(Raw!$D:$D,Avg_all!$A30,Raw!K:K),"") -> 13.36777778 | G30: =IFERROR(AVERAGEIF(Raw!$D:$D,Avg_all!$A30,Raw!M:M),"") -> 6.03 | H30: =IFERROR(AVERAGEIF(Raw!$D:$D,Avg_all!$A30,Raw!O:O),"") -> 9.58 | I30: =IFERROR(AVERAGEIF(Raw!$D:$D,Avg_all!$A30,Raw!Q:Q),"") -> 31.96 | J30: =IFERROR(AVERAGEIF(Raw!$D:$D,Avg_all!$A30,Raw!S:S),"") -> 5.04 | K30: =IFERROR(AVERAGEIF(Raw!$D:$D,Avg_all!$A30,Raw!U:U),"") -> 5.281 | L30: =IFERROR(AVERAGEIF(Raw!$D:$D,Avg_all!$A30,Raw!V:V),"") -> -2.158 | M30: =IFERROR(AVERAGEIF(Raw!$D:$D,Avg_all!$A30,Raw!W:W),"") -> 20.773 | N30: =IFERROR(AVERAGEIF(Raw!$D:$D,Avg_all!$A30,Raw!X:X),"") -> 3.8038 | O30: =IFERROR(AVERAGEIF(Raw!$D:$D,Avg_all!$A30,Raw!Y:Y),"") ->  | P30: =IFERROR(AVERAGEIF(Raw!$D:$D,Avg_all!$A30,Raw!Z:Z),"") -> 0.3483555556 | Q30: =IFERROR(AVERAGEIF(Raw!$D:$D,Avg_all!$A30,Raw!AA:AA),"") ->  | R30: =IFERROR(AVERAGEIF(Raw!$D:$D,Avg_all!$A30,Raw!AB:AB),"") ->  | S30: =IFERROR(AVERAGEIF(Raw!$D:$D,Avg_all!$A30,Raw!AC:AC),"") -> 0.3095777778 | T30: =IFERROR(AVERAGEIF(Raw!$D:$D,Avg_all!$A30,Raw!AD:AD),"") -> -0.117 | U30: =IFERROR(AVERAGEIF(Raw!$D:$D,Avg_all!$A30,Raw!AE:AE),"") -> 2.98748 | V30: =IFERROR(AVERAGEIF(Raw!$D:$D,Avg_all!$A30,Raw!AF:AF),"") ->  | W30: =IFERROR(AVERAGEIF(Raw!$D:$D,Avg_all!$A30,Raw!AG:AG),"") -> 0.31801 | X30: =IFERROR(AVERAGEIF(Raw!$D:$D,Avg_all!$A30,Raw!AH:AH),"") ->  | Y30: =IFERROR(AVERAGEIF(Raw!$D:$D,Avg_all!$A30,Raw!AI:AI),"") ->  | Z30: =IFERROR(AVERAGEIF(Raw!$D:$D,Avg_all!$A30,Raw!AJ:AJ),"") -> 0.43619 | AA30: =IFERROR(AVERAGEIF(Raw!$D:$D,Avg_all!$A30,Raw!AK:AK),"") -> -0.08389
A31: 債券組合--複合式 | B31: 債券組合--複合式 | C31: =IFERROR(AVERAGEIF(Raw!$D:$D,Avg_all!$A31,Raw!E:E),"") -> 1.023478261 | D31: =IFERROR(AVERAGEIF(Raw!$D:$D,Avg_all!$A31,Raw!G:G),"") -> 2.071428571 | E31: =IFERROR(AVERAGEIF(Raw!$D:$D,Avg_all!$A31,Raw!I:I),"") -> 1.81025 | F31: =IFERROR(AVERAGEIF(Raw!$D:$D,Avg_all!$A31,Raw!K:K),"") -> 7.18 | G31: =IFERROR(AVERAGEIF(Raw!$D:$D,Avg_all!$A31,Raw!M:M),"") -> 2.291111111 | H31: =IFERROR(AVERAGEIF(Raw!$D:$D,Avg_all!$A31,Raw!O:O),"") -> 9.293333333 | I31: =IFERROR(AVERAGEIF(Raw!$D:$D,Avg_all!$A31,Raw!Q:Q),"") -> 32.125 | J31: =IFERROR(AVERAGEIF(Raw!$D:$D,Avg_all!$A31,Raw!S:S),"") -> 2.527380952 | K31: =IFERROR(AVERAGEIF(Raw!$D:$D,Avg_all!$A31,Raw!U:U),"") -> 3.47826087 | L31: =IFERROR(AVERAGEIF(Raw!$D:$D,Avg_all!$A31,Raw!V:V),"") -> -2.285 | M31: =IFERROR(AVERAGEIF(Raw!$D:$D,Avg_all!$A31,Raw!W:W),"") -> 15.9802 | N31: =IFERROR(AVERAGEIF(Raw!$D:$D,Avg_all!$A31,Raw!X:X),"") -> 3.294409091 | O31: =IFERROR(AVERAGEIF(Raw!$D:$D,Avg_all!$A31,Raw!Y:Y),"") ->  | P31: =IFERROR(AVERAGEIF(Raw!$D:$D,Avg_all!$A31,Raw!Z:Z),"") -> 0.1721333333 | Q31: =IFERROR(AVERAGEIF(Raw!$D:$D,Avg_all!$A31,Raw!AA:AA),"") ->  | R31: =IFERROR(AVERAGEIF(Raw!$D:$D,Avg_all!$A31,Raw!AB:AB),"") ->  | S31: =IFERROR(AVERAGEIF(Raw!$D:$D,Avg_all!$A31,Raw!AC:AC),"") -> -0.1297363636 | T31: =IFERROR(AVERAGEIF(Raw!$D:$D,Avg_all!$A31,Raw!AD:AD),"") -> -0.05641818182 | U31: =IFERROR(AVERAGEIF(Raw!$D:$D,Avg_all!$A31,Raw!AE:AE),"") -> 2.642905 | V31: =IFERROR(AVERAGEIF(Raw!$D:$D,Avg_all!$A31,Raw!AF:AF),"") ->  | W31: =IFERROR(AVERAGEIF(Raw!$D:$D,Avg_all!$A31,Raw!AG:AG),"") -> 0.05841578947 | X31: =IFERROR(AVERAGEIF(Raw!$D:$D,Avg_all!$A31,Raw!AH:AH),"") ->  | Y31: =IFERROR(AVERAGEIF(Raw!$D:$D,Avg_all!$A31,Raw!AI:AI),"") ->  | Z31: =IFERROR(AVERAGEIF(Raw!$D:$D,Avg_all!$A31,Raw!AJ:AJ),"") -> -0.1978275 | AA31: =IFERROR(AVERAGEIF(Raw!$D:$D,Avg_all!$A31,Raw!AK:AK),"") -> -0.1035275
A32: 跨國--大中華區 | B32: 跨國--大中華區 | C32: =IFERROR(AVERAGEIF(Raw!$D:$D,Avg_all!$A32,Raw!E:E),"") -> 15.86309859 | D32: =IFERROR(AVERAGEIF(Raw!$D:$D,Avg_all!$A32,Raw!G:G),"") -> 20.17028986 | E32: =IFERROR(AVERAGEIF(Raw!$D:$D,Avg_all!$A32,Raw!I:I),"") -> 17.84820896 | F32: =IFERROR(AVERAGEIF(Raw!$D:$D,Avg_all!$A32,Raw!K:K),"") -> 20.52340426 | G32: =IFERROR(AVERAGEIF(Raw!$D:$D,Avg_all!$A32,Raw!M:M),"") -> 24.658 | H32: =IFERROR(AVERAGEIF(Raw!$D:$D,Avg_all!$A32,Raw!O:O),"") -> 62.52903226 | I32: =IFERROR(AVERAGEIF(Raw!$D:$D,Avg_all!$A32,Raw!Q:Q),"") -> 21.8425 | J32: =IFERROR(AVERAGEIF(Raw!$D:$D,Avg_all!$A32,Raw!S:S),"") -> 24.56231884 | K32: =IFERROR(AVERAGEIF(Raw!$D:$D,Avg_all!$A32,Raw!U:U),"") -> 25.99380282 | L32: =IFERROR(AVERAGEIF(Raw!$D:$D,Avg_all!$A32,Raw!V:V),"") -> -21.04774648 | M32: =IFERROR(AVERAGEIF(Raw!$D:$D,Avg_all!$A32,Raw!W:W),"") -> 29.27875 | N32: =IFERROR(AVERAGEIF(Raw!$D:$D,Avg_all!$A32,Raw!X:X),"") -> 16.78945319 | O32: =IFERROR(AVERAGEIF(Raw!$D:$D,Avg_all!$A32,Raw!Y:Y),"") -> 1.006057447 | P32: =IFERROR(AVERAGEIF(Raw!$D:$D,Avg_all!$A32,Raw!Z:Z),"") -> 0.1819914894 | Q32: =IFERROR(AVERAGEIF(Raw!$D:$D,Avg_all!$A32,Raw!AA:AA),"") -> -0.1782234043 | R32: =IFERROR(AVERAGEIF(Raw!$D:$D,Avg_all!$A32,Raw!AB:AB),"") -> 0.8724468085 | S32: =IFERROR(AVERAGEIF(Raw!$D:$D,Avg_all!$A32,Raw!AC:AC),"") -> 0.0456106383 | T32: =IFERROR(AVERAGEIF(Raw!$D:$D,Avg_all!$A32,Raw!AD:AD),"") -> -0.00670212766 | U32: =IFERROR(AVERAGEIF(Raw!$D:$D,Avg_all!$A32,Raw!AE:AE),"") -> 11.23114328 | V32: =IFERROR(AVERAGEIF(Raw!$D:$D,Avg_all!$A32,Raw!AF:AF),"") -> 0.09650746269 | W32: =IFERROR(AVERAGEIF(Raw!$D:$D,Avg_all!$A32,Raw!AG:AG),"") -> 0.4337746269 | X32: =IFERROR(AVERAGEIF(Raw!$D:$D,Avg_all!$A32,Raw!AH:AH),"") -> 1.21681194 | Y32: =IFERROR(AVERAGEIF(Raw!$D:$D,Avg_all!$A32,Raw!AI:AI),"") -> 34.64925224 | Z32: =IFERROR(AVERAGEIF(Raw!$D:$D,Avg_all!$A32,Raw!AJ:AJ),"") -> 0.07974477612 | AA32: =IFERROR(AVERAGEIF(Raw!$D:$D,Avg_all!$A32,Raw!AK:AK),"") -> -0.000928358209
A33: 跨國-中國A股 | B33: 跨國-中國A股 | C33: =IFERROR(AVERAGEIF(Raw!$D:$D,Avg_all!$A33,Raw!E:E),"") -> 13.51842105 | D33: =IFERROR(AVERAGEIF(Raw!$D:$D,Avg_all!$A33,Raw!G:G),"") -> 16.35789474 | E33: =IFERROR(AVERAGEIF(Raw!$D:$D,Avg_all!$A33,Raw!I:I),"") -> 12.83933333 | F33: =IFERROR(AVERAGEIF(Raw!$D:$D,Avg_all!$A33,Raw!K:K),"") -> 14.84230769 | G33: =IFERROR(AVERAGEIF(Raw!$D:$D,Avg_all!$A33,Raw!M:M),"") -> 43.77166667 | H33: =IFERROR(AVERAGEIF(Raw!$D:$D,Avg_all!$A33,Raw!O:O),"") ->  | I33: =IFERROR(AVERAGEIF(Raw!$D:$D,Avg_all!$A33,Raw!Q:Q),"") ->  | J33: =IFERROR(AVERAGEIF(Raw!$D:$D,Avg_all!$A33,Raw!S:S),"") -> 19.68555556 | K33: =IFERROR(AVERAGEIF(Raw!$D:$D,Avg_all!$A33,Raw!U:U),"") -> 21.98368421 | L33: =IFERROR(AVERAGEIF(Raw!$D:$D,Avg_all!$A33,Raw!V:V),"") -> -21.61210526 | M33: =IFERROR(AVERAGEIF(Raw!$D:$D,Avg_all!$A33,Raw!W:W),"") -> 14.55368421 | N33: =IFERROR(AVERAGEIF(Raw!$D:$D,Avg_all!$A33,Raw!X:X),"") -> 19.5494 | O33: =IFERROR(AVERAGEIF(Raw!$D:$D,Avg_all!$A33,Raw!Y:Y),"") -> 1.264330769 | P33: =IFERROR(AVERAGEIF(Raw!$D:$D,Avg_all!$A33,Raw!Z:Z),"") -> 0.1197230769 | Q33: =IFERROR(AVERAGEIF(Raw!$D:$D,Avg_all!$A33,Raw!AA:AA),"") -> -0.5806076923 | R33: =IFERROR(AVERAGEIF(Raw!$D:$D,Avg_all!$A33,Raw!AB:AB),"") -> 0.5434692308 | S33: =IFERROR(AVERAGEIF(Raw!$D:$D,Avg_all!$A33,Raw!AC:AC),"") -> 0.07786923077 | T33: =IFERROR(AVERAGEIF(Raw!$D:$D,Avg_all!$A33,Raw!AD:AD),"") -> -0.006815384615 | U33: =IFERROR(AVERAGEIF(Raw!$D:$D,Avg_all!$A33,Raw!AE:AE),"") -> 11.36277333 | V33: =IFERROR(AVERAGEIF(Raw!$D:$D,Avg_all!$A33,Raw!AF:AF),"") -> -0.2121266667 | W33: =IFERROR(AVERAGEIF(Raw!$D:$D,Avg_all!$A33,Raw!AG:AG),"") -> 0.28884 | X33: =IFERROR(AVERAGEIF(Raw!$D:$D,Avg_all!$A33,Raw!AH:AH),"") -> 1.2587 | Y33: =IFERROR(AVERAGEIF(Raw!$D:$D,Avg_all!$A33,Raw!AI:AI),"") -> -4.852153333 | Z33: =IFERROR(AVERAGEIF(Raw!$D:$D,Avg_all!$A33,Raw!AJ:AJ),"") -> 0.0313 | AA33: =IFERROR(AVERAGEIF(Raw!$D:$D,Avg_all!$A33,Raw!AK:AK),"") -> -0.02007333333
A34: 跨國-中國一般ETF | B34: 跨國-中國一般ETF | C34: =IFERROR(AVERAGEIF(Raw!$D:$D,Avg_all!$A34,Raw!E:E),"") -> 14.69428571 | D34: =IFERROR(AVERAGEIF(Raw!$D:$D,Avg_all!$A34,Raw!G:G),"") -> 13.95428571 | E34: =IFERROR(AVERAGEIF(Raw!$D:$D,Avg_all!$A34,Raw!I:I),"") -> 10.60142857 | F34: =IFERROR(AVERAGEIF(Raw!$D:$D,Avg_all!$A34,Raw!K:K),"") -> 8.436666667 | G34: =IFERROR(AVERAGEIF(Raw!$D:$D,Avg_all!$A34,Raw!M:M),"") -> 56.43 | H34: =IFERROR(AVERAGEIF(Raw!$D:$D,Avg_all!$A34,Raw!O:O),"") -> 68.1525 | I34: =IFERROR(AVERAGEIF(Raw!$D:$D,Avg_all!$A34,Raw!Q:Q),"") ->  | J34: =IFERROR(AVERAGEIF(Raw!$D:$D,Avg_all!$A34,Raw!S:S),"") -> 14.63428571 | K34: =IFERROR(AVERAGEIF(Raw!$D:$D,Avg_all!$A34,Raw!U:U),"") -> 37.33142857 | L34: =IFERROR(AVERAGEIF(Raw!$D:$D,Avg_all!$A34,Raw!V:V),"") -> -26.44857143 | M34: =IFERROR(AVERAGEIF(Raw!$D:$D,Avg_all!$A34,Raw!W:W),"") -> 13.10375 | N34: =IFERROR(AVERAGEIF(Raw!$D:$D,Avg_all!$A34,Raw!X:X),"") -> 19.71863333 | O34: =IFERROR(AVERAGEIF(Raw!$D:$D,Avg_all!$A34,Raw!Y:Y),"") -> 1.128283333 | P34: =IFERROR(AVERAGEIF(Raw!$D:$D,Avg_all!$A34,Raw!Z:Z),"") -> 0.0776 | Q34: =IFERROR(AVERAGEIF(Raw!$D:$D,Avg_all!$A34,Raw!AA:AA),"") -> -0.67005 | R34: =IFERROR(AVERAGEIF(Raw!$D:$D,Avg_all!$A34,Raw!AB:AB),"") -> 0.3908166667 | S34: =IFERROR(AVERAGEIF(Raw!$D:$D,Avg_all!$A34,Raw!AC:AC),"") -> -0.05205 | T34: =IFERROR(AVERAGEIF(Raw!$D:$D,Avg_all!$A34,Raw!AD:AD),"") -> 0.09258333333 | U34: =IFERROR(AVERAGEIF(Raw!$D:$D,Avg_all!$A34,Raw!AE:AE),"") -> 14.22508571 | V34: =IFERROR(AVERAGEIF(Raw!$D:$D,Avg_all!$A34,Raw!AF:AF),"") -> -0.6667857143 | W34: =IFERROR(AVERAGEIF(Raw!$D:$D,Avg_all!$A34,Raw!AG:AG),"") -> 0.2097714286 | X34: =IFERROR(AVERAGEIF(Raw!$D:$D,Avg_all!$A34,Raw!AH:AH),"") -> 1.713542857 | Y34: =IFERROR(AVERAGEIF(Raw!$D:$D,Avg_all!$A34,Raw!AI:AI),"") -> -1.761157143 | Z34: =IFERROR(AVERAGEIF(Raw!$D:$D,Avg_all!$A34,Raw!AJ:AJ),"") -> -0.0242 | AA34: =IFERROR(AVERAGEIF(Raw!$D:$D,Avg_all!$A34,Raw!AK:AK),"") -> 0.09804285714
A35: 跨國-中國反向ETF | B35: 跨國-中國反向ETF | C35: =IFERROR(AVERAGEIF(Raw!$D:$D,Avg_all!$A35,Raw!E:E),"") -> -9.75 | D35: =IFERROR(AVERAGEIF(Raw!$D:$D,Avg_all!$A35,Raw!G:G),"") -> -13.02666667 | E35: =IFERROR(AVERAGEIF(Raw!$D:$D,Avg_all!$A35,Raw!I:I),"") -> -17.89 | F35: =IFERROR(AVERAGEIF(Raw!$D:$D,Avg_all!$A35,Raw!K:K),"") -> -34.245 | G35: =IFERROR(AVERAGEIF(Raw!$D:$D,Avg_all!$A35,Raw!M:M),"") ->  | H35: =IFERROR(AVERAGEIF(Raw!$D:$D,Avg_all!$A35,Raw!O:O),"") ->  | I35: =IFERROR(AVERAGEIF(Raw!$D:$D,Avg_all!$A35,Raw!Q:Q),"") ->  | J35: =IFERROR(AVERAGEIF(Raw!$D:$D,Avg_all!$A35,Raw!S:S),"") -> -18.27333333 | K35: =IFERROR(AVERAGEIF(Raw!$D:$D,Avg_all!$A35,Raw!U:U),"") -> 13.54666667 | L35: =IFERROR(AVERAGEIF(Raw!$D:$D,Avg_all!$A35,Raw!V:V),"") -> -19.43666667 | M35: =IFERROR(AVERAGEIF(Raw!$D:$D,Avg_all!$A35,Raw!W:W),"") -> -37.02 | N35: =IFERROR(AVERAGEIF(Raw!$D:$D,Avg_all!$A35,Raw!X:X),"") -> 18.5845 | O35: =IFERROR(AVERAGEIF(Raw!$D:$D,Avg_all!$A35,Raw!Y:Y),"") -> -1.11195 | P35: =IFERROR(AVERAGEIF(Raw!$D:$D,Avg_all!$A35,Raw!Z:Z),"") -> -0.3128 | Q35: =IFERROR(AVERAGEIF(Raw!$D:$D,Avg_all!$A35,Raw!AA:AA),"") -> -0.58925 | R35: =IFERROR(AVERAGEIF(Raw!$D:$D,Avg_all!$A35,Raw!AB:AB),"") -> 1.5065 | S35: =IFERROR(AVERAGEIF(Raw!$D:$D,Avg_all!$A35,Raw!AC:AC),"") -> -0.2163 | T35: =IFERROR(AVERAGEIF(Raw!$D:$D,Avg_all!$A35,Raw!AD:AD),"") -> 0.006 | U35: =IFERROR(AVERAGEIF(Raw!$D:$D,Avg_all!$A35,Raw!AE:AE),"") -> 12.83326667 | V35: =IFERROR(AVERAGEIF(Raw!$D:$D,Avg_all!$A35,Raw!AF:AF),"") -> 0.05913333333 | W35: =IFERROR(AVERAGEIF(Raw!$D:$D,Avg_all!$A35,Raw!AG:AG),"") -> -0.4396 | X35: =IFERROR(AVERAGEIF(Raw!$D:$D,Avg_all!$A35,Raw!AH:AH),"") -> -1.720966667 | Y35: =IFERROR(AVERAGEIF(Raw!$D:$D,Avg_all!$A35,Raw!AI:AI),"") -> 3.321766667 | Z35: =IFERROR(AVERAGEIF(Raw!$D:$D,Avg_all!$A35,Raw!AJ:AJ),"") -> -0.4131666667 | AA35: =IFERROR(AVERAGEIF(Raw!$D:$D,Avg_all!$A35,Raw!AK:AK),"") -> -0.1254
A36: 跨國-中國兩倍ETF | B36: 跨國-中國兩倍ETF | C36: =IFERROR(AVERAGEIF(Raw!$D:$D,Avg_all!$A36,Raw!E:E),"") ->  | D36: =IFERROR(AVERAGEIF(Raw!$D:$D,Avg_all!$A36,Raw!G:G),"") ->  | E36: =IFERROR(AVERAGEIF(Raw!$D:$D,Avg_all!$A36,Raw!I:I),"") ->  | F36: =IFERROR(AVERAGEIF(Raw!$D:$D,Avg_all!$A36,Raw!K:K),"") ->  | G36: =IFERROR(AVERAGEIF(Raw!$D:$D,Avg_all!$A36,Raw!M:M),"") ->  | H36: =IFERROR(AVERAGEIF(Raw!$D:$D,Avg_all!$A36,Raw!O:O),"") ->  | I36: =IFERROR(AVERAGEIF(Raw!$D:$D,Avg_all!$A36,Raw!Q:Q),"") ->  | J36: =IFERROR(AVERAGEIF(Raw!$D:$D,Avg_all!$A36,Raw!S:S),"") ->  | K36: =IFERROR(AVERAGEIF(Raw!$D:$D,Avg_all!$A36,Raw!U:U),"") ->  | L36: =IFERROR(AVERAGEIF(Raw!$D:$D,Avg_all!$A36,Raw!V:V),"") ->  | M36: =IFERROR(AVERAGEIF(Raw!$D:$D,Avg_all!$A36,Raw!W:W),"") ->  | N36: =IFERROR(AVERAGEIF(Raw!$D:$D,Avg_all!$A36,Raw!X:X),"") ->  | O36: =IFERROR(AVERAGEIF(Raw!$D:$D,Avg_all!$A36,Raw!Y:Y),"") ->  | P36: =IFERROR(AVERAGEIF(Raw!$D:$D,Avg_all!$A36,Raw!Z:Z),"") ->  | Q36: =IFERROR(AVERAGEIF(Raw!$D:$D,Avg_all!$A36,Raw!AA:AA),"") ->  | R36: =IFERROR(AVERAGEIF(Raw!$D:$D,Avg_all!$A36,Raw!AB:AB),"") ->  | S36: =IFERROR(AVERAGEIF(Raw!$D:$D,Avg_all!$A36,Raw!AC:AC),"") ->  | T36: =IFERROR(AVERAGEIF(Raw!$D:$D,Avg_all!$A36,Raw!AD:AD),"") ->  | U36: =IFERROR(AVERAGEIF(Raw!$D:$D,Avg_all!$A36,Raw!AE:AE),"") ->  | V36: =IFERROR(AVERAGEIF(Raw!$D:$D,Avg_all!$A36,Raw!AF:AF),"") ->  | W36: =IFERROR(AVERAGEIF(Raw!$D:$D,Avg_all!$A36,Raw!AG:AG),"") ->  | X36: =IFERROR(AVERAGEIF(Raw!$D:$D,Avg_all!$A36,Raw!AH:AH),"") ->  | Y36: =IFERROR(AVERAGEIF(Raw!$D:$D,Avg_all!$A36,Raw!AI:AI),"") ->  | Z36: =IFERROR(AVERAGEIF(Raw!$D:$D,Avg_all!$A36,Raw!AJ:AJ),"") ->  | AA36: =IFERROR(AVERAGEIF(Raw!$D:$D,Avg_all!$A36,Raw!AK:AK),"") -> 
A37: 跨國平衡-全球型 | B37: 跨國平衡-全球型 | C37: =IFERROR(AVERAGEIF(Raw!$D:$D,Avg_all!$A37,Raw!E:E),"") -> 2.1075 | D37: =IFERROR(AVERAGEIF(Raw!$D:$D,Avg_all!$A37,Raw!G:G),"") -> 4.599861111 | E37: =IFERROR(AVERAGEIF(Raw!$D:$D,Avg_all!$A37,Raw!I:I),"") -> 4.7606 | F37: =IFERROR(AVERAGEIF(Raw!$D:$D,Avg_all!$A37,Raw!K:K),"") -> 11.9208 | G37: =IFERROR(AVERAGEIF(Raw!$D:$D,Avg_all!$A37,Raw!M:M),"") -> 8.112 | H37: =IFERROR(AVERAGEIF(Raw!$D:$D,Avg_all!$A37,Raw!O:O),"") -> 24.07 | I37: =IFERROR(AVERAGEIF(Raw!$D:$D,Avg_all!$A37,Raw!Q:Q),"") -> 34.77 | J37: =IFERROR(AVERAGEIF(Raw!$D:$D,Avg_all!$A37,Raw!S:S),"") -> 6.327222222 | K37: =IFERROR(AVERAGEIF(Raw!$D:$D,Avg_all!$A37,Raw!U:U),"") -> 4.744722222 | L37: =IFERROR(AVERAGEIF(Raw!$D:$D,Avg_all!$A37,Raw!V:V),"") -> -2.903194444 | M37: =IFERROR(AVERAGEIF(Raw!$D:$D,Avg_all!$A37,Raw!W:W),"") -> 9.208333333 | N37: =IFERROR(AVERAGEIF(Raw!$D:$D,Avg_all!$A37,Raw!X:X),"") -> 5.84048 | O37: =IFERROR(AVERAGEIF(Raw!$D:$D,Avg_all!$A37,Raw!Y:Y),"") -> 0.38876 | P37: =IFERROR(AVERAGEIF(Raw!$D:$D,Avg_all!$A37,Raw!Z:Z),"") -> 0.195816 | Q37: =IFERROR(AVERAGEIF(Raw!$D:$D,Avg_all!$A37,Raw!AA:AA),"") -> 0.0052 | R37: =IFERROR(AVERAGEIF(Raw!$D:$D,Avg_all!$A37,Raw!AB:AB),"") -> 0.788008 | S37: =IFERROR(AVERAGEIF(Raw!$D:$D,Avg_all!$A37,Raw!AC:AC),"") -> -0.028324 | T37: =IFERROR(AVERAGEIF(Raw!$D:$D,Avg_all!$A37,Raw!AD:AD),"") -> 0.03896 | U37: =IFERROR(AVERAGEIF(Raw!$D:$D,Avg_all!$A37,Raw!AE:AE),"") -> 5.044282 | V37: =IFERROR(AVERAGEIF(Raw!$D:$D,Avg_all!$A37,Raw!AF:AF),"") -> 0.606142 | W37: =IFERROR(AVERAGEIF(Raw!$D:$D,Avg_all!$A37,Raw!AG:AG),"") -> 0.184676 | X37: =IFERROR(AVERAGEIF(Raw!$D:$D,Avg_all!$A37,Raw!AH:AH),"") -> -0.479026 | Y37: =IFERROR(AVERAGEIF(Raw!$D:$D,Avg_all!$A37,Raw!AI:AI),"") -> 3.745774 | Z37: =IFERROR(AVERAGEIF(Raw!$D:$D,Avg_all!$A37,Raw!AJ:AJ),"") -> -0.122144 | AA37: =IFERROR(AVERAGEIF(Raw!$D:$D,Avg_all!$A37,Raw!AK:AK),"") -> -0.016674
A38: 跨國平衡-亞洲 | B38: 跨國平衡-亞洲 | C38: =IFERROR(AVERAGEIF(Raw!$D:$D,Avg_all!$A38,Raw!E:E),"") -> 4.65106383 | D38: =IFERROR(AVERAGEIF(Raw!$D:$D,Avg_all!$A38,Raw!G:G),"") -> 7.151914894 | E38: =IFERROR(AVERAGEIF(Raw!$D:$D,Avg_all!$A38,Raw!I:I),"") -> 6.368461538 | F38: =IFERROR(AVERAGEIF(Raw!$D:$D,Avg_all!$A38,Raw!K:K),"") -> 14.99888889 | G38: =IFERROR(AVERAGEIF(Raw!$D:$D,Avg_all!$A38,Raw!M:M),"") -> 13.89833333 | H38: =IFERROR(AVERAGEIF(Raw!$D:$D,Avg_all!$A38,Raw!O:O),"") -> 23.3525 | I38: =IFERROR(AVERAGEIF(Raw!$D:$D,Avg_all!$A38,Raw!Q:Q),"") -> 21.44666667 | J38: =IFERROR(AVERAGEIF(Raw!$D:$D,Avg_all!$A38,Raw!S:S),"") -> 9.740425532 | K38: =IFERROR(AVERAGEIF(Raw!$D:$D,Avg_all!$A38,Raw!U:U),"") -> 6.914893617 | L38: =IFERROR(AVERAGEIF(Raw!$D:$D,Avg_all!$A38,Raw!V:V),"") -> -3.758297872 | M38: =IFERROR(AVERAGEIF(Raw!$D:$D,Avg_all!$A38,Raw!W:W),"") -> 14.80170213 | N38: =IFERROR(AVERAGEIF(Raw!$D:$D,Avg_all!$A38,Raw!X:X),"") -> 6.083983333 | O38: =IFERROR(AVERAGEIF(Raw!$D:$D,Avg_all!$A38,Raw!Y:Y),"") -> 0.4357611111 | P38: =IFERROR(AVERAGEIF(Raw!$D:$D,Avg_all!$A38,Raw!Z:Z),"") -> 0.2613722222 | Q38: =IFERROR(AVERAGEIF(Raw!$D:$D,Avg_all!$A38,Raw!AA:AA),"") -> 0.06230555556 | R38: =IFERROR(AVERAGEIF(Raw!$D:$D,Avg_all!$A38,Raw!AB:AB),"") -> 1.095322222 | S38: =IFERROR(AVERAGEIF(Raw!$D:$D,Avg_all!$A38,Raw!AC:AC),"") -> 0.01683888889 | T38: =IFERROR(AVERAGEIF(Raw!$D:$D,Avg_all!$A38,Raw!AD:AD),"") -> 0.02127777778 | U38: =IFERROR(AVERAGEIF(Raw!$D:$D,Avg_all!$A38,Raw!AE:AE),"") -> 5.022630769 | V38: =IFERROR(AVERAGEIF(Raw!$D:$D,Avg_all!$A38,Raw!AF:AF),"") -> 0.3955692308 | W38: =IFERROR(AVERAGEIF(Raw!$D:$D,Avg_all!$A38,Raw!AG:AG),"") -> 0.3166666667 | X38: =IFERROR(AVERAGEIF(Raw!$D:$D,Avg_all!$A38,Raw!AH:AH),"") -> -0.07245384615 | Y38: =IFERROR(AVERAGEIF(Raw!$D:$D,Avg_all!$A38,Raw!AI:AI),"") -> 0.5313025641 | Z38: =IFERROR(AVERAGEIF(Raw!$D:$D,Avg_all!$A38,Raw!AJ:AJ),"") -> 0.01034358974 | AA38: =IFERROR(AVERAGEIF(Raw!$D:$D,Avg_all!$A38,Raw!AK:AK),"") -> 0.0636025641
A39: 跨國平衡-單一國 | B39: 跨國平衡-單一國 | C39: =IFERROR(AVERAGEIF(Raw!$D:$D,Avg_all!$A39,Raw!E:E),"") -> 7.0385 | D39: =IFERROR(AVERAGEIF(Raw!$D:$D,Avg_all!$A39,Raw!G:G),"") -> 10.09175 | E39: =IFERROR(AVERAGEIF(Raw!$D:$D,Avg_all!$A39,Raw!I:I),"") -> 9.4615 | F39: =IFERROR(AVERAGEIF(Raw!$D:$D,Avg_all!$A39,Raw!K:K),"") -> 15.93529412 | G39: =IFERROR(AVERAGEIF(Raw!$D:$D,Avg_all!$A39,Raw!M:M),"") -> 45.185 | H39: =IFERROR(AVERAGEIF(Raw!$D:$D,Avg_all!$A39,Raw!O:O),"") -> 44.74 | I39: =IFERROR(AVERAGEIF(Raw!$D:$D,Avg_all!$A39,Raw!Q:Q),"") ->  | J39: =IFERROR(AVERAGEIF(Raw!$D:$D,Avg_all!$A39,Raw!S:S),"") -> 12.68525 | K39: =IFERROR(AVERAGEIF(Raw!$D:$D,Avg_all!$A39,Raw!U:U),"") -> 10.59 | L39: =IFERROR(AVERAGEIF(Raw!$D:$D,Avg_all!$A39,Raw!V:V),"") -> -9.26725 | M39: =IFERROR(AVERAGEIF(Raw!$D:$D,Avg_all!$A39,Raw!W:W),"") -> 11.15625 | N39: =IFERROR(AVERAGEIF(Raw!$D:$D,Avg_all!$A39,Raw!X:X),"") -> 8.492917647 | O39: =IFERROR(AVERAGEIF(Raw!$D:$D,Avg_all!$A39,Raw!Y:Y),"") -> 0.5455 | P39: =IFERROR(AVERAGEIF(Raw!$D:$D,Avg_all!$A39,Raw!Z:Z),"") -> 0.2329 | Q39: =IFERROR(AVERAGEIF(Raw!$D:$D,Avg_all!$A39,Raw!AA:AA),"") -> 0.03734117647 | R39: =IFERROR(AVERAGEIF(Raw!$D:$D,Avg_all!$A39,Raw!AB:AB),"") -> 1.012491176 | S39: =IFERROR(AVERAGEIF(Raw!$D:$D,Avg_all!$A39,Raw!AC:AC),"") -> 0.07677058824 | T39: =IFERROR(AVERAGEIF(Raw!$D:$D,Avg_all!$A39,Raw!AD:AD),"") -> 0.003985294118 | U39: =IFERROR(AVERAGEIF(Raw!$D:$D,Avg_all!$A39,Raw!AE:AE),"") -> 6.076965 | V39: =IFERROR(AVERAGEIF(Raw!$D:$D,Avg_all!$A39,Raw!AF:AF),"") -> 0.1411625 | W39: =IFERROR(AVERAGEIF(Raw!$D:$D,Avg_all!$A39,Raw!AG:AG),"") -> 0.372385 | X39: =IFERROR(AVERAGEIF(Raw!$D:$D,Avg_all!$A39,Raw!AH:AH),"") -> 0.5076875 | Y39: =IFERROR(AVERAGEIF(Raw!$D:$D,Avg_all!$A39,Raw!AI:AI),"") -> -1.256285 | Z39: =IFERROR(AVERAGEIF(Raw!$D:$D,Avg_all!$A39,Raw!AJ:AJ),"") -> 0.1290675 | AA39: =IFERROR(AVERAGEIF(Raw!$D:$D,Avg_all!$A39,Raw!AK:AK),"") -> -0.0434425
A40: 跨國--全球股票 | B40: 跨國--全球股票 | C40: =IFERROR(AVERAGEIF(Raw!$D:$D,Avg_all!$A40,Raw!E:E),"") -> 4.04608 | D40: =IFERROR(AVERAGEIF(Raw!$D:$D,Avg_all!$A40,Raw!G:G),"") -> 8.517657658 | E40: =IFERROR(AVERAGEIF(Raw!$D:$D,Avg_all!$A40,Raw!I:I),"") -> 12.37642105 | F40: =IFERROR(AVERAGEIF(Raw!$D:$D,Avg_all!$A40,Raw!K:K),"") -> 8.371076923 | G40: =IFERROR(AVERAGEIF(Raw!$D:$D,Avg_all!$A40,Raw!M:M),"") -> 11.76145833 | H40: =IFERROR(AVERAGEIF(Raw!$D:$D,Avg_all!$A40,Raw!O:O),"") -> 48.45055556 | I40: =IFERROR(AVERAGEIF(Raw!$D:$D,Avg_all!$A40,Raw!Q:Q),"") -> 34.754 | J40: =IFERROR(AVERAGEIF(Raw!$D:$D,Avg_all!$A40,Raw!S:S),"") -> 11.10211538 | K40: =IFERROR(AVERAGEIF(Raw!$D:$D,Avg_all!$A40,Raw!U:U),"") -> 7.73296 | L40: =IFERROR(AVERAGEIF(Raw!$D:$D,Avg_all!$A40,Raw!V:V),"") -> -5.71368 | M40: =IFERROR(AVERAGEIF(Raw!$D:$D,Avg_all!$A40,Raw!W:W),"") -> 25.97423358 | N40: =IFERROR(AVERAGEIF(Raw!$D:$D,Avg_all!$A40,Raw!X:X),"") -> 10.49073692 | O40: =IFERROR(AVERAGEIF(Raw!$D:$D,Avg_all!$A40,Raw!Y:Y),"") -> 0.6798338462 | P40: =IFERROR(AVERAGEIF(Raw!$D:$D,Avg_all!$A40,Raw!Z:Z),"") -> 0.11902 | Q40: =IFERROR(AVERAGEIF(Raw!$D:$D,Avg_all!$A40,Raw!AA:AA),"") -> -0.3642923077 | R40: =IFERROR(AVERAGEIF(Raw!$D:$D,Avg_all!$A40,Raw!AB:AB),"") -> 0.5637692308 | S40: =IFERROR(AVERAGEIF(Raw!$D:$D,Avg_all!$A40,Raw!AC:AC),"") -> -0.0008 | T40: =IFERROR(AVERAGEIF(Raw!$D:$D,Avg_all!$A40,Raw!AD:AD),"") -> -0.009809230769 | U40: =IFERROR(AVERAGEIF(Raw!$D:$D,Avg_all!$A40,Raw!AE:AE),"") -> 7.676230526 | V40: =IFERROR(AVERAGEIF(Raw!$D:$D,Avg_all!$A40,Raw!AF:AF),"") -> 0.6729631579 | W40: =IFERROR(AVERAGEIF(Raw!$D:$D,Avg_all!$A40,Raw!AG:AG),"") -> 0.4499968421 | X40: =IFERROR(AVERAGEIF(Raw!$D:$D,Avg_all!$A40,Raw!AH:AH),"") -> 0.03176 | Y40: =IFERROR(AVERAGEIF(Raw!$D:$D,Avg_all!$A40,Raw!AI:AI),"") -> 1.553288421 | Z40: =IFERROR(AVERAGEIF(Raw!$D:$D,Avg_all!$A40,Raw!AJ:AJ),"") -> 0.07140736842 | AA40: =IFERROR(AVERAGEIF(Raw!$D:$D,Avg_all!$A40,Raw!AK:AK),"") -> 0.009881052632
A41: 跨國--全球資源 | B41: 跨國--全球資源 | C41: =IFERROR(AVERAGEIF(Raw!$D:$D,Avg_all!$A41,Raw!E:E),"") -> 3.224285714 | D41: =IFERROR(AVERAGEIF(Raw!$D:$D,Avg_all!$A41,Raw!G:G),"") -> -1.282857143 | E41: =IFERROR(AVERAGEIF(Raw!$D:$D,Avg_all!$A41,Raw!I:I),"") -> -1.534285714 | F41: =IFERROR(AVERAGEIF(Raw!$D:$D,Avg_all!$A41,Raw!K:K),"") -> 1.643571429 | G41: =IFERROR(AVERAGEIF(Raw!$D:$D,Avg_all!$A41,Raw!M:M),"") -> -14.80428571 | H41: =IFERROR(AVERAGEIF(Raw!$D:$D,Avg_all!$A41,Raw!O:O),"") -> -2.240769231 | I41: =IFERROR(AVERAGEIF(Raw!$D:$D,Avg_all!$A41,Raw!Q:Q),"") -> -31.12333333 | J41: =IFERROR(AVERAGEIF(Raw!$D:$D,Avg_all!$A41,Raw!S:S),"") -> -4.287142857 | K41: =IFERROR(AVERAGEIF(Raw!$D:$D,Avg_all!$A41,Raw!U:U),"") -> 13.00857143 | L41: =IFERROR(AVERAGEIF(Raw!$D:$D,Avg_all!$A41,Raw!V:V),"") -> -12.85857143 | M41: =IFERROR(AVERAGEIF(Raw!$D:$D,Avg_all!$A41,Raw!W:W),"") -> -7.961333333 | N41: =IFERROR(AVERAGEIF(Raw!$D:$D,Avg_all!$A41,Raw!X:X),"") -> 12.89591429 | O41: =IFERROR(AVERAGEIF(Raw!$D:$D,Avg_all!$A41,Raw!Y:Y),"") -> 0.6084 | P41: =IFERROR(AVERAGEIF(Raw!$D:$D,Avg_all!$A41,Raw!Z:Z),"") -> -0.001842857143 | Q41: =IFERROR(AVERAGEIF(Raw!$D:$D,Avg_all!$A41,Raw!AA:AA),"") -> -0.54235 | R41: =IFERROR(AVERAGEIF(Raw!$D:$D,Avg_all!$A41,Raw!AB:AB),"") -> 0.1647857143 | S41: =IFERROR(AVERAGEIF(Raw!$D:$D,Avg_all!$A41,Raw!AC:AC),"") -> -0.1260428571 | T41: =IFERROR(AVERAGEIF(Raw!$D:$D,Avg_all!$A41,Raw!AD:AD),"") -> -0.03124285714 | U41: =IFERROR(AVERAGEIF(Raw!$D:$D,Avg_all!$A41,Raw!AE:AE),"") -> 10.21352857 | V41: =IFERROR(AVERAGEIF(Raw!$D:$D,Avg_all!$A41,Raw!AF:AF),"") -> 0.1717642857 | W41: =IFERROR(AVERAGEIF(Raw!$D:$D,Avg_all!$A41,Raw!AG:AG),"") -> -0.04755 | X41: =IFERROR(AVERAGEIF(Raw!$D:$D,Avg_all!$A41,Raw!AH:AH),"") -> -0.3839571429 | Y41: =IFERROR(AVERAGEIF(Raw!$D:$D,Avg_all!$A41,Raw!AI:AI),"") -> -69.16289286 | Z41: =IFERROR(AVERAGEIF(Raw!$D:$D,Avg_all!$A41,Raw!AJ:AJ),"") -> -0.3272285714 | AA41: =IFERROR(AVERAGEIF(Raw!$D:$D,Avg_all!$A41,Raw!AK:AK),"") -> 0.03174285714
A42: 跨國投資--日本 | B42: 跨國投資--日本 | C42: =IFERROR(AVERAGEIF(Raw!$D:$D,Avg_all!$A42,Raw!E:E),"") ->  | D42: =IFERROR(AVERAGEIF(Raw!$D:$D,Avg_all!$A42,Raw!G:G),"") ->  | E42: =IFERROR(AVERAGEIF(Raw!$D:$D,Avg_all!$A42,Raw!I:I),"") ->  | F42: =IFERROR(AVERAGEIF(Raw!$D:$D,Avg_all!$A42,Raw!K:K),"") ->  | G42: =IFERROR(AVERAGEIF(Raw!$D:$D,Avg_all!$A42,Raw!M:M),"") ->  | H42: =IFERROR(AVERAGEIF(Raw!$D:$D,Avg_all!$A42,Raw!O:O),"") ->  | I42: =IFERROR(AVERAGEIF(Raw!$D:$D,Avg_all!$A42,Raw!Q:Q),"") ->  | J42: =IFERROR(AVERAGEIF(Raw!$D:$D,Avg_all!$A42,Raw!S:S),"") ->  | K42: =IFERROR(AVERAGEIF(Raw!$D:$D,Avg_all!$A42,Raw!U:U),"") ->  | L42: =IFERROR(AVERAGEIF(Raw!$D:$D,Avg_all!$A42,Raw!V:V),"") ->  | M42: =IFERROR(AVERAGEIF(Raw!$D:$D,Avg_all!$A42,Raw!W:W),"") ->  | N42: =IFERROR(AVERAGEIF(Raw!$D:$D,Avg_all!$A42,Raw!X:X),"") ->  | O42: =IFERROR(AVERAGEIF(Raw!$D:$D,Avg_all!$A42,Raw!Y:Y),"") ->  | P42: =IFERROR(AVERAGEIF(Raw!$D:$D,Avg_all!$A42,Raw!Z:Z),"") ->  | Q42: =IFERROR(AVERAGEIF(Raw!$D:$D,Avg_all!$A42,Raw!AA:AA),"") ->  | R42: =IFERROR(AVERAGEIF(Raw!$D:$D,Avg_all!$A42,Raw!AB:AB),"") ->  | S42: =IFERROR(AVERAGEIF(Raw!$D:$D,Avg_all!$A42,Raw!AC:AC),"") ->  | T42: =IFERROR(AVERAGEIF(Raw!$D:$D,Avg_all!$A42,Raw!AD:AD),"") ->  | U42: =IFERROR(AVERAGEIF(Raw!$D:$D,Avg_all!$A42,Raw!AE:AE),"") ->  | V42: =IFERROR(AVERAGEIF(Raw!$D:$D,Avg_all!$A42,Raw!AF:AF),"") ->  | W42: =IFERROR(AVERAGEIF(Raw!$D:$D,Avg_all!$A42,Raw!AG:AG),"") ->  | X42: =IFERROR(AVERAGEIF(Raw!$D:$D,Avg_all!$A42,Raw!AH:AH),"") ->  | Y42: =IFERROR(AVERAGEIF(Raw!$D:$D,Avg_all!$A42,Raw!AI:AI),"") ->  | Z42: =IFERROR(AVERAGEIF(Raw!$D:$D,Avg_all!$A42,Raw!AJ:AJ),"") ->  | AA42: =IFERROR(AVERAGEIF(Raw!$D:$D,Avg_all!$A42,Raw!AK:AK),"") -> 
A43: 跨國投資--亞洲 | B43: 跨國投資--亞洲 | C43: =IFERROR(AVERAGEIF(Raw!$D:$D,Avg_all!$A43,Raw!E:E),"") -> 7.665285714 | D43: =IFERROR(AVERAGEIF(Raw!$D:$D,Avg_all!$A43,Raw!G:G),"") -> 14.13528571 | E43: =IFERROR(AVERAGEIF(Raw!$D:$D,Avg_all!$A43,Raw!I:I),"") -> 14.544 | F43: =IFERROR(AVERAGEIF(Raw!$D:$D,Avg_all!$A43,Raw!K:K),"") -> 21.25181818 | G43: =IFERROR(AVERAGEIF(Raw!$D:$D,Avg_all!$A43,Raw!M:M),"") -> 13.88243902 | H43: =IFERROR(AVERAGEIF(Raw!$D:$D,Avg_all!$A43,Raw!O:O),"") -> 45.88388889 | I43: =IFERROR(AVERAGEIF(Raw!$D:$D,Avg_all!$A43,Raw!Q:Q),"") -> 8.846470588 | J43: =IFERROR(AVERAGEIF(Raw!$D:$D,Avg_all!$A43,Raw!S:S),"") -> 19.52685714 | K43: =IFERROR(AVERAGEIF(Raw!$D:$D,Avg_all!$A43,Raw!U:U),"") -> 12.03842857 | L43: =IFERROR(AVERAGEIF(Raw!$D:$D,Avg_all!$A43,Raw!V:V),"") -> -12.26328571 | M43: =IFERROR(AVERAGEIF(Raw!$D:$D,Avg_all!$A43,Raw!W:W),"") -> 44.51014085 | N43: =IFERROR(AVERAGEIF(Raw!$D:$D,Avg_all!$A43,Raw!X:X),"") -> 10.96550909 | O43: =IFERROR(AVERAGEIF(Raw!$D:$D,Avg_all!$A43,Raw!Y:Y),"") -> 0.7622436364 | P43: =IFERROR(AVERAGEIF(Raw!$D:$D,Avg_all!$A43,Raw!Z:Z),"") -> 0.2489218182 | Q43: =IFERROR(AVERAGEIF(Raw!$D:$D,Avg_all!$A43,Raw!AA:AA),"") -> 0.02286363636 | R43: =IFERROR(AVERAGEIF(Raw!$D:$D,Avg_all!$A43,Raw!AB:AB),"") -> 1.088829091 | S43: =IFERROR(AVERAGEIF(Raw!$D:$D,Avg_all!$A43,Raw!AC:AC),"") -> 0.01145090909 | T43: =IFERROR(AVERAGEIF(Raw!$D:$D,Avg_all!$A43,Raw!AD:AD),"") -> 0.004256363636 | U43: =IFERROR(AVERAGEIF(Raw!$D:$D,Avg_all!$A43,Raw!AE:AE),"") -> 8.520992857 | V43: =IFERROR(AVERAGEIF(Raw!$D:$D,Avg_all!$A43,Raw!AF:AF),"") -> 0.72914 | W43: =IFERROR(AVERAGEIF(Raw!$D:$D,Avg_all!$A43,Raw!AG:AG),"") -> 0.4486842857 | X43: =IFERROR(AVERAGEIF(Raw!$D:$D,Avg_all!$A43,Raw!AH:AH),"") -> 0.1295728571 | Y43: =IFERROR(AVERAGEIF(Raw!$D:$D,Avg_all!$A43,Raw!AI:AI),"") -> 0.8324742857 | Z43: =IFERROR(AVERAGEIF(Raw!$D:$D,Avg_all!$A43,Raw!AJ:AJ),"") -> -0.09830428571 | AA43: =IFERROR(AVERAGEIF(Raw!$D:$D,Avg_all!$A43,Raw!AK:AK),"") -> -0.01528142857
A44: 跨國投資--美國 | B44: 跨國投資--美國 | C44: =IFERROR(AVERAGEIF(Raw!$D:$D,Avg_all!$A44,Raw!E:E),"") ->  | D44: =IFERROR(AVERAGEIF(Raw!$D:$D,Avg_all!$A44,Raw!G:G),"") ->  | E44: =IFERROR(AVERAGEIF(Raw!$D:$D,Avg_all!$A44,Raw!I:I),"") ->  | F44: =IFERROR(AVERAGEIF(Raw!$D:$D,Avg_all!$A44,Raw!K:K),"") ->  | G44: =IFERROR(AVERAGEIF(Raw!$D:$D,Avg_all!$A44,Raw!M:M),"") ->  | H44: =IFERROR(AVERAGEIF(Raw!$D:$D,Avg_all!$A44,Raw!O:O),"") ->  | I44: =IFERROR(AVERAGEIF(Raw!$D:$D,Avg_all!$A44,Raw!Q:Q),"") ->  | J44: =IFERROR(AVERAGEIF(Raw!$D:$D,Avg_all!$A44,Raw!S:S),"") ->  | K44: =IFERROR(AVERAGEIF(Raw!$D:$D,Avg_all!$A44,Raw!U:U),"") ->  | L44: =IFERROR(AVERAGEIF(Raw!$D:$D,Avg_all!$A44,Raw!V:V),"") ->  | M44: =IFERROR(AVERAGEIF(Raw!$D:$D,Avg_all!$A44,Raw!W:W),"") ->  | N44: =IFERROR(AVERAGEIF(Raw!$D:$D,Avg_all!$A44,Raw!X:X),"") ->  | O44: =IFERROR(AVERAGEIF(Raw!$D:$D,Avg_all!$A44,Raw!Y:Y),"") ->  | P44: =IFERROR(AVERAGEIF(Raw!$D:$D,Avg_all!$A44,Raw!Z:Z),"") ->  | Q44: =IFERROR(AVERAGEIF(Raw!$D:$D,Avg_all!$A44,Raw!AA:AA),"") ->  | R44: =IFERROR(AVERAGEIF(Raw!$D:$D,Avg_all!$A44,Raw!AB:AB),"") ->  | S44: =IFERROR(AVERAGEIF(Raw!$D:$D,Avg_all!$A44,Raw!AC:AC),"") ->  | T44: =IFERROR(AVERAGEIF(Raw!$D:$D,Avg_all!$A44,Raw!AD:AD),"") ->  | U44: =IFERROR(AVERAGEIF(Raw!$D:$D,Avg_all!$A44,Raw!AE:AE),"") ->  | V44: =IFERROR(AVERAGEIF(Raw!$D:$D,Avg_all!$A44,Raw!AF:AF),"") ->  | W44: =IFERROR(AVERAGEIF(Raw!$D:$D,Avg_all!$A44,Raw!AG:AG),"") ->  | X44: =IFERROR(AVERAGEIF(Raw!$D:$D,Avg_all!$A44,Raw!AH:AH),"") ->  | Y44: =IFERROR(AVERAGEIF(Raw!$D:$D,Avg_all!$A44,Raw!AI:AI),"") ->  | Z44: =IFERROR(AVERAGEIF(Raw!$D:$D,Avg_all!$A44,Raw!AJ:AJ),"") ->  | AA44: =IFERROR(AVERAGEIF(Raw!$D:$D,Avg_all!$A44,Raw!AK:AK),"") -> 
A45: 跨國投資--歐洲 | B45: 跨國投資--歐洲 | C45: =IFERROR(AVERAGEIF(Raw!$D:$D,Avg_all!$A45,Raw!E:E),"") -> 0.9453846154 | D45: =IFERROR(AVERAGEIF(Raw!$D:$D,Avg_all!$A45,Raw!G:G),"") -> 11.91461538 | E45: =IFERROR(AVERAGEIF(Raw!$D:$D,Avg_all!$A45,Raw!I:I),"") -> 14.02846154 | F45: =IFERROR(AVERAGEIF(Raw!$D:$D,Avg_all!$A45,Raw!K:K),"") -> 5.729 | G45: =IFERROR(AVERAGEIF(Raw!$D:$D,Avg_all!$A45,Raw!M:M),"") -> 1.152 | H45: =IFERROR(AVERAGEIF(Raw!$D:$D,Avg_all!$A45,Raw!O:O),"") -> 37.598 | I45: =IFERROR(AVERAGEIF(Raw!$D:$D,Avg_all!$A45,Raw!Q:Q),"") -> -13.052 | J45: =IFERROR(AVERAGEIF(Raw!$D:$D,Avg_all!$A45,Raw!S:S),"") -> 10.74153846 | K45: =IFERROR(AVERAGEIF(Raw!$D:$D,Avg_all!$A45,Raw!U:U),"") -> 10.9 | L45: =IFERROR(AVERAGEIF(Raw!$D:$D,Avg_all!$A45,Raw!V:V),"") -> -9.669230769 | M45: =IFERROR(AVERAGEIF(Raw!$D:$D,Avg_all!$A45,Raw!W:W),"") -> 15.46615385 | N45: =IFERROR(AVERAGEIF(Raw!$D:$D,Avg_all!$A45,Raw!X:X),"") -> 11.27477 | O45: =IFERROR(AVERAGEIF(Raw!$D:$D,Avg_all!$A45,Raw!Y:Y),"") -> 0.69593 | P45: =IFERROR(AVERAGEIF(Raw!$D:$D,Avg_all!$A45,Raw!Z:Z),"") -> 0.06993 | Q45: =IFERROR(AVERAGEIF(Raw!$D:$D,Avg_all!$A45,Raw!AA:AA),"") -> -0.47031 | R45: =IFERROR(AVERAGEIF(Raw!$D:$D,Avg_all!$A45,Raw!AB:AB),"") -> 0.32363 | S45: =IFERROR(AVERAGEIF(Raw!$D:$D,Avg_all!$A45,Raw!AC:AC),"") -> -0.16319 | T45: =IFERROR(AVERAGEIF(Raw!$D:$D,Avg_all!$A45,Raw!AD:AD),"") -> 0.00228 | U45: =IFERROR(AVERAGEIF(Raw!$D:$D,Avg_all!$A45,Raw!AE:AE),"") -> 9.4525 | V45: =IFERROR(AVERAGEIF(Raw!$D:$D,Avg_all!$A45,Raw!AF:AF),"") -> 0.6804384615 | W45: =IFERROR(AVERAGEIF(Raw!$D:$D,Avg_all!$A45,Raw!AG:AG),"") -> 0.4005769231 | X45: =IFERROR(AVERAGEIF(Raw!$D:$D,Avg_all!$A45,Raw!AH:AH),"") -> 0.1732384615 | Y45: =IFERROR(AVERAGEIF(Raw!$D:$D,Avg_all!$A45,Raw!AI:AI),"") -> 1.958153846 | Z45: =IFERROR(AVERAGEIF(Raw!$D:$D,Avg_all!$A45,Raw!AJ:AJ),"") -> -0.0321 | AA45: =IFERROR(AVERAGEIF(Raw!$D:$D,Avg_all!$A45,Raw!AK:AK),"") -> -0.005946153846
A46: 跨國--其他單一國 | B46: 跨國--其他單一國 | C46: =IFERROR(AVERAGEIF(Raw!$D:$D,Avg_all!$A46,Raw!E:E),"") ->  | D46: =IFERROR(AVERAGEIF(Raw!$D:$D,Avg_all!$A46,Raw!G:G),"") ->  | E46: =IFERROR(AVERAGEIF(Raw!$D:$D,Avg_all!$A46,Raw!I:I),"") ->  | F46: =IFERROR(AVERAGEIF(Raw!$D:$D,Avg_all!$A46,Raw!K:K),"") ->  | G46: =IFERROR(AVERAGEIF(Raw!$D:$D,Avg_all!$A46,Raw!M:M),"") ->  | H46: =IFERROR(AVERAGEIF(Raw!$D:$D,Avg_all!$A46,Raw!O:O),"") ->  | I46: =IFERROR(AVERAGEIF(Raw!$D:$D,Avg_all!$A46,Raw!Q:Q),"") ->  | J46: =IFERROR(AVERAGEIF(Raw!$D:$D,Avg_all!$A46,Raw!S:S),"") ->  | K46: =IFERROR(AVERAGEIF(Raw!$D:$D,Avg_all!$A46,Raw!U:U),"") ->  | L46: =IFERROR(AVERAGEIF(Raw!$D:$D,Avg_all!$A46,Raw!V:V),"") ->  | M46: =IFERROR(AVERAGEIF(Raw!$D:$D,Avg_all!$A46,Raw!W:W),"") ->  | N46: =IFERROR(AVERAGEIF(Raw!$D:$D,Avg_all!$A46,Raw!X:X),"") ->  | O46: =IFERROR(AVERAGEIF(Raw!$D:$D,Avg_all!$A46,Raw!Y:Y),"") ->  | P46: =IFERROR(AVERAGEIF(Raw!$D:$D,Avg_all!$A46,Raw!Z:Z),"") ->  | Q46: =IFERROR(AVERAGEIF(Raw!$D:$D,Avg_all!$A46,Raw!AA:AA),"") ->  | R46: =IFERROR(AVERAGEIF(Raw!$D:$D,Avg_all!$A46,Raw!AB:AB),"") ->  | S46: =IFERROR(AVERAGEIF(Raw!$D:$D,Avg_all!$A46,Raw!AC:AC),"") ->  | T46: =IFERROR(AVERAGEIF(Raw!$D:$D,Avg_all!$A46,Raw!AD:AD),"") ->  | U46: =IFERROR(AVERAGEIF(Raw!$D:$D,Avg_all!$A46,Raw!AE:AE),"") ->  | V46: =IFERROR(AVERAGEIF(Raw!$D:$D,Avg_all!$A46,Raw!AF:AF),"") ->  | W46: =IFERROR(AVERAGEIF(Raw!$D:$D,Avg_all!$A46,Raw!AG:AG),"") ->  | X46: =IFERROR(AVERAGEIF(Raw!$D:$D,Avg_all!$A46,Raw!AH:AH),"") ->  | Y46: =IFERROR(AVERAGEIF(Raw!$D:$D,Avg_all!$A46,Raw!AI:AI),"") ->  | Z46: =IFERROR(AVERAGEIF(Raw!$D:$D,Avg_all!$A46,Raw!AJ:AJ),"") ->  | AA46: =IFERROR(AVERAGEIF(Raw!$D:$D,Avg_all!$A46,Raw!AK:AK),"") -> 
A47: 跨國股組合--一般 | B47: 跨國股組合--一般 | C47: =IFERROR(AVERAGEIF(Raw!$D:$D,Avg_all!$A47,Raw!E:E),"") -> 2.53 | D47: =IFERROR(AVERAGEIF(Raw!$D:$D,Avg_all!$A47,Raw!G:G),"") -> 4.381538462 | E47: =IFERROR(AVERAGEIF(Raw!$D:$D,Avg_all!$A47,Raw!I:I),"") -> 7.29 | F47: =IFERROR(AVERAGEIF(Raw!$D:$D,Avg_all!$A47,Raw!K:K),"") -> 6.37 | G47: =IFERROR(AVERAGEIF(Raw!$D:$D,Avg_all!$A47,Raw!M:M),"") -> 5.038 | H47: =IFERROR(AVERAGEIF(Raw!$D:$D,Avg_all!$A47,Raw!O:O),"") -> 26.31857143 | I47: =IFERROR(AVERAGEIF(Raw!$D:$D,Avg_all!$A47,Raw!Q:Q),"") -> 14.35666667 | J47: =IFERROR(AVERAGEIF(Raw!$D:$D,Avg_all!$A47,Raw!S:S),"") -> 4.912307692 | K47: =IFERROR(AVERAGEIF(Raw!$D:$D,Avg_all!$A47,Raw!U:U),"") -> 5.804375 | L47: =IFERROR(AVERAGEIF(Raw!$D:$D,Avg_all!$A47,Raw!V:V),"") -> -6.01 | M47: =IFERROR(AVERAGEIF(Raw!$D:$D,Avg_all!$A47,Raw!W:W),"") -> 11.4875 | N47: =IFERROR(AVERAGEIF(Raw!$D:$D,Avg_all!$A47,Raw!X:X),"") -> 8.72207 | O47: =IFERROR(AVERAGEIF(Raw!$D:$D,Avg_all!$A47,Raw!Y:Y),"") -> 0.66374 | P47: =IFERROR(AVERAGEIF(Raw!$D:$D,Avg_all!$A47,Raw!Z:Z),"") -> 0.08454 | Q47: =IFERROR(AVERAGEIF(Raw!$D:$D,Avg_all!$A47,Raw!AA:AA),"") -> -0.4309 | R47: =IFERROR(AVERAGEIF(Raw!$D:$D,Avg_all!$A47,Raw!AB:AB),"") -> 0.28195 | S47: =IFERROR(AVERAGEIF(Raw!$D:$D,Avg_all!$A47,Raw!AC:AC),"") -> -0.00933 | T47: =IFERROR(AVERAGEIF(Raw!$D:$D,Avg_all!$A47,Raw!AD:AD),"") -> 0.05712 | U47: =IFERROR(AVERAGEIF(Raw!$D:$D,Avg_all!$A47,Raw!AE:AE),"") -> 5.25043 | V47: =IFERROR(AVERAGEIF(Raw!$D:$D,Avg_all!$A47,Raw!AF:AF),"") -> 0.46215 | W47: =IFERROR(AVERAGEIF(Raw!$D:$D,Avg_all!$A47,Raw!AG:AG),"") -> 0.44707 | X47: =IFERROR(AVERAGEIF(Raw!$D:$D,Avg_all!$A47,Raw!AH:AH),"") -> -0.08571 | Y47: =IFERROR(AVERAGEIF(Raw!$D:$D,Avg_all!$A47,Raw!AI:AI),"") -> 0.65582 | Z47: =IFERROR(AVERAGEIF(Raw!$D:$D,Avg_all!$A47,Raw!AJ:AJ),"") -> 0.1437 | AA47: =IFERROR(AVERAGEIF(Raw!$D:$D,Avg_all!$A47,Raw!AK:AK),"") -> 0.20455
A48: 跨國股組合--新興 | B48: 跨國股組合--新興 | C48: =IFERROR(AVERAGEIF(Raw!$D:$D,Avg_all!$A48,Raw!E:E),"") -> 6.775 | D48: =IFERROR(AVERAGEIF(Raw!$D:$D,Avg_all!$A48,Raw!G:G),"") -> 10.76 | E48: =IFERROR(AVERAGEIF(Raw!$D:$D,Avg_all!$A48,Raw!I:I),"") -> 10.73 | F48: =IFERROR(AVERAGEIF(Raw!$D:$D,Avg_all!$A48,Raw!K:K),"") -> 13.155 | G48: =IFERROR(AVERAGEIF(Raw!$D:$D,Avg_all!$A48,Raw!M:M),"") -> -0.1625 | H48: =IFERROR(AVERAGEIF(Raw!$D:$D,Avg_all!$A48,Raw!O:O),"") -> 14.23 | I48: =IFERROR(AVERAGEIF(Raw!$D:$D,Avg_all!$A48,Raw!Q:Q),"") -> -1.09 | J48: =IFERROR(AVERAGEIF(Raw!$D:$D,Avg_all!$A48,Raw!S:S),"") -> 13.7825 | K48: =IFERROR(AVERAGEIF(Raw!$D:$D,Avg_all!$A48,Raw!U:U),"") -> 7.28 | L48: =IFERROR(AVERAGEIF(Raw!$D:$D,Avg_all!$A48,Raw!V:V),"") -> -13.9975 | M48: =IFERROR(AVERAGEIF(Raw!$D:$D,Avg_all!$A48,Raw!W:W),"") -> 8.885 | N48: =IFERROR(AVERAGEIF(Raw!$D:$D,Avg_all!$A48,Raw!X:X),"") -> 9.542375 | O48: =IFERROR(AVERAGEIF(Raw!$D:$D,Avg_all!$A48,Raw!Y:Y),"") -> 0.7382 | P48: =IFERROR(AVERAGEIF(Raw!$D:$D,Avg_all!$A48,Raw!Z:Z),"") -> 0.200375 | Q48: =IFERROR(AVERAGEIF(Raw!$D:$D,Avg_all!$A48,Raw!AA:AA),"") -> -0.2291 | R48: =IFERROR(AVERAGEIF(Raw!$D:$D,Avg_all!$A48,Raw!AB:AB),"") -> 0.735325 | S48: =IFERROR(AVERAGEIF(Raw!$D:$D,Avg_all!$A48,Raw!AC:AC),"") -> 0.171975 | T48: =IFERROR(AVERAGEIF(Raw!$D:$D,Avg_all!$A48,Raw!AD:AD),"") -> 0.0091 | U48: =IFERROR(AVERAGEIF(Raw!$D:$D,Avg_all!$A48,Raw!AE:AE),"") -> 5.35325 | V48: =IFERROR(AVERAGEIF(Raw!$D:$D,Avg_all!$A48,Raw!AF:AF),"") -> 0.501025 | W48: =IFERROR(AVERAGEIF(Raw!$D:$D,Avg_all!$A48,Raw!AG:AG),"") -> 0.515525 | X48: =IFERROR(AVERAGEIF(Raw!$D:$D,Avg_all!$A48,Raw!AH:AH),"") -> 0.13885 | Y48: =IFERROR(AVERAGEIF(Raw!$D:$D,Avg_all!$A48,Raw!AI:AI),"") -> 1.630175 | Z48: =IFERROR(AVERAGEIF(Raw!$D:$D,Avg_all!$A48,Raw!AJ:AJ),"") -> 0.229975 | AA48: =IFERROR(AVERAGEIF(Raw!$D:$D,Avg_all!$A48,Raw!AK:AK),"") -> -0.045925
A49: 跨國組合--平衡型 | B49: 跨國組合--平衡型 | C49: =IFERROR(AVERAGEIF(Raw!$D:$D,Avg_all!$A49,Raw!E:E),"") -> 2.335909091 | D49: =IFERROR(AVERAGEIF(Raw!$D:$D,Avg_all!$A49,Raw!G:G),"") -> 4.718 | E49: =IFERROR(AVERAGEIF(Raw!$D:$D,Avg_all!$A49,Raw!I:I),"") -> 6.229052632 | F49: =IFERROR(AVERAGEIF(Raw!$D:$D,Avg_all!$A49,Raw!K:K),"") -> 10.12553846 | G49: =IFERROR(AVERAGEIF(Raw!$D:$D,Avg_all!$A49,Raw!M:M),"") -> 4.411785714 | H49: =IFERROR(AVERAGEIF(Raw!$D:$D,Avg_all!$A49,Raw!O:O),"") -> 19.94058824 | I49: =IFERROR(AVERAGEIF(Raw!$D:$D,Avg_all!$A49,Raw!Q:Q),"") -> 14.52166667 | J49: =IFERROR(AVERAGEIF(Raw!$D:$D,Avg_all!$A49,Raw!S:S),"") -> 6.8665625 | K49: =IFERROR(AVERAGEIF(Raw!$D:$D,Avg_all!$A49,Raw!U:U),"") -> 4.964 | L49: =IFERROR(AVERAGEIF(Raw!$D:$D,Avg_all!$A49,Raw!V:V),"") -> -4.233 | M49: =IFERROR(AVERAGEIF(Raw!$D:$D,Avg_all!$A49,Raw!W:W),"") -> 11.64803419 | N49: =IFERROR(AVERAGEIF(Raw!$D:$D,Avg_all!$A49,Raw!X:X),"") -> 6.122281538 | O49: =IFERROR(AVERAGEIF(Raw!$D:$D,Avg_all!$A49,Raw!Y:Y),"") -> 0.46158 | P49: =IFERROR(AVERAGEIF(Raw!$D:$D,Avg_all!$A49,Raw!Z:Z),"") -> 0.1708369231 | Q49: =IFERROR(AVERAGEIF(Raw!$D:$D,Avg_all!$A49,Raw!AA:AA),"") -> -0.1259153846 | R49: =IFERROR(AVERAGEIF(Raw!$D:$D,Avg_all!$A49,Raw!AB:AB),"") -> 0.5997061538 | S49: =IFERROR(AVERAGEIF(Raw!$D:$D,Avg_all!$A49,Raw!AC:AC),"") -> 0.07167846154 | T49: =IFERROR(AVERAGEIF(Raw!$D:$D,Avg_all!$A49,Raw!AD:AD),"") -> 0.07244769231 | U49: =IFERROR(AVERAGEIF(Raw!$D:$D,Avg_all!$A49,Raw!AE:AE),"") -> 3.991911579 | V49: =IFERROR(AVERAGEIF(Raw!$D:$D,Avg_all!$A49,Raw!AF:AF),"") -> 0.4724147368 | W49: =IFERROR(AVERAGEIF(Raw!$D:$D,Avg_all!$A49,Raw!AG:AG),"") -> 0.3620489362 | X49: =IFERROR(AVERAGEIF(Raw!$D:$D,Avg_all!$A49,Raw!AH:AH),"") -> -0.1974536842 | Y49: =IFERROR(AVERAGEIF(Raw!$D:$D,Avg_all!$A49,Raw!AI:AI),"") -> 0.9601178947 | Z49: =IFERROR(AVERAGEIF(Raw!$D:$D,Avg_all!$A49,Raw!AJ:AJ),"") -> 0.1533589474 | AA49: =IFERROR(AVERAGEIF(Raw!$D:$D,Avg_all!$A49,Raw!AK:AK),"") -> 0.04478
A50: 跨國--新興市場 | B50: 跨國--新興市場 | C50: =IFERROR(AVERAGEIF(Raw!$D:$D,Avg_all!$A50,Raw!E:E),"") -> 9.946086957 | D50: =IFERROR(AVERAGEIF(Raw!$D:$D,Avg_all!$A50,Raw!G:G),"") -> 11.33478261 | E50: =IFERROR(AVERAGEIF(Raw!$D:$D,Avg_all!$A50,Raw!I:I),"") -> 14.525 | F50: =IFERROR(AVERAGEIF(Raw!$D:$D,Avg_all!$A50,Raw!K:K),"") -> 20.39318182 | G50: =IFERROR(AVERAGEIF(Raw!$D:$D,Avg_all!$A50,Raw!M:M),"") -> 2.820909091 | H50: =IFERROR(AVERAGEIF(Raw!$D:$D,Avg_all!$A50,Raw!O:O),"") -> 17.313 | I50: =IFERROR(AVERAGEIF(Raw!$D:$D,Avg_all!$A50,Raw!Q:Q),"") -> -12.74333333 | J50: =IFERROR(AVERAGEIF(Raw!$D:$D,Avg_all!$A50,Raw!S:S),"") -> 15.21652174 | K50: =IFERROR(AVERAGEIF(Raw!$D:$D,Avg_all!$A50,Raw!U:U),"") -> 12.89391304 | L50: =IFERROR(AVERAGEIF(Raw!$D:$D,Avg_all!$A50,Raw!V:V),"") -> -13.60043478 | M50: =IFERROR(AVERAGEIF(Raw!$D:$D,Avg_all!$A50,Raw!W:W),"") -> 13.11416667 | N50: =IFERROR(AVERAGEIF(Raw!$D:$D,Avg_all!$A50,Raw!X:X),"") -> 12.64407273 | O50: =IFERROR(AVERAGEIF(Raw!$D:$D,Avg_all!$A50,Raw!Y:Y),"") -> 0.7272818182 | P50: =IFERROR(AVERAGEIF(Raw!$D:$D,Avg_all!$A50,Raw!Z:Z),"") -> 0.2184363636 | Q50: =IFERROR(AVERAGEIF(Raw!$D:$D,Avg_all!$A50,Raw!AA:AA),"") -> 0.04725 | R50: =IFERROR(AVERAGEIF(Raw!$D:$D,Avg_all!$A50,Raw!AB:AB),"") -> 1.065177273 | S50: =IFERROR(AVERAGEIF(Raw!$D:$D,Avg_all!$A50,Raw!AC:AC),"") -> 0.02192272727 | T50: =IFERROR(AVERAGEIF(Raw!$D:$D,Avg_all!$A50,Raw!AD:AD),"") -> -0.01602727273 | U50: =IFERROR(AVERAGEIF(Raw!$D:$D,Avg_all!$A50,Raw!AE:AE),"") -> 9.876427273 | V50: =IFERROR(AVERAGEIF(Raw!$D:$D,Avg_all!$A50,Raw!AF:AF),"") -> 0.2558727273 | W50: =IFERROR(AVERAGEIF(Raw!$D:$D,Avg_all!$A50,Raw!AG:AG),"") -> 0.4664681818 | X50: =IFERROR(AVERAGEIF(Raw!$D:$D,Avg_all!$A50,Raw!AH:AH),"") -> 0.7682772727 | Y50: =IFERROR(AVERAGEIF(Raw!$D:$D,Avg_all!$A50,Raw!AI:AI),"") -> 3.856513636 | Z50: =IFERROR(AVERAGEIF(Raw!$D:$D,Avg_all!$A50,Raw!AJ:AJ),"") -> -0.004931818182 | AA50: =IFERROR(AVERAGEIF(Raw!$D:$D,Avg_all!$A50,Raw!AK:AK),"") -> -0.003172727273
A51: 其他市場ETF | B51: 其他市場ETF | C51: =IFERROR(AVERAGEIF(Raw!$D:$D,Avg_all!$A51,Raw!E:E),"") -> 4.146666667 | D51: =IFERROR(AVERAGEIF(Raw!$D:$D,Avg_all!$A51,Raw!G:G),"") -> 11.51 | E51: =IFERROR(AVERAGEIF(Raw!$D:$D,Avg_all!$A51,Raw!I:I),"") -> 10.245 | F51: =IFERROR(AVERAGEIF(Raw!$D:$D,Avg_all!$A51,Raw!K:K),"") ->  | G51: =IFERROR(AVERAGEIF(Raw!$D:$D,Avg_all!$A51,Raw!M:M),"") ->  | H51: =IFERROR(AVERAGEIF(Raw!$D:$D,Avg_all!$A51,Raw!O:O),"") ->  | I51: =IFERROR(AVERAGEIF(Raw!$D:$D,Avg_all!$A51,Raw!Q:Q),"") ->  | J51: =IFERROR(AVERAGEIF(Raw!$D:$D,Avg_all!$A51,Raw!S:S),"") -> 17.92666667 | K51: =IFERROR(AVERAGEIF(Raw!$D:$D,Avg_all!$A51,Raw!U:U),"") -> 10.99666667 | L51: =IFERROR(AVERAGEIF(Raw!$D:$D,Avg_all!$A51,Raw!V:V),"") -> -5.866666667 | M51: =IFERROR(AVERAGEIF(Raw!$D:$D,Avg_all!$A51,Raw!W:W),"") -> 12.648 | N51: =IFERROR(AVERAGEIF(Raw!$D:$D,Avg_all!$A51,Raw!X:X),"") ->  | O51: =IFERROR(AVERAGEIF(Raw!$D:$D,Avg_all!$A51,Raw!Y:Y),"") ->  | P51: =IFERROR(AVERAGEIF(Raw!$D:$D,Avg_all!$A51,Raw!Z:Z),"") ->  | Q51: =IFERROR(AVERAGEIF(Raw!$D:$D,Avg_all!$A51,Raw!AA:AA),"") ->  | R51: =IFERROR(AVERAGEIF(Raw!$D:$D,Avg_all!$A51,Raw!AB:AB),"") ->  | S51: =IFERROR(AVERAGEIF(Raw!$D:$D,Avg_all!$A51,Raw!AC:AC),"") ->  | T51: =IFERROR(AVERAGEIF(Raw!$D:$D,Avg_all!$A51,Raw!AD:AD),"") ->  | U51: =IFERROR(AVERAGEIF(Raw!$D:$D,Avg_all!$A51,Raw!AE:AE),"") -> 9.48625 | V51: =IFERROR(AVERAGEIF(Raw!$D:$D,Avg_all!$A51,Raw!AF:AF),"") -> 1.13435 | W51: =IFERROR(AVERAGEIF(Raw!$D:$D,Avg_all!$A51,Raw!AG:AG),"") -> 0.33465 | X51: =IFERROR(AVERAGEIF(Raw!$D:$D,Avg_all!$A51,Raw!AH:AH),"") -> -0.7199 | Y51: =IFERROR(AVERAGEIF(Raw!$D:$D,Avg_all!$A51,Raw!AI:AI),"") -> 0.99845 | Z51: =IFERROR(AVERAGEIF(Raw!$D:$D,Avg_all!$A51,Raw!AJ:AJ),"") -> -0.0835 | AA51: =IFERROR(AVERAGEIF(Raw!$D:$D,Avg_all!$A51,Raw!AK:AK),"") -> -0.07445
A52: 美國ETF | B52: 美國ETF | C52: =IFERROR(AVERAGEIF(Raw!$D:$D,Avg_all!$A52,Raw!E:E),"") -> 7.08 | D52: =IFERROR(AVERAGEIF(Raw!$D:$D,Avg_all!$A52,Raw!G:G),"") -> 7.345 | E52: =IFERROR(AVERAGEIF(Raw!$D:$D,Avg_all!$A52,Raw!I:I),"") -> 13.49 | F52: =IFERROR(AVERAGEIF(Raw!$D:$D,Avg_all!$A52,Raw!K:K),"") ->  | G52: =IFERROR(AVERAGEIF(Raw!$D:$D,Avg_all!$A52,Raw!M:M),"") ->  | H52: =IFERROR(AVERAGEIF(Raw!$D:$D,Avg_all!$A52,Raw!O:O),"") ->  | I52: =IFERROR(AVERAGEIF(Raw!$D:$D,Avg_all!$A52,Raw!Q:Q),"") ->  | J52: =IFERROR(AVERAGEIF(Raw!$D:$D,Avg_all!$A52,Raw!S:S),"") -> 7.386666667 | K52: =IFERROR(AVERAGEIF(Raw!$D:$D,Avg_all!$A52,Raw!U:U),"") -> 10.0775 | L52: =IFERROR(AVERAGEIF(Raw!$D:$D,Avg_all!$A52,Raw!V:V),"") -> -2.025 | M52: =IFERROR(AVERAGEIF(Raw!$D:$D,Avg_all!$A52,Raw!W:W),"") -> 12.97 | N52: =IFERROR(AVERAGEIF(Raw!$D:$D,Avg_all!$A52,Raw!X:X),"") ->  | O52: =IFERROR(AVERAGEIF(Raw!$D:$D,Avg_all!$A52,Raw!Y:Y),"") ->  | P52: =IFERROR(AVERAGEIF(Raw!$D:$D,Avg_all!$A52,Raw!Z:Z),"") ->  | Q52: =IFERROR(AVERAGEIF(Raw!$D:$D,Avg_all!$A52,Raw!AA:AA),"") ->  | R52: =IFERROR(AVERAGEIF(Raw!$D:$D,Avg_all!$A52,Raw!AB:AB),"") ->  | S52: =IFERROR(AVERAGEIF(Raw!$D:$D,Avg_all!$A52,Raw!AC:AC),"") ->  | T52: =IFERROR(AVERAGEIF(Raw!$D:$D,Avg_all!$A52,Raw!AD:AD),"") ->  | U52: =IFERROR(AVERAGEIF(Raw!$D:$D,Avg_all!$A52,Raw!AE:AE),"") -> 6.074 | V52: =IFERROR(AVERAGEIF(Raw!$D:$D,Avg_all!$A52,Raw!AF:AF),"") -> 0.62045 | W52: =IFERROR(AVERAGEIF(Raw!$D:$D,Avg_all!$A52,Raw!AG:AG),"") -> 0.60215 | X52: =IFERROR(AVERAGEIF(Raw!$D:$D,Avg_all!$A52,Raw!AH:AH),"") -> 0.1859 | Y52: =IFERROR(AVERAGEIF(Raw!$D:$D,Avg_all!$A52,Raw!AI:AI),"") -> 1.74305 | Z52: =IFERROR(AVERAGEIF(Raw!$D:$D,Avg_all!$A52,Raw!AJ:AJ),"") -> 0.30635 | AA52: =IFERROR(AVERAGEIF(Raw!$D:$D,Avg_all!$A52,Raw!AK:AK),"") -> -0.36345
A53: 債券-一般ETF | B53: 債券-一般ETF | C53: =IFERROR(AVERAGEIF(Raw!$D:$D,Avg_all!$A53,Raw!E:E),"") -> 2.222 | D53: =IFERROR(AVERAGEIF(Raw!$D:$D,Avg_all!$A53,Raw!G:G),"") -> 4.32 | E53: =IFERROR(AVERAGEIF(Raw!$D:$D,Avg_all!$A53,Raw!I:I),"") ->  | F53: =IFERROR(AVERAGEIF(Raw!$D:$D,Avg_all!$A53,Raw!K:K),"") ->  | G53: =IFERROR(AVERAGEIF(Raw!$D:$D,Avg_all!$A53,Raw!M:M),"") ->  | H53: =IFERROR(AVERAGEIF(Raw!$D:$D,Avg_all!$A53,Raw!O:O),"") ->  | I53: =IFERROR(AVERAGEIF(Raw!$D:$D,Avg_all!$A53,Raw!Q:Q),"") ->  | J53: =IFERROR(AVERAGEIF(Raw!$D:$D,Avg_all!$A53,Raw!S:S),"") ->  | K53: =IFERROR(AVERAGEIF(Raw!$D:$D,Avg_all!$A53,Raw!U:U),"") -> 2.402 | L53: =IFERROR(AVERAGEIF(Raw!$D:$D,Avg_all!$A53,Raw!V:V),"") -> 0.956 | M53: =IFERROR(AVERAGEIF(Raw!$D:$D,Avg_all!$A53,Raw!W:W),"") -> 1.393333333 | N53: =IFERROR(AVERAGEIF(Raw!$D:$D,Avg_all!$A53,Raw!X:X),"") ->  | O53: =IFERROR(AVERAGEIF(Raw!$D:$D,Avg_all!$A53,Raw!Y:Y),"") ->  | P53: =IFERROR(AVERAGEIF(Raw!$D:$D,Avg_all!$A53,Raw!Z:Z),"") ->  | Q53: =IFERROR(AVERAGEIF(Raw!$D:$D,Avg_all!$A53,Raw!AA:AA),"") ->  | R53: =IFERROR(AVERAGEIF(Raw!$D:$D,Avg_all!$A53,Raw!AB:AB),"") ->  | S53: =IFERROR(AVERAGEIF(Raw!$D:$D,Avg_all!$A53,Raw!AC:AC),"") ->  | T53: =IFERROR(AVERAGEIF(Raw!$D:$D,Avg_all!$A53,Raw!AD:AD),"") ->  | U53: =IFERROR(AVERAGEIF(Raw!$D:$D,Avg_all!$A53,Raw!AE:AE),"") ->  | V53: =IFERROR(AVERAGEIF(Raw!$D:$D,Avg_all!$A53,Raw!AF:AF),"") ->  | W53: =IFERROR(AVERAGEIF(Raw!$D:$D,Avg_all!$A53,Raw!AG:AG),"") ->  | X53: =IFERROR(AVERAGEIF(Raw!$D:$D,Avg_all!$A53,Raw!AH:AH),"") ->  | Y53: =IFERROR(AVERAGEIF(Raw!$D:$D,Avg_all!$A53,Raw!AI:AI),"") ->  | Z53: =IFERROR(AVERAGEIF(Raw!$D:$D,Avg_all!$A53,Raw!AJ:AJ),"") ->  | AA53: =IFERROR(AVERAGEIF(Raw!$D:$D,Avg_all!$A53,Raw!AK:AK),"") -> 
A54: 日本ETF | B54: 日本ETF | C54: =IFERROR(AVERAGEIF(Raw!$D:$D,Avg_all!$A54,Raw!E:E),"") -> 0.9933333333 | D54: =IFERROR(AVERAGEIF(Raw!$D:$D,Avg_all!$A54,Raw!G:G),"") -> 2.463333333 | E54: =IFERROR(AVERAGEIF(Raw!$D:$D,Avg_all!$A54,Raw!I:I),"") -> 16.96 | F54: =IFERROR(AVERAGEIF(Raw!$D:$D,Avg_all!$A54,Raw!K:K),"") ->  | G54: =IFERROR(AVERAGEIF(Raw!$D:$D,Avg_all!$A54,Raw!M:M),"") ->  | H54: =IFERROR(AVERAGEIF(Raw!$D:$D,Avg_all!$A54,Raw!O:O),"") ->  | I54: =IFERROR(AVERAGEIF(Raw!$D:$D,Avg_all!$A54,Raw!Q:Q),"") ->  | J54: =IFERROR(AVERAGEIF(Raw!$D:$D,Avg_all!$A54,Raw!S:S),"") -> 3.693333333 | K54: =IFERROR(AVERAGEIF(Raw!$D:$D,Avg_all!$A54,Raw!U:U),"") -> 14.6 | L54: =IFERROR(AVERAGEIF(Raw!$D:$D,Avg_all!$A54,Raw!V:V),"") -> -6.413333333 | M54: =IFERROR(AVERAGEIF(Raw!$D:$D,Avg_all!$A54,Raw!W:W),"") -> 15.25333333 | N54: =IFERROR(AVERAGEIF(Raw!$D:$D,Avg_all!$A54,Raw!X:X),"") ->  | O54: =IFERROR(AVERAGEIF(Raw!$D:$D,Avg_all!$A54,Raw!Y:Y),"") ->  | P54: =IFERROR(AVERAGEIF(Raw!$D:$D,Avg_all!$A54,Raw!Z:Z),"") ->  | Q54: =IFERROR(AVERAGEIF(Raw!$D:$D,Avg_all!$A54,Raw!AA:AA),"") ->  | R54: =IFERROR(AVERAGEIF(Raw!$D:$D,Avg_all!$A54,Raw!AB:AB),"") ->  | S54: =IFERROR(AVERAGEIF(Raw!$D:$D,Avg_all!$A54,Raw!AC:AC),"") ->  | T54: =IFERROR(AVERAGEIF(Raw!$D:$D,Avg_all!$A54,Raw!AD:AD),"") ->  | U54: =IFERROR(AVERAGEIF(Raw!$D:$D,Avg_all!$A54,Raw!AE:AE),"") -> 8.905866667 | V54: =IFERROR(AVERAGEIF(Raw!$D:$D,Avg_all!$A54,Raw!AF:AF),"") -> -0.6395 | W54: =IFERROR(AVERAGEIF(Raw!$D:$D,Avg_all!$A54,Raw!AG:AG),"") -> 0.4985666667 | X54: =IFERROR(AVERAGEIF(Raw!$D:$D,Avg_all!$A54,Raw!AH:AH),"") -> 2.113466667 | Y54: =IFERROR(AVERAGEIF(Raw!$D:$D,Avg_all!$A54,Raw!AI:AI),"") -> -2.002033333 | Z54: =IFERROR(AVERAGEIF(Raw!$D:$D,Avg_all!$A54,Raw!AJ:AJ),"") -> 0.3110333333 | AA54: =IFERROR(AVERAGEIF(Raw!$D:$D,Avg_all!$A54,Raw!AK:AK),"") -> -0.1276
A55: 其他市場二倍ETF | B55: 其他市場二倍ETF | C55: =IFERROR(AVERAGEIF(Raw!$D:$D,Avg_all!$A55,Raw!E:E),"") -> 14.58 | D55: =IFERROR(AVERAGEIF(Raw!$D:$D,Avg_all!$A55,Raw!G:G),"") -> 25.06333333 | E55: =IFERROR(AVERAGEIF(Raw!$D:$D,Avg_all!$A55,Raw!I:I),"") -> 31.79333333 | F55: =IFERROR(AVERAGEIF(Raw!$D:$D,Avg_all!$A55,Raw!K:K),"") ->  | G55: =IFERROR(AVERAGEIF(Raw!$D:$D,Avg_all!$A55,Raw!M:M),"") ->  | H55: =IFERROR(AVERAGEIF(Raw!$D:$D,Avg_all!$A55,Raw!O:O),"") ->  | I55: =IFERROR(AVERAGEIF(Raw!$D:$D,Avg_all!$A55,Raw!Q:Q),"") ->  | J55: =IFERROR(AVERAGEIF(Raw!$D:$D,Avg_all!$A55,Raw!S:S),"") -> 47.98666667 | K55: =IFERROR(AVERAGEIF(Raw!$D:$D,Avg_all!$A55,Raw!U:U),"") -> 22.00666667 | L55: =IFERROR(AVERAGEIF(Raw!$D:$D,Avg_all!$A55,Raw!V:V),"") -> -11.35333333 | M55: =IFERROR(AVERAGEIF(Raw!$D:$D,Avg_all!$A55,Raw!W:W),"") -> 67.02666667 | N55: =IFERROR(AVERAGEIF(Raw!$D:$D,Avg_all!$A55,Raw!X:X),"") ->  | O55: =IFERROR(AVERAGEIF(Raw!$D:$D,Avg_all!$A55,Raw!Y:Y),"") ->  | P55: =IFERROR(AVERAGEIF(Raw!$D:$D,Avg_all!$A55,Raw!Z:Z),"") ->  | Q55: =IFERROR(AVERAGEIF(Raw!$D:$D,Avg_all!$A55,Raw!AA:AA),"") ->  | R55: =IFERROR(AVERAGEIF(Raw!$D:$D,Avg_all!$A55,Raw!AB:AB),"") ->  | S55: =IFERROR(AVERAGEIF(Raw!$D:$D,Avg_all!$A55,Raw!AC:AC),"") ->  | T55: =IFERROR(AVERAGEIF(Raw!$D:$D,Avg_all!$A55,Raw!AD:AD),"") ->  | U55: =IFERROR(AVERAGEIF(Raw!$D:$D,Avg_all!$A55,Raw!AE:AE),"") -> 22.79676667 | V55: =IFERROR(AVERAGEIF(Raw!$D:$D,Avg_all!$A55,Raw!AF:AF),"") -> 2.538466667 | W55: =IFERROR(AVERAGEIF(Raw!$D:$D,Avg_all!$A55,Raw!AG:AG),"") -> 0.3729666667 | X55: =IFERROR(AVERAGEIF(Raw!$D:$D,Avg_all!$A55,Raw!AH:AH),"") -> -0.9327333333 | Y55: =IFERROR(AVERAGEIF(Raw!$D:$D,Avg_all!$A55,Raw!AI:AI),"") -> 1.0554 | Z55: =IFERROR(AVERAGEIF(Raw!$D:$D,Avg_all!$A55,Raw!AJ:AJ),"") -> 0.2791333333 | AA55: =IFERROR(AVERAGEIF(Raw!$D:$D,Avg_all!$A55,Raw!AK:AK),"") -> 0.1183333333
A56: 其他市場反向ETF | B56: 其他市場反向ETF | C56: =IFERROR(AVERAGEIF(Raw!$D:$D,Avg_all!$A56,Raw!E:E),"") -> -7.573333333 | D56: =IFERROR(AVERAGEIF(Raw!$D:$D,Avg_all!$A56,Raw!G:G),"") -> -13.13333333 | E56: =IFERROR(AVERAGEIF(Raw!$D:$D,Avg_all!$A56,Raw!I:I),"") -> -18.25 | F56: =IFERROR(AVERAGEIF(Raw!$D:$D,Avg_all!$A56,Raw!K:K),"") ->  | G56: =IFERROR(AVERAGEIF(Raw!$D:$D,Avg_all!$A56,Raw!M:M),"") ->  | H56: =IFERROR(AVERAGEIF(Raw!$D:$D,Avg_all!$A56,Raw!O:O),"") ->  | I56: =IFERROR(AVERAGEIF(Raw!$D:$D,Avg_all!$A56,Raw!Q:Q),"") ->  | J56: =IFERROR(AVERAGEIF(Raw!$D:$D,Avg_all!$A56,Raw!S:S),"") -> -21.69666667 | K56: =IFERROR(AVERAGEIF(Raw!$D:$D,Avg_all!$A56,Raw!U:U),"") -> 5.243333333 | L56: =IFERROR(AVERAGEIF(Raw!$D:$D,Avg_all!$A56,Raw!V:V),"") -> -11.34 | M56: =IFERROR(AVERAGEIF(Raw!$D:$D,Avg_all!$A56,Raw!W:W),"") -> -28.79 | N56: =IFERROR(AVERAGEIF(Raw!$D:$D,Avg_all!$A56,Raw!X:X),"") ->  | O56: =IFERROR(AVERAGEIF(Raw!$D:$D,Avg_all!$A56,Raw!Y:Y),"") ->  | P56: =IFERROR(AVERAGEIF(Raw!$D:$D,Avg_all!$A56,Raw!Z:Z),"") ->  | Q56: =IFERROR(AVERAGEIF(Raw!$D:$D,Avg_all!$A56,Raw!AA:AA),"") ->  | R56: =IFERROR(AVERAGEIF(Raw!$D:$D,Avg_all!$A56,Raw!AB:AB),"") ->  | S56: =IFERROR(AVERAGEIF(Raw!$D:$D,Avg_all!$A56,Raw!AC:AC),"") ->  | T56: =IFERROR(AVERAGEIF(Raw!$D:$D,Avg_all!$A56,Raw!AD:AD),"") ->  | U56: =IFERROR(AVERAGEIF(Raw!$D:$D,Avg_all!$A56,Raw!AE:AE),"") -> 11.55816667 | V56: =IFERROR(AVERAGEIF(Raw!$D:$D,Avg_all!$A56,Raw!AF:AF),"") -> -1.25 | W56: =IFERROR(AVERAGEIF(Raw!$D:$D,Avg_all!$A56,Raw!AG:AG),"") -> -0.5105 | X56: =IFERROR(AVERAGEIF(Raw!$D:$D,Avg_all!$A56,Raw!AH:AH),"") -> -0.0605 | Y56: =IFERROR(AVERAGEIF(Raw!$D:$D,Avg_all!$A56,Raw!AI:AI),"") -> 1.441933333 | Z56: =IFERROR(AVERAGEIF(Raw!$D:$D,Avg_all!$A56,Raw!AJ:AJ),"") -> -0.5 | AA56: =IFERROR(AVERAGEIF(Raw!$D:$D,Avg_all!$A56,Raw!AK:AK),"") -> -0.096
A57: 美國反向ETF | B57: 美國反向ETF | C57: =IFERROR(AVERAGEIF(Raw!$D:$D,Avg_all!$A57,Raw!E:E),"") -> -4.026666667 | D57: =IFERROR(AVERAGEIF(Raw!$D:$D,Avg_all!$A57,Raw!G:G),"") -> -8.26 | E57: =IFERROR(AVERAGEIF(Raw!$D:$D,Avg_all!$A57,Raw!I:I),"") -> -15.77 | F57: =IFERROR(AVERAGEIF(Raw!$D:$D,Avg_all!$A57,Raw!K:K),"") ->  | G57: =IFERROR(AVERAGEIF(Raw!$D:$D,Avg_all!$A57,Raw!M:M),"") ->  | H57: =IFERROR(AVERAGEIF(Raw!$D:$D,Avg_all!$A57,Raw!O:O),"") ->  | I57: =IFERROR(AVERAGEIF(Raw!$D:$D,Avg_all!$A57,Raw!Q:Q),"") ->  | J57: =IFERROR(AVERAGEIF(Raw!$D:$D,Avg_all!$A57,Raw!S:S),"") -> -12.32 | K57: =IFERROR(AVERAGEIF(Raw!$D:$D,Avg_all!$A57,Raw!U:U),"") -> -1.65 | L57: =IFERROR(AVERAGEIF(Raw!$D:$D,Avg_all!$A57,Raw!V:V),"") -> -9.12 | M57: =IFERROR(AVERAGEIF(Raw!$D:$D,Avg_all!$A57,Raw!W:W),"") -> -18.81666667 | N57: =IFERROR(AVERAGEIF(Raw!$D:$D,Avg_all!$A57,Raw!X:X),"") ->  | O57: =IFERROR(AVERAGEIF(Raw!$D:$D,Avg_all!$A57,Raw!Y:Y),"") ->  | P57: =IFERROR(AVERAGEIF(Raw!$D:$D,Avg_all!$A57,Raw!Z:Z),"") ->  | Q57: =IFERROR(AVERAGEIF(Raw!$D:$D,Avg_all!$A57,Raw!AA:AA),"") ->  | R57: =IFERROR(AVERAGEIF(Raw!$D:$D,Avg_all!$A57,Raw!AB:AB),"") ->  | S57: =IFERROR(AVERAGEIF(Raw!$D:$D,Avg_all!$A57,Raw!AC:AC),"") ->  | T57: =IFERROR(AVERAGEIF(Raw!$D:$D,Avg_all!$A57,Raw!AD:AD),"") ->  | U57: =IFERROR(AVERAGEIF(Raw!$D:$D,Avg_all!$A57,Raw!AE:AE),"") -> 5.9534 | V57: =IFERROR(AVERAGEIF(Raw!$D:$D,Avg_all!$A57,Raw!AF:AF),"") -> -1.0164 | W57: =IFERROR(AVERAGEIF(Raw!$D:$D,Avg_all!$A57,Raw!AG:AG),"") -> -0.8575 | X57: =IFERROR(AVERAGEIF(Raw!$D:$D,Avg_all!$A57,Raw!AH:AH),"") -> -0.1407 | Y57: =IFERROR(AVERAGEIF(Raw!$D:$D,Avg_all!$A57,Raw!AI:AI),"") -> 1.4499 | Z57: =IFERROR(AVERAGEIF(Raw!$D:$D,Avg_all!$A57,Raw!AJ:AJ),"") -> -0.7449 | AA57: =IFERROR(AVERAGEIF(Raw!$D:$D,Avg_all!$A57,Raw!AK:AK),"") -> 0.5425
A58: 海外債-一般ETF | B58: 海外債-一般ETF | C58: =IFERROR(AVERAGEIF(Raw!$D:$D,Avg_all!$A58,Raw!E:E),"") ->  | D58: =IFERROR(AVERAGEIF(Raw!$D:$D,Avg_all!$A58,Raw!G:G),"") ->  | E58: =IFERROR(AVERAGEIF(Raw!$D:$D,Avg_all!$A58,Raw!I:I),"") ->  | F58: =IFERROR(AVERAGEIF(Raw!$D:$D,Avg_all!$A58,Raw!K:K),"") ->  | G58: =IFERROR(AVERAGEIF(Raw!$D:$D,Avg_all!$A58,Raw!M:M),"") ->  | H58: =IFERROR(AVERAGEIF(Raw!$D:$D,Avg_all!$A58,Raw!O:O),"") ->  | I58: =IFERROR(AVERAGEIF(Raw!$D:$D,Avg_all!$A58,Raw!Q:Q),"") ->  | J58: =IFERROR(AVERAGEIF(Raw!$D:$D,Avg_all!$A58,Raw!S:S),"") ->  | K58: =IFERROR(AVERAGEIF(Raw!$D:$D,Avg_all!$A58,Raw!U:U),"") ->  | L58: =IFERROR(AVERAGEIF(Raw!$D:$D,Avg_all!$A58,Raw!V:V),"") ->  | M58: =IFERROR(AVERAGEIF(Raw!$D:$D,Avg_all!$A58,Raw!W:W),"") ->  | N58: =IFERROR(AVERAGEIF(Raw!$D:$D,Avg_all!$A58,Raw!X:X),"") ->  | O58: =IFERROR(AVERAGEIF(Raw!$D:$D,Avg_all!$A58,Raw!Y:Y),"") ->  | P58: =IFERROR(AVERAGEIF(Raw!$D:$D,Avg_all!$A58,Raw!Z:Z),"") ->  | Q58: =IFERROR(AVERAGEIF(Raw!$D:$D,Avg_all!$A58,Raw!AA:AA),"") ->  | R58: =IFERROR(AVERAGEIF(Raw!$D:$D,Avg_all!$A58,Raw!AB:AB),"") ->  | S58: =IFERROR(AVERAGEIF(Raw!$D:$D,Avg_all!$A58,Raw!AC:AC),"") ->  | T58: =IFERROR(AVERAGEIF(Raw!$D:$D,Avg_all!$A58,Raw!AD:AD),"") ->  | U58: =IFERROR(AVERAGEIF(Raw!$D:$D,Avg_all!$A58,Raw!AE:AE),"") ->  | V58: =IFERROR(AVERAGEIF(Raw!$D:$D,Avg_all!$A58,Raw!AF:AF),"") ->  | W58: =IFERROR(AVERAGEIF(Raw!$D:$D,Avg_all!$A58,Raw!AG:AG),"") ->  | X58: =IFERROR(AVERAGEIF(Raw!$D:$D,Avg_all!$A58,Raw!AH:AH),"") ->  | Y58: =IFERROR(AVERAGEIF(Raw!$D:$D,Avg_all!$A58,Raw!AI:AI),"") ->  | Z58: =IFERROR(AVERAGEIF(Raw!$D:$D,Avg_all!$A58,Raw!AJ:AJ),"") ->  | AA58: =IFERROR(AVERAGEIF(Raw!$D:$D,Avg_all!$A58,Raw!AK:AK),"") -> 
A59: 跨國-中國二倍ETF | B59: 跨國-中國二倍ETF | C59: =IFERROR(AVERAGEIF(Raw!$D:$D,Avg_all!$A59,Raw!E:E),"") -> 19.88 | D59: =IFERROR(AVERAGEIF(Raw!$D:$D,Avg_all!$A59,Raw!G:G),"") -> 28.27 | E59: =IFERROR(AVERAGEIF(Raw!$D:$D,Avg_all!$A59,Raw!I:I),"") -> 37.06 | F59: =IFERROR(AVERAGEIF(Raw!$D:$D,Avg_all!$A59,Raw!K:K),"") -> 64.12 | G59: =IFERROR(AVERAGEIF(Raw!$D:$D,Avg_all!$A59,Raw!M:M),"") ->  | H59: =IFERROR(AVERAGEIF(Raw!$D:$D,Avg_all!$A59,Raw!O:O),"") ->  | I59: =IFERROR(AVERAGEIF(Raw!$D:$D,Avg_all!$A59,Raw!Q:Q),"") ->  | J59: =IFERROR(AVERAGEIF(Raw!$D:$D,Avg_all!$A59,Raw!S:S),"") -> 37.50333333 | K59: =IFERROR(AVERAGEIF(Raw!$D:$D,Avg_all!$A59,Raw!U:U),"") -> 44.64 | L59: =IFERROR(AVERAGEIF(Raw!$D:$D,Avg_all!$A59,Raw!V:V),"") -> -35.56 | M59: =IFERROR(AVERAGEIF(Raw!$D:$D,Avg_all!$A59,Raw!W:W),"") -> 55.25 | N59: =IFERROR(AVERAGEIF(Raw!$D:$D,Avg_all!$A59,Raw!X:X),"") -> 33.85105 | O59: =IFERROR(AVERAGEIF(Raw!$D:$D,Avg_all!$A59,Raw!Y:Y),"") -> 1.8717 | P59: =IFERROR(AVERAGEIF(Raw!$D:$D,Avg_all!$A59,Raw!Z:Z),"") -> 0.2565 | Q59: =IFERROR(AVERAGEIF(Raw!$D:$D,Avg_all!$A59,Raw!AA:AA),"") -> 0.6786 | R59: =IFERROR(AVERAGEIF(Raw!$D:$D,Avg_all!$A59,Raw!AB:AB),"") -> 1.33975 | S59: =IFERROR(AVERAGEIF(Raw!$D:$D,Avg_all!$A59,Raw!AC:AC),"") -> 0.349 | T59: =IFERROR(AVERAGEIF(Raw!$D:$D,Avg_all!$A59,Raw!AD:AD),"") -> -0.2606 | U59: =IFERROR(AVERAGEIF(Raw!$D:$D,Avg_all!$A59,Raw!AE:AE),"") -> 26.6987 | V59: =IFERROR(AVERAGEIF(Raw!$D:$D,Avg_all!$A59,Raw!AF:AF),"") -> -0.4274333333 | W59: =IFERROR(AVERAGEIF(Raw!$D:$D,Avg_all!$A59,Raw!AG:AG),"") -> 0.3716333333 | X59: =IFERROR(AVERAGEIF(Raw!$D:$D,Avg_all!$A59,Raw!AH:AH),"") -> 3.424633333 | Y59: =IFERROR(AVERAGEIF(Raw!$D:$D,Avg_all!$A59,Raw!AI:AI),"") -> -8.7281 | Z59: =IFERROR(AVERAGEIF(Raw!$D:$D,Avg_all!$A59,Raw!AJ:AJ),"") -> 0.3346 | AA59: =IFERROR(AVERAGEIF(Raw!$D:$D,Avg_all!$A59,Raw!AK:AK),"") -> -0.0794
A60: 日本二倍ETF | B60: 日本二倍ETF | C60: =IFERROR(AVERAGEIF(Raw!$D:$D,Avg_all!$A60,Raw!E:E),"") -> 3.11 | D60: =IFERROR(AVERAGEIF(Raw!$D:$D,Avg_all!$A60,Raw!G:G),"") -> 6.93 | E60: =IFERROR(AVERAGEIF(Raw!$D:$D,Avg_all!$A60,Raw!I:I),"") -> 39.82 | F60: =IFERROR(AVERAGEIF(Raw!$D:$D,Avg_all!$A60,Raw!K:K),"") -> 1.7 | G60: =IFERROR(AVERAGEIF(Raw!$D:$D,Avg_all!$A60,Raw!M:M),"") ->  | H60: =IFERROR(AVERAGEIF(Raw!$D:$D,Avg_all!$A60,Raw!O:O),"") ->  | I60: =IFERROR(AVERAGEIF(Raw!$D:$D,Avg_all!$A60,Raw!Q:Q),"") ->  | J60: =IFERROR(AVERAGEIF(Raw!$D:$D,Avg_all!$A60,Raw!S:S),"") -> 9.935 | K60: =IFERROR(AVERAGEIF(Raw!$D:$D,Avg_all!$A60,Raw!U:U),"") -> 29.995 | L60: =IFERROR(AVERAGEIF(Raw!$D:$D,Avg_all!$A60,Raw!V:V),"") -> -21.835 | M60: =IFERROR(AVERAGEIF(Raw!$D:$D,Avg_all!$A60,Raw!W:W),"") -> 21.55 | N60: =IFERROR(AVERAGEIF(Raw!$D:$D,Avg_all!$A60,Raw!X:X),"") -> 34.4378 | O60: =IFERROR(AVERAGEIF(Raw!$D:$D,Avg_all!$A60,Raw!Y:Y),"") -> 2.0983 | P60: =IFERROR(AVERAGEIF(Raw!$D:$D,Avg_all!$A60,Raw!Z:Z),"") -> 0.0498 | Q60: =IFERROR(AVERAGEIF(Raw!$D:$D,Avg_all!$A60,Raw!AA:AA),"") -> -1.5538 | R60: =IFERROR(AVERAGEIF(Raw!$D:$D,Avg_all!$A60,Raw!AB:AB),"") -> 0.236 | S60: =IFERROR(AVERAGEIF(Raw!$D:$D,Avg_all!$A60,Raw!AC:AC),"") -> 0.0364 | T60: =IFERROR(AVERAGEIF(Raw!$D:$D,Avg_all!$A60,Raw!AD:AD),"") -> -0.0057 | U60: =IFERROR(AVERAGEIF(Raw!$D:$D,Avg_all!$A60,Raw!AE:AE),"") -> 16.9958 | V60: =IFERROR(AVERAGEIF(Raw!$D:$D,Avg_all!$A60,Raw!AF:AF),"") -> -1.4085 | W60: =IFERROR(AVERAGEIF(Raw!$D:$D,Avg_all!$A60,Raw!AG:AG),"") -> 0.595 | X60: =IFERROR(AVERAGEIF(Raw!$D:$D,Avg_all!$A60,Raw!AH:AH),"") -> 4.70895 | Y60: =IFERROR(AVERAGEIF(Raw!$D:$D,Avg_all!$A60,Raw!AI:AI),"") -> -2.0322 | Z60: =IFERROR(AVERAGEIF(Raw!$D:$D,Avg_all!$A60,Raw!AJ:AJ),"") -> 0.55875 | AA60: =IFERROR(AVERAGEIF(Raw!$D:$D,Avg_all!$A60,Raw!AK:AK),"") -> 0
A61: 日本反向ETF | B61: 日本反向ETF | C61: =IFERROR(AVERAGEIF(Raw!$D:$D,Avg_all!$A61,Raw!E:E),"") -> -2.3 | D61: =IFERROR(AVERAGEIF(Raw!$D:$D,Avg_all!$A61,Raw!G:G),"") -> -5.25 | E61: =IFERROR(AVERAGEIF(Raw!$D:$D,Avg_all!$A61,Raw!I:I),"") -> -19.665 | F61: =IFERROR(AVERAGEIF(Raw!$D:$D,Avg_all!$A61,Raw!K:K),"") -> -18.15 | G61: =IFERROR(AVERAGEIF(Raw!$D:$D,Avg_all!$A61,Raw!M:M),"") ->  | H61: =IFERROR(AVERAGEIF(Raw!$D:$D,Avg_all!$A61,Raw!O:O),"") ->  | I61: =IFERROR(AVERAGEIF(Raw!$D:$D,Avg_all!$A61,Raw!Q:Q),"") ->  | J61: =IFERROR(AVERAGEIF(Raw!$D:$D,Avg_all!$A61,Raw!S:S),"") -> -7.09 | K61: =IFERROR(AVERAGEIF(Raw!$D:$D,Avg_all!$A61,Raw!U:U),"") -> 8.51 | L61: =IFERROR(AVERAGEIF(Raw!$D:$D,Avg_all!$A61,Raw!V:V),"") -> -14.13 | M61: =IFERROR(AVERAGEIF(Raw!$D:$D,Avg_all!$A61,Raw!W:W),"") -> -21.025 | N61: =IFERROR(AVERAGEIF(Raw!$D:$D,Avg_all!$A61,Raw!X:X),"") -> 15.5554 | O61: =IFERROR(AVERAGEIF(Raw!$D:$D,Avg_all!$A61,Raw!Y:Y),"") -> -0.9743 | P61: =IFERROR(AVERAGEIF(Raw!$D:$D,Avg_all!$A61,Raw!Z:Z),"") -> -0.1787 | Q61: =IFERROR(AVERAGEIF(Raw!$D:$D,Avg_all!$A61,Raw!AA:AA),"") -> 0.1488 | R61: =IFERROR(AVERAGEIF(Raw!$D:$D,Avg_all!$A61,Raw!AB:AB),"") -> 0.8237 | S61: =IFERROR(AVERAGEIF(Raw!$D:$D,Avg_all!$A61,Raw!AC:AC),"") -> -0.1417 | T61: =IFERROR(AVERAGEIF(Raw!$D:$D,Avg_all!$A61,Raw!AD:AD),"") -> 0.0435 | U61: =IFERROR(AVERAGEIF(Raw!$D:$D,Avg_all!$A61,Raw!AE:AE),"") -> 8.4135 | V61: =IFERROR(AVERAGEIF(Raw!$D:$D,Avg_all!$A61,Raw!AF:AF),"") -> 0.6466 | W61: =IFERROR(AVERAGEIF(Raw!$D:$D,Avg_all!$A61,Raw!AG:AG),"") -> -0.78435 | X61: =IFERROR(AVERAGEIF(Raw!$D:$D,Avg_all!$A61,Raw!AH:AH),"") -> -2.69665 | Y61: =IFERROR(AVERAGEIF(Raw!$D:$D,Avg_all!$A61,Raw!AI:AI),"") -> -2.87495 | Z61: =IFERROR(AVERAGEIF(Raw!$D:$D,Avg_all!$A61,Raw!AJ:AJ),"") -> -0.7469 | AA61: =IFERROR(AVERAGEIF(Raw!$D:$D,Avg_all!$A61,Raw!AK:AK),"") -> 0
A62: 美國二倍ETF | B62: 美國二倍ETF | C62: =IFERROR(AVERAGEIF(Raw!$D:$D,Avg_all!$A62,Raw!E:E),"") -> 5 | D62: =IFERROR(AVERAGEIF(Raw!$D:$D,Avg_all!$A62,Raw!G:G),"") -> 14.57 | E62: =IFERROR(AVERAGEIF(Raw!$D:$D,Avg_all!$A62,Raw!I:I),"") -> 23.8 | F62: =IFERROR(AVERAGEIF(Raw!$D:$D,Avg_all!$A62,Raw!K:K),"") ->  | G62: =IFERROR(AVERAGEIF(Raw!$D:$D,Avg_all!$A62,Raw!M:M),"") ->  | H62: =IFERROR(AVERAGEIF(Raw!$D:$D,Avg_all!$A62,Raw!O:O),"") ->  | I62: =IFERROR(AVERAGEIF(Raw!$D:$D,Avg_all!$A62,Raw!Q:Q),"") ->  | J62: =IFERROR(AVERAGEIF(Raw!$D:$D,Avg_all!$A62,Raw!S:S),"") -> 14.38 | K62: =IFERROR(AVERAGEIF(Raw!$D:$D,Avg_all!$A62,Raw!U:U),"") -> 15.58 | L62: =IFERROR(AVERAGEIF(Raw!$D:$D,Avg_all!$A62,Raw!V:V),"") -> -0.065 | M62: =IFERROR(AVERAGEIF(Raw!$D:$D,Avg_all!$A62,Raw!W:W),"") -> 29.985 | N62: =IFERROR(AVERAGEIF(Raw!$D:$D,Avg_all!$A62,Raw!X:X),"") ->  | O62: =IFERROR(AVERAGEIF(Raw!$D:$D,Avg_all!$A62,Raw!Y:Y),"") ->  | P62: =IFERROR(AVERAGEIF(Raw!$D:$D,Avg_all!$A62,Raw!Z:Z),"") ->  | Q62: =IFERROR(AVERAGEIF(Raw!$D:$D,Avg_all!$A62,Raw!AA:AA),"") ->  | R62: =IFERROR(AVERAGEIF(Raw!$D:$D,Avg_all!$A62,Raw!AB:AB),"") ->  | S62: =IFERROR(AVERAGEIF(Raw!$D:$D,Avg_all!$A62,Raw!AC:AC),"") ->  | T62: =IFERROR(AVERAGEIF(Raw!$D:$D,Avg_all!$A62,Raw!AD:AD),"") ->  | U62: =IFERROR(AVERAGEIF(Raw!$D:$D,Avg_all!$A62,Raw!AE:AE),"") -> 11.7311 | V62: =IFERROR(AVERAGEIF(Raw!$D:$D,Avg_all!$A62,Raw!AF:AF),"") -> 1.3761 | W62: =IFERROR(AVERAGEIF(Raw!$D:$D,Avg_all!$A62,Raw!AG:AG),"") -> 0.5252 | X62: =IFERROR(AVERAGEIF(Raw!$D:$D,Avg_all!$A62,Raw!AH:AH),"") -> -0.026 | Y62: =IFERROR(AVERAGEIF(Raw!$D:$D,Avg_all!$A62,Raw!AI:AI),"") -> 1.2926 | Z62: =IFERROR(AVERAGEIF(Raw!$D:$D,Avg_all!$A62,Raw!AJ:AJ),"") -> 0.488 | AA62: =IFERROR(AVERAGEIF(Raw!$D:$D,Avg_all!$A62,Raw!AK:AK),"") -> -0.353
A63: 債券-二倍ETF | B63: 債券-二倍ETF | C63: =IFERROR(AVERAGEIF(Raw!$D:$D,Avg_all!$A63,Raw!E:E),"") -> 5.615 | D63: =IFERROR(AVERAGEIF(Raw!$D:$D,Avg_all!$A63,Raw!G:G),"") -> 9.41 | E63: =IFERROR(AVERAGEIF(Raw!$D:$D,Avg_all!$A63,Raw!I:I),"") ->  | F63: =IFERROR(AVERAGEIF(Raw!$D:$D,Avg_all!$A63,Raw!K:K),"") ->  | G63: =IFERROR(AVERAGEIF(Raw!$D:$D,Avg_all!$A63,Raw!M:M),"") ->  | H63: =IFERROR(AVERAGEIF(Raw!$D:$D,Avg_all!$A63,Raw!O:O),"") ->  | I63: =IFERROR(AVERAGEIF(Raw!$D:$D,Avg_all!$A63,Raw!Q:Q),"") ->  | J63: =IFERROR(AVERAGEIF(Raw!$D:$D,Avg_all!$A63,Raw!S:S),"") ->  | K63: =IFERROR(AVERAGEIF(Raw!$D:$D,Avg_all!$A63,Raw!U:U),"") -> 6.5 | L63: =IFERROR(AVERAGEIF(Raw!$D:$D,Avg_all!$A63,Raw!V:V),"") -> 2.665 | M63: =IFERROR(AVERAGEIF(Raw!$D:$D,Avg_all!$A63,Raw!W:W),"") -> 6.54 | N63: =IFERROR(AVERAGEIF(Raw!$D:$D,Avg_all!$A63,Raw!X:X),"") ->  | O63: =IFERROR(AVERAGEIF(Raw!$D:$D,Avg_all!$A63,Raw!Y:Y),"") ->  | P63: =IFERROR(AVERAGEIF(Raw!$D:$D,Avg_all!$A63,Raw!Z:Z),"") ->  | Q63: =IFERROR(AVERAGEIF(Raw!$D:$D,Avg_all!$A63,Raw!AA:AA),"") ->  | R63: =IFERROR(AVERAGEIF(Raw!$D:$D,Avg_all!$A63,Raw!AB:AB),"") ->  | S63: =IFERROR(AVERAGEIF(Raw!$D:$D,Avg_all!$A63,Raw!AC:AC),"") ->  | T63: =IFERROR(AVERAGEIF(Raw!$D:$D,Avg_all!$A63,Raw!AD:AD),"") ->  | U63: =IFERROR(AVERAGEIF(Raw!$D:$D,Avg_all!$A63,Raw!AE:AE),"") ->  | V63: =IFERROR(AVERAGEIF(Raw!$D:$D,Avg_all!$A63,Raw!AF:AF),"") ->  | W63: =IFERROR(AVERAGEIF(Raw!$D:$D,Avg_all!$A63,Raw!AG:AG),"") ->  | X63: =IFERROR(AVERAGEIF(Raw!$D:$D,Avg_all!$A63,Raw!AH:AH),"") ->  | Y63: =IFERROR(AVERAGEIF(Raw!$D:$D,Avg_all!$A63,Raw!AI:AI),"") ->  | Z63: =IFERROR(AVERAGEIF(Raw!$D:$D,Avg_all!$A63,Raw!AJ:AJ),"") ->  | AA63: =IFERROR(AVERAGEIF(Raw!$D:$D,Avg_all!$A63,Raw!AK:AK),"") -> 
A64: 債券-反向ETF | B64: 債券-反向ETF | C64: =IFERROR(AVERAGEIF(Raw!$D:$D,Avg_all!$A64,Raw!E:E),"") -> -3.445 | D64: =IFERROR(AVERAGEIF(Raw!$D:$D,Avg_all!$A64,Raw!G:G),"") -> -6.52 | E64: =IFERROR(AVERAGEIF(Raw!$D:$D,Avg_all!$A64,Raw!I:I),"") ->  | F64: =IFERROR(AVERAGEIF(Raw!$D:$D,Avg_all!$A64,Raw!K:K),"") ->  | G64: =IFERROR(AVERAGEIF(Raw!$D:$D,Avg_all!$A64,Raw!M:M),"") ->  | H64: =IFERROR(AVERAGEIF(Raw!$D:$D,Avg_all!$A64,Raw!O:O),"") ->  | I64: =IFERROR(AVERAGEIF(Raw!$D:$D,Avg_all!$A64,Raw!Q:Q),"") ->  | J64: =IFERROR(AVERAGEIF(Raw!$D:$D,Avg_all!$A64,Raw!S:S),"") ->  | K64: =IFERROR(AVERAGEIF(Raw!$D:$D,Avg_all!$A64,Raw!U:U),"") -> -2.12 | L64: =IFERROR(AVERAGEIF(Raw!$D:$D,Avg_all!$A64,Raw!V:V),"") -> -3.825 | M64: =IFERROR(AVERAGEIF(Raw!$D:$D,Avg_all!$A64,Raw!W:W),"") -> -4.836666667 | N64: =IFERROR(AVERAGEIF(Raw!$D:$D,Avg_all!$A64,Raw!X:X),"") ->  | O64: =IFERROR(AVERAGEIF(Raw!$D:$D,Avg_all!$A64,Raw!Y:Y),"") ->  | P64: =IFERROR(AVERAGEIF(Raw!$D:$D,Avg_all!$A64,Raw!Z:Z),"") ->  | Q64: =IFERROR(AVERAGEIF(Raw!$D:$D,Avg_all!$A64,Raw!AA:AA),"") ->  | R64: =IFERROR(AVERAGEIF(Raw!$D:$D,Avg_all!$A64,Raw!AB:AB),"") ->  | S64: =IFERROR(AVERAGEIF(Raw!$D:$D,Avg_all!$A64,Raw!AC:AC),"") ->  | T64: =IFERROR(AVERAGEIF(Raw!$D:$D,Avg_all!$A64,Raw!AD:AD),"") ->  | U64: =IFERROR(AVERAGEIF(Raw!$D:$D,Avg_all!$A64,Raw!AE:AE),"") ->  | V64: =IFERROR(AVERAGEIF(Raw!$D:$D,Avg_all!$A64,Raw!AF:AF),"") ->  | W64: =IFERROR(AVERAGEIF(Raw!$D:$D,Avg_all!$A64,Raw!AG:AG),"") ->  | X64: =IFERROR(AVERAGEIF(Raw!$D:$D,Avg_all!$A64,Raw!AH:AH),"") ->  | Y64: =IFERROR(AVERAGEIF(Raw!$D:$D,Avg_all!$A64,Raw!AI:AI),"") ->  | Z64: =IFERROR(AVERAGEIF(Raw!$D:$D,Avg_all!$A64,Raw!AJ:AJ),"") ->  | AA64: =IFERROR(AVERAGEIF(Raw!$D:$D,Avg_all!$A64,Raw!AK:AK),"") -> 
A65: 海外債-二倍ETF | B65: 海外債-二倍ETF | C65: =IFERROR(AVERAGEIF(Raw!$D:$D,Avg_all!$A65,Raw!E:E),"") ->  | D65: =IFERROR(AVERAGEIF(Raw!$D:$D,Avg_all!$A65,Raw!G:G),"") ->  | E65: =IFERROR(AVERAGEIF(Raw!$D:$D,Avg_all!$A65,Raw!I:I),"") ->  | F65: =IFERROR(AVERAGEIF(Raw!$D:$D,Avg_all!$A65,Raw!K:K),"") ->  | G65: =IFERROR(AVERAGEIF(Raw!$D:$D,Avg_all!$A65,Raw!M:M),"") ->  | H65: =IFERROR(AVERAGEIF(Raw!$D:$D,Avg_all!$A65,Raw!O:O),"") ->  | I65: =IFERROR(AVERAGEIF(Raw!$D:$D,Avg_all!$A65,Raw!Q:Q),"") ->  | J65: =IFERROR(AVERAGEIF(Raw!$D:$D,Avg_all!$A65,Raw!S:S),"") ->  | K65: =IFERROR(AVERAGEIF(Raw!$D:$D,Avg_all!$A65,Raw!U:U),"") ->  | L65: =IFERROR(AVERAGEIF(Raw!$D:$D,Avg_all!$A65,Raw!V:V),"") ->  | M65: =IFERROR(AVERAGEIF(Raw!$D:$D,Avg_all!$A65,Raw!W:W),"") ->  | N65: =IFERROR(AVERAGEIF(Raw!$D:$D,Avg_all!$A65,Raw!X:X),"") ->  | O65: =IFERROR(AVERAGEIF(Raw!$D:$D,Avg_all!$A65,Raw!Y:Y),"") ->  | P65: =IFERROR(AVERAGEIF(Raw!$D:$D,Avg_all!$A65,Raw!Z:Z),"") ->  | Q65: =IFERROR(AVERAGEIF(Raw!$D:$D,Avg_all!$A65,Raw!AA:AA),"") ->  | R65: =IFERROR(AVERAGEIF(Raw!$D:$D,Avg_all!$A65,Raw!AB:AB),"") ->  | S65: =IFERROR(AVERAGEIF(Raw!$D:$D,Avg_all!$A65,Raw!AC:AC),"") ->  | T65: =IFERROR(AVERAGEIF(Raw!$D:$D,Avg_all!$A65,Raw!AD:AD),"") ->  | U65: =IFERROR(AVERAGEIF(Raw!$D:$D,Avg_all!$A65,Raw!AE:AE),"") ->  | V65: =IFERROR(AVERAGEIF(Raw!$D:$D,Avg_all!$A65,Raw!AF:AF),"") ->  | W65: =IFERROR(AVERAGEIF(Raw!$D:$D,Avg_all!$A65,Raw!AG:AG),"") ->  | X65: =IFERROR(AVERAGEIF(Raw!$D:$D,Avg_all!$A65,Raw!AH:AH),"") ->  | Y65: =IFERROR(AVERAGEIF(Raw!$D:$D,Avg_all!$A65,Raw!AI:AI),"") ->  | Z65: =IFERROR(AVERAGEIF(Raw!$D:$D,Avg_all!$A65,Raw!AJ:AJ),"") ->  | AA65: =IFERROR(AVERAGEIF(Raw!$D:$D,Avg_all!$A65,Raw!AK:AK),"") -> 
A66: 海外債-反向ETF | B66: 海外債-反向ETF | C66: =IFERROR(AVERAGEIF(Raw!$D:$D,Avg_all!$A66,Raw!E:E),"") ->  | D66: =IFERROR(AVERAGEIF(Raw!$D:$D,Avg_all!$A66,Raw!G:G),"") ->  | E66: =IFERROR(AVERAGEIF(Raw!$D:$D,Avg_all!$A66,Raw!I:I),"") ->  | F66: =IFERROR(AVERAGEIF(Raw!$D:$D,Avg_all!$A66,Raw!K:K),"") ->  | G66: =IFERROR(AVERAGEIF(Raw!$D:$D,Avg_all!$A66,Raw!M:M),"") ->  | H66: =IFERROR(AVERAGEIF(Raw!$D:$D,Avg_all!$A66,Raw!O:O),"") ->  | I66: =IFERROR(AVERAGEIF(Raw!$D:$D,Avg_all!$A66,Raw!Q:Q),"") ->  | J66: =IFERROR(AVERAGEIF(Raw!$D:$D,Avg_all!$A66,Raw!S:S),"") ->  | K66: =IFERROR(AVERAGEIF(Raw!$D:$D,Avg_all!$A66,Raw!U:U),"") ->  | L66: =IFERROR(AVERAGEIF(Raw!$D:$D,Avg_all!$A66,Raw!V:V),"") ->  | M66: =IFERROR(AVERAGEIF(Raw!$D:$D,Avg_all!$A66,Raw!W:W),"") ->  | N66: =IFERROR(AVERAGEIF(Raw!$D:$D,Avg_all!$A66,Raw!X:X),"") ->  | O66: =IFERROR(AVERAGEIF(Raw!$D:$D,Avg_all!$A66,Raw!Y:Y),"") ->  | P66: =IFERROR(AVERAGEIF(Raw!$D:$D,Avg_all!$A66,Raw!Z:Z),"") ->  | Q66: =IFERROR(AVERAGEIF(Raw!$D:$D,Avg_all!$A66,Raw!AA:AA),"") ->  | R66: =IFERROR(AVERAGEIF(Raw!$D:$D,Avg_all!$A66,Raw!AB:AB),"") ->  | S66: =IFERROR(AVERAGEIF(Raw!$D:$D,Avg_all!$A66,Raw!AC:AC),"") ->  | T66: =IFERROR(AVERAGEIF(Raw!$D:$D,Avg_all!$A66,Raw!AD:AD),"") ->  | U66: =IFERROR(AVERAGEIF(Raw!$D:$D,Avg_all!$A66,Raw!AE:AE),"") ->  | V66: =IFERROR(AVERAGEIF(Raw!$D:$D,Avg_all!$A66,Raw!AF:AF),"") ->  | W66: =IFERROR(AVERAGEIF(Raw!$D:$D,Avg_all!$A66,Raw!AG:AG),"") ->  | X66: =IFERROR(AVERAGEIF(Raw!$D:$D,Avg_all!$A66,Raw!AH:AH),"") ->  | Y66: =IFERROR(AVERAGEIF(Raw!$D:$D,Avg_all!$A66,Raw!AI:AI),"") ->  | Z66: =IFERROR(AVERAGEIF(Raw!$D:$D,Avg_all!$A66,Raw!AJ:AJ),"") ->  | AA66: =IFERROR(AVERAGEIF(Raw!$D:$D,Avg_all!$A66,Raw!AK:AK),"") -> 

Sheet Rank
A1: 基金類型 | B1: Category | C1: ROI3 | D1: ROI6 | E1: ROI12 | F1: ROI24 | G1: ROI36 | H1: ROI60 | I1: ROI_YTD
A2: 不動產證券化 | B2: 不動產證券化 | C2: =IFERROR(SUMIF(Raw!$D:$D,Rank!$A2,Raw!E:E)/AVERAGEIF(Raw!$D:$D,Rank!$A2,Raw!E:E),"") -> 42 | D2: =IFERROR(SUMIF(Raw!$D:$D,Rank!$A2,Raw!G:G)/AVERAGEIF(Raw!$D:$D,Rank!$A2,Raw!G:G),"") -> 42 | E2: =IFERROR(SUMIF(Raw!$D:$D,Rank!$A2,Raw!I:I)/AVERAGEIF(Raw!$D:$D,Rank!$A2,Raw!I:I),"") -> 42 | F2: =IFERROR(SUMIF(Raw!$D:$D,Rank!$A2,Raw!K:K)/AVERAGEIF(Raw!$D:$D,Rank!$A2,Raw!K:K),"") -> 24 | G2: =IFERROR(SUMIF(Raw!$D:$D,Rank!$A2,Raw!M:M)/AVERAGEIF(Raw!$D:$D,Rank!$A2,Raw!M:M),"") -> 20 | H2: =IFERROR(SUMIF(Raw!$D:$D,Rank!$A2,Raw!O:O)/AVERAGEIF(Raw!$D:$D,Rank!$A2,Raw!O:O),"") -> 19 | I2: =IFERROR(SUMIF(Raw!$D:$D,Rank!$A2,Raw!S:S)/AVERAGEIF(Raw!$D:$D,Rank!$A2,Raw!S:S),"") -> 42
A3: 平衡--一般股票型 | B3: 平衡--一般股票型 | C3: =IFERROR(SUMIF(Raw!$D:$D,Rank!$A3,Raw!E:E)/AVERAGEIF(Raw!$D:$D,Rank!$A3,Raw!E:E),"") -> 17 | D3: =IFERROR(SUMIF(Raw!$D:$D,Rank!$A3,Raw!G:G)/AVERAGEIF(Raw!$D:$D,Rank!$A3,Raw!G:G),"") -> 17 | E3: =IFERROR(SUMIF(Raw!$D:$D,Rank!$A3,Raw!I:I)/AVERAGEIF(Raw!$D:$D,Rank!$A3,Raw!I:I),"") -> 17 | F3: =IFERROR(SUMIF(Raw!$D:$D,Rank!$A3,Raw!K:K)/AVERAGEIF(Raw!$D:$D,Rank!$A3,Raw!K:K),"") -> 17 | G3: =IFERROR(SUMIF(Raw!$D:$D,Rank!$A3,Raw!M:M)/AVERAGEIF(Raw!$D:$D,Rank!$A3,Raw!M:M),"") -> 17 | H3: =IFERROR(SUMIF(Raw!$D:$D,Rank!$A3,Raw!O:O)/AVERAGEIF(Raw!$D:$D,Rank!$A3,Raw!O:O),"") -> 17 | I3: =IFERROR(SUMIF(Raw!$D:$D,Rank!$A3,Raw!S:S)/AVERAGEIF(Raw!$D:$D,Rank!$A3,Raw!S:S),"") -> 17
A4: 平衡--價值股票型 | B4: 平衡--價值股票型 | C4: =IFERROR(SUMIF(Raw!$D:$D,Rank!$A4,Raw!E:E)/AVERAGEIF(Raw!$D:$D,Rank!$A4,Raw!E:E),"") -> 5 | D4: =IFERROR(SUMIF(Raw!$D:$D,Rank!$A4,Raw!G:G)/AVERAGEIF(Raw!$D:$D,Rank!$A4,Raw!G:G),"") -> 5 | E4: =IFERROR(SUMIF(Raw!$D:$D,Rank!$A4,Raw!I:I)/AVERAGEIF(Raw!$D:$D,Rank!$A4,Raw!I:I),"") -> 5 | F4: =IFERROR(SUMIF(Raw!$D:$D,Rank!$A4,Raw!K:K)/AVERAGEIF(Raw!$D:$D,Rank!$A4,Raw!K:K),"") -> 5 | G4: =IFERROR(SUMIF(Raw!$D:$D,Rank!$A4,Raw!M:M)/AVERAGEIF(Raw!$D:$D,Rank!$A4,Raw!M:M),"") -> 5 | H4: =IFERROR(SUMIF(Raw!$D:$D,Rank!$A4,Raw!O:O)/AVERAGEIF(Raw!$D:$D,Rank!$A4,Raw!O:O),"") -> 5 | I4: =IFERROR(SUMIF(Raw!$D:$D,Rank!$A4,Raw!S:S)/AVERAGEIF(Raw!$D:$D,Rank!$A4,Raw!S:S),"") -> 5
A5: 平衡--模組操作型 | B5: 平衡--模組操作型 | C5: =IFERROR(SUMIF(Raw!$D:$D,Rank!$A5,Raw!E:E)/AVERAGEIF(Raw!$D:$D,Rank!$A5,Raw!E:E),"") -> 1 | D5: =IFERROR(SUMIF(Raw!$D:$D,Rank!$A5,Raw!G:G)/AVERAGEIF(Raw!$D:$D,Rank!$A5,Raw!G:G),"") -> 1 | E5: =IFERROR(SUMIF(Raw!$D:$D,Rank!$A5,Raw!I:I)/AVERAGEIF(Raw!$D:$D,Rank!$A5,Raw!I:I),"") -> 1 | F5: =IFERROR(SUMIF(Raw!$D:$D,Rank!$A5,Raw!K:K)/AVERAGEIF(Raw!$D:$D,Rank!$A5,Raw!K:K),"") -> 1 | G5: =IFERROR(SUMIF(Raw!$D:$D,Rank!$A5,Raw!M:M)/AVERAGEIF(Raw!$D:$D,Rank!$A5,Raw!M:M),"") -> 1 | H5: =IFERROR(SUMIF(Raw!$D:$D,Rank!$A5,Raw!O:O)/AVERAGEIF(Raw!$D:$D,Rank!$A5,Raw!O:O),"") -> 1 | I5: =IFERROR(SUMIF(Raw!$D:$D,Rank!$A5,Raw!S:S)/AVERAGEIF(Raw!$D:$D,Rank!$A5,Raw!S:S),"") -> 1
A6: 投資債--中國大陸 | B6: 投資債--中國大陸 | C6: =IFERROR(SUMIF(Raw!$D:$D,Rank!$A6,Raw!E:E)/AVERAGEIF(Raw!$D:$D,Rank!$A6,Raw!E:E),"") -> 17 | D6: =IFERROR(SUMIF(Raw!$D:$D,Rank!$A6,Raw!G:G)/AVERAGEIF(Raw!$D:$D,Rank!$A6,Raw!G:G),"") -> 17 | E6: =IFERROR(SUMIF(Raw!$D:$D,Rank!$A6,Raw!I:I)/AVERAGEIF(Raw!$D:$D,Rank!$A6,Raw!I:I),"") -> 17 | F6: =IFERROR(SUMIF(Raw!$D:$D,Rank!$A6,Raw!K:K)/AVERAGEIF(Raw!$D:$D,Rank!$A6,Raw!K:K),"") -> 17 | G6: =IFERROR(SUMIF(Raw!$D:$D,Rank!$A6,Raw!M:M)/AVERAGEIF(Raw!$D:$D,Rank!$A6,Raw!M:M),"") -> 16 | H6: =IFERROR(SUMIF(Raw!$D:$D,Rank!$A6,Raw!O:O)/AVERAGEIF(Raw!$D:$D,Rank!$A6,Raw!O:O),"") -> 2 | I6: =IFERROR(SUMIF(Raw!$D:$D,Rank!$A6,Raw!S:S)/AVERAGEIF(Raw!$D:$D,Rank!$A6,Raw!S:S),"") -> 17
A7: 投資債--全球 | B7: 投資債--全球 | C7: =IFERROR(SUMIF(Raw!$D:$D,Rank!$A7,Raw!E:E)/AVERAGEIF(Raw!$D:$D,Rank!$A7,Raw!E:E),"") -> 26 | D7: =IFERROR(SUMIF(Raw!$D:$D,Rank!$A7,Raw!G:G)/AVERAGEIF(Raw!$D:$D,Rank!$A7,Raw!G:G),"") -> 26 | E7: =IFERROR(SUMIF(Raw!$D:$D,Rank!$A7,Raw!I:I)/AVERAGEIF(Raw!$D:$D,Rank!$A7,Raw!I:I),"") -> 20 | F7: =IFERROR(SUMIF(Raw!$D:$D,Rank!$A7,Raw!K:K)/AVERAGEIF(Raw!$D:$D,Rank!$A7,Raw!K:K),"") -> 14 | G7: =IFERROR(SUMIF(Raw!$D:$D,Rank!$A7,Raw!M:M)/AVERAGEIF(Raw!$D:$D,Rank!$A7,Raw!M:M),"") -> 12 | H7: =IFERROR(SUMIF(Raw!$D:$D,Rank!$A7,Raw!O:O)/AVERAGEIF(Raw!$D:$D,Rank!$A7,Raw!O:O),"") -> 9 | I7: =IFERROR(SUMIF(Raw!$D:$D,Rank!$A7,Raw!S:S)/AVERAGEIF(Raw!$D:$D,Rank!$A7,Raw!S:S),"") -> 26
A8: 投資債--全球新興 | B8: 投資債--全球新興 | C8: =IFERROR(SUMIF(Raw!$D:$D,Rank!$A8,Raw!E:E)/AVERAGEIF(Raw!$D:$D,Rank!$A8,Raw!E:E),"") -> 50 | D8: =IFERROR(SUMIF(Raw!$D:$D,Rank!$A8,Raw!G:G)/AVERAGEIF(Raw!$D:$D,Rank!$A8,Raw!G:G),"") -> 50 | E8: =IFERROR(SUMIF(Raw!$D:$D,Rank!$A8,Raw!I:I)/AVERAGEIF(Raw!$D:$D,Rank!$A8,Raw!I:I),"") -> 48 | F8: =IFERROR(SUMIF(Raw!$D:$D,Rank!$A8,Raw!K:K)/AVERAGEIF(Raw!$D:$D,Rank!$A8,Raw!K:K),"") -> 38 | G8: =IFERROR(SUMIF(Raw!$D:$D,Rank!$A8,Raw!M:M)/AVERAGEIF(Raw!$D:$D,Rank!$A8,Raw!M:M),"") -> 30 | H8: =IFERROR(SUMIF(Raw!$D:$D,Rank!$A8,Raw!O:O)/AVERAGEIF(Raw!$D:$D,Rank!$A8,Raw!O:O),"") -> 4 | I8: =IFERROR(SUMIF(Raw!$D:$D,Rank!$A8,Raw!S:S)/AVERAGEIF(Raw!$D:$D,Rank!$A8,Raw!S:S),"") -> 50
A9: 投資債--其他 | B9: 投資債--其他 | C9: =IFERROR(SUMIF(Raw!$D:$D,Rank!$A9,Raw!E:E)/AVERAGEIF(Raw!$D:$D,Rank!$A9,Raw!E:E),"") -> 18 | D9: =IFERROR(SUMIF(Raw!$D:$D,Rank!$A9,Raw!G:G)/AVERAGEIF(Raw!$D:$D,Rank!$A9,Raw!G:G),"") -> 16 | E9: =IFERROR(SUMIF(Raw!$D:$D,Rank!$A9,Raw!I:I)/AVERAGEIF(Raw!$D:$D,Rank!$A9,Raw!I:I),"") -> 16 | F9: =IFERROR(SUMIF(Raw!$D:$D,Rank!$A9,Raw!K:K)/AVERAGEIF(Raw!$D:$D,Rank!$A9,Raw!K:K),"") -> 13 | G9: =IFERROR(SUMIF(Raw!$D:$D,Rank!$A9,Raw!M:M)/AVERAGEIF(Raw!$D:$D,Rank!$A9,Raw!M:M),"") -> 10 | H9: =IFERROR(SUMIF(Raw!$D:$D,Rank!$A9,Raw!O:O)/AVERAGEIF(Raw!$D:$D,Rank!$A9,Raw!O:O),"") -> 2 | I9: =IFERROR(SUMIF(Raw!$D:$D,Rank!$A9,Raw!S:S)/AVERAGEIF(Raw!$D:$D,Rank!$A9,Raw!S:S),"") -> 16
A10: 投資債--美國 | B10: 投資債--美國 | C10: =IFERROR(SUMIF(Raw!$D:$D,Rank!$A10,Raw!E:E)/AVERAGEIF(Raw!$D:$D,Rank!$A10,Raw!E:E),"") -> 2 | D10: =IFERROR(SUMIF(Raw!$D:$D,Rank!$A10,Raw!G:G)/AVERAGEIF(Raw!$D:$D,Rank!$A10,Raw!G:G),"") -> 2 | E10: =IFERROR(SUMIF(Raw!$D:$D,Rank!$A10,Raw!I:I)/AVERAGEIF(Raw!$D:$D,Rank!$A10,Raw!I:I),"") -> 2 | F10: =IFERROR(SUMIF(Raw!$D:$D,Rank!$A10,Raw!K:K)/AVERAGEIF(Raw!$D:$D,Rank!$A10,Raw!K:K),"") -> 2 | G10: =IFERROR(SUMIF(Raw!$D:$D,Rank!$A10,Raw!M:M)/AVERAGEIF(Raw!$D:$D,Rank!$A10,Raw!M:M),"") -> 2 | H10: =IFERROR(SUMIF(Raw!$D:$D,Rank!$A10,Raw!O:O)/AVERAGEIF(Raw!$D:$D,Rank!$A10,Raw!O:O),"") -> 2 | I10: =IFERROR(SUMIF(Raw!$D:$D,Rank!$A10,Raw!S:S)/AVERAGEIF(Raw!$D:$D,Rank!$A10,Raw!S:S),"") -> 2
A11: 投資債--短期 | B11: 投資債--短期 | C11: =IFERROR(SUMIF(Raw!$D:$D,Rank!$A11,Raw!E:E)/AVERAGEIF(Raw!$D:$D,Rank!$A11,Raw!E:E),"") -> 10 | D11: =IFERROR(SUMIF(Raw!$D:$D,Rank!$A11,Raw!G:G)/AVERAGEIF(Raw!$D:$D,Rank!$A11,Raw!G:G),"") -> 10 | E11: =IFERROR(SUMIF(Raw!$D:$D,Rank!$A11,Raw!I:I)/AVERAGEIF(Raw!$D:$D,Rank!$A11,Raw!I:I),"") -> 10 | F11: =IFERROR(SUMIF(Raw!$D:$D,Rank!$A11,Raw!K:K)/AVERAGEIF(Raw!$D:$D,Rank!$A11,Raw!K:K),"") -> 8 | G11: =IFERROR(SUMIF(Raw!$D:$D,Rank!$A11,Raw!M:M)/AVERAGEIF(Raw!$D:$D,Rank!$A11,Raw!M:M),"") -> 8 | H11: =IFERROR(SUMIF(Raw!$D:$D,Rank!$A11,Raw!O:O)/AVERAGEIF(Raw!$D:$D,Rank!$A11,Raw!O:O),"") -> 3 | I11: =IFERROR(SUMIF(Raw!$D:$D,Rank!$A11,Raw!S:S)/AVERAGEIF(Raw!$D:$D,Rank!$A11,Raw!S:S),"") -> 10
A12: 投資債--新興亞洲 | B12: 投資債--新興亞洲 | C12: =IFERROR(SUMIF(Raw!$D:$D,Rank!$A12,Raw!E:E)/AVERAGEIF(Raw!$D:$D,Rank!$A12,Raw!E:E),"") -> 43 | D12: =IFERROR(SUMIF(Raw!$D:$D,Rank!$A12,Raw!G:G)/AVERAGEIF(Raw!$D:$D,Rank!$A12,Raw!G:G),"") -> 41 | E12: =IFERROR(SUMIF(Raw!$D:$D,Rank!$A12,Raw!I:I)/AVERAGEIF(Raw!$D:$D,Rank!$A12,Raw!I:I),"") -> 28 | F12: =IFERROR(SUMIF(Raw!$D:$D,Rank!$A12,Raw!K:K)/AVERAGEIF(Raw!$D:$D,Rank!$A12,Raw!K:K),"") -> 14 | G12: =IFERROR(SUMIF(Raw!$D:$D,Rank!$A12,Raw!M:M)/AVERAGEIF(Raw!$D:$D,Rank!$A12,Raw!M:M),"") -> 12 | H12: =IFERROR(SUMIF(Raw!$D:$D,Rank!$A12,Raw!O:O)/AVERAGEIF(Raw!$D:$D,Rank!$A12,Raw!O:O),"") -> 8 | I12: =IFERROR(SUMIF(Raw!$D:$D,Rank!$A12,Raw!S:S)/AVERAGEIF(Raw!$D:$D,Rank!$A12,Raw!S:S),"") -> 35
A13: 固定收益 | B13: 固定收益 | C13: =IFERROR(SUMIF(Raw!$D:$D,Rank!$A13,Raw!E:E)/AVERAGEIF(Raw!$D:$D,Rank!$A13,Raw!E:E),"") -> 1 | D13: =IFERROR(SUMIF(Raw!$D:$D,Rank!$A13,Raw!G:G)/AVERAGEIF(Raw!$D:$D,Rank!$A13,Raw!G:G),"") -> 1 | E13: =IFERROR(SUMIF(Raw!$D:$D,Rank!$A13,Raw!I:I)/AVERAGEIF(Raw!$D:$D,Rank!$A13,Raw!I:I),"") -> 1 | F13: =IFERROR(SUMIF(Raw!$D:$D,Rank!$A13,Raw!K:K)/AVERAGEIF(Raw!$D:$D,Rank!$A13,Raw!K:K),"") -> 1 | G13: =IFERROR(SUMIF(Raw!$D:$D,Rank!$A13,Raw!M:M)/AVERAGEIF(Raw!$D:$D,Rank!$A13,Raw!M:M),"") -> 1 | H13: =IFERROR(SUMIF(Raw!$D:$D,Rank!$A13,Raw!O:O)/AVERAGEIF(Raw!$D:$D,Rank!$A13,Raw!O:O),"") -> 1 | I13: =IFERROR(SUMIF(Raw!$D:$D,Rank!$A13,Raw!S:S)/AVERAGEIF(Raw!$D:$D,Rank!$A13,Raw!S:S),"") -> 1
A14: 保本型 | B14: 保本型 | C14: =IFERROR(SUMIF(Raw!$D:$D,Rank!$A14,Raw!E:E)/AVERAGEIF(Raw!$D:$D,Rank!$A14,Raw!E:E),"") -> 11 | D14: =IFERROR(SUMIF(Raw!$D:$D,Rank!$A14,Raw!G:G)/AVERAGEIF(Raw!$D:$D,Rank!$A14,Raw!G:G),"") -> 11 | E14: =IFERROR(SUMIF(Raw!$D:$D,Rank!$A14,Raw!I:I)/AVERAGEIF(Raw!$D:$D,Rank!$A14,Raw!I:I),"") -> 11 | F14: =IFERROR(SUMIF(Raw!$D:$D,Rank!$A14,Raw!K:K)/AVERAGEIF(Raw!$D:$D,Rank!$A14,Raw!K:K),"") -> 10 | G14: =IFERROR(SUMIF(Raw!$D:$D,Rank!$A14,Raw!M:M)/AVERAGEIF(Raw!$D:$D,Rank!$A14,Raw!M:M),"") -> 8 | H14: =IFERROR(SUMIF(Raw!$D:$D,Rank!$A14,Raw!O:O)/AVERAGEIF(Raw!$D:$D,Rank!$A14,Raw!O:O),"") ->  | I14: =IFERROR(SUMIF(Raw!$D:$D,Rank!$A14,Raw!S:S)/AVERAGEIF(Raw!$D:$D,Rank!$A14,Raw!S:S),"") -> 11
A15: 海外貨幣市場 | B15: 海外貨幣市場 | C15: =IFERROR(SUMIF(Raw!$D:$D,Rank!$A15,Raw!E:E)/AVERAGEIF(Raw!$D:$D,Rank!$A15,Raw!E:E),"") -> 28 | D15: =IFERROR(SUMIF(Raw!$D:$D,Rank!$A15,Raw!G:G)/AVERAGEIF(Raw!$D:$D,Rank!$A15,Raw!G:G),"") -> 28 | E15: =IFERROR(SUMIF(Raw!$D:$D,Rank!$A15,Raw!I:I)/AVERAGEIF(Raw!$D:$D,Rank!$A15,Raw!I:I),"") -> 23 | F15: =IFERROR(SUMIF(Raw!$D:$D,Rank!$A15,Raw!K:K)/AVERAGEIF(Raw!$D:$D,Rank!$A15,Raw!K:K),"") -> 19 | G15: =IFERROR(SUMIF(Raw!$D:$D,Rank!$A15,Raw!M:M)/AVERAGEIF(Raw!$D:$D,Rank!$A15,Raw!M:M),"") -> 8 | H15: =IFERROR(SUMIF(Raw!$D:$D,Rank!$A15,Raw!O:O)/AVERAGEIF(Raw!$D:$D,Rank!$A15,Raw!O:O),"") ->  | I15: =IFERROR(SUMIF(Raw!$D:$D,Rank!$A15,Raw!S:S)/AVERAGEIF(Raw!$D:$D,Rank!$A15,Raw!S:S),"") -> 26
A16: 高收債--中國大陸 | B16: 高收債--中國大陸 | C16: =IFERROR(SUMIF(Raw!$D:$D,Rank!$A16,Raw!E:E)/AVERAGEIF(Raw!$D:$D,Rank!$A16,Raw!E:E),"") -> 55 | D16: =IFERROR(SUMIF(Raw!$D:$D,Rank!$A16,Raw!G:G)/AVERAGEIF(Raw!$D:$D,Rank!$A16,Raw!G:G),"") -> 55 | E16: =IFERROR(SUMIF(Raw!$D:$D,Rank!$A16,Raw!I:I)/AVERAGEIF(Raw!$D:$D,Rank!$A16,Raw!I:I),"") -> 55 | F16: =IFERROR(SUMIF(Raw!$D:$D,Rank!$A16,Raw!K:K)/AVERAGEIF(Raw!$D:$D,Rank!$A16,Raw!K:K),"") -> 40 | G16: =IFERROR(SUMIF(Raw!$D:$D,Rank!$A16,Raw!M:M)/AVERAGEIF(Raw!$D:$D,Rank!$A16,Raw!M:M),"") -> 30 | H16: =IFERROR(SUMIF(Raw!$D:$D,Rank!$A16,Raw!O:O)/AVERAGEIF(Raw!$D:$D,Rank!$A16,Raw!O:O),"") -> 7 | I16: =IFERROR(SUMIF(Raw!$D:$D,Rank!$A16,Raw!S:S)/AVERAGEIF(Raw!$D:$D,Rank!$A16,Raw!S:S),"") -> 55
A17: 高收債--全球 | B17: 高收債--全球 | C17: =IFERROR(SUMIF(Raw!$D:$D,Rank!$A17,Raw!E:E)/AVERAGEIF(Raw!$D:$D,Rank!$A17,Raw!E:E),"") -> 100 | D17: =IFERROR(SUMIF(Raw!$D:$D,Rank!$A17,Raw!G:G)/AVERAGEIF(Raw!$D:$D,Rank!$A17,Raw!G:G),"") -> 91 | E17: =IFERROR(SUMIF(Raw!$D:$D,Rank!$A17,Raw!I:I)/AVERAGEIF(Raw!$D:$D,Rank!$A17,Raw!I:I),"") -> 81 | F17: =IFERROR(SUMIF(Raw!$D:$D,Rank!$A17,Raw!K:K)/AVERAGEIF(Raw!$D:$D,Rank!$A17,Raw!K:K),"") -> 66 | G17: =IFERROR(SUMIF(Raw!$D:$D,Rank!$A17,Raw!M:M)/AVERAGEIF(Raw!$D:$D,Rank!$A17,Raw!M:M),"") -> 35 | H17: =IFERROR(SUMIF(Raw!$D:$D,Rank!$A17,Raw!O:O)/AVERAGEIF(Raw!$D:$D,Rank!$A17,Raw!O:O),"") -> 14 | I17: =IFERROR(SUMIF(Raw!$D:$D,Rank!$A17,Raw!S:S)/AVERAGEIF(Raw!$D:$D,Rank!$A17,Raw!S:S),"") -> 85
A18: 高收債--亞洲 | B18: 高收債--亞洲 | C18: =IFERROR(SUMIF(Raw!$D:$D,Rank!$A18,Raw!E:E)/AVERAGEIF(Raw!$D:$D,Rank!$A18,Raw!E:E),"") -> 58 | D18: =IFERROR(SUMIF(Raw!$D:$D,Rank!$A18,Raw!G:G)/AVERAGEIF(Raw!$D:$D,Rank!$A18,Raw!G:G),"") -> 56 | E18: =IFERROR(SUMIF(Raw!$D:$D,Rank!$A18,Raw!I:I)/AVERAGEIF(Raw!$D:$D,Rank!$A18,Raw!I:I),"") -> 56 | F18: =IFERROR(SUMIF(Raw!$D:$D,Rank!$A18,Raw!K:K)/AVERAGEIF(Raw!$D:$D,Rank!$A18,Raw!K:K),"") -> 30 | G18: =IFERROR(SUMIF(Raw!$D:$D,Rank!$A18,Raw!M:M)/AVERAGEIF(Raw!$D:$D,Rank!$A18,Raw!M:M),"") -> 17 | H18: =IFERROR(SUMIF(Raw!$D:$D,Rank!$A18,Raw!O:O)/AVERAGEIF(Raw!$D:$D,Rank!$A18,Raw!O:O),"") -> 15 | I18: =IFERROR(SUMIF(Raw!$D:$D,Rank!$A18,Raw!S:S)/AVERAGEIF(Raw!$D:$D,Rank!$A18,Raw!S:S),"") -> 56
A19: 高收債--新興市場 | B19: 高收債--新興市場 | C19: =IFERROR(SUMIF(Raw!$D:$D,Rank!$A19,Raw!E:E)/AVERAGEIF(Raw!$D:$D,Rank!$A19,Raw!E:E),"") -> 44 | D19: =IFERROR(SUMIF(Raw!$D:$D,Rank!$A19,Raw!G:G)/AVERAGEIF(Raw!$D:$D,Rank!$A19,Raw!G:G),"") -> 35 | E19: =IFERROR(SUMIF(Raw!$D:$D,Rank!$A19,Raw!I:I)/AVERAGEIF(Raw!$D:$D,Rank!$A19,Raw!I:I),"") -> 35 | F19: =IFERROR(SUMIF(Raw!$D:$D,Rank!$A19,Raw!K:K)/AVERAGEIF(Raw!$D:$D,Rank!$A19,Raw!K:K),"") -> 27 | G19: =IFERROR(SUMIF(Raw!$D:$D,Rank!$A19,Raw!M:M)/AVERAGEIF(Raw!$D:$D,Rank!$A19,Raw!M:M),"") -> 12 | H19: =IFERROR(SUMIF(Raw!$D:$D,Rank!$A19,Raw!O:O)/AVERAGEIF(Raw!$D:$D,Rank!$A19,Raw!O:O),"") -> 8 | I19: =IFERROR(SUMIF(Raw!$D:$D,Rank!$A19,Raw!S:S)/AVERAGEIF(Raw!$D:$D,Rank!$A19,Raw!S:S),"") -> 35
A20: 國內指數-一般ETF | B20: 國內指數-一般ETF | C20: =IFERROR(SUMIF(Raw!$D:$D,Rank!$A20,Raw!E:E)/AVERAGEIF(Raw!$D:$D,Rank!$A20,Raw!E:E),"") -> 16 | D20: =IFERROR(SUMIF(Raw!$D:$D,Rank!$A20,Raw!G:G)/AVERAGEIF(Raw!$D:$D,Rank!$A20,Raw!G:G),"") -> 14 | E20: =IFERROR(SUMIF(Raw!$D:$D,Rank!$A20,Raw!I:I)/AVERAGEIF(Raw!$D:$D,Rank!$A20,Raw!I:I),"") -> 14 | F20: =IFERROR(SUMIF(Raw!$D:$D,Rank!$A20,Raw!K:K)/AVERAGEIF(Raw!$D:$D,Rank!$A20,Raw!K:K),"") -> 14 | G20: =IFERROR(SUMIF(Raw!$D:$D,Rank!$A20,Raw!M:M)/AVERAGEIF(Raw!$D:$D,Rank!$A20,Raw!M:M),"") -> 14 | H20: =IFERROR(SUMIF(Raw!$D:$D,Rank!$A20,Raw!O:O)/AVERAGEIF(Raw!$D:$D,Rank!$A20,Raw!O:O),"") -> 14 | I20: =IFERROR(SUMIF(Raw!$D:$D,Rank!$A20,Raw!S:S)/AVERAGEIF(Raw!$D:$D,Rank!$A20,Raw!S:S),"") -> 14
A21: 國內指數-二倍ETF | B21: 國內指數-二倍ETF | C21: =IFERROR(SUMIF(Raw!$D:$D,Rank!$A21,Raw!E:E)/AVERAGEIF(Raw!$D:$D,Rank!$A21,Raw!E:E),"") -> 4 | D21: =IFERROR(SUMIF(Raw!$D:$D,Rank!$A21,Raw!G:G)/AVERAGEIF(Raw!$D:$D,Rank!$A21,Raw!G:G),"") -> 3 | E21: =IFERROR(SUMIF(Raw!$D:$D,Rank!$A21,Raw!I:I)/AVERAGEIF(Raw!$D:$D,Rank!$A21,Raw!I:I),"") -> 2 | F21: =IFERROR(SUMIF(Raw!$D:$D,Rank!$A21,Raw!K:K)/AVERAGEIF(Raw!$D:$D,Rank!$A21,Raw!K:K),"") -> 1 | G21: =IFERROR(SUMIF(Raw!$D:$D,Rank!$A21,Raw!M:M)/AVERAGEIF(Raw!$D:$D,Rank!$A21,Raw!M:M),"") ->  | H21: =IFERROR(SUMIF(Raw!$D:$D,Rank!$A21,Raw!O:O)/AVERAGEIF(Raw!$D:$D,Rank!$A21,Raw!O:O),"") ->  | I21: =IFERROR(SUMIF(Raw!$D:$D,Rank!$A21,Raw!S:S)/AVERAGEIF(Raw!$D:$D,Rank!$A21,Raw!S:S),"") -> 3
A22: 國內指數-反向ETF | B22: 國內指數-反向ETF | C22: =IFERROR(SUMIF(Raw!$D:$D,Rank!$A22,Raw!E:E)/AVERAGEIF(Raw!$D:$D,Rank!$A22,Raw!E:E),"") -> 5 | D22: =IFERROR(SUMIF(Raw!$D:$D,Rank!$A22,Raw!G:G)/AVERAGEIF(Raw!$D:$D,Rank!$A22,Raw!G:G),"") -> 3 | E22: =IFERROR(SUMIF(Raw!$D:$D,Rank!$A22,Raw!I:I)/AVERAGEIF(Raw!$D:$D,Rank!$A22,Raw!I:I),"") -> 2 | F22: =IFERROR(SUMIF(Raw!$D:$D,Rank!$A22,Raw!K:K)/AVERAGEIF(Raw!$D:$D,Rank!$A22,Raw!K:K),"") -> 1 | G22: =IFERROR(SUMIF(Raw!$D:$D,Rank!$A22,Raw!M:M)/AVERAGEIF(Raw!$D:$D,Rank!$A22,Raw!M:M),"") ->  | H22: =IFERROR(SUMIF(Raw!$D:$D,Rank!$A22,Raw!O:O)/AVERAGEIF(Raw!$D:$D,Rank!$A22,Raw!O:O),"") ->  | I22: =IFERROR(SUMIF(Raw!$D:$D,Rank!$A22,Raw!S:S)/AVERAGEIF(Raw!$D:$D,Rank!$A22,Raw!S:S),"") -> 3
A23: 國內指數-非ETF | B23: 國內指數-非ETF | C23: =IFERROR(SUMIF(Raw!$D:$D,Rank!$A23,Raw!E:E)/AVERAGEIF(Raw!$D:$D,Rank!$A23,Raw!E:E),"") -> 1 | D23: =IFERROR(SUMIF(Raw!$D:$D,Rank!$A23,Raw!G:G)/AVERAGEIF(Raw!$D:$D,Rank!$A23,Raw!G:G),"") -> 1 | E23: =IFERROR(SUMIF(Raw!$D:$D,Rank!$A23,Raw!I:I)/AVERAGEIF(Raw!$D:$D,Rank!$A23,Raw!I:I),"") -> 1 | F23: =IFERROR(SUMIF(Raw!$D:$D,Rank!$A23,Raw!K:K)/AVERAGEIF(Raw!$D:$D,Rank!$A23,Raw!K:K),"") -> 1 | G23: =IFERROR(SUMIF(Raw!$D:$D,Rank!$A23,Raw!M:M)/AVERAGEIF(Raw!$D:$D,Rank!$A23,Raw!M:M),"") -> 1 | H23: =IFERROR(SUMIF(Raw!$D:$D,Rank!$A23,Raw!O:O)/AVERAGEIF(Raw!$D:$D,Rank!$A23,Raw!O:O),"") -> 1 | I23: =IFERROR(SUMIF(Raw!$D:$D,Rank!$A23,Raw!S:S)/AVERAGEIF(Raw!$D:$D,Rank!$A23,Raw!S:S),"") -> 1
A24: 國內貨幣市場 | B24: 國內貨幣市場 | C24: =IFERROR(SUMIF(Raw!$D:$D,Rank!$A24,Raw!E:E)/AVERAGEIF(Raw!$D:$D,Rank!$A24,Raw!E:E),"") -> 44 | D24: =IFERROR(SUMIF(Raw!$D:$D,Rank!$A24,Raw!G:G)/AVERAGEIF(Raw!$D:$D,Rank!$A24,Raw!G:G),"") -> 44 | E24: =IFERROR(SUMIF(Raw!$D:$D,Rank!$A24,Raw!I:I)/AVERAGEIF(Raw!$D:$D,Rank!$A24,Raw!I:I),"") -> 44 | F24: =IFERROR(SUMIF(Raw!$D:$D,Rank!$A24,Raw!K:K)/AVERAGEIF(Raw!$D:$D,Rank!$A24,Raw!K:K),"") -> 44 | G24: =IFERROR(SUMIF(Raw!$D:$D,Rank!$A24,Raw!M:M)/AVERAGEIF(Raw!$D:$D,Rank!$A24,Raw!M:M),"") -> 43 | H24: =IFERROR(SUMIF(Raw!$D:$D,Rank!$A24,Raw!O:O)/AVERAGEIF(Raw!$D:$D,Rank!$A24,Raw!O:O),"") -> 42 | I24: =IFERROR(SUMIF(Raw!$D:$D,Rank!$A24,Raw!S:S)/AVERAGEIF(Raw!$D:$D,Rank!$A24,Raw!S:S),"") -> 44
A25: 開放式一般型 | B25: 開放式一般型 | C25: =IFERROR(SUMIF(Raw!$D:$D,Rank!$A25,Raw!E:E)/AVERAGEIF(Raw!$D:$D,Rank!$A25,Raw!E:E),"") -> 81 | D25: =IFERROR(SUMIF(Raw!$D:$D,Rank!$A25,Raw!G:G)/AVERAGEIF(Raw!$D:$D,Rank!$A25,Raw!G:G),"") -> 81 | E25: =IFERROR(SUMIF(Raw!$D:$D,Rank!$A25,Raw!I:I)/AVERAGEIF(Raw!$D:$D,Rank!$A25,Raw!I:I),"") -> 80 | F25: =IFERROR(SUMIF(Raw!$D:$D,Rank!$A25,Raw!K:K)/AVERAGEIF(Raw!$D:$D,Rank!$A25,Raw!K:K),"") -> 80 | G25: =IFERROR(SUMIF(Raw!$D:$D,Rank!$A25,Raw!M:M)/AVERAGEIF(Raw!$D:$D,Rank!$A25,Raw!M:M),"") -> 79 | H25: =IFERROR(SUMIF(Raw!$D:$D,Rank!$A25,Raw!O:O)/AVERAGEIF(Raw!$D:$D,Rank!$A25,Raw!O:O),"") -> 79 | I25: =IFERROR(SUMIF(Raw!$D:$D,Rank!$A25,Raw!S:S)/AVERAGEIF(Raw!$D:$D,Rank!$A25,Raw!S:S),"") -> 80
A26: 開放式中小型 | B26: 開放式中小型 | C26: =IFERROR(SUMIF(Raw!$D:$D,Rank!$A26,Raw!E:E)/AVERAGEIF(Raw!$D:$D,Rank!$A26,Raw!E:E),"") -> 21 | D26: =IFERROR(SUMIF(Raw!$D:$D,Rank!$A26,Raw!G:G)/AVERAGEIF(Raw!$D:$D,Rank!$A26,Raw!G:G),"") -> 21 | E26: =IFERROR(SUMIF(Raw!$D:$D,Rank!$A26,Raw!I:I)/AVERAGEIF(Raw!$D:$D,Rank!$A26,Raw!I:I),"") -> 21 | F26: =IFERROR(SUMIF(Raw!$D:$D,Rank!$A26,Raw!K:K)/AVERAGEIF(Raw!$D:$D,Rank!$A26,Raw!K:K),"") -> 21 | G26: =IFERROR(SUMIF(Raw!$D:$D,Rank!$A26,Raw!M:M)/AVERAGEIF(Raw!$D:$D,Rank!$A26,Raw!M:M),"") -> 20 | H26: =IFERROR(SUMIF(Raw!$D:$D,Rank!$A26,Raw!O:O)/AVERAGEIF(Raw!$D:$D,Rank!$A26,Raw!O:O),"") -> 20 | I26: =IFERROR(SUMIF(Raw!$D:$D,Rank!$A26,Raw!S:S)/AVERAGEIF(Raw!$D:$D,Rank!$A26,Raw!S:S),"") -> 21
A27: 開放式中概股 | B27: 開放式中概股 | C27: =IFERROR(SUMIF(Raw!$D:$D,Rank!$A27,Raw!E:E)/AVERAGEIF(Raw!$D:$D,Rank!$A27,Raw!E:E),"") -> 6 | D27: =IFERROR(SUMIF(Raw!$D:$D,Rank!$A27,Raw!G:G)/AVERAGEIF(Raw!$D:$D,Rank!$A27,Raw!G:G),"") -> 6 | E27: =IFERROR(SUMIF(Raw!$D:$D,Rank!$A27,Raw!I:I)/AVERAGEIF(Raw!$D:$D,Rank!$A27,Raw!I:I),"") -> 6 | F27: =IFERROR(SUMIF(Raw!$D:$D,Rank!$A27,Raw!K:K)/AVERAGEIF(Raw!$D:$D,Rank!$A27,Raw!K:K),"") -> 6 | G27: =IFERROR(SUMIF(Raw!$D:$D,Rank!$A27,Raw!M:M)/AVERAGEIF(Raw!$D:$D,Rank!$A27,Raw!M:M),"") -> 6 | H27: =IFERROR(SUMIF(Raw!$D:$D,Rank!$A27,Raw!O:O)/AVERAGEIF(Raw!$D:$D,Rank!$A27,Raw!O:O),"") -> 6 | I27: =IFERROR(SUMIF(Raw!$D:$D,Rank!$A27,Raw!S:S)/AVERAGEIF(Raw!$D:$D,Rank!$A27,Raw!S:S),"") -> 6
A28: 開放式科技類 | B28: 開放式科技類 | C28: =IFERROR(SUMIF(Raw!$D:$D,Rank!$A28,Raw!E:E)/AVERAGEIF(Raw!$D:$D,Rank!$A28,Raw!E:E),"") -> 27 | D28: =IFERROR(SUMIF(Raw!$D:$D,Rank!$A28,Raw!G:G)/AVERAGEIF(Raw!$D:$D,Rank!$A28,Raw!G:G),"") -> 27 | E28: =IFERROR(SUMIF(Raw!$D:$D,Rank!$A28,Raw!I:I)/AVERAGEIF(Raw!$D:$D,Rank!$A28,Raw!I:I),"") -> 27 | F28: =IFERROR(SUMIF(Raw!$D:$D,Rank!$A28,Raw!K:K)/AVERAGEIF(Raw!$D:$D,Rank!$A28,Raw!K:K),"") -> 27 | G28: =IFERROR(SUMIF(Raw!$D:$D,Rank!$A28,Raw!M:M)/AVERAGEIF(Raw!$D:$D,Rank!$A28,Raw!M:M),"") -> 27 | H28: =IFERROR(SUMIF(Raw!$D:$D,Rank!$A28,Raw!O:O)/AVERAGEIF(Raw!$D:$D,Rank!$A28,Raw!O:O),"") -> 27 | I28: =IFERROR(SUMIF(Raw!$D:$D,Rank!$A28,Raw!S:S)/AVERAGEIF(Raw!$D:$D,Rank!$A28,Raw!S:S),"") -> 27
A29: 開放式價值型 | B29: 開放式價值型 | C29: =IFERROR(SUMIF(Raw!$D:$D,Rank!$A29,Raw!E:E)/AVERAGEIF(Raw!$D:$D,Rank!$A29,Raw!E:E),"") -> 5 | D29: =IFERROR(SUMIF(Raw!$D:$D,Rank!$A29,Raw!G:G)/AVERAGEIF(Raw!$D:$D,Rank!$A29,Raw!G:G),"") -> 5 | E29: =IFERROR(SUMIF(Raw!$D:$D,Rank!$A29,Raw!I:I)/AVERAGEIF(Raw!$D:$D,Rank!$A29,Raw!I:I),"") -> 5 | F29: =IFERROR(SUMIF(Raw!$D:$D,Rank!$A29,Raw!K:K)/AVERAGEIF(Raw!$D:$D,Rank!$A29,Raw!K:K),"") -> 5 | G29: =IFERROR(SUMIF(Raw!$D:$D,Rank!$A29,Raw!M:M)/AVERAGEIF(Raw!$D:$D,Rank!$A29,Raw!M:M),"") -> 5 | H29: =IFERROR(SUMIF(Raw!$D:$D,Rank!$A29,Raw!O:O)/AVERAGEIF(Raw!$D:$D,Rank!$A29,Raw!O:O),"") -> 5 | I29: =IFERROR(SUMIF(Raw!$D:$D,Rank!$A29,Raw!S:S)/AVERAGEIF(Raw!$D:$D,Rank!$A29,Raw!S:S),"") -> 5
A30: 債券組合--投資級 | B30: 債券組合--投資級 | C30: =IFERROR(SUMIF(Raw!$D:$D,Rank!$A30,Raw!E:E)/AVERAGEIF(Raw!$D:$D,Rank!$A30,Raw!E:E),"") -> 10 | D30: =IFERROR(SUMIF(Raw!$D:$D,Rank!$A30,Raw!G:G)/AVERAGEIF(Raw!$D:$D,Rank!$A30,Raw!G:G),"") -> 10 | E30: =IFERROR(SUMIF(Raw!$D:$D,Rank!$A30,Raw!I:I)/AVERAGEIF(Raw!$D:$D,Rank!$A30,Raw!I:I),"") -> 10 | F30: =IFERROR(SUMIF(Raw!$D:$D,Rank!$A30,Raw!K:K)/AVERAGEIF(Raw!$D:$D,Rank!$A30,Raw!K:K),"") -> 9 | G30: =IFERROR(SUMIF(Raw!$D:$D,Rank!$A30,Raw!M:M)/AVERAGEIF(Raw!$D:$D,Rank!$A30,Raw!M:M),"") -> 4 | H30: =IFERROR(SUMIF(Raw!$D:$D,Rank!$A30,Raw!O:O)/AVERAGEIF(Raw!$D:$D,Rank!$A30,Raw!O:O),"") -> 2 | I30: =IFERROR(SUMIF(Raw!$D:$D,Rank!$A30,Raw!S:S)/AVERAGEIF(Raw!$D:$D,Rank!$A30,Raw!S:S),"") -> 10
A31: 債券組合--複合式 | B31: 債券組合--複合式 | C31: =IFERROR(SUMIF(Raw!$D:$D,Rank!$A31,Raw!E:E)/AVERAGEIF(Raw!$D:$D,Rank!$A31,Raw!E:E),"") -> 46 | D31: =IFERROR(SUMIF(Raw!$D:$D,Rank!$A31,Raw!G:G)/AVERAGEIF(Raw!$D:$D,Rank!$A31,Raw!G:G),"") -> 42 | E31: =IFERROR(SUMIF(Raw!$D:$D,Rank!$A31,Raw!I:I)/AVERAGEIF(Raw!$D:$D,Rank!$A31,Raw!I:I),"") -> 40 | F31: =IFERROR(SUMIF(Raw!$D:$D,Rank!$A31,Raw!K:K)/AVERAGEIF(Raw!$D:$D,Rank!$A31,Raw!K:K),"") -> 33 | G31: =IFERROR(SUMIF(Raw!$D:$D,Rank!$A31,Raw!M:M)/AVERAGEIF(Raw!$D:$D,Rank!$A31,Raw!M:M),"") -> 27 | H31: =IFERROR(SUMIF(Raw!$D:$D,Rank!$A31,Raw!O:O)/AVERAGEIF(Raw!$D:$D,Rank!$A31,Raw!O:O),"") -> 21 | I31: =IFERROR(SUMIF(Raw!$D:$D,Rank!$A31,Raw!S:S)/AVERAGEIF(Raw!$D:$D,Rank!$A31,Raw!S:S),"") -> 42
A32: 跨國--大中華區 | B32: 跨國--大中華區 | C32: =IFERROR(SUMIF(Raw!$D:$D,Rank!$A32,Raw!E:E)/AVERAGEIF(Raw!$D:$D,Rank!$A32,Raw!E:E),"") -> 71 | D32: =IFERROR(SUMIF(Raw!$D:$D,Rank!$A32,Raw!G:G)/AVERAGEIF(Raw!$D:$D,Rank!$A32,Raw!G:G),"") -> 69 | E32: =IFERROR(SUMIF(Raw!$D:$D,Rank!$A32,Raw!I:I)/AVERAGEIF(Raw!$D:$D,Rank!$A32,Raw!I:I),"") -> 67 | F32: =IFERROR(SUMIF(Raw!$D:$D,Rank!$A32,Raw!K:K)/AVERAGEIF(Raw!$D:$D,Rank!$A32,Raw!K:K),"") -> 47 | G32: =IFERROR(SUMIF(Raw!$D:$D,Rank!$A32,Raw!M:M)/AVERAGEIF(Raw!$D:$D,Rank!$A32,Raw!M:M),"") -> 35 | H32: =IFERROR(SUMIF(Raw!$D:$D,Rank!$A32,Raw!O:O)/AVERAGEIF(Raw!$D:$D,Rank!$A32,Raw!O:O),"") -> 31 | I32: =IFERROR(SUMIF(Raw!$D:$D,Rank!$A32,Raw!S:S)/AVERAGEIF(Raw!$D:$D,Rank!$A32,Raw!S:S),"") -> 69
A33: 跨國-中國A股 | B33: 跨國-中國A股 | C33: =IFERROR(SUMIF(Raw!$D:$D,Rank!$A33,Raw!E:E)/AVERAGEIF(Raw!$D:$D,Rank!$A33,Raw!E:E),"") -> 19 | D33: =IFERROR(SUMIF(Raw!$D:$D,Rank!$A33,Raw!G:G)/AVERAGEIF(Raw!$D:$D,Rank!$A33,Raw!G:G),"") -> 19 | E33: =IFERROR(SUMIF(Raw!$D:$D,Rank!$A33,Raw!I:I)/AVERAGEIF(Raw!$D:$D,Rank!$A33,Raw!I:I),"") -> 15 | F33: =IFERROR(SUMIF(Raw!$D:$D,Rank!$A33,Raw!K:K)/AVERAGEIF(Raw!$D:$D,Rank!$A33,Raw!K:K),"") -> 13 | G33: =IFERROR(SUMIF(Raw!$D:$D,Rank!$A33,Raw!M:M)/AVERAGEIF(Raw!$D:$D,Rank!$A33,Raw!M:M),"") -> 6 | H33: =IFERROR(SUMIF(Raw!$D:$D,Rank!$A33,Raw!O:O)/AVERAGEIF(Raw!$D:$D,Rank!$A33,Raw!O:O),"") ->  | I33: =IFERROR(SUMIF(Raw!$D:$D,Rank!$A33,Raw!S:S)/AVERAGEIF(Raw!$D:$D,Rank!$A33,Raw!S:S),"") -> 18
A34: 跨國-中國一般ETF | B34: 跨國-中國一般ETF | C34: =IFERROR(SUMIF(Raw!$D:$D,Rank!$A34,Raw!E:E)/AVERAGEIF(Raw!$D:$D,Rank!$A34,Raw!E:E),"") -> 7 | D34: =IFERROR(SUMIF(Raw!$D:$D,Rank!$A34,Raw!G:G)/AVERAGEIF(Raw!$D:$D,Rank!$A34,Raw!G:G),"") -> 7 | E34: =IFERROR(SUMIF(Raw!$D:$D,Rank!$A34,Raw!I:I)/AVERAGEIF(Raw!$D:$D,Rank!$A34,Raw!I:I),"") -> 7 | F34: =IFERROR(SUMIF(Raw!$D:$D,Rank!$A34,Raw!K:K)/AVERAGEIF(Raw!$D:$D,Rank!$A34,Raw!K:K),"") -> 6 | G34: =IFERROR(SUMIF(Raw!$D:$D,Rank!$A34,Raw!M:M)/AVERAGEIF(Raw!$D:$D,Rank!$A34,Raw!M:M),"") -> 4 | H34: =IFERROR(SUMIF(Raw!$D:$D,Rank!$A34,Raw!O:O)/AVERAGEIF(Raw!$D:$D,Rank!$A34,Raw!O:O),"") -> 4 | I34: =IFERROR(SUMIF(Raw!$D:$D,Rank!$A34,Raw!S:S)/AVERAGEIF(Raw!$D:$D,Rank!$A34,Raw!S:S),"") -> 7
A35: 跨國-中國反向ETF | B35: 跨國-中國反向ETF | C35: =IFERROR(SUMIF(Raw!$D:$D,Rank!$A35,Raw!E:E)/AVERAGEIF(Raw!$D:$D,Rank!$A35,Raw!E:E),"") -> 3 | D35: =IFERROR(SUMIF(Raw!$D:$D,Rank!$A35,Raw!G:G)/AVERAGEIF(Raw!$D:$D,Rank!$A35,Raw!G:G),"") -> 3 | E35: =IFERROR(SUMIF(Raw!$D:$D,Rank!$A35,Raw!I:I)/AVERAGEIF(Raw!$D:$D,Rank!$A35,Raw!I:I),"") -> 3 | F35: =IFERROR(SUMIF(Raw!$D:$D,Rank!$A35,Raw!K:K)/AVERAGEIF(Raw!$D:$D,Rank!$A35,Raw!K:K),"") -> 2 | G35: =IFERROR(SUMIF(Raw!$D:$D,Rank!$A35,Raw!M:M)/AVERAGEIF(Raw!$D:$D,Rank!$A35,Raw!M:M),"") ->  | H35: =IFERROR(SUMIF(Raw!$D:$D,Rank!$A35,Raw!O:O)/AVERAGEIF(Raw!$D:$D,Rank!$A35,Raw!O:O),"") ->  | I35: =IFERROR(SUMIF(Raw!$D:$D,Rank!$A35,Raw!S:S)/AVERAGEIF(Raw!$D:$D,Rank!$A35,Raw!S:S),"") -> 3
A36: 跨國-中國兩倍ETF | B36: 跨國-中國兩倍ETF | C36: =IFERROR(SUMIF(Raw!$D:$D,Rank!$A36,Raw!E:E)/AVERAGEIF(Raw!$D:$D,Rank!$A36,Raw!E:E),"") ->  | D36: =IFERROR(SUMIF(Raw!$D:$D,Rank!$A36,Raw!G:G)/AVERAGEIF(Raw!$D:$D,Rank!$A36,Raw!G:G),"") ->  | E36: =IFERROR(SUMIF(Raw!$D:$D,Rank!$A36,Raw!I:I)/AVERAGEIF(Raw!$D:$D,Rank!$A36,Raw!I:I),"") ->  | F36: =IFERROR(SUMIF(Raw!$D:$D,Rank!$A36,Raw!K:K)/AVERAGEIF(Raw!$D:$D,Rank!$A36,Raw!K:K),"") ->  | G36: =IFERROR(SUMIF(Raw!$D:$D,Rank!$A36,Raw!M:M)/AVERAGEIF(Raw!$D:$D,Rank!$A36,Raw!M:M),"") ->  | H36: =IFERROR(SUMIF(Raw!$D:$D,Rank!$A36,Raw!O:O)/AVERAGEIF(Raw!$D:$D,Rank!$A36,Raw!O:O),"") ->  | I36: =IFERROR(SUMIF(Raw!$D:$D,Rank!$A36,Raw!S:S)/AVERAGEIF(Raw!$D:$D,Rank!$A36,Raw!S:S),"") -> 
A37: 跨國平衡-全球型 | B37: 跨國平衡-全球型 | C37: =IFERROR(SUMIF(Raw!$D:$D,Rank!$A37,Raw!E:E)/AVERAGEIF(Raw!$D:$D,Rank!$A37,Raw!E:E),"") -> 72 | D37: =IFERROR(SUMIF(Raw!$D:$D,Rank!$A37,Raw!G:G)/AVERAGEIF(Raw!$D:$D,Rank!$A37,Raw!G:G),"") -> 72 | E37: =IFERROR(SUMIF(Raw!$D:$D,Rank!$A37,Raw!I:I)/AVERAGEIF(Raw!$D:$D,Rank!$A37,Raw!I:I),"") -> 50 | F37: =IFERROR(SUMIF(Raw!$D:$D,Rank!$A37,Raw!K:K)/AVERAGEIF(Raw!$D:$D,Rank!$A37,Raw!K:K),"") -> 25 | G37: =IFERROR(SUMIF(Raw!$D:$D,Rank!$A37,Raw!M:M)/AVERAGEIF(Raw!$D:$D,Rank!$A37,Raw!M:M),"") -> 10 | H37: =IFERROR(SUMIF(Raw!$D:$D,Rank!$A37,Raw!O:O)/AVERAGEIF(Raw!$D:$D,Rank!$A37,Raw!O:O),"") -> 2 | I37: =IFERROR(SUMIF(Raw!$D:$D,Rank!$A37,Raw!S:S)/AVERAGEIF(Raw!$D:$D,Rank!$A37,Raw!S:S),"") -> 72
A38: 跨國平衡-亞洲 | B38: 跨國平衡-亞洲 | C38: =IFERROR(SUMIF(Raw!$D:$D,Rank!$A38,Raw!E:E)/AVERAGEIF(Raw!$D:$D,Rank!$A38,Raw!E:E),"") -> 47 | D38: =IFERROR(SUMIF(Raw!$D:$D,Rank!$A38,Raw!G:G)/AVERAGEIF(Raw!$D:$D,Rank!$A38,Raw!G:G),"") -> 47 | E38: =IFERROR(SUMIF(Raw!$D:$D,Rank!$A38,Raw!I:I)/AVERAGEIF(Raw!$D:$D,Rank!$A38,Raw!I:I),"") -> 39 | F38: =IFERROR(SUMIF(Raw!$D:$D,Rank!$A38,Raw!K:K)/AVERAGEIF(Raw!$D:$D,Rank!$A38,Raw!K:K),"") -> 18 | G38: =IFERROR(SUMIF(Raw!$D:$D,Rank!$A38,Raw!M:M)/AVERAGEIF(Raw!$D:$D,Rank!$A38,Raw!M:M),"") -> 6 | H38: =IFERROR(SUMIF(Raw!$D:$D,Rank!$A38,Raw!O:O)/AVERAGEIF(Raw!$D:$D,Rank!$A38,Raw!O:O),"") -> 4 | I38: =IFERROR(SUMIF(Raw!$D:$D,Rank!$A38,Raw!S:S)/AVERAGEIF(Raw!$D:$D,Rank!$A38,Raw!S:S),"") -> 47
A39: 跨國平衡-單一國 | B39: 跨國平衡-單一國 | C39: =IFERROR(SUMIF(Raw!$D:$D,Rank!$A39,Raw!E:E)/AVERAGEIF(Raw!$D:$D,Rank!$A39,Raw!E:E),"") -> 40 | D39: =IFERROR(SUMIF(Raw!$D:$D,Rank!$A39,Raw!G:G)/AVERAGEIF(Raw!$D:$D,Rank!$A39,Raw!G:G),"") -> 40 | E39: =IFERROR(SUMIF(Raw!$D:$D,Rank!$A39,Raw!I:I)/AVERAGEIF(Raw!$D:$D,Rank!$A39,Raw!I:I),"") -> 40 | F39: =IFERROR(SUMIF(Raw!$D:$D,Rank!$A39,Raw!K:K)/AVERAGEIF(Raw!$D:$D,Rank!$A39,Raw!K:K),"") -> 34 | G39: =IFERROR(SUMIF(Raw!$D:$D,Rank!$A39,Raw!M:M)/AVERAGEIF(Raw!$D:$D,Rank!$A39,Raw!M:M),"") -> 2 | H39: =IFERROR(SUMIF(Raw!$D:$D,Rank!$A39,Raw!O:O)/AVERAGEIF(Raw!$D:$D,Rank!$A39,Raw!O:O),"") -> 1 | I39: =IFERROR(SUMIF(Raw!$D:$D,Rank!$A39,Raw!S:S)/AVERAGEIF(Raw!$D:$D,Rank!$A39,Raw!S:S),"") -> 40
A40: 跨國--全球股票 | B40: 跨國--全球股票 | C40: =IFERROR(SUMIF(Raw!$D:$D,Rank!$A40,Raw!E:E)/AVERAGEIF(Raw!$D:$D,Rank!$A40,Raw!E:E),"") -> 125 | D40: =IFERROR(SUMIF(Raw!$D:$D,Rank!$A40,Raw!G:G)/AVERAGEIF(Raw!$D:$D,Rank!$A40,Raw!G:G),"") -> 111 | E40: =IFERROR(SUMIF(Raw!$D:$D,Rank!$A40,Raw!I:I)/AVERAGEIF(Raw!$D:$D,Rank!$A40,Raw!I:I),"") -> 95 | F40: =IFERROR(SUMIF(Raw!$D:$D,Rank!$A40,Raw!K:K)/AVERAGEIF(Raw!$D:$D,Rank!$A40,Raw!K:K),"") -> 65 | G40: =IFERROR(SUMIF(Raw!$D:$D,Rank!$A40,Raw!M:M)/AVERAGEIF(Raw!$D:$D,Rank!$A40,Raw!M:M),"") -> 48 | H40: =IFERROR(SUMIF(Raw!$D:$D,Rank!$A40,Raw!O:O)/AVERAGEIF(Raw!$D:$D,Rank!$A40,Raw!O:O),"") -> 36 | I40: =IFERROR(SUMIF(Raw!$D:$D,Rank!$A40,Raw!S:S)/AVERAGEIF(Raw!$D:$D,Rank!$A40,Raw!S:S),"") -> 104
A41: 跨國--全球資源 | B41: 跨國--全球資源 | C41: =IFERROR(SUMIF(Raw!$D:$D,Rank!$A41,Raw!E:E)/AVERAGEIF(Raw!$D:$D,Rank!$A41,Raw!E:E),"") -> 14 | D41: =IFERROR(SUMIF(Raw!$D:$D,Rank!$A41,Raw!G:G)/AVERAGEIF(Raw!$D:$D,Rank!$A41,Raw!G:G),"") -> 14 | E41: =IFERROR(SUMIF(Raw!$D:$D,Rank!$A41,Raw!I:I)/AVERAGEIF(Raw!$D:$D,Rank!$A41,Raw!I:I),"") -> 14 | F41: =IFERROR(SUMIF(Raw!$D:$D,Rank!$A41,Raw!K:K)/AVERAGEIF(Raw!$D:$D,Rank!$A41,Raw!K:K),"") -> 14 | G41: =IFERROR(SUMIF(Raw!$D:$D,Rank!$A41,Raw!M:M)/AVERAGEIF(Raw!$D:$D,Rank!$A41,Raw!M:M),"") -> 14 | H41: =IFERROR(SUMIF(Raw!$D:$D,Rank!$A41,Raw!O:O)/AVERAGEIF(Raw!$D:$D,Rank!$A41,Raw!O:O),"") -> 13 | I41: =IFERROR(SUMIF(Raw!$D:$D,Rank!$A41,Raw!S:S)/AVERAGEIF(Raw!$D:$D,Rank!$A41,Raw!S:S),"") -> 14
A42: 跨國投資--日本 | B42: 跨國投資--日本 | C42: =IFERROR(SUMIF(Raw!$D:$D,Rank!$A42,Raw!E:E)/AVERAGEIF(Raw!$D:$D,Rank!$A42,Raw!E:E),"") ->  | D42: =IFERROR(SUMIF(Raw!$D:$D,Rank!$A42,Raw!G:G)/AVERAGEIF(Raw!$D:$D,Rank!$A42,Raw!G:G),"") ->  | E42: =IFERROR(SUMIF(Raw!$D:$D,Rank!$A42,Raw!I:I)/AVERAGEIF(Raw!$D:$D,Rank!$A42,Raw!I:I),"") ->  | F42: =IFERROR(SUMIF(Raw!$D:$D,Rank!$A42,Raw!K:K)/AVERAGEIF(Raw!$D:$D,Rank!$A42,Raw!K:K),"") ->  | G42: =IFERROR(SUMIF(Raw!$D:$D,Rank!$A42,Raw!M:M)/AVERAGEIF(Raw!$D:$D,Rank!$A42,Raw!M:M),"") ->  | H42: =IFERROR(SUMIF(Raw!$D:$D,Rank!$A42,Raw!O:O)/AVERAGEIF(Raw!$D:$D,Rank!$A42,Raw!O:O),"") ->  | I42: =IFERROR(SUMIF(Raw!$D:$D,Rank!$A42,Raw!S:S)/AVERAGEIF(Raw!$D:$D,Rank!$A42,Raw!S:S),"") -> 
A43: 跨國投資--亞洲 | B43: 跨國投資--亞洲 | C43: =IFERROR(SUMIF(Raw!$D:$D,Rank!$A43,Raw!E:E)/AVERAGEIF(Raw!$D:$D,Rank!$A43,Raw!E:E),"") -> 70 | D43: =IFERROR(SUMIF(Raw!$D:$D,Rank!$A43,Raw!G:G)/AVERAGEIF(Raw!$D:$D,Rank!$A43,Raw!G:G),"") -> 70 | E43: =IFERROR(SUMIF(Raw!$D:$D,Rank!$A43,Raw!I:I)/AVERAGEIF(Raw!$D:$D,Rank!$A43,Raw!I:I),"") -> 70 | F43: =IFERROR(SUMIF(Raw!$D:$D,Rank!$A43,Raw!K:K)/AVERAGEIF(Raw!$D:$D,Rank!$A43,Raw!K:K),"") -> 55 | G43: =IFERROR(SUMIF(Raw!$D:$D,Rank!$A43,Raw!M:M)/AVERAGEIF(Raw!$D:$D,Rank!$A43,Raw!M:M),"") -> 41 | H43: =IFERROR(SUMIF(Raw!$D:$D,Rank!$A43,Raw!O:O)/AVERAGEIF(Raw!$D:$D,Rank!$A43,Raw!O:O),"") -> 36 | I43: =IFERROR(SUMIF(Raw!$D:$D,Rank!$A43,Raw!S:S)/AVERAGEIF(Raw!$D:$D,Rank!$A43,Raw!S:S),"") -> 70
A44: 跨國投資--美國 | B44: 跨國投資--美國 | C44: =IFERROR(SUMIF(Raw!$D:$D,Rank!$A44,Raw!E:E)/AVERAGEIF(Raw!$D:$D,Rank!$A44,Raw!E:E),"") ->  | D44: =IFERROR(SUMIF(Raw!$D:$D,Rank!$A44,Raw!G:G)/AVERAGEIF(Raw!$D:$D,Rank!$A44,Raw!G:G),"") ->  | E44: =IFERROR(SUMIF(Raw!$D:$D,Rank!$A44,Raw!I:I)/AVERAGEIF(Raw!$D:$D,Rank!$A44,Raw!I:I),"") ->  | F44: =IFERROR(SUMIF(Raw!$D:$D,Rank!$A44,Raw!K:K)/AVERAGEIF(Raw!$D:$D,Rank!$A44,Raw!K:K),"") ->  | G44: =IFERROR(SUMIF(Raw!$D:$D,Rank!$A44,Raw!M:M)/AVERAGEIF(Raw!$D:$D,Rank!$A44,Raw!M:M),"") ->  | H44: =IFERROR(SUMIF(Raw!$D:$D,Rank!$A44,Raw!O:O)/AVERAGEIF(Raw!$D:$D,Rank!$A44,Raw!O:O),"") ->  | I44: =IFERROR(SUMIF(Raw!$D:$D,Rank!$A44,Raw!S:S)/AVERAGEIF(Raw!$D:$D,Rank!$A44,Raw!S:S),"") -> 
A45: 跨國投資--歐洲 | B45: 跨國投資--歐洲 | C45: =IFERROR(SUMIF(Raw!$D:$D,Rank!$A45,Raw!E:E)/AVERAGEIF(Raw!$D:$D,Rank!$A45,Raw!E:E),"") -> 13 | D45: =IFERROR(SUMIF(Raw!$D:$D,Rank!$A45,Raw!G:G)/AVERAGEIF(Raw!$D:$D,Rank!$A45,Raw!G:G),"") -> 13 | E45: =IFERROR(SUMIF(Raw!$D:$D,Rank!$A45,Raw!I:I)/AVERAGEIF(Raw!$D:$D,Rank!$A45,Raw!I:I),"") -> 13 | F45: =IFERROR(SUMIF(Raw!$D:$D,Rank!$A45,Raw!K:K)/AVERAGEIF(Raw!$D:$D,Rank!$A45,Raw!K:K),"") -> 10 | G45: =IFERROR(SUMIF(Raw!$D:$D,Rank!$A45,Raw!M:M)/AVERAGEIF(Raw!$D:$D,Rank!$A45,Raw!M:M),"") -> 5 | H45: =IFERROR(SUMIF(Raw!$D:$D,Rank!$A45,Raw!O:O)/AVERAGEIF(Raw!$D:$D,Rank!$A45,Raw!O:O),"") -> 5 | I45: =IFERROR(SUMIF(Raw!$D:$D,Rank!$A45,Raw!S:S)/AVERAGEIF(Raw!$D:$D,Rank!$A45,Raw!S:S),"") -> 13
A46: 跨國--其他單一國 | B46: 跨國--其他單一國 | C46: =IFERROR(SUMIF(Raw!$D:$D,Rank!$A46,Raw!E:E)/AVERAGEIF(Raw!$D:$D,Rank!$A46,Raw!E:E),"") ->  | D46: =IFERROR(SUMIF(Raw!$D:$D,Rank!$A46,Raw!G:G)/AVERAGEIF(Raw!$D:$D,Rank!$A46,Raw!G:G),"") ->  | E46: =IFERROR(SUMIF(Raw!$D:$D,Rank!$A46,Raw!I:I)/AVERAGEIF(Raw!$D:$D,Rank!$A46,Raw!I:I),"") ->  | F46: =IFERROR(SUMIF(Raw!$D:$D,Rank!$A46,Raw!K:K)/AVERAGEIF(Raw!$D:$D,Rank!$A46,Raw!K:K),"") ->  | G46: =IFERROR(SUMIF(Raw!$D:$D,Rank!$A46,Raw!M:M)/AVERAGEIF(Raw!$D:$D,Rank!$A46,Raw!M:M),"") ->  | H46: =IFERROR(SUMIF(Raw!$D:$D,Rank!$A46,Raw!O:O)/AVERAGEIF(Raw!$D:$D,Rank!$A46,Raw!O:O),"") ->  | I46: =IFERROR(SUMIF(Raw!$D:$D,Rank!$A46,Raw!S:S)/AVERAGEIF(Raw!$D:$D,Rank!$A46,Raw!S:S),"") -> 
A47: 跨國股組合--一般 | B47: 跨國股組合--一般 | C47: =IFERROR(SUMIF(Raw!$D:$D,Rank!$A47,Raw!E:E)/AVERAGEIF(Raw!$D:$D,Rank!$A47,Raw!E:E),"") -> 16 | D47: =IFERROR(SUMIF(Raw!$D:$D,Rank!$A47,Raw!G:G)/AVERAGEIF(Raw!$D:$D,Rank!$A47,Raw!G:G),"") -> 13 | E47: =IFERROR(SUMIF(Raw!$D:$D,Rank!$A47,Raw!I:I)/AVERAGEIF(Raw!$D:$D,Rank!$A47,Raw!I:I),"") -> 10 | F47: =IFERROR(SUMIF(Raw!$D:$D,Rank!$A47,Raw!K:K)/AVERAGEIF(Raw!$D:$D,Rank!$A47,Raw!K:K),"") -> 10 | G47: =IFERROR(SUMIF(Raw!$D:$D,Rank!$A47,Raw!M:M)/AVERAGEIF(Raw!$D:$D,Rank!$A47,Raw!M:M),"") -> 10 | H47: =IFERROR(SUMIF(Raw!$D:$D,Rank!$A47,Raw!O:O)/AVERAGEIF(Raw!$D:$D,Rank!$A47,Raw!O:O),"") -> 7 | I47: =IFERROR(SUMIF(Raw!$D:$D,Rank!$A47,Raw!S:S)/AVERAGEIF(Raw!$D:$D,Rank!$A47,Raw!S:S),"") -> 13
A48: 跨國股組合--新興 | B48: 跨國股組合--新興 | C48: =IFERROR(SUMIF(Raw!$D:$D,Rank!$A48,Raw!E:E)/AVERAGEIF(Raw!$D:$D,Rank!$A48,Raw!E:E),"") -> 4 | D48: =IFERROR(SUMIF(Raw!$D:$D,Rank!$A48,Raw!G:G)/AVERAGEIF(Raw!$D:$D,Rank!$A48,Raw!G:G),"") -> 4 | E48: =IFERROR(SUMIF(Raw!$D:$D,Rank!$A48,Raw!I:I)/AVERAGEIF(Raw!$D:$D,Rank!$A48,Raw!I:I),"") -> 4 | F48: =IFERROR(SUMIF(Raw!$D:$D,Rank!$A48,Raw!K:K)/AVERAGEIF(Raw!$D:$D,Rank!$A48,Raw!K:K),"") -> 4 | G48: =IFERROR(SUMIF(Raw!$D:$D,Rank!$A48,Raw!M:M)/AVERAGEIF(Raw!$D:$D,Rank!$A48,Raw!M:M),"") -> 4 | H48: =IFERROR(SUMIF(Raw!$D:$D,Rank!$A48,Raw!O:O)/AVERAGEIF(Raw!$D:$D,Rank!$A48,Raw!O:O),"") -> 3 | I48: =IFERROR(SUMIF(Raw!$D:$D,Rank!$A48,Raw!S:S)/AVERAGEIF(Raw!$D:$D,Rank!$A48,Raw!S:S),"") -> 4
A49: 跨國組合--平衡型 | B49: 跨國組合--平衡型 | C49: =IFERROR(SUMIF(Raw!$D:$D,Rank!$A49,Raw!E:E)/AVERAGEIF(Raw!$D:$D,Rank!$A49,Raw!E:E),"") -> 110 | D49: =IFERROR(SUMIF(Raw!$D:$D,Rank!$A49,Raw!G:G)/AVERAGEIF(Raw!$D:$D,Rank!$A49,Raw!G:G),"") -> 100 | E49: =IFERROR(SUMIF(Raw!$D:$D,Rank!$A49,Raw!I:I)/AVERAGEIF(Raw!$D:$D,Rank!$A49,Raw!I:I),"") -> 95 | F49: =IFERROR(SUMIF(Raw!$D:$D,Rank!$A49,Raw!K:K)/AVERAGEIF(Raw!$D:$D,Rank!$A49,Raw!K:K),"") -> 65 | G49: =IFERROR(SUMIF(Raw!$D:$D,Rank!$A49,Raw!M:M)/AVERAGEIF(Raw!$D:$D,Rank!$A49,Raw!M:M),"") -> 28 | H49: =IFERROR(SUMIF(Raw!$D:$D,Rank!$A49,Raw!O:O)/AVERAGEIF(Raw!$D:$D,Rank!$A49,Raw!O:O),"") -> 17 | I49: =IFERROR(SUMIF(Raw!$D:$D,Rank!$A49,Raw!S:S)/AVERAGEIF(Raw!$D:$D,Rank!$A49,Raw!S:S),"") -> 96
A50: 跨國--新興市場 | B50: 跨國--新興市場 | C50: =IFERROR(SUMIF(Raw!$D:$D,Rank!$A50,Raw!E:E)/AVERAGEIF(Raw!$D:$D,Rank!$A50,Raw!E:E),"") -> 23 | D50: =IFERROR(SUMIF(Raw!$D:$D,Rank!$A50,Raw!G:G)/AVERAGEIF(Raw!$D:$D,Rank!$A50,Raw!G:G),"") -> 23 | E50: =IFERROR(SUMIF(Raw!$D:$D,Rank!$A50,Raw!I:I)/AVERAGEIF(Raw!$D:$D,Rank!$A50,Raw!I:I),"") -> 22 | F50: =IFERROR(SUMIF(Raw!$D:$D,Rank!$A50,Raw!K:K)/AVERAGEIF(Raw!$D:$D,Rank!$A50,Raw!K:K),"") -> 22 | G50: =IFERROR(SUMIF(Raw!$D:$D,Rank!$A50,Raw!M:M)/AVERAGEIF(Raw!$D:$D,Rank!$A50,Raw!M:M),"") -> 22 | H50: =IFERROR(SUMIF(Raw!$D:$D,Rank!$A50,Raw!O:O)/AVERAGEIF(Raw!$D:$D,Rank!$A50,Raw!O:O),"") -> 20 | I50: =IFERROR(SUMIF(Raw!$D:$D,Rank!$A50,Raw!S:S)/AVERAGEIF(Raw!$D:$D,Rank!$A50,Raw!S:S),"") -> 23
A51: 其他市場ETF | B51: 其他市場ETF | C51: =IFERROR(SUMIF(Raw!$D:$D,Rank!$A51,Raw!E:E)/AVERAGEIF(Raw!$D:$D,Rank!$A51,Raw!E:E),"") -> 3 | D51: =IFERROR(SUMIF(Raw!$D:$D,Rank!$A51,Raw!G:G)/AVERAGEIF(Raw!$D:$D,Rank!$A51,Raw!G:G),"") -> 3 | E51: =IFERROR(SUMIF(Raw!$D:$D,Rank!$A51,Raw!I:I)/AVERAGEIF(Raw!$D:$D,Rank!$A51,Raw!I:I),"") -> 2 | F51: =IFERROR(SUMIF(Raw!$D:$D,Rank!$A51,Raw!K:K)/AVERAGEIF(Raw!$D:$D,Rank!$A51,Raw!K:K),"") ->  | G51: =IFERROR(SUMIF(Raw!$D:$D,Rank!$A51,Raw!M:M)/AVERAGEIF(Raw!$D:$D,Rank!$A51,Raw!M:M),"") ->  | H51: =IFERROR(SUMIF(Raw!$D:$D,Rank!$A51,Raw!O:O)/AVERAGEIF(Raw!$D:$D,Rank!$A51,Raw!O:O),"") ->  | I51: =IFERROR(SUMIF(Raw!$D:$D,Rank!$A51,Raw!S:S)/AVERAGEIF(Raw!$D:$D,Rank!$A51,Raw!S:S),"") -> 3
A52: 美國ETF | B52: 美國ETF | C52: =IFERROR(SUMIF(Raw!$D:$D,Rank!$A52,Raw!E:E)/AVERAGEIF(Raw!$D:$D,Rank!$A52,Raw!E:E),"") -> 4 | D52: =IFERROR(SUMIF(Raw!$D:$D,Rank!$A52,Raw!G:G)/AVERAGEIF(Raw!$D:$D,Rank!$A52,Raw!G:G),"") -> 4 | E52: =IFERROR(SUMIF(Raw!$D:$D,Rank!$A52,Raw!I:I)/AVERAGEIF(Raw!$D:$D,Rank!$A52,Raw!I:I),"") -> 2 | F52: =IFERROR(SUMIF(Raw!$D:$D,Rank!$A52,Raw!K:K)/AVERAGEIF(Raw!$D:$D,Rank!$A52,Raw!K:K),"") ->  | G52: =IFERROR(SUMIF(Raw!$D:$D,Rank!$A52,Raw!M:M)/AVERAGEIF(Raw!$D:$D,Rank!$A52,Raw!M:M),"") ->  | H52: =IFERROR(SUMIF(Raw!$D:$D,Rank!$A52,Raw!O:O)/AVERAGEIF(Raw!$D:$D,Rank!$A52,Raw!O:O),"") ->  | I52: =IFERROR(SUMIF(Raw!$D:$D,Rank!$A52,Raw!S:S)/AVERAGEIF(Raw!$D:$D,Rank!$A52,Raw!S:S),"") -> 3
A53: 債券-一般ETF | B53: 債券-一般ETF | C53: =IFERROR(SUMIF(Raw!$D:$D,Rank!$A53,Raw!E:E)/AVERAGEIF(Raw!$D:$D,Rank!$A53,Raw!E:E),"") -> 5 | D53: =IFERROR(SUMIF(Raw!$D:$D,Rank!$A53,Raw!G:G)/AVERAGEIF(Raw!$D:$D,Rank!$A53,Raw!G:G),"") -> 1 | E53: =IFERROR(SUMIF(Raw!$D:$D,Rank!$A53,Raw!I:I)/AVERAGEIF(Raw!$D:$D,Rank!$A53,Raw!I:I),"") ->  | F53: =IFERROR(SUMIF(Raw!$D:$D,Rank!$A53,Raw!K:K)/AVERAGEIF(Raw!$D:$D,Rank!$A53,Raw!K:K),"") ->  | G53: =IFERROR(SUMIF(Raw!$D:$D,Rank!$A53,Raw!M:M)/AVERAGEIF(Raw!$D:$D,Rank!$A53,Raw!M:M),"") ->  | H53: =IFERROR(SUMIF(Raw!$D:$D,Rank!$A53,Raw!O:O)/AVERAGEIF(Raw!$D:$D,Rank!$A53,Raw!O:O),"") ->  | I53: =IFERROR(SUMIF(Raw!$D:$D,Rank!$A53,Raw!S:S)/AVERAGEIF(Raw!$D:$D,Rank!$A53,Raw!S:S),"") -> 
A54: 日本ETF | B54: 日本ETF | C54: =IFERROR(SUMIF(Raw!$D:$D,Rank!$A54,Raw!E:E)/AVERAGEIF(Raw!$D:$D,Rank!$A54,Raw!E:E),"") -> 3 | D54: =IFERROR(SUMIF(Raw!$D:$D,Rank!$A54,Raw!G:G)/AVERAGEIF(Raw!$D:$D,Rank!$A54,Raw!G:G),"") -> 3 | E54: =IFERROR(SUMIF(Raw!$D:$D,Rank!$A54,Raw!I:I)/AVERAGEIF(Raw!$D:$D,Rank!$A54,Raw!I:I),"") -> 3 | F54: =IFERROR(SUMIF(Raw!$D:$D,Rank!$A54,Raw!K:K)/AVERAGEIF(Raw!$D:$D,Rank!$A54,Raw!K:K),"") ->  | G54: =IFERROR(SUMIF(Raw!$D:$D,Rank!$A54,Raw!M:M)/AVERAGEIF(Raw!$D:$D,Rank!$A54,Raw!M:M),"") ->  | H54: =IFERROR(SUMIF(Raw!$D:$D,Rank!$A54,Raw!O:O)/AVERAGEIF(Raw!$D:$D,Rank!$A54,Raw!O:O),"") ->  | I54: =IFERROR(SUMIF(Raw!$D:$D,Rank!$A54,Raw!S:S)/AVERAGEIF(Raw!$D:$D,Rank!$A54,Raw!S:S),"") -> 3
A55: 其他市場二倍ETF | B55: 其他市場二倍ETF | C55: =IFERROR(SUMIF(Raw!$D:$D,Rank!$A55,Raw!E:E)/AVERAGEIF(Raw!$D:$D,Rank!$A55,Raw!E:E),"") -> 3 | D55: =IFERROR(SUMIF(Raw!$D:$D,Rank!$A55,Raw!G:G)/AVERAGEIF(Raw!$D:$D,Rank!$A55,Raw!G:G),"") -> 3 | E55: =IFERROR(SUMIF(Raw!$D:$D,Rank!$A55,Raw!I:I)/AVERAGEIF(Raw!$D:$D,Rank!$A55,Raw!I:I),"") -> 3 | F55: =IFERROR(SUMIF(Raw!$D:$D,Rank!$A55,Raw!K:K)/AVERAGEIF(Raw!$D:$D,Rank!$A55,Raw!K:K),"") ->  | G55: =IFERROR(SUMIF(Raw!$D:$D,Rank!$A55,Raw!M:M)/AVERAGEIF(Raw!$D:$D,Rank!$A55,Raw!M:M),"") ->  | H55: =IFERROR(SUMIF(Raw!$D:$D,Rank!$A55,Raw!O:O)/AVERAGEIF(Raw!$D:$D,Rank!$A55,Raw!O:O),"") ->  | I55: =IFERROR(SUMIF(Raw!$D:$D,Rank!$A55,Raw!S:S)/AVERAGEIF(Raw!$D:$D,Rank!$A55,Raw!S:S),"") -> 3
A56: 其他市場反向ETF | B56: 其他市場反向ETF | C56: =IFERROR(SUMIF(Raw!$D:$D,Rank!$A56,Raw!E:E)/AVERAGEIF(Raw!$D:$D,Rank!$A56,Raw!E:E),"") -> 3 | D56: =IFERROR(SUMIF(Raw!$D:$D,Rank!$A56,Raw!G:G)/AVERAGEIF(Raw!$D:$D,Rank!$A56,Raw!G:G),"") -> 3 | E56: =IFERROR(SUMIF(Raw!$D:$D,Rank!$A56,Raw!I:I)/AVERAGEIF(Raw!$D:$D,Rank!$A56,Raw!I:I),"") -> 3 | F56: =IFERROR(SUMIF(Raw!$D:$D,Rank!$A56,Raw!K:K)/AVERAGEIF(Raw!$D:$D,Rank!$A56,Raw!K:K),"") ->  | G56: =IFERROR(SUMIF(Raw!$D:$D,Rank!$A56,Raw!M:M)/AVERAGEIF(Raw!$D:$D,Rank!$A56,Raw!M:M),"") ->  | H56: =IFERROR(SUMIF(Raw!$D:$D,Rank!$A56,Raw!O:O)/AVERAGEIF(Raw!$D:$D,Rank!$A56,Raw!O:O),"") ->  | I56: =IFERROR(SUMIF(Raw!$D:$D,Rank!$A56,Raw!S:S)/AVERAGEIF(Raw!$D:$D,Rank!$A56,Raw!S:S),"") -> 3
A57: 美國反向ETF | B57: 美國反向ETF | C57: =IFERROR(SUMIF(Raw!$D:$D,Rank!$A57,Raw!E:E)/AVERAGEIF(Raw!$D:$D,Rank!$A57,Raw!E:E),"") -> 3 | D57: =IFERROR(SUMIF(Raw!$D:$D,Rank!$A57,Raw!G:G)/AVERAGEIF(Raw!$D:$D,Rank!$A57,Raw!G:G),"") -> 3 | E57: =IFERROR(SUMIF(Raw!$D:$D,Rank!$A57,Raw!I:I)/AVERAGEIF(Raw!$D:$D,Rank!$A57,Raw!I:I),"") -> 1 | F57: =IFERROR(SUMIF(Raw!$D:$D,Rank!$A57,Raw!K:K)/AVERAGEIF(Raw!$D:$D,Rank!$A57,Raw!K:K),"") ->  | G57: =IFERROR(SUMIF(Raw!$D:$D,Rank!$A57,Raw!M:M)/AVERAGEIF(Raw!$D:$D,Rank!$A57,Raw!M:M),"") ->  | H57: =IFERROR(SUMIF(Raw!$D:$D,Rank!$A57,Raw!O:O)/AVERAGEIF(Raw!$D:$D,Rank!$A57,Raw!O:O),"") ->  | I57: =IFERROR(SUMIF(Raw!$D:$D,Rank!$A57,Raw!S:S)/AVERAGEIF(Raw!$D:$D,Rank!$A57,Raw!S:S),"") -> 2
A58: 海外債-一般ETF | B58: 海外債-一般ETF | C58: =IFERROR(SUMIF(Raw!$D:$D,Rank!$A58,Raw!E:E)/AVERAGEIF(Raw!$D:$D,Rank!$A58,Raw!E:E),"") ->  | D58: =IFERROR(SUMIF(Raw!$D:$D,Rank!$A58,Raw!G:G)/AVERAGEIF(Raw!$D:$D,Rank!$A58,Raw!G:G),"") ->  | E58: =IFERROR(SUMIF(Raw!$D:$D,Rank!$A58,Raw!I:I)/AVERAGEIF(Raw!$D:$D,Rank!$A58,Raw!I:I),"") ->  | F58: =IFERROR(SUMIF(Raw!$D:$D,Rank!$A58,Raw!K:K)/AVERAGEIF(Raw!$D:$D,Rank!$A58,Raw!K:K),"") ->  | G58: =IFERROR(SUMIF(Raw!$D:$D,Rank!$A58,Raw!M:M)/AVERAGEIF(Raw!$D:$D,Rank!$A58,Raw!M:M),"") ->  | H58: =IFERROR(SUMIF(Raw!$D:$D,Rank!$A58,Raw!O:O)/AVERAGEIF(Raw!$D:$D,Rank!$A58,Raw!O:O),"") ->  | I58: =IFERROR(SUMIF(Raw!$D:$D,Rank!$A58,Raw!S:S)/AVERAGEIF(Raw!$D:$D,Rank!$A58,Raw!S:S),"") -> 
A59: 跨國-中國二倍ETF | B59: 跨國-中國二倍ETF | C59: =IFERROR(SUMIF(Raw!$D:$D,Rank!$A59,Raw!E:E)/AVERAGEIF(Raw!$D:$D,Rank!$A59,Raw!E:E),"") -> 3 | D59: =IFERROR(SUMIF(Raw!$D:$D,Rank!$A59,Raw!G:G)/AVERAGEIF(Raw!$D:$D,Rank!$A59,Raw!G:G),"") -> 3 | E59: =IFERROR(SUMIF(Raw!$D:$D,Rank!$A59,Raw!I:I)/AVERAGEIF(Raw!$D:$D,Rank!$A59,Raw!I:I),"") -> 3 | F59: =IFERROR(SUMIF(Raw!$D:$D,Rank!$A59,Raw!K:K)/AVERAGEIF(Raw!$D:$D,Rank!$A59,Raw!K:K),"") -> 2 | G59: =IFERROR(SUMIF(Raw!$D:$D,Rank!$A59,Raw!M:M)/AVERAGEIF(Raw!$D:$D,Rank!$A59,Raw!M:M),"") ->  | H59: =IFERROR(SUMIF(Raw!$D:$D,Rank!$A59,Raw!O:O)/AVERAGEIF(Raw!$D:$D,Rank!$A59,Raw!O:O),"") ->  | I59: =IFERROR(SUMIF(Raw!$D:$D,Rank!$A59,Raw!S:S)/AVERAGEIF(Raw!$D:$D,Rank!$A59,Raw!S:S),"") -> 3
A60: 日本二倍ETF | B60: 日本二倍ETF | C60: =IFERROR(SUMIF(Raw!$D:$D,Rank!$A60,Raw!E:E)/AVERAGEIF(Raw!$D:$D,Rank!$A60,Raw!E:E),"") -> 2 | D60: =IFERROR(SUMIF(Raw!$D:$D,Rank!$A60,Raw!G:G)/AVERAGEIF(Raw!$D:$D,Rank!$A60,Raw!G:G),"") -> 2 | E60: =IFERROR(SUMIF(Raw!$D:$D,Rank!$A60,Raw!I:I)/AVERAGEIF(Raw!$D:$D,Rank!$A60,Raw!I:I),"") -> 2 | F60: =IFERROR(SUMIF(Raw!$D:$D,Rank!$A60,Raw!K:K)/AVERAGEIF(Raw!$D:$D,Rank!$A60,Raw!K:K),"") -> 1 | G60: =IFERROR(SUMIF(Raw!$D:$D,Rank!$A60,Raw!M:M)/AVERAGEIF(Raw!$D:$D,Rank!$A60,Raw!M:M),"") ->  | H60: =IFERROR(SUMIF(Raw!$D:$D,Rank!$A60,Raw!O:O)/AVERAGEIF(Raw!$D:$D,Rank!$A60,Raw!O:O),"") ->  | I60: =IFERROR(SUMIF(Raw!$D:$D,Rank!$A60,Raw!S:S)/AVERAGEIF(Raw!$D:$D,Rank!$A60,Raw!S:S),"") -> 2
A61: 日本反向ETF | B61: 日本反向ETF | C61: =IFERROR(SUMIF(Raw!$D:$D,Rank!$A61,Raw!E:E)/AVERAGEIF(Raw!$D:$D,Rank!$A61,Raw!E:E),"") -> 2 | D61: =IFERROR(SUMIF(Raw!$D:$D,Rank!$A61,Raw!G:G)/AVERAGEIF(Raw!$D:$D,Rank!$A61,Raw!G:G),"") -> 2 | E61: =IFERROR(SUMIF(Raw!$D:$D,Rank!$A61,Raw!I:I)/AVERAGEIF(Raw!$D:$D,Rank!$A61,Raw!I:I),"") -> 2 | F61: =IFERROR(SUMIF(Raw!$D:$D,Rank!$A61,Raw!K:K)/AVERAGEIF(Raw!$D:$D,Rank!$A61,Raw!K:K),"") -> 1 | G61: =IFERROR(SUMIF(Raw!$D:$D,Rank!$A61,Raw!M:M)/AVERAGEIF(Raw!$D:$D,Rank!$A61,Raw!M:M),"") ->  | H61: =IFERROR(SUMIF(Raw!$D:$D,Rank!$A61,Raw!O:O)/AVERAGEIF(Raw!$D:$D,Rank!$A61,Raw!O:O),"") ->  | I61: =IFERROR(SUMIF(Raw!$D:$D,Rank!$A61,Raw!S:S)/AVERAGEIF(Raw!$D:$D,Rank!$A61,Raw!S:S),"") -> 2
A62: 美國二倍ETF | B62: 美國二倍ETF | C62: =IFERROR(SUMIF(Raw!$D:$D,Rank!$A62,Raw!E:E)/AVERAGEIF(Raw!$D:$D,Rank!$A62,Raw!E:E),"") -> 2 | D62: =IFERROR(SUMIF(Raw!$D:$D,Rank!$A62,Raw!G:G)/AVERAGEIF(Raw!$D:$D,Rank!$A62,Raw!G:G),"") -> 2 | E62: =IFERROR(SUMIF(Raw!$D:$D,Rank!$A62,Raw!I:I)/AVERAGEIF(Raw!$D:$D,Rank!$A62,Raw!I:I),"") -> 1 | F62: =IFERROR(SUMIF(Raw!$D:$D,Rank!$A62,Raw!K:K)/AVERAGEIF(Raw!$D:$D,Rank!$A62,Raw!K:K),"") ->  | G62: =IFERROR(SUMIF(Raw!$D:$D,Rank!$A62,Raw!M:M)/AVERAGEIF(Raw!$D:$D,Rank!$A62,Raw!M:M),"") ->  | H62: =IFERROR(SUMIF(Raw!$D:$D,Rank!$A62,Raw!O:O)/AVERAGEIF(Raw!$D:$D,Rank!$A62,Raw!O:O),"") ->  | I62: =IFERROR(SUMIF(Raw!$D:$D,Rank!$A62,Raw!S:S)/AVERAGEIF(Raw!$D:$D,Rank!$A62,Raw!S:S),"") -> 1
A63: 債券-二倍ETF | B63: 債券-二倍ETF | C63: =IFERROR(SUMIF(Raw!$D:$D,Rank!$A63,Raw!E:E)/AVERAGEIF(Raw!$D:$D,Rank!$A63,Raw!E:E),"") -> 2 | D63: =IFERROR(SUMIF(Raw!$D:$D,Rank!$A63,Raw!G:G)/AVERAGEIF(Raw!$D:$D,Rank!$A63,Raw!G:G),"") -> 1 | E63: =IFERROR(SUMIF(Raw!$D:$D,Rank!$A63,Raw!I:I)/AVERAGEIF(Raw!$D:$D,Rank!$A63,Raw!I:I),"") ->  | F63: =IFERROR(SUMIF(Raw!$D:$D,Rank!$A63,Raw!K:K)/AVERAGEIF(Raw!$D:$D,Rank!$A63,Raw!K:K),"") ->  | G63: =IFERROR(SUMIF(Raw!$D:$D,Rank!$A63,Raw!M:M)/AVERAGEIF(Raw!$D:$D,Rank!$A63,Raw!M:M),"") ->  | H63: =IFERROR(SUMIF(Raw!$D:$D,Rank!$A63,Raw!O:O)/AVERAGEIF(Raw!$D:$D,Rank!$A63,Raw!O:O),"") ->  | I63: =IFERROR(SUMIF(Raw!$D:$D,Rank!$A63,Raw!S:S)/AVERAGEIF(Raw!$D:$D,Rank!$A63,Raw!S:S),"") -> 
A64: 債券-反向ETF | B64: 債券-反向ETF | C64: =IFERROR(SUMIF(Raw!$D:$D,Rank!$A64,Raw!E:E)/AVERAGEIF(Raw!$D:$D,Rank!$A64,Raw!E:E),"") -> 2 | D64: =IFERROR(SUMIF(Raw!$D:$D,Rank!$A64,Raw!G:G)/AVERAGEIF(Raw!$D:$D,Rank!$A64,Raw!G:G),"") -> 1 | E64: =IFERROR(SUMIF(Raw!$D:$D,Rank!$A64,Raw!I:I)/AVERAGEIF(Raw!$D:$D,Rank!$A64,Raw!I:I),"") ->  | F64: =IFERROR(SUMIF(Raw!$D:$D,Rank!$A64,Raw!K:K)/AVERAGEIF(Raw!$D:$D,Rank!$A64,Raw!K:K),"") ->  | G64: =IFERROR(SUMIF(Raw!$D:$D,Rank!$A64,Raw!M:M)/AVERAGEIF(Raw!$D:$D,Rank!$A64,Raw!M:M),"") ->  | H64: =IFERROR(SUMIF(Raw!$D:$D,Rank!$A64,Raw!O:O)/AVERAGEIF(Raw!$D:$D,Rank!$A64,Raw!O:O),"") ->  | I64: =IFERROR(SUMIF(Raw!$D:$D,Rank!$A64,Raw!S:S)/AVERAGEIF(Raw!$D:$D,Rank!$A64,Raw!S:S),"") -> 
A65: 海外債-二倍ETF | B65: 海外債-二倍ETF | C65: =IFERROR(SUMIF(Raw!$D:$D,Rank!$A65,Raw!E:E)/AVERAGEIF(Raw!$D:$D,Rank!$A65,Raw!E:E),"") ->  | D65: =IFERROR(SUMIF(Raw!$D:$D,Rank!$A65,Raw!G:G)/AVERAGEIF(Raw!$D:$D,Rank!$A65,Raw!G:G),"") ->  | E65: =IFERROR(SUMIF(Raw!$D:$D,Rank!$A65,Raw!I:I)/AVERAGEIF(Raw!$D:$D,Rank!$A65,Raw!I:I),"") ->  | F65: =IFERROR(SUMIF(Raw!$D:$D,Rank!$A65,Raw!K:K)/AVERAGEIF(Raw!$D:$D,Rank!$A65,Raw!K:K),"") ->  | G65: =IFERROR(SUMIF(Raw!$D:$D,Rank!$A65,Raw!M:M)/AVERAGEIF(Raw!$D:$D,Rank!$A65,Raw!M:M),"") ->  | H65: =IFERROR(SUMIF(Raw!$D:$D,Rank!$A65,Raw!O:O)/AVERAGEIF(Raw!$D:$D,Rank!$A65,Raw!O:O),"") ->  | I65: =IFERROR(SUMIF(Raw!$D:$D,Rank!$A65,Raw!S:S)/AVERAGEIF(Raw!$D:$D,Rank!$A65,Raw!S:S),"") -> 
A66: 海外債-反向ETF | B66: 海外債-反向ETF | C66: =IFERROR(SUMIF(Raw!$D:$D,Rank!$A66,Raw!E:E)/AVERAGEIF(Raw!$D:$D,Rank!$A66,Raw!E:E),"") ->  | D66: =IFERROR(SUMIF(Raw!$D:$D,Rank!$A66,Raw!G:G)/AVERAGEIF(Raw!$D:$D,Rank!$A66,Raw!G:G),"") ->  | E66: =IFERROR(SUMIF(Raw!$D:$D,Rank!$A66,Raw!I:I)/AVERAGEIF(Raw!$D:$D,Rank!$A66,Raw!I:I),"") ->  | F66: =IFERROR(SUMIF(Raw!$D:$D,Rank!$A66,Raw!K:K)/AVERAGEIF(Raw!$D:$D,Rank!$A66,Raw!K:K),"") ->  | G66: =IFERROR(SUMIF(Raw!$D:$D,Rank!$A66,Raw!M:M)/AVERAGEIF(Raw!$D:$D,Rank!$A66,Raw!M:M),"") ->  | H66: =IFERROR(SUMIF(Raw!$D:$D,Rank!$A66,Raw!O:O)/AVERAGEIF(Raw!$D:$D,Rank!$A66,Raw!O:O),"") ->  | I66: =IFERROR(SUMIF(Raw!$D:$D,Rank!$A66,Raw!S:S)/AVERAGEIF(Raw!$D:$D,Rank!$A66,Raw!S:S),"") -> 

Sheet Raw
A1: 2017/08/31
B2: 基金 | C2: 基金全稱 | D2: 類型 | E2: 季ROI | F2: 季ROI排名 | G2: 半年ROI | H2: 半年ROI排名 | I2: 一年ROI | J2: 一年ROI排名 | K2: 二年ROI | L2: 二年ROI排名 | M2: 三年ROI | N2: 三年ROI排名 | O2: 五年ROI | P2: 五年ROI排名 | Q2: 十年ROI | R2: 十年ROI排名 | S2: 自今年以來ROI | T2: 自今年以來ROI排名 | U2: 最佳三個月ROI | V2: 最差三個月ROI | W2: 自成立以來ROI | X2: 年化標準差--24個月 | Y2: beta--24個月 | Z2: Sharpe Index-24個月 | AA2: Jensen Index-24個月 | AB2: Treynor Index-24個月 | AC2: IR--24個月（大分類） | AD2: IR--24個月（細分類） | AE2: 年化標準差--12個月 | AF2: beta--12個月 | AG2: Sharpe Index-12個月 | AH2: Jensen Index-12個月 | AI2: Treynor Index-12個月 | AJ2: IR--12個月（大分類） | AK2: IR--12個月（細分類） | AL2: 基金統編
A3: =IF(AL3="","",AL3) -> 98764389 | B3: 0050 元大台灣50 | C3: 元大台灣卓越50證券投資信託基金 | D3: 國內指數-一般ETF | E3: 9.84 | F3: 7 | G3: 14.44 | H3: 6 | I3: 23.08 | J3: 5 | K3: 40.65 | L3: 5 | M3: 32.89 | N3: 4 | O3: 84.06 | P3: 3 | Q3: 77.98 | R3: 1 | S3: 19.48 | T3: 8 | U3: 12.4 | V3: -10.64 | W3: 252.67 | X3: 9.3304 | Y3: 1.1086 | Z3: 0.5191 | AA3: -0.1379 | AB3: 1.2613 | AC3: 0.4059 | AD3: 0.1689 | AE3: 5.6205 | AF3: 1.0726 | AG3: 1.0417 | AH3: -0.0096 | AI3: 1.5757 | AJ3: 0.6484 | AK3: 0.2006 | AL3: 98764389
A4: =IF(AL4="","",AL4) -> 48772770 | B4: 0051 元大中型100 | C4: 元大台灣中型 100證券投資信託基金 | D4: 國內指數-一般ETF | E4: 12.1 | F4: 2 | G4: 14.43 | H4: 7 | I4: 22.31 | J4: 6 | K4: 40.03 | L4: 6 | M4: 9.05 | N4: 14 | O4: 41.71 | P4: 12 | Q4: 14.25 | R4: 6 | S4: 24.19 | T4: 3 | U4: 10.25 | V4: -19.15 | W4: 62.27 | X4: 9.5169 | Y4: 1.0131 | Z4: 0.5026 | AA4: -0.023 | AB4: 1.363 | AC4: 0.1957 | AD4: 0.0688 | AE4: 7.8048 | AF4: 1.3821 | AG4: 0.7315 | AH4: -0.5421 | AI4: 1.1924 | AJ4: 0.2934 | AK4: 0.0676 | AL4: 48772770
A5: 48790067 | B5: 0052 富邦科技 | C5: 富邦台灣科技指數證券投資信託基金 | D5: 國內指數-一般ETF | E5: 9.87 | F5: 6 | G5: 16.24 | H5: 3 | I5: 22.18 | J5: 7 | K5: 59.71 | L5: 1 | M5: 39.9 | N5: 1 | O5: 102.38 | P5: 1 | Q5: 61.2 | R5: 3 | S5: 21.93 | T5: 6 | U5: 17.35 | V5: -16.64 | W5: 118.37 | X5: 11.2531 | Y5: 1.221 | Z5: 0.6012 | AA5: 0.261 | AB5: 1.5994 | AC5: 0.5329 | AD5: 0.4201 | AE5: 8.2332 | AF5: 1.4285 | AG5: 0.6907 | AH5: -0.622 | AI5: 1.1493 | AJ5: 0.2795 | AK5: 0.0611 | AL5: 48790067
A6: 48903196 | B6: 0053 元大電子 | C6: 元大台灣 ETF傘型證券投資信託基金之電子科技證券投資信託基金 | D6: 國內指數-一般ETF | E6: 10.87 | F6: 4 | G6: 17.56 | H6: 1 | I6: 26.24 | J6: 1 | K6: 55.85 | L6: 2 | M6: 35.38 | N6: 2 | O6: 91.58 | P6: 2 | Q6: 64.32 | R6: 2 | S6: 25.35 | T6: 1 | U6: 14.83 | V6: -15.04 | W6: 57.85 | X6: 9.407 | Y6: 1.0856 | Z6: 0.6752 | AA6: 0.3295 | AB6: 1.6891 | AC6: 0.748 | AD6: 0.5776 | AE6: 6.9482 | AF6: 1.3069 | AG6: 0.953 | AH6: -0.1596 | AI6: 1.4625 | AJ6: 0.6858 | AK6: 0.4128 | AL6: 48903196
A7: 48903180 | B7: 0054 元大台商50 | C7: 元大台灣 ETF傘型證券投資信託基金之台商收成證券投資信託基金 | D7: 國內指數-一般ETF | E7: 10.62 | F7: 5 | G7: 16.33 | H7: 2 | I7: 24.28 | J7: 3 | K7: 33.24 | L7: 12 | M7: 16.73 | N7: 9 | O7: 55.42 | P7: 11 | Q7: 32.08 | R7: 5 | S7: 24.74 | T7: 2 | U7: 10.65 | V7: -12.17 | W7: 36.78 | X7: 10.3215 | Y7: 1.1683 | Z7: 0.3954 | AA7: -0.4408 | AB7: 1.0083 | AC7: 0.0736 | AD7: -0.0829 | AE7: 8.4911 | AF7: 1.4813 | AG7: 0.7295 | AH7: -0.5592 | AI7: 1.2072 | AJ7: 0.3678 | AK7: 0.1649 | AL7: 48903180
A8: 48903175 | B8: 0055 元大MSCI金融 | C8: 元大台灣 ETF傘型證券投資信託基金之金融證券投資信託基金 | D8: 國內指數-一般ETF | E8: 8.5 | F8: 13 | G8: 9.16 | H8: 12 | I8: 19.93 | J8: 11 | K8: 17.67 | L8: 13 | M8: 13.92 | N8: 10 | O8: 68.22 | P8: 7 | Q8: 40.44 | R8: 4 | S8: 11.87 | T8: 13 | U8: 15.76 | V8: -14.07 | W8: 32.01 | X8: 11.1771 | Y8: 0.968 | Z8: 0.2054 | AA8: -0.6786 | AB8: 0.6846 | AC8: -0.1847 | AD8: -0.2728 | AE8: 6.6552 | AF8: 0.184 | AG8: 0.7677 | AH8: 1.1833 | AI8: 8.0171 | AJ8: 0.1123 | AK8: -0.0364 | AL8: 48903175
A9: 48966213 | B9: 0056 元大高股息 | C9: 元大台灣高股息證券投資信託基金 | D9: 國內指數-一般ETF | E9: 5.89 | F9: 16 | G9: 6.89 | H9: 14 | I9: 11.49 | J9: 14 | K9: 38.66 | L9: 7 | M9: 13.69 | N9: 11 | O9: 33.86 | P9: 14 | S9: 13.45 | T9: 12 | U9: 13.76 | V9: -15.85 | W9: 58.86 | X9: 9.7096 | Y9: 0.9754 | Z9: 0.4783 | AA9: -0.0111 | AB9: 1.3743 | AC9: 0.1608 | AD9: 0.0378 | AE9: 5.9716 | AF9: 1.1414 | AG9: 0.4969 | AH9: -0.9522 | AI9: 0.7504 | AJ9: -0.5355 | AK9: -1.1113 | AL9: 48966213
A10: 48975156 | B10: 0057 富邦摩台 | C10: 富邦台灣 ETF傘型證券投資信託基金之富邦台灣摩根指數股票型基金 | D10: 國內指數-一般ETF | E10: 9.44 | F10: 10 | G10: 13.64 | H10: 9 | I10: 21.26 | J10: 9 | K10: 37.2 | L10: 10 | M10: 26.2 | N10: 6 | O10: 72.81 | P10: 6 | S10: 18.84 | T10: 10 | U10: 12.63 | V10: -12.02 | W10: 73.73 | X10: 9.2852 | Y10: 1.1163 | Z10: 0.4824 | AA10: -0.2537 | AB10: 1.1583 | AC10: 0.3123 | AD10: 0.026 | AE10: 5.6864 | AF10: 1.1122 | AG10: 0.9527 | AH10: -0.1986 | AI10: 1.4061 | AJ10: 0.5142 | AK10: 0.0088 | AL10: 48975156
A11: 48977083 | B11: 0058 富邦發達 | C11: 富邦台灣 ETF傘型證券投資信託基金之富邦台灣發達指數股票型基金 | D11: 國內指數-一般ETF | E11: 11.41 | F11: 3 | G11: 15.09 | H11: 4 | I11: 25.13 | J11: 2 | K11: 34.35 | L11: 11 | M11: 23.56 | N11: 8 | O11: 57.19 | P11: 10 | S11: 22.21 | T11: 5 | U11: 8.82 | V11: -8.68 | W11: 87.35 | X11: 8.6609 | Y11: 1.0075 | Z11: 0.48 | AA11: -0.1958 | AB11: 1.1913 | AC11: 0.1233 | AD11: -0.0853 | AE11: 6.017 | AF11: 1.1824 | AG11: 1.0545 | AH11: -0.0421 | AI11: 1.5491 | AJ11: 0.7684 | AK11: 0.3909 | AL11: 48977083
A12: 48975162 | B12: 0059 富邦金融 | C12: 富邦台灣 ETF傘型證券投資信託基金之富邦台灣金融指數股票型基金 | D12: 國內指數-一般ETF | E12: 8.19 | F12: 14 | G12: 8.13 | H12: 13 | I12: 19.04 | J12: 12 | K12: 15.6 | L12: 14 | M12: 13.44 | N12: 12 | O12: 66.11 | P12: 8 | S12: 10.54 | T12: 14 | U12: 15.51 | V12: -13.15 | W12: 37.17 | X12: 11.0831 | Y12: 0.9222 | Z12: 0.1837 | AA12: -0.6901 | AB12: 0.6373 | AC12: -0.2115 | AD12: -0.2961 | AE12: 6.995 | AF12: 0.1264 | AG12: 0.7002 | AH12: 1.2137 | AI12: 11.1867 | AJ12: 0.0799 | AK12: -0.0592 | AL12: 48975162
A13: 25610486 | B13: 0061 元大寶滬深 | C13: 元大標智滬深300 證券投資信託基金 | D13: 跨國-中國一般ETF | E13: 9.27 | F13: 7 | G13: 6.06 | H13: 7 | I13: 3.98 | J13: 6 | K13: 1.56 | L13: 6 | M13: 36.6 | N13: 4 | O13: 35.08 | P13: 4 | S13: 6.93 | T13: 7 | U13: 33.05 | V13: -29.36 | W13: -15.1 | X13: 19.9516 | Y13: 1.133 | Z13: 0.0286 | AA13: -0.9419 | AB13: 0.1452 | AC13: -0.1871 | AD13: -0.0984 | AE13: 13.1015 | AF13: -0.7146 | AG13: 0.0854 | AH13: 1.2601 | AI13: -0.4518 | AJ13: -0.2947 | AK13: -0.3498 | AL13: 25610486
A14: 26282102 | B14: 006201 元大富櫃50 | C14: 元大櫃買 ETF傘型證券投資信託基金之富櫃50證券投資信託基金 | D14: 國內指數-一般ETF | E14: 13.76 | F14: 1 | G14: 12.53 | H14: 11 | I14: 18.4 | J14: 13 | K14: 43.11 | L14: 3 | M14: 12.1 | N14: 13 | O14: 41.71 | P14: 13 | S14: 22.83 | T14: 4 | U14: 14.78 | V14: -26.26 | W14: 4.39 | X14: 12.1531 | Y14: 0.9166 | Z14: 0.4262 | AA14: 0.225 | AB14: 1.6311 | AC14: 0.1458 | AD14: 0.0775 | AE14: 13.1845 | AF14: 1.9491 | AG14: 0.3718 | AH14: -1.6735 | AI14: 0.7261 | AJ14: 0.062 | AK14: -0.0502 | AL14: 26282102
A15: 26306553 | B15: 006203 元大MSCI台灣 | C15: 元大摩臺證券投資信託基金 | D15: 國內指數-一般ETF | E15: 9.55 | F15: 9 | G15: 13.89 | H15: 8 | I15: 21.82 | J15: 8 | K15: 38.34 | L15: 8 | M15: 27.74 | N15: 5 | O15: 75.32 | P15: 5 | S15: 19.18 | T15: 9 | U15: 12.69 | V15: -11.98 | W15: 54.79 | X15: 9.2928 | Y15: 1.1188 | Z15: 0.4951 | AA15: -0.222 | AB15: 1.1872 | AC15: 0.3698 | AD15: 0.0873 | AE15: 5.6775 | AF15: 1.1121 | AG15: 0.9779 | AH15: -0.1596 | AI15: 1.4411 | AJ15: 0.5774 | AK15: 0.0785 | AL15: 26306553
A16: 26332314 | B16: 006204 永豐臺灣加權 | C16: 永豐臺灣加權 ETF證券投資信託基金 | D16: 國內指數-一般ETF | E16: 9.37 | F16: 11 | G16: 12.59 | H16: 10 | I16: 21.12 | J16: 10 | K16: 38.23 | L16: 9 | M16: 23.95 | N16: 7 | O16: 64.74 | P16: 9 | S16: 18.44 | T16: 11 | U16: 10.26 | V16: -12.75 | W16: 70.6 | X16: 8.051 | Y16: 0.9977 | Z16: 0.5663 | AA16: -0.0663 | AB16: 1.3192 | AC16: 0.8864 | AD16: 0.1294 | AE16: 4.8453 | AF16: 1.0125 | AG16: 1.1089 | AH16: -0.0535 | AI16: 1.5319 | AJ16: 1.168 | AK16: -0.0304 | AL16: 26332314
A17: 26334740 | B17: 006205 富邦上証 | C17: 富邦上証 180證券投資信託基金 | D17: 跨國-中國一般ETF | E17: 14.45 | F17: 6 | G17: 13.79 | H17: 5 | I17: 13.74 | J17: 3 | K17: 5.31 | L17: 5 | M17: 59 | N17: 3 | O17: 78.44 | P17: 3 | S17: 15.45 | T17: 3 | U17: 54.94 | V17: -27.03 | W17: 57.65 | X17: 19.4858 | Y17: 1.2046 | Z17: 0.0555 | AA17: -0.8639 | AB17: 0.2594 | AC17: -0.125 | AD17: 0.0098 | AE17: 13.0842 | AF17: -0.4501 | AG17: 0.2851 | AH17: 1.6671 | AI17: -2.3921 | AJ17: 0.0912 | AK17: 0.2248 | AL17: 26334740
A18: 31830488 | B18: 006206 元大上證50 | C18: 元大中國傘型證券投資信託基金之上證50證券投資信託基金 | D18: 跨國-中國一般ETF | E18: 15.35 | F18: 3 | G18: 17.84 | H18: 2 | I18: 17.93 | J18: 2 | K18: 13.8 | L18: 2 | M18: 68.45 | N18: 1 | O18: 79.5 | P18: 2 | S18: 17.93 | T18: 2 | U18: 64.05 | V18: -25.34 | W18: 55.9 | X18: 18.3336 | Y18: 1.0479 | Z18: 0.1161 | AA18: -0.4088 | AB18: 0.5864 | AC18: 0.0515 | AD18: 0.2056 | AE18: 14.1993 | AF18: -0.4984 | AG18: 0.3397 | AH18: 2.0461 | AI18: -2.7942 | AJ18: 0.2008 | AK18: 0.3557 | AL18: 31830488
A19: 31835478 | B19: 006207 FH滬深 | C19: 復華滬深300 A股證券投資信託基金 | D19: 跨國-中國一般ETF | E19: 14.64 | F19: 5 | G19: 14.36 | H19: 4 | I19: 12.45 | J19: 4 | K19: 6.15 | L19: 4 | M19: 61.67 | N19: 2 | O19: 79.59 | P19: 1 | S19: 15.2 | T19: 4 | U19: 50.81 | V19: -27.49 | W19: 56.6 | X19: 19.9542 | Y19: 1.196 | Z19: 0.0612 | AA19: -0.8154 | AB19: 0.2947 | AC19: -0.1241 | AD19: 0.0944 | AE19: 13.0707 | AF19: -0.6814 | AG19: 0.2597 | AH19: 1.8735 | AI19: -1.4379 | AJ19: 0.0526 | AK19: 0.424 | AL19: 31835478
A20: 31840182 | B20: 006208 富邦台50 | C20: 富邦台灣釆吉50 證券投資信託基金 | D20: 國內指數-一般ETF | E20: 9.81 | F20: 8 | G20: 14.6 | H20: 5 | I20: 23.33 | J20: 4 | K20: 40.7 | L20: 4 | M20: 33 | N20: 3 | O20: 83.49 | P20: 4 | S20: 19.66 | T20: 7 | U20: 12.38 | V20: -10.67 | W20: 89.67 | X20: 9.3031 | Y20: 1.1047 | Z20: 0.5211 | AA20: -0.1311 | AB20: 1.2669 | AC20: 0.4092 | AD20: 0.1711 | AE20: 5.5586 | AF20: 1.0609 | AG20: 1.0635 | AH20: 0.0253 | AI20: 1.6085 | AJ20: 0.6884 | AK20: 0.2297 | AL20: 31840182
A21: 38619904 | B21: 00631L 元大台灣50正2 | C21: 元大 ETF傘型證券投資信託基金之台灣50單日正向 2倍證券投資信託基金 | D21: 國內指數-二倍ETF | E21: 18.45 | F21: 1 | G21: 27.95 | H21: 1 | I21: 50.38 | J21: 1 | K21: 103.4 | L21: 1 | S21: 40.38 | T21: 1 | U21: 23.6 | V21: -26.13 | W21: 76.25 | X21: 17.3884 | Y21: 2.1217 | Z21: 0.6085 | AA21: 0.1147 | AB21: 1.4397 | AC21: 0.7007 | AD21: 0.144 | AE21: 9.8761 | AF21: 1.9623 | AG21: 1.2021 | AH21: 0.3176 | AI21: 1.7465 | AJ21: 1.2653 | AK21: 0.2175 | AL21: 38619904
A22: 38619910 | B22: 00632R 元大台灣50反1 | C22: 元大 ETF傘型證券投資信託基金之台灣50單日反向 1倍證券投資信託基金 | D22: 國內指數-反向ETF | E22: -8.51 | F22: 4 | G22: -11.64 | H22: 2 | I22: -20.57 | J22: 2 | K22: -36.15 | L22: 1 | S22: -16.47 | T22: 2 | U22: 15.85 | V22: -11.15 | W22: -32.8 | X22: 7.999 | Y22: -0.9539 | Z22: -0.8202 | AA22: -0.5722 | AB22: 1.9855 | AC22: -0.6559 | AD22: -0.2556 | AE22: 4.2091 | AF22: -0.8518 | AG22: -1.614 | AH22: -0.6113 | AI22: 2.3022 | AJ22: -1.3271 | AK22: -0.4246 | AL22: 38619910
A23: 38633011 | B23: 00633L 富邦上証正2 | C23: 富邦中國 ETF傘型證券投資信託基金之富邦上証 180單日正向兩倍證券投資信託基金 | D23: 跨國-中國二倍ETF | E23: 20.25 | F23: 1 | G23: 27.78 | H23: 3 | I23: 35.02 | J23: 3 | K23: 61.97 | L23: 2 | S23: 34.81 | T23: 3 | U23: 72.34 | V23: -51.78 | W23: 121.5 | X23: 34.0746 | Y23: 1.9008 | Z23: 0.2498 | AA23: 0.6015 | AB23: 1.2929 | AC23: 0.3377 | AD23: -0.3929 | AE23: 26.7277 | AF23: -0.575 | AG23: 0.3546 | AH23: 3.4903 | AI23: -4.7589 | AJ23: 0.313 | AK23: -0.3071 | AL23: 38633011
A24: 38633027 | B24: 00634R 富邦上証反1 | C24: 富邦中國 ETF傘型證券投資信託基金之富邦上証 180單日反向一倍證券投資信託基金 | D24: 跨國-中國反向ETF | E24: -11.24 | F24: 3 | G24: -15.35 | H24: 3 | I24: -21.55 | J24: 3 | K24: -39.02 | L24: 2 | S24: -21.71 | T24: 3 | U24: 22.51 | V24: -28.3 | W24: -62.5 | X24: 18.4027 | Y24: -1.1115 | Z24: -0.3719 | AA24: -0.8905 | AB24: 1.7777 | AC24: -0.2473 | AD24: -0.5209 | AE24: 13.2327 | AF24: -0.0526 | AG24: -0.5244 | AH24: -1.9341 | AI24: 38.0945 | AJ24: -0.4652 | AK24: -0.6797 | AL24: 38633027
A25: 42260528 | B25: 00636 國泰中國A50 | C25: 國泰富時中國 A50證券投資信託基金 | D25: 跨國-中國一般ETF | E25: 15.03 | F25: 4 | G25: 18.44 | H25: 1 | I25: 19.23 | J25: 1 | K25: 17.17 | L25: 1 | S25: 20.48 | T25: 1 | U25: 17.68 | V25: -23.48 | W25: -2.05 | X25: 18.0493 | Y25: 1.0559 | Z25: 0.1403 | AA25: -0.3002 | AB25: 0.6922 | AC25: 0.1158 | AD25: 0.2793 | AE25: 13.9929 | AF25: -0.3198 | AG25: 0.3672 | AH25: 1.9028 | AI25: -4.6381 | AJ25: 0.2609 | AK25: 0.4627 | AL25: 42260528
A26: 42300253 | B26: 00637L 元大滬深300 正2 | C26: 元大滬深 300傘型證券投資信託基金之滬深 300單日正向 2倍證券投資信託基金 | D26: 跨國-中國二倍ETF | E26: 19.86 | F26: 2 | G26: 28.06 | H26: 2 | I26: 36.33 | J26: 2 | K26: 66.27 | L26: 1 | S26: 36.33 | T26: 2 | U26: 30.82 | V26: -51.05 | W26: -16.7 | X26: 33.6275 | Y26: 1.8426 | Z26: 0.2632 | AA26: 0.7557 | AB26: 1.3866 | AC26: 0.3603 | AD26: -0.1283 | AE26: 26.7585 | AF26: -0.5172 | AG26: 0.3651 | AH26: 3.4984 | AI26: -5.4524 | AJ26: 0.3266 | AK26: -0.2136 | AL26: 42300253
A27: 42300232 | B27: 00638R 元大滬深300 反1 | C27: 元大滬深 300傘型證券投資信託基金之滬深 300單日反向 1倍證券投資信託基金 | D27: 跨國-中國反向ETF | E27: -8.05 | F27: 1 | G27: -9.2 | H27: 1 | I27: -12 | J27: 1 | K27: -29.47 | L27: 1 | S27: -13.8 | T27: 1 | U27: 17.71 | V27: -16.15 | W27: -20.01 | X27: 18.7663 | Y27: -1.1124 | Z27: -0.2537 | AA27: -0.288 | AB27: 1.2353 | AC27: -0.1853 | AD27: 0.5329 | AE27: 12.0511 | AF27: 0.1392 | AG27: -0.308 | AH27: -1.2541 | AI27: -7.6957 | AJ27: -0.3298 | AK27: 0.7172 | AL27: 42300232
A28: 42302273 | B28: 00639 富邦深100 | C28: 富邦深証100 證券投資信託基金 | D28: 跨國-中國一般ETF | E28: 16.15 | F28: 2 | G28: 14.45 | H28: 3 | I28: 6.43 | J28: 5 | K28: 6.63 | L28: 3 | S28: 15.17 | T28: 5 | U28: 22.82 | V28: -30.03 | W28: -27.13 | X28: 22.5373 | Y28: 1.1323 | Z28: 0.0639 | AA28: -0.6901 | AB28: 0.367 | AC28: -0.0434 | AD28: 0.0648 | AE28: 16.3746 | AF28: -1.0077 | AG28: 0.1174 | AH28: 1.8764 | AI28: -0.5505 | AJ28: -0.1581 | AK28: -0.1593 | AL28: 42302273
A29: 42319561 | B29: 00640L 富邦日本正2 | C29: 富邦日本 ETF傘型證券投資信託基金之富邦日本東証單日正向兩倍證券投資信託基金 | D29: 日本二倍ETF | E29: 6.04 | F29: 1 | G29: 9 | H29: 1 | I29: 47.04 | J29: 1 | K29: 1.7 | L29: 1 | S29: 13.31 | T29: 1 | U29: 29.3 | V29: -36.81 | W29: 1.75 | X29: 34.4378 | Y29: 2.0983 | Z29: 0.0498 | AA29: -1.5538 | AB29: 0.236 | AC29: 0.0364 | AD29: -0.0057 | AE29: 15.542 | AF29: -1.4062 | AG29: 0.7324 | AH29: 5.1302 | AI29: -2.3368 | AJ29: 0.7265 | AK29: 0.4345 | AL29: 42319561
A30: 42319582 | B30: 00641R 富邦日本反1 | C30: 富邦日本 ETF傘型證券投資信託基金之富邦日本東証單日反向一倍證券投資信託基金 | D30: 日本反向ETF | E30: -3.82 | F30: 2 | G30: -6.4 | H30: 2 | I30: -21.07 | J30: 2 | K30: -18.15 | L30: 1 | S30: -8.6 | T30: 2 | U30: 16.48 | V30: -13.1 | W30: -18.15 | X30: 15.5554 | Y30: -0.9743 | Z30: -0.1787 | AA30: 0.1488 | AB30: 0.8237 | AC30: -0.1417 | AD30: 0.0435 | AE30: 7.2624 | AF30: 0.6182 | AG30: -0.9537 | AH30: -2.8101 | AI30: -3.2343 | AJ30: -0.8561 | AK30: -0.2889 | AL30: 42319582
A31: 42323777 | B31: 00643 群益深証中小 | C31: 群益深証中小板證券投資信託基金 | D31: 跨國-中國一般ETF | E31: 17.97 | F31: 1 | G31: 12.74 | H31: 6 | I31: 0.45 | J31: 7 | S31: 11.28 | T31: 6 | U31: 17.97 | V31: -22.41 | W31: -22.59 | AE31: 15.7524 | AF31: -0.9955 | AG31: 0.0139 | AH31: 1.3688 | AI31: -0.0635 | AJ31: -0.3221 | AK31: -0.2718 | AL31: 42323777
A32: 42328908 | B32: 00645 富邦日本 | C32: 富邦日本東証證券投資信託基金 | D32: 日本ETF | E32: 2.44 | F32: 1 | G32: 3.27 | H32: 1 | I32: 20.11 | J32: 1 | S32: 5.33 | T32: 1 | U32: 14.7 | V32: -16.74 | W32: 2.75 | AE32: 8.4761 | AF32: -0.6157 | AG32: 0.6121 | AH32: 2.3053 | AI32: -2.4327 | AJ32: 0.4584 | AK32: 0.4209 | AL32: 42328908
A33: 42333613 | B33: 00646 元大S&P500 | C33: 元大標普 500傘型證券投資信託基金之標普 500證券投資信託基金 | D33: 美國ETF | E33: 3 | F33: 4 | G33: 3.1 | H33: 4 | I33: 8.62 | J33: 2 | S33: 3 | T33: 3 | U33: 6.86 | V33: -3.19 | W33: 11.55 | AE33: 6.7825 | AF33: 0.3183 | AG33: 0.3274 | AH33: 0.2236 | AI33: 2.0139 | AJ33: 0.0369 | AK33: -0.7756 | AL33: 42333613
A34: 42333579 | B34: 00647L 元大S&P500正2 | C34: 元大標普 500傘型證券投資信託基金之標普 500單日正向 2倍證券投資信託基金 | D34: 美國二倍ETF | E34: 4.72 | F34: 2 | G34: 6.87 | H34: 2 | I34: 23.8 | J34: 1 | S34: 14.38 | T34: 1 | U34: 15.02 | V34: -5.41 | W34: 35.32 | AE34: 11.7311 | AF34: 1.3761 | AG34: 0.5252 | AH34: -0.026 | AI34: 1.2926 | AJ34: 0.488 | AK34: -0.353 | AL34: 42333579
A35: 42333563 | B35: 00648R 元大S&P500反1 | C35: 元大標普 500傘型證券投資信託基金之標普 500單日反向 1倍證券投資信託基金 | D35: 美國反向ETF | E35: -2.85 | F35: 1 | G35: -5.84 | H35: 1 | I35: -15.77 | J35: 1 | S35: -12.7 | T35: 2 | U35: 1.15 | V35: -9.16 | W35: -23.35 | AE35: 5.9534 | AF35: -1.0164 | AG35: -0.8575 | AH35: -0.1407 | AI35: 1.4499 | AJ35: -0.7449 | AK35: 0.5425 | AL35: 42333563
A36: 42329884 | B36: 00649 FH香港 | C36: 復華香港 ETF傘型證券投資信託基金之復華恒生證券投資信託基金 | D36: 其他市場ETF | E36: 10.51 | F36: 1 | G36: 15.88 | H36: 1 | I36: 17.42 | J36: 1 | S36: 20.13 | T36: 1 | U36: 12.13 | V36: -2.76 | W36: 35.27 | AE36: 7.5335 | AF36: 0.7044 | AG36: 0.5982 | AH36: 0.3771 | AI36: 1.8469 | AJ36: 0.1932 | AK36: 0.2586 | AL36: 42329884
A37: 42329863 | B37: 00650L FH香港正2 | C37: 復華香港 ETF傘型證券投資信託基金之復華恒生單日正向二倍證券投資信託基金 | D37: 其他市場二倍ETF | E37: 22.13 | F37: 1 | G37: 38.92 | H37: 1 | I37: 48.41 | J37: 1 | S37: 63.73 | T37: 1 | U37: 25.63 | V37: -11.63 | W37: 111.53 | AE37: 20.5617 | AF37: 2.4899 | AG37: 0.5787 | AH37: 0.1694 | AI37: 1.3795 | AJ37: 0.5154 | AK37: 0.5869 | AL37: 42329863
A38: 42329879 | B38: 00651R FH香港反1 | C38: 復華香港 ETF傘型證券投資信託基金之復華恒生單日反向一倍證券投資信託基金 | D38: 其他市場反向ETF | E38: -10.36 | F38: 3 | G38: -17.03 | H38: 3 | I38: -22.25 | J38: 2 | S38: -24.78 | T38: 3 | U38: 5.57 | V38: -12.04 | W38: -38.27 | AE38: 10.3604 | AF38: -1.2021 | AG38: -0.7026 | AH38: -0.5249 | AI38: 1.7481 | AJ38: -0.6186 | AK38: -0.4431 | AL38: 42329879
A39: 42376963 | B39: 00652 富邦印度 | C39: 富邦印度 ETF傘型證券投資信託基金之富邦印度 NIFTY證券投資信託基金 | D39: 其他市場ETF | E39: 1.44 | F39: 2 | G39: 6.94 | H39: 3 | I39: 3.07 | J39: 2 | S39: 14.96 | T39: 3 | U39: 9.7 | V39: -9.43 | W39: 12.55 | AE39: 11.439 | AF39: 1.5643 | AG39: 0.0711 | AH39: -1.8169 | AI39: 0.15 | AJ39: -0.3602 | AK39: -0.4075 | AL39: 42376963
A40: 42376990 | B40: 00653L 富邦印度正2 | C40: 富邦印度 ETF傘型證券投資信託基金－富邦印度 NIFTY單日正向兩倍證券投資信託基金 | D40: 其他市場二倍ETF | E40: 3.11 | F40: 3 | G40: 16.67 | H40: 3 | I40: 10.18 | J40: 3 | S40: 36.07 | T40: 3 | U40: 21.89 | V40: -17.36 | W40: 35.8 | AE40: 23.577 | AF40: 3.2507 | AG40: 0.1405 | AH40: -3.307 | AI40: 0.2942 | AJ40: 0.0286 | AK40: -0.3423 | AL40: 42376990
A41: 42376984 | B41: 00654R 富邦印度反1 | C41: 富邦印度 ETF傘型證券投資信託基金－富邦印度 NIFTY單日反向一倍證券投資信託基金 | D41: 其他市場反向ETF | E41: -2.81 | F41: 1 | G41: -9.82 | H41: 1 | I41: -9.82 | J41: 1 | S41: -16.81 | T41: 1 | U41: 7.78 | V41: -10.1 | W41: -20.55 | AE41: 11.0493 | AF41: -1.4794 | AG41: -0.2753 | AH41: 1.0621 | AI41: 0.5936 | AJ41: -0.3105 | AK41: 0.3872 | AL41: 42376984
A42: 42385148 | B42: 00655L 國泰中國A50正2 | C42: 國泰 A50傘型證券投資信託基金之富時中國 A50單日正向 2倍證券投資信託基金 | D42: 跨國-中國二倍ETF | E42: 19.53 | F42: 3 | G42: 28.97 | H42: 1 | I42: 39.83 | J42: 1 | S42: 41.37 | T42: 1 | U42: 30.76 | V42: -3.85 | W42: 60.95 | AE42: 26.6099 | AF42: -0.1901 | AG42: 0.3952 | AH42: 3.2852 | AI42: -15.973 | AJ42: 0.3642 | AK42: 0.2825 | AL42: 42385148
A43: 42385127 | B43: 00656R 國泰中國A50反1 | C43: 國泰 A50傘型證券投資信託基金之富時中國 A50單日反向 1倍證券投資信託基金 | D43: 跨國-中國反向ETF | E43: -9.96 | F43: 2 | G43: -14.53 | H43: 2 | I43: -20.12 | J43: 2 | S43: -19.31 | T43: 2 | U43: 0.42 | V43: -13.86 | W43: -28.55 | AE43: 13.216 | AF43: 0.0908 | AG43: -0.4864 | AH43: -1.9747 | AI43: -20.4335 | AJ43: -0.4445 | AK43: -0.4137 | AL43: 42385127
A44: 42389475 | B44: 00657 國泰日經225 | C44: 國泰日本 ETF傘型證券投資信託基金之日經 225證券投資信託基金 | D44: 日本ETF | E44: 0.13 | F44: 3 | G44: 2.23 | H44: 2 | I44: 15.01 | J44: 3 | S44: 2.8 | T44: 3 | U44: 14.3 | V44: -1.75 | W44: 19.15 | AE44: 9.0852 | AF44: -0.6601 | AG44: 0.4331 | AH44: 2.0015 | AI44: -1.7207 | AJ44: 0.2229 | AK44: -0.409 | AL44: 42389475
A45: 42389496 | B45: 00658L 國泰日本正2 | C45: 國泰日本 ETF傘型證券投資信託基金之富時日本單日正向 2倍證券投資信託基金 | D45: 日本二倍ETF | E45: 0.18 | F45: 2 | G45: 4.86 | H45: 2 | I45: 32.6 | J45: 2 | S45: 6.56 | T45: 2 | U45: 30.69 | V45: -6.86 | W45: 41.35 | AE45: 18.4496 | AF45: -1.4108 | AG45: 0.4576 | AH45: 4.2877 | AI45: -1.7276 | AJ45: 0.391 | AK45: -0.4345 | AL45: 42389496
A46: 42389480 | B46: 00659R 國泰日本反1 | C46: 國泰日本 ETF傘型證券投資信託基金之富時日本單日反向 1倍證券投資信託基金 | D46: 日本反向ETF | E46: -0.78 | F46: 1 | G46: -4.1 | H46: 1 | I46: -18.26 | J46: 1 | S46: -5.58 | T46: 1 | U46: 0.54 | V46: -15.16 | W46: -23.9 | AE46: 9.5646 | AF46: 0.675 | AG46: -0.615 | AH46: -2.5832 | AI46: -2.5156 | AJ46: -0.6377 | AK46: 0.2889 | AL46: 42389480
A47: 42398684 | B47: 00660 元大歐洲50 | C47: 元大已開發國家傘型證券投資信託基金之元大歐洲50證券投資信託基金 | D47: 跨國投資--歐洲 | E47: -2.54 | F47: 12 | G47: 6.56 | H47: 12 | I47: 15.62 | J47: 4 | S47: 6.93 | T47: 12 | U47: 9.33 | V47: -2.54 | W47: 21.17 | AE47: 10.0921 | AF47: 0.4277 | AG47: 0.4073 | AH47: 0.6258 | AI47: 2.7744 | AJ47: 0.0016 | AK47: 0.078 | AL47: 42398684
A48: 42398663 | B48: 00661 元大日經225 | C48: 元大已開發國家傘型證券投資信託基金之元大日經 225證券投資信託基金 | D48: 日本ETF | E48: 0.41 | F48: 2 | G48: 1.89 | H48: 3 | I48: 15.76 | J48: 2 | S48: 2.95 | T48: 2 | U48: 14.8 | V48: -0.75 | W48: 23.86 | AE48: 9.1563 | AF48: -0.6427 | AG48: 0.4505 | AH48: 2.0336 | AI48: -1.8527 | AJ48: 0.2518 | AK48: -0.3947 | AL48: 42398663
A49: 42399305 | B49: 00662 富邦NASDAQ | C49: 富邦NASDAQ-100證券投資信託基金 | D49: 美國ETF | E49: 3.43 | F49: 3 | G49: 9.79 | H49: 2 | I49: 18.36 | J49: 1 | S49: 14.57 | T49: 1 | U49: 7.3 | V49: 0.14 | W49: 25.05 | AE49: 5.3655 | AF49: 0.9226 | AG49: 0.8769 | AH49: 0.1482 | AI49: 1.4722 | AJ49: 0.5758 | AK49: 0.0487 | AL49: 42399305
A50: 42404264 | B50: 00663L 國泰臺灣加權正2 | C50: 國泰臺指 ETF傘型證券投資信託基金之臺灣加權指數單日正向 2倍證券投資信託基金 | D50: 國內指數-二倍ETF | E50: 17.86 | F50: 2 | G50: 24.82 | H50: 2 | I50: 48.8 | J50: 2 | S50: 38.65 | T50: 2 | U50: 17.86 | V50: 3.25 | W50: 60.7 | AE50: 9.1646 | AF50: 1.8698 | AG50: 1.259 | AH50: 0.3677 | AI50: 1.7813 | AJ50: 1.4093 | AK50: 0.1922 | AL50: 42404264
A51: 42404258 | B51: 00664R 國泰臺灣加權反1 | C51: 國泰臺指 ETF傘型證券投資信託基金之臺灣加權指數單日反向 1倍證券投資信託基金 | D51: 國內指數-反向ETF | E51: -8.54 | F51: 5 | G51: -11.67 | H51: 3 | I51: -20.53 | J51: 1 | S51: -16.47 | T51: 3 | U51: -2.52 | V51: -8.54 | W51: -23.95 | AE51: 4.1459 | AF51: -0.8391 | AG51: -1.6358 | AH51: -0.628 | AI51: 2.3331 | AJ51: -1.3366 | AK51: -0.58 | AL51: 42404258
A52: 42404573 | B52: 00665L 富邦 H股正2 | C52: 富邦香港 H股 ETF傘型證券投資信託基金之富邦香港 H股單日正向兩倍證券投資信託基金 | D52: 其他市場二倍ETF | E52: 18.5 | F52: 2 | G52: 19.6 | H52: 2 | I52: 36.79 | J52: 2 | S52: 44.16 | T52: 2 | U52: 18.5 | V52: -5.07 | W52: 53.75 | AE52: 24.2516 | AF52: 1.8748 | AG52: 0.3997 | AH52: 0.3394 | AI52: 1.4925 | AJ52: 0.2934 | AK52: 0.1104 | AL52: 42404573
A53: 42404567 | B53: 00666R 富邦 H股反1 | C53: 富邦香港 H股 ETF傘型證券投資信託基金之富邦香港 H股單日反向一倍證券投資信託基金 | D53: 其他市場反向ETF | E53: -9.55 | F53: 2 | G53: -12.55 | H53: 2 | I53: -22.68 | J53: 3 | S53: -23.5 | T53: 2 | U53: 2.38 | V53: -11.88 | W53: -27.55 | AE53: 13.2648 | AF53: -1.0685 | AG53: -0.5536 | AH53: -0.7187 | AI53: 1.9841 | AJ53: -0.5709 | AK53: -0.2321 | AL53: 42404567
A54: 42441583 | B54: 00667 元大韓國 | C54: 元大韓國KOSPI 200證券投資信託基金 | D54: 其他市場ETF | E54: 0.49 | F54: 3 | G54: 11.71 | H54: 2 | S54: 18.69 | T54: 2 | U54: 11.16 | V54: -5.41 | W54: 12.27 | AL54: 42441583
A55: 42443225 | B55: 00668 國泰美國道瓊 | C55: 國泰美國 ETF傘型證券投資信託基金之道瓊工業平均指數證券投資信託基金 | D55: 美國ETF | E55: 5.02 | F55: 2 | G55: 3.94 | H55: 3 | S55: 4.59 | T55: 2 | U55: 9.28 | V55: -1.35 | W55: 16.15 | AL55: 42443225
A56: 42443203 | B56: 00669R 國泰美國道瓊反1 | C56: 國泰美國 ETF傘型證券投資信託基金之道瓊工業平均指數單日反向 1倍證券投資信託基金 | D56: 美國反向ETF | E56: -4.88 | F56: 3 | G56: -6.54 | H56: 2 | S56: -11.94 | T56: 1 | U56: -1.75 | V56: -9.78 | W56: -20 | AL56: 42443203
A57: 42441710 | B57: 00670L 富邦NASDAQ正2 | C57: 富邦NASDAQ-100 ETF傘型證券投資信託基金之富邦NASDAQ-100單日正向兩倍證券投資信託基金 | D57: 美國二倍ETF | E57: 5.28 | F57: 1 | G57: 22.27 | H57: 1 | U57: 16.14 | V57: 5.28 | W57: 24.65 | AL57: 42441710
A58: 42441704 | B58: 00671R 富邦NASDAQ反1 | C58: 富邦NASDAQ-100 ETF傘型證券投資信託基金之富邦NASDAQ-100單日反向一倍證券投資信託基金 | D58: 美國反向ETF | E58: -4.35 | F58: 2 | G58: -12.4 | H58: 3 | U58: -4.35 | V58: -8.42 | W58: -13.1 | AL58: 42441704
A59: 42450837 | B59: 00675L 富邦臺灣加權正2 | C59: 富邦臺灣加權 ETF傘型證券投資信託基金之富邦臺灣加權單日正向兩倍證券投資信託基金 | D59: 國內指數-二倍ETF | E59: 17.64 | F59: 3 | G59: 24.58 | H59: 3 | S59: 38.43 | T59: 3 | U59: 17.64 | V59: 0.7 | W59: 39.4 | AL59: 42450837
A60: 42450843 | B60: 00676R 富邦臺灣加權反1 | C60: 富邦臺灣加權 ETF傘型證券投資信託基金之富邦臺灣加權單日反向一倍證券投資信託基金 | D60: 國內指數-反向ETF | E60: -8.43 | F60: 3 | G60: -11.47 | H60: 1 | S60: -16.31 | T60: 1 | U60: -1.3 | V60: -8.43 | W60: -17.4 | AL60: 42450843
A61: 42465424 | B61: 00678 群益NBI生技 | C61: 群益那斯達克生技證券投資信託基金 | D61: 美國ETF | E61: 16.87 | F61: 1 | G61: 12.55 | H61: 1 | U61: 16.87 | V61: -3.7 | W61: 12.55 | AL61: 42465424
A62: 42461573 | B62: 00679B 元大美債20年 | C62: 元大美國政府20年期(以上)債券 ETF傘型基金之元大美國政府20年期(以上)債券證券投資信託基金 | D62: 債券-一般ETF | E62: 3.43 | F62: 2 | G62: 4.32 | H62: 1 | U62: 4.33 | V62: -0.99 | W62: 0.56 | AL62: 42461573
A63: 42461567 | B63: 00680L 元大美債20正2 | C63: 元大美國政府20年期(以上)債券 ETF傘型基金之元大美國政府20年期(以上)債券單日正向 2倍證券投資信託基金 | D63: 債券-二倍ETF | E63: 5.51 | F63: 2 | G63: 9.41 | H63: 1 | U63: 7.28 | V63: 2.52 | W63: 8.82 | AL63: 42461567
A64: 42461588 | B64: 00681R 元大美債20反1 | C64: 元大美國政府20年期(以上)債券 ETF傘型基金之元大美國政府20年期(以上)債券單日反向 1倍證券投資信託基金 | D64: 債券-反向ETF | E64: -3.49 | F64: 2 | G64: -6.52 | H64: 1 | U64: -2.21 | V64: -4.25 | W64: -7.52 | AL64: 42461588
A65: 42481276 | B65: 00685L 群益臺灣加權正2 | C65: 群益臺灣加權指數 ETF傘型證券投資信託基金之群益臺灣加權指數單日正向2倍證券投資信託基金 | D65: 國內指數-二倍ETF | E65: 17.53 | F65: 4 | U65: 17.53 | V65: 13.23 | W65: 22 | AL65: 42481276
A66: 42481260 | B66: 00686R 群益臺灣加權反1 | C66: 群益臺灣加權指數 ETF傘型證券投資信託基金－群益臺灣加權指數單日反向1倍證券投資信託基金 | D66: 國內指數-反向ETF | E66: -8.37 | F66: 2 | U66: -6.27 | V66: -8.37 | W66: -10.2 | AL66: 42481260
A67: 42482726 | B67: 00687B 國泰20年美債 | C67: 國泰美國債券 ETF傘型證券投資信託基金之彭博巴克萊20年期(以上)美國公債指數證券投資信託基金 | D67: 債券-一般ETF | E67: 3.76 | F67: 1 | U67: 3.76 | V67: 1.85 | W67: 4.11 | AL67: 42482726
A68: =IF(AL68="","",AL68) -> 42482747 | B68: 00688L 國泰20年美債正2 | C68: 國泰美國債券 ETF傘型證券投資信託基金之彭博巴克萊20年期(以上)美國公債指數單日正向2倍證券投資信託基金 | D68: 債券-二倍ETF | E68: 5.72 | F68: 1 | U68: 5.72 | V68: 2.81 | W68: 10.31 | AL68: 42482747
A69: 42482731 | B69: 00689R 國泰20年美債反1 | C69: 國泰美國債券 ETF傘型證券投資信託基金之彭博巴克萊20年期(以上)美國公債指數單日反向1倍證券投資信託基金 | D69: 債券-反向ETF | E69: -3.4 | F69: 1 | U69: -2.03 | V69: -3.4 | W69: -6.17 | AL69: 42482731
A70: 42482107 | B70: 00690 兆豐藍籌30 | C70: 兆豐國際臺灣藍籌30ETF傘型證券投資信託基金之兆豐國際臺灣藍籌 30ETF證券投資信託基金 | D70: 國內指數-一般ETF | E70: 8.08 | F70: 15 | U70: 8.08 | V70: 6.07 | W70: 8.4 | AL70: 42482107
A71: 42482113 | B71: 00691R 兆豐藍籌30反1 | C71: 兆豐國際臺灣藍籌30ETF傘型證券投資信託基金之兆豐國際臺灣藍籌 30單日反向一倍ETF證券投資信託基金 | D71: 國內指數-反向ETF | E71: -7.7 | F71: 1 | U71: -5.78 | V71: -7.7 | W71: -9.55 | AL71: 42482113
A72: 42482423 | B72: 00692 富邦公司治理 | C72: 富邦臺灣公司治理100證券投資信託基金 | D72: 國內指數-一般ETF | E72: 8.76 | F72: 12 | U72: 8.76 | V72: 8.76 | W72: 8.71 | AL72: 42482423
A73: 42519239 | B73: 00694B 富邦美債1-3 | C73: 富邦美國政府債券 ETF傘型證券投資信託基金之富邦美國政府債券 1-3年期證券投資信託基金 | D73: 債券-一般ETF | E73: 0.34 | F73: 5 | U73: 0.34 | V73: 0.34 | W73: 0.34 | AL73: 42519239
A74: 42519245 | B74: 00695B 富邦美債7-10 | C74: 富邦美國政府債券 ETF傘型證券投資信託基金之富邦美國政府債券7-10年期證券投資信託基金 | D74: 債券-一般ETF | E74: 0.93 | F74: 4 | U74: 0.93 | V74: 0.93 | W74: 0.93 | AL74: 42519245
A75: 42519250 | B75: 00696B 富邦美債20年 | C75: 富邦美國政府債券 ETF傘型證券投資信託基金之富邦美國政府債券20年期以上證券投資信託基金 | D75: 債券-一般ETF | E75: 2.65 | F75: 3 | U75: 2.65 | V75: 2.65 | W75: 2.65 | AL75: 42519250
A76: 42469744 | B76: 00697B 元大美債7-10 | C76: 元大美國政府 7至10年期債券 ETF傘型證券投資信託基金之元大美國政府 7至10年期債券證券投資信託基金 | D76: 債券-一般ETF | W76: -0.23 | AL76: 42469744
A77: 42469759 | B77: 00698L 元大美債 7-10正2 | C77: 元大美國政府 7至10年期債券 ETF傘型證券投資信託基金之元大美國政府 7至10年期債券單日正向 2倍基金 | D77: 債券-二倍ETF | W77: 0.49 | AL77: 42469759
A78: 42469765 | B78: 00699R 元大美債 7-10反1 | C78: 元大美國政府 7至10年期債券 ETF傘型證券投資信託基金之元大美國政府 7至10年期債券單日反向 1倍基金 | D78: 債券-反向ETF | W78: -0.82 | AL78: 42469765
A79: 42464918 | B79: 00700 富邦H股 | C79: 富邦香港 H股證券投資信託基金 | D79: 其他市場ETF | W79: 2.55 | AL79: 42464918
A80: 42530591 | B80: 00701 國泰臺灣低波動30 | C80: 國泰低波動 ETF傘型證券投資信託基金之臺灣低波動精選30證券投資信託基金 | D80: 國內指數-一般ETF | W80: 2.4 | AL80: 42530591
A81: 42530608 | B81: 00702 國泰標普低波高息 | C81: 國泰低波動 ETF傘型證券投資信託基金之美國標普 500低波動高股息證券投資信託基金 | D81: 美國ETF | W81: -0.45 | AL81: 42530608
A82: 42528997 | B82: 00703 台新MSCI中國 | C82: 台新MSCI新興市場國家傘型 ETF證券投資信託基金之台新MSCI中國證券投資信託基金 | D82: 跨國-中國一般ETF | W82: 1.55 | AL82: 42528997
A83: 42528976 | B83: 00704L 台新MSCI台灣正2 | C83: 台新MSCI新興市場國家傘型 ETF證券投資信託基金之台新MSCI台灣單日正向 2倍基金 | D83: 國內指數-二倍ETF | W83: 2.15 | AL83: 42528976
A84: 42528960 | B84: 00705R 台新MSCI台灣反1 | C84: 台新MSCI新興市場國家傘型 ETF證券投資信託基金之台新MSCI台灣單日反向 1倍基金 | D84: 國內指數-反向ETF | W84: -1.45 | AL84: 42528960
A85: 42529243 | B85: 00709 富邦富時歐洲 ETF | C85: 富邦富時歐洲 ETF證券投資信託基金 | D85: 其他市場ETF | W85: 0.6 | AL85: 42529243
A86: 42529932 | B86: 00710B FH彭博高收益債 | C86: 復華全球收益 ETF傘型證券投資信託基金之復華 1至 5年期高收益債券證券投資信託基金 | D86: 高收債--全球 | W86: 0.2 | AL86: 42529932
A87: 42529953 | B87: 00711B FH彭博新興債 | C87: 復華全球收益 ETF傘型證券投資信託基金之復華新興市場10年期以上債券證券投資信託基金 | D87: 投資債--全球新興 | W87: 1.5 | AL87: 42529953
A88: 42529948 | B88: 00712 FH富時不動產 | C88: 復華全球收益 ETF傘型證券投資信託基金之復華富時不動產證券化證券投資信託基金 | D88: 不動產證券化 | W88: -0.25 | AL88: 42529948
A89: 18044796 | B89: T0101Y 兆豐國際寶鑽貨幣 | C89: 兆豐國際寶鑽貨幣市場證券投資信託基金 | D89: 國內貨幣市場 | E89: 0.1 | F89: 3 | G89: 0.19 | H89: 11 | I89: 0.33 | J89: 10 | K89: 0.75 | L89: 5 | M89: 1.34 | N89: 2 | O89: 2.65 | P89: 1 | Q89: 7.05 | R89: 3 | S89: 0.24 | T89: 11 | U89: 0.15 | V89: 0.07 | W89: 24.48 | X89: 0.0254 | Z89: -4.9889 | AC89: -0.065 | AD89: 2.1877 | AE89: 0.017 | AG89: -8.169 | AJ89: -0.2401 | AK89: 1.7139 | AL89: 18044796
A90: 00965469 | B90: T0102Y 兆豐國際第一 | C90: 兆豐國際第一證券投資信託基金 | D90: 開放式一般型 | E90: 10.39 | F90: 65 | G90: 12.73 | H90: 62 | I90: 14.04 | J90: 60 | K90: 19.57 | L90: 71 | M90: 5.34 | N90: 73 | O90: 35.39 | P90: 73 | Q90: -19.05 | R90: 60 | S90: 21.89 | T90: 46 | U90: 10.29 | V90: -13.16 | W90: 58.77 | X90: 9.3649 | Y90: 0.9084 | Z90: 0.2644 | AA90: -0.544 | AB90: 0.7868 | AC90: -0.5962 | AD90: -0.4972 | AE90: 9.8228 | AF90: 1.5208 | AG90: 0.3773 | AH90: -1.3399 | AI90: 0.7036 | AJ90: -0.2485 | AK90: -0.2428 | AL90: 00965469
A91: 01050148 | B91: T0103Y 兆豐國際國民 | C91: 兆豐國際國民證券投資信託基金 | D91: 開放式一般型 | E91: 12 | F91: 47 | G91: 12.76 | H91: 61 | I91: 16.6 | J91: 48 | K91: 27.02 | L91: 64 | M91: 10.96 | N91: 69 | O91: 33.29 | P91: 75 | Q91: -21.88 | R91: 63 | S91: 19.33 | T91: 57 | U91: 8.34 | V91: -12.62 | W91: 285.63 | X91: 8.8617 | Y91: 0.8879 | Z91: 0.3771 | AA91: -0.2655 | AB91: 1.0866 | AC91: -0.2023 | AD91: -0.1469 | AE91: 7.7978 | AF91: 0.9453 | AG91: 0.5522 | AH91: -0.2549 | AI91: 1.315 | AJ91: -0.0442 | AK91: -0.0484 | AL91: 01050148
A92: 00992769 | B92: T0104Y 兆豐國際全球 | C92: 兆豐國際全球證券投資信託基金 | D92: 跨國--全球股票 | E92: 2.44 | F92: 81 | G92: 5.45 | H92: 64 | I92: 8.36 | J92: 59 | K92: -2.68 | L92: 56 | M92: -7.05 | N92: 45 | O92: 17.7 | P92: 35 | Q92: -2.93 | R92: 19 | S92: 9.23 | T92: 62 | U92: 11 | V92: -16.01 | W92: 201.9 | X92: 12.764 | Y92: 1.0794 | Z92: -0.0307 | AA92: -1.1671 | AB92: -0.1048 | AC92: -0.2056 | AD92: -0.2345 | AE92: 3.9539 | AF92: 0.5511 | AG92: 0.5345 | AH92: -0.1128 | AI92: 1.1069 | AJ92: -0.1051 | AK92: -0.2289 | AL92: 00992769
A93: 00971976 | B93: T0105Y 兆豐國際萬全 | C93: 兆豐國際萬全證券投資信託基金 | D93: 平衡--一般股票型 | E93: 9.13 | F93: 11 | G93: 12.64 | H93: 10 | I93: 15.67 | J93: 9 | K93: 28.23 | L93: 10 | M93: 21.73 | N93: 10 | O93: 48.6 | P93: 11 | Q93: 47.75 | R93: 11 | S93: 19.14 | T93: 7 | U93: 8.25 | V93: -10.04 | W93: 358.95 | X93: 7.1285 | Y93: 0.6299 | Z93: 0.483 | AA93: 0.1211 | AB93: 1.5779 | AC93: 0.3015 | AD93: -0.0453 | AE93: 7.3716 | AF93: 1.0778 | AG93: 0.5515 | AH93: -0.5344 | AI93: 1.0889 | AJ93: 0.5027 | AK93: 0.1711 | AL93: 00971976
A94: 81584996 | B94: T0107Y 兆豐國際中小 | C94: 兆豐國際中小證券投資信託基金 | D94: 開放式中小型 | E94: 11.56 | F94: 15 | G94: 9.64 | H94: 20 | I94: 11.64 | J94: 17 | K94: 24.43 | L94: 20 | M94: 9.72 | N94: 17 | O94: 30.52 | P94: 19 | Q94: -27.98 | R94: 17 | S94: 17.27 | T94: 20 | U94: 8.25 | V94: -11.22 | W94: 46.7 | X94: 8.9261 | Y94: 0.6964 | Z94: 0.341 | AA94: -0.0863 | AB94: 1.2617 | AC94: -0.3567 | AD94: -0.4504 | AE94: 9.9628 | AF94: 1.261 | AG94: 0.3102 | AH94: -1.1063 | AI94: 0.7074 | AJ94: -0.3786 | AK94: -0.3567 | AL94: 81584996
A95: 73991751 | B95: T0108Y 兆豐國際電子 | C95: 兆豐國際電子證券投資信託基金 | D95: 開放式科技類 | E95: 12.93 | F95: 17 | G95: 14.11 | H95: 23 | I95: 16.66 | J95: 22 | K95: 32.79 | L95: 25 | M95: 16.28 | N95: 23 | O95: 53.8 | P95: 21 | Q95: -20.84 | R95: 25 | S95: 23.32 | T95: 23 | U95: 9.04 | V95: -14.57 | W95: 174.89 | X95: 8.9475 | Y95: 0.7081 | Z95: 0.4463 | AA95: 0.1715 | AB95: 1.6278 | AC95: -0.0773 | AD95: -0.358 | AE95: 10.2283 | AF95: 1.5646 | AG95: 0.4283 | AH95: -1.2149 | AI95: 0.8082 | AJ95: -0.0239 | AK95: -0.3183 | AL95: 73991751
A96: 14699772 | B96: T0109Y 兆豐國際生命科學 | C96: 兆豐國際生命科學證券投資信託基金 | D96: 跨國--全球股票 | E96: 8.42 | F96: 15 | G96: 7.86 | H96: 49 | I96: 2.87 | J96: 86 | K96: -14.75 | L96: 64 | M96: -6.59 | N96: 44 | O96: 31.69 | P96: 29 | Q96: 16.43 | R96: 16 | S96: 12.99 | T96: 33 | U96: 9.8 | V96: -17.98 | W96: 68.7 | X96: 18.8969 | Y96: 1.087 | Z96: -0.107 | AA96: -1.645 | AB96: -0.5368 | AC96: -0.2275 | AD96: -0.2433 | AE96: 15.7898 | AF96: 1.2362 | AG96: 0.0582 | AH96: -1.3559 | AI96: 0.2147 | AJ96: -0.1122 | AK96: -0.142 | AL96: 14699772
A97: 10341837 | B97: T0110Y 兆豐豐台灣 | C97: 兆豐國際豐台灣證券投資信託基金 | D97: 開放式一般型 | E97: 3.13 | F97: 81 | G97: 6.15 | H97: 78 | I97: 7.99 | J97: 73 | K97: 15.82 | L97: 77 | M97: 2.46 | N97: 75 | O97: 36.16 | P97: 70 | S97: 8.73 | T97: 77 | U97: 8.32 | V97: -10.41 | W97: 200.1 | X97: 6.6781 | Y97: 0.6524 | Z97: 0.2925 | AA97: -0.34 | AB97: 0.8644 | AC97: -0.3668 | AD97: -0.317 | AE97: 3.7827 | AF97: 0.2289 | AG97: 0.5316 | AH97: 0.2178 | AI97: 2.5361 | AJ97: -0.3216 | AK97: -0.3125 | AL97: 10341837
A98: 25637773 | B98: T0112Y 兆豐國際綠鑽 | C98: 兆豐國際綠鑽證券投資信託基金 | D98: 跨國--全球股票 | E98: 3.23 | F98: 66 | G98: 3.37 | H98: 89 | I98: 6.38 | J98: 67 | K98: 3.23 | L98: 46 | M98: -15.06 | N98: 48 | O98: 4.07 | P98: 36 | S98: 3.65 | T98: 84 | U98: 5.8 | V98: -12.69 | W98: -23.3 | X98: 8.7827 | Y98: 0.734 | Z98: 0.0377 | AA98: -0.6211 | AB98: 0.1302 | AC98: -0.1845 | AD98: -0.1717 | AE98: 4.9698 | AF98: 0.4589 | AG98: 0.3197 | AH98: -0.1432 | AI98: 0.9994 | AJ98: -0.3237 | AK98: -0.3725 | AL98: 25637773
A99: 26278352 | B99: T0114Y 兆豐國際全球高股 | C99: 兆豐國際全球高股息證券投資信託基金 | D99: 跨國--全球股票 | E99: 3.37 | F99: 62 | G99: 5.29 | H99: 66 | I99: 5.71 | J99: 72 | K99: 5.71 | L99: 37 | M99: 6.87 | N99: 33 | O99: 30.5 | P99: 32 | S99: 5.5 | T99: 75 | U99: 5.46 | V99: -5.93 | W99: 7.4 | X99: 7.1147 | Y99: 0.5203 | Z99: 0.0895 | AA99: -0.3242 | AB99: 0.3534 | AC99: -0.1077 | AD99: -0.1139 | AE99: 5.4306 | AF99: 0.7271 | AG99: 0.2599 | AH99: -0.5462 | AI99: 0.5603 | AJ99: -0.3047 | AK99: -0.3885 | AL99: 26278352
A100: 26299315B | B100: T0115B 兆豐國際民生$ | C100: 兆豐國際民生動力證券信託基金─美元計價 | D100: 跨國--全球股票 | E100: 3.35 | F100: 63 | G100: 11.4 | H100: 32 | U100: 7.8 | V100: 3.35 | W100: 14.3 | AL100: 26299315B
A101: 26299315A | B101: T0115Y 兆豐國際民生動力 | C101: 兆豐國際民生動力證券信託基金 | D101: 跨國--全球股票 | E101: 3.47 | F101: 58 | G101: 10.07 | H101: 40 | I101: 7.92 | J101: 61 | K101: 7.92 | L101: 32 | M101: 5.85 | N101: 34 | O101: 29.43 | P101: 34 | S101: 11.63 | T101: 40 | U101: 6.38 | V101: -5.88 | W101: 10.4 | X101: 7.3801 | Y101: 0.5679 | Z101: 0.1276 | AA101: -0.2826 | AB101: 0.4788 | AC101: -0.03 | AD101: -0.0471 | AE101: 5.757 | AF101: 0.8267 | AG101: 0.3503 | AH101: -0.502 | AI101: 0.7042 | AJ101: -0.0867 | AK101: -0.1612 | AL101: 26299315A
A102: 31829638A | B102: T0116A 兆豐國際全債組 A | C102: 兆豐國際全球債券組合證券投資信託基金 A類型（累積型） | D102: 債券組合--複合式 | E102: 1.29 | F102: 19 | G102: 1.57 | H102: 26 | I102: 1.2 | J102: 19 | K102: 4.48 | L102: 18 | M102: 3.1 | N102: 14 | S102: 1.76 | T102: 21 | U102: 2.8 | V102: -1.94 | W102: 5.58 | X102: 2.6655 | Z102: 0.1531 | AC102: -0.4792 | AD102: -0.4094 | AE102: 2.4315 | AG102: 0.0487 | AJ102: -0.4156 | AK102: -0.2589 | AL102: 31829638A
A103: 31829638B | B103: T0116Y 兆豐國際全債組 B | C103: 兆豐國際全球債券組合證券投資信託基金 B類型（分配型） | D103: 債券組合--複合式 | E103: 1.3 | F103: 18 | G103: 1.58 | H103: 25 | I103: 1.2 | J103: 18 | K103: 4.39 | L103: 20 | M103: 3.11 | N103: 13 | O103: 11.46 | P103: 9 | S103: 1.77 | T103: 20 | U103: 2.81 | V103: -1.94 | W103: 14.02 | X103: 2.7 | Z103: 0.1467 | AC103: -0.4918 | AD103: -0.422 | AE103: 2.4383 | AG103: 0.0489 | AJ103: -0.4136 | AK103: -0.256 | AL103: 31829638B
A104: 31923107A | B104: T0117A 兆豐國際新高債 A | C104: 兆豐國際新興市場高收益債券證券投資信託基金－累積型 | D104: 高收債--新興市場 | E104: 1.82 | F104: 31 | G104: 2.67 | H104: 29 | I104: 3.3 | J104: 28 | K104: 8.23 | L104: 27 | M104: 1.67 | N104: 8 | S104: 3.67 | T104: 28 | U104: 5.54 | V104: -6.58 | W104: 2.91 | X104: 5.6418 | Z104: 0.169 | AC104: -0.2227 | AD104: -0.4105 | AE104: 3.7167 | AG104: 0.1946 | AJ104: -0.1598 | AK104: -0.3753 | AL104: 31923107A
A105: 31923107B | B105: T0117B 兆豐國際新高債 B | C105: 兆豐國際新興市場高收益債券證券投資信託基金－月配息型 | D105: 高收債--新興市場 | E105: 1.82 | F105: 30 | G105: 2.67 | H105: 28 | I105: 3.3 | J105: 27 | K105: 8.23 | L105: 26 | M105: 1.68 | N105: 7 | S105: 3.67 | T105: 27 | U105: 5.54 | V105: -6.58 | W105: 2.91 | X105: 5.6424 | Z105: 0.1689 | AC105: -0.2226 | AD105: -0.4105 | AE105: 3.7166 | AG105: 0.1946 | AJ105: -0.1597 | AK105: -0.3754 | AL105: 31923107B
A106: 38522710 | B106: T0118Y 兆豐人民幣貨幣市 | C106: 兆豐國際人民幣貨幣市場證券投資信託基金 | D106: 海外貨幣市場 | E106: 0.95 | F106: 14 | G106: 1.99 | H106: 12 | I106: 3.81 | J106: 5 | K106: 7.26 | L106: 1 | M106: 10.54 | N106: 1 | S106: 2.77 | T106: 5 | U106: 1.16 | V106: 0.63 | W106: 11.81 | X106: 0.2117 | Z106: 3.6792 | AC106: 1.279 | AD106: 0.4141 | AE106: 0.2019 | AG106: 4.2006 | AJ106: 1.1469 | AK106: 0.2947 | AL106: 38522710
A107: 38592074A | B107: T0119A 兆豐中國 A股 | C107: 兆豐國際中國 A股證券投資信託基金 | D107: 跨國-中國A股 | E107: 17.93 | F107: 1 | G107: 26.39 | H107: 2 | I107: 26.48 | J107: 2 | K107: 30.67 | L107: 2 | M107: 81.68 | N107: 1 | S107: 29.18 | T107: 4 | U107: 33.89 | V107: -24.31 | W107: 81.5 | X107: 17.3629 | Y107: 0.9694 | Z107: 0.2354 | AA107: 0.2335 | AB107: 1.2174 | AC107: 0.4291 | AD107: 0.3009 | AE107: 12.4354 | AF107: -0.4912 | AG107: 0.5478 | AH107: 2.6107 | AI107: -4.0032 | AJ107: 0.7048 | AK107: 0.7072 | AL107: 38592074A
A108: 38592074B | B108: T0119B 兆豐中國 A股 $ | C108: 兆豐國際中國 A股證券投資信託基金－美元計價 | D108: 跨國-中國A股 | E108: 17.71 | F108: 2 | G108: 28.14 | H108: 1 | I108: 31.97 | J108: 1 | K108: 41.47 | L108: 1 | M108: 80.8 | N108: 2 | S108: 36.97 | T108: 1 | U108: 34.92 | V108: -28.56 | W108: 80.8 | X108: 19.1516 | Y108: 1.2465 | Z108: 0.2858 | AA108: 0.3176 | AB108: 1.2678 | AC108: 0.6079 | AD108: 0.6094 | AE108: 12.5989 | AF108: -0.0589 | AG108: 0.6463 | AH108: 2.429 | AI108: -39.8902 | AJ108: 0.8138 | AK108: 1.0114 | AL108: 38592074B
A109: 38592074C | B109: T0119C 兆豐中國 A股CNY | C109: 兆豐國際中國 A股證券投資信託基金－人民幣計價 | D109: 跨國-中國A股 | E109: 14.42 | F109: 10 | G109: 24.18 | H109: 5 | U109: 15.33 | V109: 8.53 | W109: 32.5 | AL109: 38592074C
A110: 42312011A | B110: T0120A 兆豐策略ETF | C110: 兆豐國際目標策略 ETF組合證券投資信託基金 | D110: 跨國組合--其他 | E110: 1.63 | F110: 9 | G110: 2.37 | H110: 5 | I110: 1.88 | J110: 4 | K110: 2.43 | L110: 4 | S110: 3 | T110: 4 | U110: 1.87 | V110: -2.29 | W110: 1.58 | X110: 2.7794 | Y110: 0.1911 | Z110: 0.044 | AA110: -0.1513 | AB110: 0.1849 | AC110: -0.3427 | AD110: -0.057 | AE110: 2.5559 | AF110: 0.3576 | AG110: 0.122 | AH110: -0.3789 | AI110: 0.2518 | AJ110: -0.9622 | AK110: -0.1887 | AL110: 42312011A
A111: 42312011B | B111: T0120B 兆豐策略ETF USD | C111: 兆豐國際目標策略 ETF組合證券投資信託基金－美元級別 | D111: 跨國組合--其他 | E111: 1.86 | F111: 7 | G111: 3.41 | H111: 4 | I111: 4.32 | J111: 3 | K111: 7.05 | L111: 2 | S111: 5.96 | T111: 2 | U111: 3.31 | V111: -3.15 | W111: 4.5 | X111: 4.0197 | Y111: 0.3332 | Z111: 0.2236 | AA111: -0.0781 | AB111: 0.7787 | AC111: -0.0909 | AD111: 0.2706 | AE111: 3.1919 | AF111: 0.5411 | AG111: 0.3359 | AH111: -0.4109 | AI111: 0.572 | AJ111: -0.0638 | AK111: 0.2551 | AL111: 42312011B
A112: 42334401A | B112: T0121A 兆豐大中華平衡 | C112: 兆豐國際大中華平衡證券投資信託基金－新台幣計價 | D112: 跨國平衡-亞洲 | E112: 10.77 | F112: 5 | G112: 11.75 | H112: 6 | I112: 4.67 | J112: 32 | S112: 10.53 | T112: 26 | U112: 10.77 | V112: -4.59 | W112: 0.8 | AE112: 8.3187 | AF112: -0.3574 | AG112: 0.1414 | AH112: 0.8083 | AI112: -0.9501 | AJ112: -0.0412 | AK112: -0.0249 | AL112: 42334401A
A113: 42334401B | B113: T0121B 兆豐大中華平衡 $ | C113: 兆豐國際大中華平衡證券投資信託基金－美元計價 | D113: 跨國平衡-亞洲 | E113: 10.68 | F113: 6 | G113: 13.24 | H113: 4 | I113: 8.78 | J113: 12 | S113: 16.04 | T113: 3 | U113: 10.68 | V113: -5.11 | W113: 7.8 | AE113: 7.9052 | AF113: -0.0258 | AG113: 0.2978 | AH113: 0.7138 | AI113: -26.3727 | AJ113: 0.1018 | AK113: 0.1225 | AL113: 42334401B
A114: 42334401C | B114: T0121C 兆豐大中華平衡 C | C114: 兆豐國際大中華平衡證券投資信託基金－人民幣計價 | D114: 跨國平衡-亞洲 | E114: 7.64 | F114: 9 | G114: 9.79 | H114: 10 | I114: 8.06 | J114: 18 | S114: 12.03 | T114: 17 | U114: 7.64 | V114: -2.9 | W114: 9.9 | AE114: 6.2718 | AF114: -0.1793 | AG114: 0.329 | AH114: 0.8308 | AI114: -3.3212 | AJ114: 0.0787 | AK114: 0.1013 | AL114: 42334401C
A115: 42406642A | B115: T0123A 兆豐美元貨市 | C115: 兆豐國際美元貨幣市場證券投資信託基金－新台幣計價 | D115: 海外貨幣市場 | E115: 0.65 | F115: 23 | G115: -0.83 | H115: 26 | I115: -3.57 | J115: 22 | S115: -5.56 | T115: 25 | U115: 3.33 | V115: -5.65 | W115: -3.48 | AE115: 4.5284 | AG115: -0.2768 | AJ115: -0.2736 | AK115: -0.3061 | AL115: 42406642A
A116: 42406642B | B116: T0123B 兆豐美元貨市 $ | C116: 兆豐國際美元貨幣市場證券投資信託基金－美元計價 | D116: 海外貨幣市場 | E116: 0.31 | F116: 25 | G116: 0.59 | H116: 23 | I116: 0.99 | J116: 13 | S116: 0.75 | T116: 21 | U116: 0.31 | V116: 0.15 | W116: 1.02 | AE116: 0.074 | AG116: 1.615 | AJ116: 0.0215 | AK116: -0.1514 | AL116: 42406642B
A117: 01032249 | B117: T0306Y 第一金全家福貨幣 | C117: 第一金全家福貨幣市場證券投資信託基金 | D117: 國內貨幣市場 | E117: 0.1 | F117: 8 | G117: 0.19 | H117: 6 | I117: 0.34 | J117: 6 | K117: 0.74 | L117: 6 | M117: 1.28 | N117: 9 | O117: 2.45 | P117: 16 | Q117: 6.55 | R117: 13 | S117: 0.24 | T117: 6 | U117: 0.14 | V117: 0.07 | W117: 77.14 | X117: 0.0215 | Z117: -5.9831 | AC117: -0.0672 | AD117: 4.5564 | AE117: 0.0159 | AG117: -8.5386 | AJ117: -0.2355 | AK117: 4.8611 | AL117: 01032249
A118: 20081472 | B118: T0310Y 第一金台灣貨幣 | C118: 第一金台灣貨幣市場證券投資信託基金 | D118: 國內貨幣市場 | E118: 0.1 | F118: 4 | G118: 0.2 | H118: 1 | I118: 0.35 | J118: 1 | K118: 0.76 | L118: 3 | M118: 1.33 | N118: 6 | O118: 2.53 | P118: 3 | Q118: 6.66 | R118: 9 | S118: 0.25 | T118: 3 | U118: 0.14 | V118: 0.07 | W118: 51.81 | X118: 0.0228 | Z118: -5.4938 | AC118: -0.0625 | AD118: 4.5278 | AE118: 0.0166 | AG118: -8.0086 | AJ118: -0.2306 | AK118: 4.7285 | AL118: 20081472
A119: 20092528 | B119: T0311Y 第一金店頭 | C119: 第一金店頭證券投資信託基金 | D119: 上櫃股票型 | E119: 8.45 | F119: 4 | G119: 10.42 | H119: 4 | I119: 12.75 | J119: 2 | K119: 35.16 | L119: 3 | M119: 14.16 | N119: 4 | O119: 43.92 | P119: 5 | Q119: -8.07 | R119: 3 | S119: 20.18 | T119: 2 | U119: 17.8 | V119: -22.44 | W119: -8.99 | X119: 12.2525 | Y119: 0.589 | Z119: 0.3547 | AA119: 0.4383 | AB119: 2.1297 | AC119: 0.0077 | AD119: -0.0208 | AE119: 11.059 | AF119: 1.5138 | AG119: 0.3079 | AH119: -1.4157 | AI119: 0.6494 | AJ119: -0.171 | AK119: 0.1214 | AL119: 20092528
A120: 73989002 | B120: T0313Y 第一金小型 | C120: 第一金小型精選證券投資信託基金 | D120: 開放式中小型 | E120: 15.18 | F120: 8 | G120: 20.03 | H120: 3 | I120: 23.66 | J120: 2 | K120: 34.42 | L120: 12 | M120: 27.48 | N120: 9 | O120: 83.98 | P120: 8 | Q120: -1.81 | R120: 13 | S120: 31.22 | T120: 2 | U120: 12.86 | V120: -13.44 | W120: 230.47 | X120: 9.5792 | Y120: 0.5866 | Z120: 0.4369 | AA120: 0.3954 | AB120: 2.0597 | AC120: -0.0173 | AD120: -0.0893 | AE120: 11.5237 | AF120: 1.5186 | AG120: 0.5313 | AH120: -0.6389 | AI120: 1.1639 | AJ120: 0.3373 | AK120: 0.4635 | AL120: 73989002
A121: 19341318 | B121: T0314Y 第一金電子 | C121: 第一金電子證券投資信託基金 | D121: 開放式科技類 | E121: 14.91 | F121: 11 | G121: 17.55 | H121: 15 | I121: 21.16 | J121: 16 | K121: 43.9 | L121: 15 | M121: 11.15 | N121: 25 | O121: 71.3 | P121: 15 | Q121: 34.18 | R121: 12 | S121: 24.53 | T121: 20 | U121: 11.15 | V121: -21.25 | W121: 196 | X121: 9.1082 | Y121: 0.6402 | Z121: 0.5678 | AA121: 0.606 | AB121: 2.3322 | AC121: 0.171 | AD121: -0.0063 | AE121: 10.0199 | AF121: 1.1151 | AG121: 0.5473 | AH121: -0.1841 | AI121: 1.4196 | AJ121: 0.1819 | AK121: 0.02 | AL121: 19341318
A122: 17612378 | B122: T0316Y 第一金亞洲科技 | C122: 第一金亞洲科技證券投資信託基金 | D122: 跨國投資--亞洲 | E122: 11.75 | F122: 9 | G122: 22.28 | H122: 7 | I122: 25.54 | J122: 4 | K122: 39.46 | L122: 2 | M122: 34.02 | N122: 5 | O122: 67.36 | P122: 9 | Q122: 2.58 | R122: 10 | S122: 26.09 | T122: 15 | U122: 13.78 | V122: -11.65 | W122: 102.5 | X122: 11.6133 | Y122: 0.919 | Z122: 0.412 | AA122: 0.4839 | AB122: 1.5031 | AC122: 0.3814 | AD122: 0.4316 | AE122: 7.0638 | AF122: 0.4831 | AG122: 0.9146 | AH122: 1.2313 | AI122: 3.86 | AJ122: 0.5892 | AK122: 0.6937 | AL122: 17612378
A123: 15739619 | B123: T0318Y 第一金大中華 | C123: 第一金大中華證券投資信託基金 | D123: 開放式中概股 | E123: 15.12 | F123: 3 | G123: 16.51 | H123: 2 | I123: 22.05 | J123: 2 | K123: 31.71 | L123: 5 | M123: 15.4 | N123: 5 | O123: 56.08 | P123: 4 | Q123: -8.04 | R123: 6 | S123: 21.32 | T123: 3 | U123: 9.7 | V123: -12.47 | W123: 141.3 | X123: 8.1652 | Y123: 0.5583 | Z123: 0.4721 | AA123: 0.3393 | AB123: 1.9933 | AC123: -0.0738 | AD123: -0.184 | AE123: 8.1661 | AF123: 0.9957 | AG123: 0.6923 | AH123: 0.0542 | AI123: 1.6391 | AJ123: 0.2274 | AK123: 0.1644 | AL123: 15739619
A124: 99353151 | B124: T0320Y 第一金中概平衡 | C124: 第一金中概平衡證券投資信託基金 | D124: 平衡--一般股票型 | E124: 12.64 | F124: 3 | G124: 14.48 | H124: 5 | I124: 12.86 | J124: 10 | K124: 17.34 | L124: 14 | M124: 14.03 | N124: 14 | O124: 44.34 | P124: 14 | Q124: 21.35 | R124: 13 | S124: 18.91 | T124: 8 | U124: 8.85 | V124: -9.03 | W124: 130.8 | X124: 6.842 | Y124: 0.5547 | Z124: 0.3135 | AA124: -0.1494 | AB124: 1.1163 | AC124: 0.0612 | AD124: -0.3669 | AE124: 8.237 | AF124: 1.1352 | AG124: 0.4085 | AH124: -0.8276 | AI124: 0.8556 | AJ124: 0.2642 | AK124: -0.0437 | AL124: 99353151
A125: 48892846A | B125: T0326A 第一金全球不動 A | C125: 第一金全球不動產證券化證券投資信託基金－不配息 | D125: 不動產證券化 | E125: 6.1 | F125: 1 | G125: 8.97 | H125: 1 | I125: -0.52 | J125: 19 | K125: 3 | L125: 20 | M125: 2.81 | N125: 15 | O125: 29.69 | P125: 8 | Q125: -17.78 | R125: 19 | S125: 7.25 | T125: 11 | U125: 12.31 | V125: -11.38 | W125: -20.75 | X125: 9.2287 | Z125: 0.0337 | AC125: -0.157 | AD125: -0.1859 | AE125: 10.0509 | AG125: -0.0247 | AJ125: 0.0252 | AK125: 0.0197 | AL125: 48892846A
A126: 48892846B | B126: T0326B 第一金全球不動 B | C126: 第一金全球不動產證券化證券投資信託基金－配息 | D126: 不動產證券化 | E126: 6.1 | F126: 2 | G126: 8.96 | H126: 2 | I126: -0.52 | J126: 20 | K126: 3 | L126: 19 | M126: 2.81 | N126: 14 | O126: 29.69 | P126: 9 | Q126: -17.78 | R126: 18 | S126: 7.25 | T126: 12 | U126: 12.31 | V126: -11.38 | W126: -20.75 | X126: 9.2296 | Z126: 0.0337 | AC126: -0.1569 | AD126: -0.1858 | AE126: 10.0525 | AG126: -0.0247 | AJ126: 0.0251 | AK126: 0.0197 | AL126: 48892846B
A127: 10338642 | B127: T0331Y 第一金全球大趨勢 | C127: 第一金全球大趨勢證券投資信託基金 | D127: 跨國--全球股票 | E127: 6.49 | F127: 25 | G127: 10.1 | H127: 38 | I127: 16.61 | J127: 27 | K127: 14.19 | L127: 19 | M127: 20.34 | N127: 11 | O127: 58.41 | P127: 7 | S127: 10.32 | T127: 49 | U127: 7.54 | V127: -3.4 | W127: 114.8 | X127: 6.2104 | Y127: 0.2083 | Z127: 0.2801 | AA127: 0.2987 | AB127: 2.4101 | AC127: 0.094 | AD127: 0.0823 | AE127: 5.6148 | AF127: 0.0715 | AG127: 0.7609 | AH127: 1.1396 | AI127: 17.2469 | AJ127: 0.339 | AK127: 0.2508 | AL127: 10338642
A128: 25593418A | B128: T0332A 第一金全球高收 A | C128: 第一金全球高收益債券證券投資信託基金 A類型（不配息） | D128: 高收債--全球 | E128: 0.58 | F128: 66 | G128: 1.33 | H128: 75 | I128: 2.83 | J128: 73 | K128: 5.42 | L128: 58 | M128: 1.71 | N128: 17 | O128: 12.69 | P128: 8 | S128: 1.81 | T128: 73 | U128: 4.45 | V128: -5.04 | W128: 49.18 | X128: 4.3256 | Z128: 0.128 | AC128: -0.4919 | AD128: -0.392 | AE128: 2.2081 | AG128: 0.2625 | AJ128: -0.2991 | AK128: -0.9277 | AL128: 25593418A
A129: 25593418B | B129: T0332B 第一金全球高收 B | C129: 第一金全球高收益債券證券投資信託基金 B類型（配息） | D129: 高收債--全球 | E129: 0.58 | F129: 67 | G129: 1.33 | H129: 76 | I129: 2.83 | J129: 74 | K129: 5.5 | L129: 57 | M129: 1.8 | N129: 16 | O129: 12.78 | P129: 7 | S129: 1.81 | T129: 74 | U129: 4.45 | V129: -5.04 | W129: 44.96 | X129: 4.3365 | Z129: 0.1303 | AC129: -0.4831 | AD129: -0.3879 | AE129: 2.2076 | AG129: 0.2621 | AJ129: -0.2998 | AK129: -0.9286 | AL129: 25593418B
A130: 25593418C | B130: T0332C 第一金全球高收A$ | C130: 第一金全球高收益債券證券投資信託基金 A類型（不配息）美元計價 | D130: 高收債--全球 | E130: 0.69 | F130: 57 | G130: 2.3 | H130: 51 | I130: 5.3 | J130: 50 | K130: 7.31 | L130: 55 | M130: -1.74 | N130: 24 | S130: 4.58 | T130: 45 | U130: 5.63 | V130: -7.71 | W130: -1.65 | X130: 5.6488 | Z130: 0.1468 | AC130: -0.288 | AD130: -0.4135 | AE130: 2.3729 | AG130: 0.5341 | AJ130: 0.2111 | AK130: -0.5482 | AL130: 25593418C
A131: 25593418D | B131: T0332D 第一金全球高收B$ | C131: 第一金全球高收益債券證券投資信託基金 B類型 (配息）美元計價 | D131: 高收債--全球 | E131: 0.69 | F131: 58 | G131: 2.32 | H131: 49 | I131: 5.27 | J131: 51 | K131: 7.2 | L131: 56 | S131: 4.56 | T131: 46 | U131: 5.64 | V131: -7.87 | W131: -1.74 | X131: 5.6959 | Z131: 0.1432 | AC131: -0.2882 | AD131: -0.431 | AE131: 2.3654 | AG131: 0.5326 | AJ131: 0.2054 | AK131: -0.5691 | AL131: 25593418D
A132: =IF(AL132="","",AL132) -> 25593418E | B132: T0332E 第一金全球高收AC | C132: 第一金全球高收益債券證券投資信託基金 A類型（不配息）人民幣計價 | D132: 高收債--全球 | E132: 0.91 | F132: 49 | G132: 2.31 | H132: 50 | S132: 3.48 | T132: 56 | U132: 4.71 | V132: 0.91 | W132: 8.35 | AL132: 25593418E
A133: 25593418F | B133: T0332F 第一金全球高收BC | C133: 第一金全球高收益債券證券投資信託基金 B類型（配息）人民幣計價 | D133: 高收債--全球 | E133: 0.96 | F133: 46 | G133: 2.34 | H133: 48 | S133: 3.55 | T133: 55 | U133: 4.68 | V133: 0.96 | W133: 8.4 | AL133: 25593418F
A134: 25620512B | B134: T0334A 第一中國世紀CNY | C134: 第一金中國世紀證券投資信託基金 人民幣計價 | D134: 跨國--大中華區 | E134: 6.83 | F134: 70 | G134: 6.43 | H134: 69 | I134: 5.08 | J134: 62 | K134: 10.96 | L134: 37 | S134: 8.23 | T134: 68 | U134: 49.4 | V134: -27.83 | W134: 40.7 | X134: 17.3111 | Y134: 1.1358 | Z134: 0.0987 | AA134: -0.6157 | AB134: 0.4344 | AC134: -0.0968 | AD134: -0.1703 | AE134: 9.41 | AF134: -0.6244 | AG134: 0.1399 | AH134: 1.199 | AI134: -0.6087 | AJ134: -0.3242 | AK134: -0.4249 | AL134: 25620512B
A135: 25620512A | B135: T0334Y 第一金中國世紀 | C135: 第一金中國世紀證券投資信託基金 | D135: 跨國--大中華區 | E135: 9.56 | F135: 65 | G135: 8.88 | H135: 67 | I135: 1.44 | J135: 64 | K135: -0.38 | L135: 42 | M135: 35.3 | N135: 9 | O135: 54.09 | P135: 19 | S135: 6.79 | T135: 69 | U135: 48.14 | V135: -26.22 | W135: 5.4 | X135: 15.5426 | Y135: 0.9889 | Z135: 0.0042 | AA135: -0.9471 | AB135: 0.0188 | AC135: -0.3497 | AD135: -0.5494 | AE135: 9.0038 | AF135: -0.7169 | AG135: 0.0318 | AH135: 1.0228 | AI135: -0.1152 | AJ135: -0.5138 | AK135: -0.6925 | AL135: 25620512A
A136: 25652648 | B136: T0335Y 第一金亞洲新興市 | C136: 第一金亞洲新興市場證券投資信託基金 | D136: 跨國--新興市場 | E136: 8.75 | F136: 15 | G136: 13.72 | H136: 10 | I136: 13.43 | J136: 15 | K136: 26.73 | L136: 9 | M136: 21.03 | N136: 3 | O136: 40.81 | P136: 3 | S136: 15.41 | T136: 13 | U136: 8.91 | V136: -8.74 | W136: 31.8 | X136: 9.2571 | Y136: 0.4059 | Z136: 0.3586 | AA136: 0.562 | AB136: 2.361 | AC136: 0.0868 | AD136: 0.0907 | AE136: 7.9676 | AF136: 0.3053 | AG136: 0.44 | AH136: 0.6117 | AI136: 3.3153 | AJ136: -0.0941 | AK136: -0.1004 | AL136: 25652648
A137: 26202396 | B137: T0336Y 第一金創新 | C137: 第一金創新趨勢證券投資信託基金 | D137: 開放式一般型 | E137: 17.09 | F137: 8 | G137: 20.35 | H137: 14 | I137: 25.21 | J137: 9 | K137: 45.99 | L137: 10 | M137: 43.57 | N137: 4 | O137: 101.36 | P137: 16 | S137: 29.43 | T137: 13 | U137: 16.01 | V137: -15.05 | W137: 107.6 | X137: 9.4266 | Y137: 0.8077 | Z137: 0.572 | AA137: 0.4375 | AB137: 1.9273 | AC137: 0.2805 | AD137: 0.3366 | AE137: 9.4942 | AF137: 1.5673 | AG137: 0.6777 | AH137: -0.6262 | AI137: 1.1851 | AJ137: 0.5349 | AK137: 0.5524 | AL137: 26202396
A138: 38539992A | B138: T0343A 第一金全球多息 A | C138: 第一金全球多重資產入息證券投資信託基金（累積型） | D138: 跨國平衡-全球型 | E138: 1.23 | F138: 47 | G138: 1.12 | H138: 63 | I138: -1.28 | J138: 45 | K138: 1.13 | L138: 22 | M138: 2.71 | N138: 7 | S138: -0.75 | T138: 66 | U138: 2.78 | V138: -2.71 | W138: 3.18 | X138: 3.6545 | Y138: 0.1739 | Z138: -0.0147 | AA138: -0.1853 | AB138: -0.0894 | AC138: -0.3173 | AD138: -0.3784 | AE138: 3.7312 | AF138: 0.3034 | AG138: -0.1575 | AH138: -0.5675 | AI138: -0.5593 | AJ138: -0.5428 | AK138: -0.522 | AL138: 38539992A
A139: 38539992B | B139: T0343B 第一金全球多息 B | C139: 第一金全球多重資產入息證券投資信託基金（配息型） | D139: 跨國平衡-全球型 | E139: 1.23 | F139: 48 | G139: 1.12 | H139: 64 | I139: -1.28 | J139: 46 | K139: 1.13 | L139: 23 | M139: 2.71 | N139: 6 | S139: -0.74 | T139: 65 | U139: 2.78 | V139: -2.71 | W139: 3.18 | X139: 3.6546 | Y139: 0.1739 | Z139: -0.0147 | AA139: -0.1853 | AB139: -0.0894 | AC139: -0.3174 | AD139: -0.3784 | AE139: 3.7312 | AF139: 0.3035 | AG139: -0.1575 | AH139: -0.5677 | AI139: -0.559 | AJ139: -0.5429 | AK139: -0.522 | AL139: 38539992B
A140: 38646796A | B140: T0344A 第一人幣貨幣市場 | C140: 第一金人民幣貨幣市場證券投資信託基金 | D140: 海外貨幣市場 | E140: 3.88 | F140: 3 | G140: 4.1 | H140: 6 | I140: -0.11 | J140: 17 | K140: -4.59 | L140: 16 | S140: 1.52 | T140: 16 | U140: 4.19 | V140: -3.69 | W140: -2.57 | X140: 4.5978 | Z140: -0.1919 | AC140: -0.2 | AD140: -0.291 | AE140: 4.2575 | AG140: -0.0565 | AJ140: -0.0734 | AK140: -0.1771 | AL140: 38646796A
A141: 38646796B | B141: T0344B 第一人幣貨幣 CNY | C141: 第一金人民幣貨幣市場證券投資信託基金－人民幣計價 | D141: 海外貨幣市場 | E141: 0.85 | F141: 16 | G141: 1.81 | H141: 14 | I141: 3.59 | J141: 7 | K141: 6.6 | L141: 5 | S141: 2.61 | T141: 8 | U141: 1.16 | V141: 0.56 | W141: 8.45 | X141: 0.2147 | Z141: 3.2101 | AC141: 1.1258 | AD141: 0.363 | AE141: 0.2257 | AG141: 3.4865 | AJ141: 1.0267 | AK141: 0.2575 | AL141: 38646796B
A142: 42334486A | B142: T0345A 第一金人幣高債A | C142: 第一金人民幣高收益債券證券投資信託基金－新台幣累積型 | D142: 高收債--中國大陸 | E142: 3.14 | F142: 10 | G142: 2.86 | H142: 21 | I142: -3.01 | J142: 54 | S142: -0.74 | T142: 51 | U142: 3.14 | V142: -4.41 | W142: -6.24 | AE142: 3.956 | AG142: -0.2762 | AJ142: -0.4883 | AK142: -0.3905 | AL142: 42334486A
A143: 42334486B | B143: T0345B 第一金人幣高債B | C143: 第一金人民幣高收益債券證券投資信託基金－新台幣月配型 | D143: 高收債--中國大陸 | E143: 3.14 | F143: 9 | G143: 2.86 | H143: 20 | I143: -3 | J143: 53 | S143: -0.73 | T143: 50 | U143: 3.14 | V143: -4.4 | W143: -6.24 | AE143: 3.956 | AG143: -0.2761 | AJ143: -0.4882 | AK143: -0.3904 | AL143: 42334486B
A144: 42334486C | B144: T0345C 第一金人幣高債AC | C144: 第一金人民幣高收益債券證券投資信託基金－人民幣累積型 | D144: 高收債--中國大陸 | E144: 1.23 | F144: 39 | G144: 1.36 | H144: 37 | I144: 1.35 | J144: 39 | S144: 1.39 | T144: 37 | U144: 2.05 | V144: -1.16 | W144: 4.35 | AE144: 1.5933 | AG144: 0.0991 | AJ144: -0.3483 | AK144: -0.1266 | AL144: 42334486C
A145: 42334486D | B145: T0345D 第一金人幣高債BC | C145: 第一金人民幣高收益債券證券投資信託基金－人民幣月配型 | D145: 高收債--中國大陸 | E145: 1.24 | F145: 37 | G145: 1.35 | H145: 38 | I145: 1.33 | J145: 40 | S145: 1.37 | T145: 39 | U145: 2.01 | V145: -1.17 | W145: 4.27 | AE145: 1.6014 | AG145: 0.0952 | AJ145: -0.3504 | AK145: -0.1295 | AL145: 42334486D
A146: 42399017A | B146: T0346A 第一機器人自動 | C146: 第一金全球機器人及自動化證券投資信託基金 | D146: 跨國--全球股票 | E146: 7.91 | F146: 17 | G146: 15.17 | H146: 20 | I146: 25.3 | J146: 10 | S146: 20.3 | T146: 15 | U146: 8.45 | V146: 0.1 | W146: 26.8 | AE146: 6.1959 | AF146: 0.9029 | AG146: 1.031 | AH146: 0.6599 | AI146: 2.0424 | AJ146: 0.8697 | AK146: 0.7705 | AL146: 42399017A
A147: 42399017B | B147: T0346B 第一機器人自動$ | C147: 第一金全球機器人及自動化證券投資信託基金－美元計價 | D147: 跨國--全球股票 | E147: 7.6 | F147: 18 | G147: 16.89 | H147: 15 | I147: 31.52 | J147: 4 | S147: 28.64 | T147: 5 | U147: 12.07 | V147: -0.99 | W147: 37.17 | AE147: 8.8417 | AF147: 1.4447 | AG147: 0.8978 | AH147: 0.3681 | AI147: 1.5861 | AJ147: 0.6949 | AK147: 0.6611 | AL147: 42399017B
A148: 42455621A | B148: T0347A 第一金 FinTech | C148: 第一金全球 FinTech金融科技證券投資信託基金 | D148: 跨國--全球股票 | E148: 8.52 | F148: 14 | G148: 15.55 | H148: 17 | S148: 16.25 | T148: 25 | U148: 10.54 | V148: 0.1 | W148: 15.9 | AL148: 42455621A
A149: 42455621B | B149: T0347B 第一金 FinTech $ | C149: 第一金全球 FinTech金融科技證券投資信託基金─美元計價 | D149: 跨國--全球股票 | E149: 8.07 | F149: 16 | G149: 18.13 | H149: 10 | S149: 23.86 | T149: 10 | U149: 10.45 | V149: 4.45 | W149: 23.22 | AL149: 42455621B
A150: 42480678A | B150: T0348A 一金大四喜組累 | C150: 第一金全球大四喜收益組合證券投資信託基金累積類型 | D150: 跨國組合--平衡型 | E150: 0.71 | F150: 95 | U150: 1.39 | V150: 0.64 | W150: 1.59 | AL150: 42480678A
A151: 42480678B | B151: T0348B 一金大四喜組配 | C151: 第一金全球大四喜收益組合證券投資信託基金配息類型 | D151: 跨國組合--平衡型 | E151: 0.71 | F151: 95 | U151: 1.39 | V151: 0.64 | W151: 1.59 | AL151: 42480678B
A152: 42480678C | B152: T0348C 一金大四喜組累$ | C152: 第一金全球大四喜收益組合證券投資信託基金累積類型－美元計價 | D152: 跨國組合--平衡型 | E152: 0.83 | F152: 91 | U152: 1.33 | V152: 0.83 | W152: 1.82 | AL152: 42480678C
A153: 42480678D | B153: T0348D 一金大四喜組配$ | C153: 第一金全球大四喜收益組合證券投資信託基金配息類型－美元計價 | D153: 跨國組合--平衡型 | E153: 0.83 | F153: 91 | U153: 1.33 | V153: 0.83 | W153: 1.82 | AL153: 42480678D
A154: 42480678E | B154: T0348E 一金大四喜組累N | C154: 第一金全球大四喜收益組合證券投資信託基金累積類型 N類型 | D154: 跨國組合--平衡型 | W154: 0.87 | AL154: 42480678E
A155: 42480678H | B155: T0348H 一金大四喜組配N$ | C155: 第一金全球大四喜收益組合證券投資信託基金配息類型 N類型美元計價 | D155: 跨國組合--平衡型 | W155: 0.81 | AL155: 42480678H
A156: 00971080 | B156: T0405Y 匯豐安富 | C156: 匯豐安富證券投資信託基金 | D156: 平衡--一般股票型 | E156: 5.58 | F156: 14 | G156: 6.88 | H156: 15 | I156: 10.39 | J156: 13 | K156: 16.41 | L156: 15 | M156: 9.48 | N156: 16 | O156: 27.75 | P156: 16 | Q156: 14.4 | R156: 15 | S156: 10.1 | T156: 15 | U156: 5.67 | V156: -5.5 | W156: 210.77 | X156: 4.535 | Y156: 0.5409 | Z156: 0.4398 | AA156: -0.1738 | AB156: 1.0644 | AC156: 0.0504 | AD156: -0.3706 | AE156: 3.4424 | AF156: 0.7001 | AG156: 0.769 | AH156: -0.3453 | AI156: 1.0915 | AJ156: 0.2869 | AK156: -0.1777 | AL156: 00971080
A157: 76941376 | B157: T0406Y 匯豐成功 | C157: 匯豐成功證券投資信託基金 | D157: 開放式一般型 | E157: 7.66 | F157: 73 | G157: 6.53 | H157: 77 | I157: 11.04 | J157: 65 | K157: 18.02 | L157: 73 | M157: 13.45 | N157: 66 | O157: 35.54 | P157: 72 | Q157: 52.81 | R157: 22 | S157: 8.66 | T157: 78 | U157: 8.53 | V157: -7.46 | W157: 734.65 | X157: 7.5142 | Y157: 0.7945 | Z157: 0.2985 | AA157: -0.4535 | AB157: 0.8149 | AC157: -0.2937 | AD157: -0.257 | AE157: 5.0985 | AF157: 0.8328 | AG157: 0.5561 | AH157: -0.5013 | AI157: 0.9827 | AJ157: -0.2119 | AK157: -0.2084 | AL157: 76941376
A158: 01031298 | B158: T0408Y 匯豐龍鳳 | C158: 匯豐龍鳳證券投資信託基金 | D158: 開放式一般型 | E158: 10.91 | F158: 63 | G158: 12.17 | H158: 64 | I158: 20.45 | J158: 26 | K158: 31.24 | L158: 52 | M158: 18.54 | N158: 50 | O158: 53.02 | P158: 54 | Q158: 37.02 | R158: 32 | S158: 18.95 | T158: 58 | U158: 10.45 | V158: -9.99 | W158: 470.33 | X158: 8.1693 | Y158: 0.9424 | Z158: 0.4656 | AA158: -0.2078 | AB158: 1.1651 | AC158: -0.089 | AD158: -0.0425 | AE158: 6.3512 | AF158: 1.2848 | AG158: 0.8238 | AH158: -0.5256 | AI158: 1.1756 | AJ158: 0.142 | AK158: 0.1327 | AL158: 01031298
A159: 92017794 | B159: T0410Y 匯豐龍騰電子 | C159: 匯豐龍騰電子證券投資信託基金 | D159: 開放式科技類 | E159: 10.9 | F159: 23 | G159: 15.32 | H159: 19 | I159: 22.1 | J159: 14 | K159: 44.3 | L159: 14 | M159: 27.26 | N159: 15 | O159: 60.65 | P159: 18 | Q159: 9.84 | R159: 16 | S159: 25.14 | T159: 17 | U159: 12.87 | V159: -12.66 | W159: 267.03 | X159: 8.9307 | Y159: 0.9494 | Z159: 0.5834 | AA159: 0.1884 | AB159: 1.584 | AC159: 0.2314 | AD159: 0.0013 | AE159: 8.3453 | AF159: 1.5455 | AG159: 0.6794 | AH159: -0.8124 | AI159: 1.059 | AJ159: 0.2977 | AK159: 0.0567 | AL159: 92017794
A160: 92025871 | B160: T0411Y 匯豐富泰貨幣市場 | C160: 匯豐富泰貨幣市場證券投資信託基金 | D160: 國內貨幣市場 | E160: 0.04 | F160: 43 | G160: 0.07 | H160: 43 | I160: 0.14 | J160: 43 | K160: 0.35 | L160: 43 | M160: 0.77 | N160: 41 | O160: 1.79 | P160: 39 | Q160: 5.32 | R160: 38 | S160: 0.09 | T160: 43 | U160: 0.11 | V160: 0.03 | W160: 57.96 | X160: 0.0192 | Z160: -9.5871 | AC160: -0.1451 | AD160: -4.1192 | AE160: 0.0043 | AG160: -44.8438 | AJ160: -0.3117 | AK160: -3.4348 | AL160: 92025871
A161: 97993027 | B161: T0413Y 匯豐富泰二號貨幣 | C161: 匯豐富泰二號貨幣市場證券投資信託基金 | D161: 國內貨幣市場 | E161: 0.03 | F161: 44 | G161: 0.07 | H161: 44 | I161: 0.14 | J161: 44 | K161: 0.37 | L161: 41 | M161: 0.8 | N161: 40 | O161: 1.84 | P161: 38 | Q161: 5.37 | R161: 36 | S161: 0.09 | T161: 44 | U161: 0.11 | V161: 0.03 | W161: 49.5 | X161: 0.0196 | Z161: -9.2306 | AC161: -0.1403 | AD161: -3.2547 | AE161: 0.0031 | AG161: -61.653 | AJ161: -0.3121 | AK161: -3.3857 | AL161: 97993027
A162: 97995664 | B162: T0414Y 匯豐中小 | C162: 匯豐中小證券投資信託基金 | D162: 開放式中小型 | E162: 11.2 | F162: 18 | G162: 12.93 | H162: 16 | I162: 14.47 | J162: 14 | K162: 26.68 | L162: 18 | M162: 25.95 | N162: 11 | O162: 59.42 | P162: 12 | Q162: 10.64 | R162: 11 | S162: 21.33 | T162: 15 | U162: 12.06 | V162: -10.49 | W162: 9.2 | X162: 9.2303 | Y162: 0.8009 | Z162: 0.3589 | AA162: -0.1533 | AB162: 1.1942 | AC162: -0.2776 | AD162: -0.3061 | AE162: 9.686 | AF162: 1.5428 | AG162: 0.3935 | AH162: -1.3445 | AI162: 0.7132 | AJ162: -0.2493 | AK162: -0.1508 | AL162: 97995664
A163: 73987671 | B163: T0415Y 匯豐台灣精典 | C163: 匯豐台灣精典證券投資信託基金 | D163: 開放式一般型 | E163: 10.84 | F163: 64 | G163: 11.93 | H163: 65 | I163: 20.09 | J163: 27 | K163: 30.17 | L163: 55 | M163: 16.95 | N163: 56 | O163: 47.03 | P163: 63 | Q163: 48.96 | R163: 26 | S163: 18.71 | T163: 60 | U163: 10.24 | V163: -10.2 | W163: 137.3 | X163: 8.0706 | Y163: 0.9298 | Z163: 0.4562 | AA163: -0.2255 | AB163: 1.1431 | AC163: -0.1119 | AD163: -0.0657 | AE163: 6.3554 | AF163: 1.2917 | AG163: 0.8094 | AH163: -0.5618 | AI163: 1.1497 | AJ163: 0.1254 | AK163: 0.1168 | AL163: 73987671
A164: 18031954 | B164: T0417Y 匯豐太平洋精典 | C164: 匯豐太平洋精典證券投資信託基金 | D164: 跨國投資--亞洲 | E164: 8.04 | F164: 36 | G164: 16.14 | H164: 18 | I164: 18.12 | J164: 20 | K164: 28.16 | L164: 17 | M164: 18.52 | N164: 16 | O164: 39.5 | P164: 19 | Q164: 0.46 | R164: 11 | S164: 20.84 | T164: 29 | U164: 11.42 | V164: -12.2 | W164: 73.4 | X164: 10.5066 | Y164: 0.8041 | Z164: 0.3348 | AA164: 0.2303 | AB164: 1.2629 | AC164: 0.1902 | AD164: 0.2149 | AE164: 7.0375 | AF164: 0.6452 | AG164: 0.6638 | AH164: 0.5023 | AI164: 2.09 | AJ164: 0.1211 | AK164: 0.2274 | AL164: 18031954
A165: 48686374 | B165: T0425Y 匯豐金磚動力 | C165: 匯豐金磚動力證券投資信託基金 | D165: 跨國--新興市場 | E165: 12.74 | F165: 6 | G165: 14.87 | H165: 6 | I165: 20.31 | J165: 3 | K165: 28.49 | L165: 6 | M165: 7.87 | N165: 9 | O165: 32.89 | P165: 6 | Q165: -12.13 | R165: 3 | S165: 20.41 | T165: 6 | U165: 10.96 | V165: -15.59 | W165: 39.8 | X165: 11.6077 | Y165: 0.8448 | Z165: 0.3093 | AA165: 0.2116 | AB165: 1.227 | AC165: 0.1864 | AD165: 0.1526 | AE165: 7.0713 | AF165: 0.1627 | AG165: 0.7368 | AH165: 1.2906 | AI165: 9.2419 | AJ165: 0.238 | AK165: 0.2515 | AL165: 48686374
A166: 48745129 | B166: T0427Y 匯豐五福全球債券 | C166: 匯豐五福全球債券組合證券投資信託基金 | D166: 債券組合--投資級 | E166: 1 | F166: 8 | G166: 1.88 | H166: 9 | I166: -0.18 | J166: 10 | K166: 5.01 | L166: 8 | M166: 4.32 | N166: 4 | O166: 9.98 | P166: 1 | Q166: 26.06 | R166: 2 | S166: 1.84 | T166: 10 | U166: 2.72 | V166: -2.79 | W166: 34.76 | X166: 2.6702 | Z166: 0.1805 | AC166: -0.2744 | AD166: -0.5668 | AE166: 2.6726 | AG166: -0.1029 | AJ166: -0.725 | AK166: -0.9621 | AL166: 48745129
A167: 48784327 | B167: T0428Y 匯豐新鑽動力 | C167: 匯豐新鑽動力證券投資信託基金 | D167: 跨國--新興市場 | E167: 8.89 | F167: 14 | G167: 13 | H167: 11 | I167: 17.43 | J167: 10 | K167: 25.93 | L167: 10 | M167: 5.38 | N167: 12 | O167: 19.12 | P167: 10 | Q167: -17.46 | R167: 5 | S167: 17.05 | T167: 11 | U167: 9.17 | V167: -14.06 | W167: 7.8 | X167: 10.9329 | Y167: 0.8769 | Z167: 0.2993 | AA167: 0.0885 | AB167: 1.0774 | AC167: 0.1119 | AD167: 0.1595 | AE167: 5.7959 | AF167: 0.5411 | AG167: 0.7728 | AH167: 0.5834 | AI167: 2.3897 | AJ167: 0.0903 | AK167: 0.1267 | AL167: 48784327
